Workbook

Sheet Sample Report (hidden)
A2: Date
A3: Hen
A4: Program
A5: Start at 999999
A6: Sequence component 1 | B6: Time 1 | C6: Seqeunce Component 2 | D6: Time 2 | E6: Seqeunce Component 3 | F6: Time 3 | G6: Correct 0 = No 1=Yes | J6: Seqeunce | K6: Time
A7: 12 | B7: 7 | C7: 12 | D7: 42 | E7: 13 | F7: 18 | G7: if 77 new line, if 31 or 41 = yes new line on 77, | J7: =string of Seqeunce compponent 1, 2 & 3 | K7: =time 3
A8: This continues until ther is a 1 on its own to indicate start of summary data
J9: 10-19 =1
A10: Summary Data | J10: 20-29 =2
A11: Correct | B11: Incorrect | C11: Rft | D11: total | E11: Av Correct | F11: Av Incorrect | G11: Percent correct | H11: Time | J11: in this example the seqeunce would be 111
A12: 40 | B12: 33 | C12: 40 | D12: 73 | E12: 23.95 | F12: 15 | G12: 54 | H12: 806

Sheet Summary
A2: Day | B2: Date | C2: Average Response Rate | D2: Target % | E2: RF for non correct sequence | F2: U Value | K2: Block 1 | L2: Block 2 | M2: Block 3 | N2: Block 4 | O2: Block 5 | P2: Block 6
A3: 1 | B3: ='!M823B1I.sha'!B2:C2 -> <date> | C3: =('!M823B1I.sha'!F149/60)/'!M823B1I.sha'!Q3 -> 2.47337963 | D3: ='!M823B1I.sha'!N20/'!M823B1I.sha'!Q3 -> 0.006944444444 | E3: =SUM('!M823B1I.sha'!L20:Q20)/'!M823B1I.sha'!Q3 -> 1.875 | F3: ='!M823B1I.sha'!Q16 -> 0.2896859164 | J3: Average Response Rate | K3: =AVERAGE(C3:C7) -> 2.504563459 | L3: =AVERAGE(C8:C12) -> 2.173392857 | M3: =AVERAGE(C13:C17) -> 2.289232901 | N3: =AVERAGE(C18:C22) -> 2.318772358 | O3: =AVERAGE(C23:C27) -> 2.462191813 | P3: =AVERAGE(C28:C32) -> 3.354914634
A4: 2 | B4: ='!M824B0I.sha'!B2:C2 -> <date> | C4: =('!M824B0I.sha'!F147/60)/'!M824B0I.sha'!Q3 -> 2.814420804 | D4: ='!M824B0I.sha'!N20/'!M824B0I.sha'!Q3 -> 0.02127659574 | E4: =SUM('!M824B0I.sha'!L20:Q20)/'!M824B0I.sha'!Q3 -> 1.929078014 | F4: ='!M824B0I.sha'!Q16 -> 0.3578326354 | J4: Target % | K4: =AVERAGE(D3:D7) -> 0.2219014746 | L4: =AVERAGE(D8:D12) -> 0.9714285714 | M4: =AVERAGE(D13:D17) -> 0.9538521099 | N4: =AVERAGE(D18:D22) -> 0.9951219512 | O4: =AVERAGE(D23:D27) -> 0.9811684628 | P4: =AVERAGE(D28:D32) -> 0.9902439024
A5: 3 | B5: ='!M825A2I.sha'!B2:C2 -> <date> | C5: =('!M825A2I.sha'!F153/60)/'!M825A2I.sha'!Q3 -> 2.717913832 | D5: ='!M825A2I.sha'!N20/'!M825A2I.sha'!Q3 -> 0.03401360544 | E5: =SUM('!M825A2I.sha'!L20:Q20)/'!M825A2I.sha'!Q3 -> 1.87755102 | F5: ='!M825A2I.sha'!Q16 -> 0.3799177931 | J5: CCRF | K5: =AVERAGE(E3:E7) -> 2.442943989 | L5: =AVERAGE(E8:E12) -> 3.997142857 | M5: =AVERAGE(E13:E17) -> 3.934084398 | N5: =AVERAGE(E18:E22) -> 4.084878049 | O5: =AVERAGE(E23:E27) -> 4.032319909 | P5: =AVERAGE(E28:E32) -> 4.069756098
A6: 4 | B6: ='!M826B3I.sha'!B2:C2 -> <date> | C6: =('!M826B3I.sha'!F131/60)/'!M826B3I.sha'!Q3 -> 2.300133333 | D6: ='!M826B3I.sha'!N20/'!M826B3I.sha'!Q3 -> 0.32 | E6: =SUM('!M826B3I.sha'!L20:Q20)/'!M826B3I.sha'!Q3 -> 1.624 | F6: ='!M826B3I.sha'!Q16 -> 0.3766304259 | J6: U Value | K6: =AVERAGE(F3:F7) -> 0.3333257068 | L6: =AVERAGE(F8:F12) -> 0.03249828457 | M6: =AVERAGE(F13:F17) -> 0.05068602412 | N6: =AVERAGE(F18:F22) -> 0.006175470956 | O6: =AVERAGE(F23:F27) -> 0.02199196205 | P6: =AVERAGE(F28:F32) -> 0.01235094191
A7: 5 | B7: ='!M827B4I.sha'!B2:C2 -> <date> | C7: =('!M827B4I.sha'!F61/60)/'!M827B4I.sha'!Q3 -> 2.216969697 | D7: ='!M827B4I.sha'!N20/'!M827B4I.sha'!Q3 -> 0.7272727273 | E7: =SUM('!M827B4I.sha'!L20:Q20)/'!M827B4I.sha'!Q3 -> 4.909090909 | F7: ='!M827B4I.sha'!Q16 -> 0.2625617631
A8: 6 | B8: ='!M828A4I.sha'!B2:C2 -> <date> | C8: =('!M828A4I.sha'!F48/60)/'!M828A4I.sha'!Q3 -> 2.196031746 | D8: ='!M828A4I.sha'!N20/'!M828A4I.sha'!Q3 -> 0.9523809524 | E8: =SUM('!M828A4I.sha'!L20:Q20)/'!M828A4I.sha'!Q3 -> 3.928571429 | F8: ='!M828A4I.sha'!Q16 -> 0.05122017233
A9: 7 | B9: ='!M829A5I.sha'!B2:C2 -> <date> | C9: =('!M829A5I.sha'!F48/60)/'!M829A5I.sha'!Q3 -> 2.062698413 | D9: ='!M829A5I.sha'!N20/'!M829A5I.sha'!Q3 -> 0.9523809524 | E9: =SUM('!M829A5I.sha'!L20:Q20)/'!M829A5I.sha'!Q3 -> 3.928571429 | F9: ='!M829A5I.sha'!Q16 -> 0.05122017233 | G9: =K3 -> 2.504563459 | H9: =L3 -> 2.173392857 | I9: 2.289232901 | J9: 2.318772358 | K9: 2.462191813 | L9: 3.354914634 | M9: =K4 -> 0.2219014746 | N9: =L4 -> 0.9714285714 | O9: 0.9538521099 | P9: 0.9951219512 | Q9: 0.9811684628 | R9: 0.9902439024 | S9: =K6 -> 0.3333257068 | T9: =L6 -> 0.03249828457 | U9: 0.05068602412 | V9: 0.006175470956 | W9: 0.02199196205 | X9: 0.01235094191
A10: 8 | B10: ='!M830B1I.sha'!B2:C2 -> <date> | C10: =('!M830B1I.sha'!F46/60)/'!M830B1I.sha'!Q3 -> 2.413333333 | D10: ='!M830B1I.sha'!N20/'!M830B1I.sha'!Q3 -> 1 | E10: =SUM('!M830B1I.sha'!L20:Q20)/'!M830B1I.sha'!Q3 -> 4.1 | F10: ='!M830B1I.sha'!Q16 -> 0
A11: 9 | B11: ='!M831B1I.sha'!B2:C2 -> <date> | C11: =('!M831B1I.sha'!F46/60)/'!M831B1I.sha'!Q3 -> 2.184583333 | D11: ='!M831B1I.sha'!N20/'!M831B1I.sha'!Q3 -> 1 | E11: =SUM('!M831B1I.sha'!L20:Q20)/'!M831B1I.sha'!Q3 -> 4.1 | F11: ='!M831B1I.sha'!Q16 -> 0
A12: 10 | B12: ='!M901A0I.sha'!B2:C2 -> <date> | C12: =('!M901A0I.sha'!F48/60)/'!M901A0I.sha'!Q3 -> 2.01031746 | D12: ='!M901A0I.sha'!N20/'!M901A0I.sha'!Q3 -> 0.9523809524 | E12: =SUM('!M901A0I.sha'!L20:Q20)/'!M901A0I.sha'!Q3 -> 3.928571429 | F12: ='!M901A0I.sha'!Q16 -> 0.06005107821
A13: 11 | B13: ='!M902A1I.sha'!B2:C2 -> <date> | C13: =('!M902A1I.sha'!F51/60)/'!M902A1I.sha'!Q3 -> 2.041481481 | D13: ='!M902A1I.sha'!N20/'!M902A1I.sha'!Q3 -> 0.8888888889 | E13: =SUM('!M902A1I.sha'!L20:Q20)/'!M902A1I.sha'!Q3 -> 3.688888889 | F13: ='!M902A1I.sha'!Q16 -> 0.1112815153
A14: 12 | B14: ='!M903C3I.sha'!B2:C2 -> <date> | C14: =('!M903C3I.sha'!F46/60)/'!M903C3I.sha'!Q3 -> 2.14875 | D14: ='!M903C3I.sha'!N20/'!M903C3I.sha'!Q3 -> 1 | E14: =SUM('!M903C3I.sha'!L20:Q20)/'!M903C3I.sha'!Q3 -> 4.1 | F14: ='!M903C3I.sha'!Q16 -> 0
A15: 13 | B15: ='!M904A4I.sha'!B2:C2 -> <date> | C15: =('!M904A4I.sha'!F48/60)/'!M904A4I.sha'!Q3 -> 2.282142857 | D15: ='!M904A4I.sha'!N20/'!M904A4I.sha'!Q3 -> 0.9523809524 | E15: =SUM('!M904A4I.sha'!L20:Q20)/'!M904A4I.sha'!Q3 -> 3.928571429 | F15: ='!M904A4I.sha'!Q16 -> 0.06005107821
A16: 14 | B16: ='!M905A4I.sha'!B2:C2 -> <date> | C16: =('!M905A4I.sha'!F47/60)/'!M905A4I.sha'!Q3 -> 2.332520325 | D16: ='!M905A4I.sha'!N20/'!M905A4I.sha'!Q3 -> 0.9756097561 | E16: =SUM('!M905A4I.sha'!L20:Q20)/'!M905A4I.sha'!Q3 -> 4.024390244 | F16: ='!M905A4I.sha'!Q16 -> 0.03087735478
A17: 15 | B17: ='!M906B1I.sha'!B2:C2 -> <date> | C17: =('!M906B1I.sha'!F48/60)/'!M906B1I.sha'!Q3 -> 2.641269841 | D17: ='!M906B1I.sha'!N20/'!M906B1I.sha'!Q3 -> 0.9523809524 | E17: =SUM('!M906B1I.sha'!L20:Q20)/'!M906B1I.sha'!Q3 -> 3.928571429 | F17: ='!M906B1I.sha'!Q16 -> 0.05122017233
A18: 16 | B18: ='!M907A5I.sha'!B2:C2 -> <date> | C18: =('!M907A5I.sha'!F46/60)/'!M907A5I.sha'!Q3 -> 2.165416667 | D18: ='!M907A5I.sha'!N20/'!M907A5I.sha'!Q3 -> 1 | E18: =SUM('!M907A5I.sha'!L20:Q20)/'!M907A5I.sha'!Q3 -> 4.1 | F18: ='!M907A5I.sha'!Q16 -> 0
A19: 17 | B19: ='!M908A5I.sha'!B2:C2 -> <date> | C19: =('!M908A5I.sha'!F46/60)/'!M908A5I.sha'!Q3 -> 2.260833333 | D19: ='!M908A5I.sha'!N20/'!M908A5I.sha'!Q3 -> 1 | E19: =SUM('!M908A5I.sha'!L20:Q20)/'!M908A5I.sha'!Q3 -> 4.1 | F19: ='!M908A5I.sha'!Q16 -> 0
A20: 18 | B20: ='!M909A5I.sha'!B2:C2 -> <date> | C20: =('!M909A5I.sha'!F46/60)/'!M909A5I.sha'!Q3 -> 2.467916667 | D20: ='!M909A5I.sha'!N20/'!M909A5I.sha'!Q3 -> 1 | E20: =SUM('!M909A5I.sha'!L20:Q20)/'!M909A5I.sha'!Q3 -> 4.1 | F20: ='!M909A5I.sha'!Q16 -> 0
A21: 19 | B21: ='!M910B5I.sha'!B2:C2 -> <date> | C21: =('!M910B5I.sha'!F47/60)/'!M910B5I.sha'!Q3 -> 2.428861789 | D21: ='!M910B5I.sha'!N20/'!M910B5I.sha'!Q3 -> 0.9756097561 | E21: =SUM('!M910B5I.sha'!L20:Q20)/'!M910B5I.sha'!Q3 -> 4.024390244 | F21: ='!M910B5I.sha'!Q16 -> 0.03087735478
A22: 20 | B22: ='!M911A3I.sha'!B2:C2 -> <date> | C22: =('!M911A3I.sha'!F46/60)/'!M911A3I.sha'!Q3 -> 2.270833333 | D22: ='!M911A3I.sha'!N20/'!M911A3I.sha'!Q3 -> 1 | E22: =SUM('!M911A3I.sha'!L20:Q20)/'!M911A3I.sha'!Q3 -> 4.1 | F22: ='!M911A3I.sha'!Q16 -> 0
A23: 21 | B23: ='!M912A4I.sha'!B2:C2 -> <date> | C23: =('!M912A4I.sha'!F46/60)/'!M912A4I.sha'!Q3 -> 2.295833333 | D23: ='!M912A4I.sha'!N20/'!M912A4I.sha'!Q3 -> 1 | E23: =SUM('!M912A4I.sha'!L20:Q20)/'!M912A4I.sha'!Q3 -> 4.1 | F23: ='!M912A4I.sha'!Q16 -> 0
A24: 22 | B24: ='!M913A0I.sha'!B2:C2 -> <date> | C24: =('!M913A0I.sha'!F46/60)/'!M913A0I.sha'!Q3 -> 2.440416667 | D24: ='!M913A0I.sha'!N20/'!M913A0I.sha'!Q3 -> 1 | E24: =SUM('!M913A0I.sha'!L20:Q20)/'!M913A0I.sha'!Q3 -> 4.1 | F24: ='!M913A0I.sha'!Q16 -> 0
A25: 23 | B25: ='!M914B3I.sha'!B2:C2 -> <date> | C25: =('!M914B3I.sha'!F46/60)/'!M914B3I.sha'!Q3 -> 2.709583333 | D25: ='!M914B3I.sha'!N20/'!M914B3I.sha'!Q3 -> 1 | E25: =SUM('!M914B3I.sha'!L20:Q20)/'!M914B3I.sha'!Q3 -> 4.1 | F25: ='!M914B3I.sha'!Q16 -> 0
A26: 24 | B26: ='!M915B2I.sha'!B2:C2 -> <date> | C26: =('!M915B2I.sha'!F47/60)/'!M915B2I.sha'!Q3 -> 2.508536585 | D26: ='!M915B2I.sha'!N20/'!M915B2I.sha'!Q3 -> 0.9756097561 | E26: =SUM('!M915B2I.sha'!L20:Q20)/'!M915B2I.sha'!Q3 -> 4.024390244 | F26: ='!M915B2I.sha'!Q16 -> 0.03087735478
A27: 25 | B27: ='!M916A4I.sha'!B2:C2 -> <date> | C27: =('!M916A4I.sha'!F49/60)/'!M916A4I.sha'!Q3 -> 2.356589147 | D27: ='!M916A4I.sha'!N20/'!M916A4I.sha'!Q3 -> 0.9302325581 | E27: =SUM('!M916A4I.sha'!L20:Q20)/'!M916A4I.sha'!Q3 -> 3.837209302 | F27: ='!M916A4I.sha'!Q16 -> 0.07908245547
A28: 26 | B28: ='!M917A4I.sha'!B2:C2 -> <date> | C28: =('!M917A4I.sha'!F47/60)/'!M917A4I.sha'!Q3 -> 2.413821138 | D28: ='!M917A4I.sha'!N20/'!M917A4I.sha'!Q3 -> 0.9756097561 | E28: =SUM('!M917A4I.sha'!L20:Q20)/'!M917A4I.sha'!Q3 -> 4.024390244 | F28: ='!M917A4I.sha'!Q16 -> 0.03087735478
A29: 27 | B29: ='!M918A2I.sha'!B2:C2 -> <date> | C29: =('!M918A2I.sha'!F47/60)/'!M918A2I.sha'!Q3 -> 6.036585366 | D29: ='!M918A2I.sha'!N20/'!M918A2I.sha'!Q3 -> 0.9756097561 | E29: =SUM('!M918A2I.sha'!L20:Q20)/'!M918A2I.sha'!Q3 -> 4.024390244 | F29: ='!M918A2I.sha'!Q16 -> 0.03087735478
A30: 28 | B30: ='!M919A3I.sha'!B2:C2 -> <date> | C30: =('!M919A3I.sha'!F46/60)/'!M919A3I.sha'!Q3 -> 3.075 | D30: ='!M919A3I.sha'!N20/'!M919A3I.sha'!Q3 -> 1 | E30: =SUM('!M919A3I.sha'!L20:Q20)/'!M919A3I.sha'!Q3 -> 4.1 | F30: ='!M919A3I.sha'!Q16 -> 0
A31: 29 | B31: ='!M92095I.sha'!B2:C2 -> <date> | C31: =('!M92095I.sha'!F46/60)/'!M92095I.sha'!Q3 -> 2.502916667 | D31: ='!M92095I.sha'!N20/'!M92095I.sha'!Q3 -> 1 | E31: =SUM('!M92095I.sha'!L20:Q20)/'!M92095I.sha'!Q3 -> 4.1 | F31: ='!M92095I.sha'!Q16 -> 0
A32: 30 | B32: ='!M92190I.sha'!B2:C2 -> <date> | C32: =('!M92190I.sha'!F46/60)/'!M92190I.sha'!Q3 -> 2.74625 | D32: ='!M92190I.sha'!N20/'!M92190I.sha'!Q3 -> 1 | E32: =SUM('!M92190I.sha'!L20:Q20)/'!M92190I.sha'!Q3 -> 4.1 | F32: ='!M92190I.sha'!Q16 -> 0

Sheet Start
F1: Use Folder 51 | H1: Auto Clean Up | J1: Correct sequence
F2: FALSE | H2: TRUE | J2: 111
A4: Working with Folder | G4: Process All/Or Pick A number: ALL or an integer
A5: F:\Possum Chapter\Raw Data\Ishan\new phase LLL\ | G5: ALL
A6: Filenames:
A7: !M92190I.sha | G7: Paint Cells
A8: !M823B1I.sha | G8: FALSE
A9: !M824B0I.sha
A10: !M825A2I.sha
A11: !M826B3I.sha
A12: !M827B4I.sha
A13: !M828A4I.sha
A14: !M829A5I.sha
A15: !M830B1I.sha
A16: !M831B1I.sha
A17: !M901A0I.sha
A18: !M902A1I.sha
A19: !M903C3I.sha
A20: !M904A4I.sha
A21: !M905A4I.sha
A22: !M906B1I.sha
A23: !M907A5I.sha
A24: !M908A5I.sha
A25: !M909A5I.sha
A26: !M910B5I.sha
A27: !M911A3I.sha
A28: !M912A4I.sha
A29: !M913A0I.sha
A30: !M914B3I.sha
A31: !M915B2I.sha
A32: !M916A4I.sha
A33: !M917A4I.sha
A34: !M918A2I.sha
A35: !M919A3I.sha
A36: !M92095I.sha

Sheet !M823B1I.sha
A1: Report for:!M823B1I.sha
A2: Date: | B2: <date>
A3: Hen: | B3: <hen> | F3: Correct Sequence | G3: =Start!J2 -> 111 | P3: Total Sequences in Data | Q3: =4994-COUNTBLANK(L7:L5000) -> 144 | V3: Total Sequences in Block Data | W3: =COUNTA(L7:L30) -> 24 | AA3: Total Sequences in Block Data | AB3: =COUNTA(L31:L54) -> 24 | AF3: Total Sequences in Block Data | AG3: =COUNTA(L55:L78) -> 24 | AK3: Total Sequences in Block Data | AL3: =COUNTA(L79:L102) -> 24 | AP3: Total Sequences in Block Data | AQ3: =COUNTA(L103:L126) -> 24 | AU3: Total Sequences in Block Data | AV3: =COUNTA(L127:L150) -> 24
P4: Total Sequences in Summary | Q4: =SUM(O7:O14) -> 143 | V4: Total Sequences in Block Summary | W4: =SUM(U7:U14) -> 24 | AA4: Total Sequences in Block Summary | AB4: =SUM(Z7:Z14) -> 24 | AF4: Total Sequences in Block Summary | AG4: =SUM(AE7:AE14) -> 24 | AK4: Total Sequences in Block Summary | AL4: =SUM(AJ7:AJ14) -> 24 | AP4: Total Sequences in Block Summary | AQ4: =SUM(AO7:AO14) -> 24 | AU4: Total Sequences in Block Summary | AV4: =SUM(AT7:AT14) -> 23
T5: Block 1 | Y5: Block 2 | AD5: Block 3 | AI5: Block 4 | AN5: Block 5 | AS5: Block 6
A6: Sequence Component 1 | B6: Time 1 | C6: Sequence Component 2 | D6: Time 2 | E6: Sequence Component 3 | F6: Time 3 | G6: Sequence Component 4 | H6: Time 4 | I6: Sequence Component 5 | J6: Time 5 | K6: Correct? 0=No 1=Yes | L6: Sequence | N6: Frequency | P6: Relative Frequency | Q6: Variability | T6: Frequency | V6: Relative Frequency | W6: Variability | Y6: Frequency | AA6: Relative Frequency | AB6: Variability | AD6: Frequency | AF6: Relative Frequency | AG6: Variability | AI6: Frequency | AK6: Relative Frequency | AL6: Variability | AN6: Frequency | AP6: Relative Frequency | AQ6: Variability | AS6: Frequency | AU6: Relative Frequency | AV6: Variability
A7: 22 | B7: 34 | C7: 24 | D7: 39 | E7: 13 | F7: 50 | K7: 0 | L7: 221 | N7: 111 | O7: =COUNTIF($L$7:$L$500,N7) -> 1 | P7: =O7/$Q$4 -> 0.006993006993 | Q7: =IF(P7=0,0,(P7*((LOG(P7))/LOG(2)))) -> -0.05006903033 | T7: =N7 -> 111 | U7: =COUNTIF(L7:L30,T7) -> 0 | Y7: =N7 -> 111 | Z7: =COUNTIF(L31:L54,Y7) -> 1 | AD7: =N7 -> 111 | AE7: =COUNTIF(L55:L78,AD7) -> 0 | AI7: =N7 -> 111 | AJ7: =COUNTIF(L79:L102,AI7) -> 0 | AN7: =N7 -> 111 | AO7: =COUNTIF(L103:L126,AN7) -> 0 | AS7: =N7 -> 111 | AT7: =COUNTIF(L127:L150,AS7) -> 0
A8: 22 | B8: 151 | C8: 24 | D8: 154 | E8: 13 | F8: 166 | K8: 0 | L8: 221 | N8: 112 | O8: =COUNTIF($L$7:$L$500,N8) -> 0 | P8: =O8/$Q$4 -> 0 | Q8: =IF(P8=0,0,(P8*((LOG(P8))/LOG(2)))) -> 0 | T8: =N8 -> 112 | U8: =COUNTIF(L7:L30,T8) -> 0 | V8: =U8/(W4-U7) -> 0 | W8: =IF(V8=0,0,(V8*((LOG(V8))/LOG(2)))) -> 0 | Y8: =N8 -> 112 | Z8: =COUNTIF(L31:L54,Y8) -> 0 | AA8: =Z8/(AB4-Z7) -> 0 | AB8: =IF(AA8=0,0,(AA8*((LOG(AA8))/LOG(2)))) -> 0 | AD8: =N8 -> 112 | AE8: =COUNTIF(L55:L78,AD8) -> 0 | AF8: =AE8/(AG4-AE7) -> 0 | AG8: =IF(AF8=0,0,(AF8*((LOG(AF8))/LOG(2)))) -> 0 | AI8: =N8 -> 112 | AJ8: =COUNTIF(L79:L102,AI8) -> 0 | AK8: =AJ8/(AL4-AJ7) -> 0 | AL8: =IF(AK8=0,0,(AK8*((LOG(AK8))/LOG(2)))) -> 0 | AN8: =N8 -> 112 | AO8: =COUNTIF(L103:L126,AN8) -> 0 | AP8: =AO8/(AQ4-AO7) -> 0 | AQ8: =IF(AP8=0,0,(AP8*((LOG(AP8))/LOG(2)))) -> 0 | AS8: =N8 -> 112 | AT8: =COUNTIF(L127:L150,AS8) -> 0 | AU8: =AT8/(AV4-AT7) -> 0 | AV8: =IF(AU8=0,0,(AU8*((LOG(AU8))/LOG(2)))) -> 0
A9: 22 | B9: 268 | C9: 24 | D9: 272 | E9: 24 | F9: 280 | K9: 0 | L9: 222 | N9: 121 | O9: =COUNTIF($L$7:$L$500,N9) -> 3 | P9: =O9/$Q$4 -> 0.02097902098 | Q9: =IF(P9=0,0,(P9*((LOG(P9))/LOG(2)))) -> -0.1169561294 | T9: =N9 -> 121 | U9: =COUNTIF(L7:L30,T9) -> 0 | V9: =U9/(W4-U7) -> 0 | W9: =IF(V9=0,0,(V9*((LOG(V9))/LOG(2)))) -> 0 | Y9: =N9 -> 121 | Z9: =COUNTIF(L31:L54,Y9) -> 0 | AA9: =Z9/(AB4-Z7) -> 0 | AB9: =IF(AA9=0,0,(AA9*((LOG(AA9))/LOG(2)))) -> 0 | AD9: =N9 -> 121 | AE9: =COUNTIF(L55:L78,AD9) -> 1 | AF9: =AE9/(AG4-AE7) -> 0.04166666667 | AG9: =IF(AF9=0,0,(AF9*((LOG(AF9))/LOG(2)))) -> -0.1910401042 | AI9: =N9 -> 121 | AJ9: =COUNTIF(L79:L102,AI9) -> 0 | AK9: =AJ9/(AL4-AJ7) -> 0 | AL9: =IF(AK9=0,0,(AK9*((LOG(AK9))/LOG(2)))) -> 0 | AN9: =N9 -> 121 | AO9: =COUNTIF(L103:L126,AN9) -> 0 | AP9: =AO9/(AQ4-AO7) -> 0 | AQ9: =IF(AP9=0,0,(AP9*((LOG(AP9))/LOG(2)))) -> 0 | AS9: =N9 -> 121 | AT9: =COUNTIF(L127:L150,AS9) -> 2 | AU9: =AT9/(AV4-AT7) -> 0.08695652174 | AV9: =IF(AU9=0,0,(AU9*((LOG(AU9))/LOG(2)))) -> -0.3063966918
A10: 22 | B10: 380 | C10: 24 | D10: 408 | E10: 24 | F10: 417 | K10: 0 | L10: 222 | N10: 122 | O10: =COUNTIF($L$7:$L$500,N10) -> 13 | P10: =O10/$Q$4 -> 0.09090909091 | Q10: =IF(P10=0,0,(P10*((LOG(P10))/LOG(2)))) -> -0.3144937835 | T10: =N10 -> 122 | U10: =COUNTIF(L7:L30,T10) -> 3 | V10: =U10/(W4-U7) -> 0.125 | W10: =IF(V10=0,0,(V10*((LOG(V10))/LOG(2)))) -> -0.375 | Y10: =N10 -> 122 | Z10: =COUNTIF(L31:L54,Y10) -> 3 | AA10: =Z10/(AB4-Z7) -> 0.1304347826 | AB10: =IF(AA10=0,0,(AA10*((LOG(AA10))/LOG(2)))) -> -0.3832955811 | AD10: =N10 -> 122 | AE10: =COUNTIF(L55:L78,AD10) -> 2 | AF10: =AE10/(AG4-AE7) -> 0.08333333333 | AG10: =IF(AF10=0,0,(AF10*((LOG(AF10))/LOG(2)))) -> -0.2987468751 | AI10: =N10 -> 122 | AJ10: =COUNTIF(L79:L102,AI10) -> 1 | AK10: =AJ10/(AL4-AJ7) -> 0.04166666667 | AL10: =IF(AK10=0,0,(AK10*((LOG(AK10))/LOG(2)))) -> -0.1910401042 | AN10: =N10 -> 122 | AO10: =COUNTIF(L103:L126,AN10) -> 2 | AP10: =AO10/(AQ4-AO7) -> 0.08333333333 | AQ10: =IF(AP10=0,0,(AP10*((LOG(AP10))/LOG(2)))) -> -0.2987468751 | AS10: =N10 -> 122 | AT10: =COUNTIF(L127:L150,AS10) -> 2 | AU10: =AT10/(AV4-AT7) -> 0.08695652174 | AV10: =IF(AU10=0,0,(AU10*((LOG(AU10))/LOG(2)))) -> -0.3063966918
A11: 11 | B11: 510 | C11: 22 | D11: 518 | E11: 24 | F11: 525 | K11: 0 | L11: 122 | N11: 211 | O11: =COUNTIF($L$7:$L$500,N11) -> 17 | P11: =O11/$Q$4 -> 0.1188811189 | Q11: =IF(P11=0,0,(P11*((LOG(P11))/LOG(2)))) -> -0.3652513596 | T11: =N11 -> 211 | U11: =COUNTIF(L7:L30,T11) -> 2 | V11: =U11/(W4-U7) -> 0.08333333333 | W11: =IF(V11=0,0,(V11*((LOG(V11))/LOG(2)))) -> -0.2987468751 | Y11: =N11 -> 211 | Z11: =COUNTIF(L31:L54,Y11) -> 2 | AA11: =Z11/(AB4-Z7) -> 0.08695652174 | AB11: =IF(AA11=0,0,(AA11*((LOG(AA11))/LOG(2)))) -> -0.3063966918 | AD11: =N11 -> 211 | AE11: =COUNTIF(L55:L78,AD11) -> 1 | AF11: =AE11/(AG4-AE7) -> 0.04166666667 | AG11: =IF(AF11=0,0,(AF11*((LOG(AF11))/LOG(2)))) -> -0.1910401042 | AI11: =N11 -> 211 | AJ11: =COUNTIF(L79:L102,AI11) -> 3 | AK11: =AJ11/(AL4-AJ7) -> 0.125 | AL11: =IF(AK11=0,0,(AK11*((LOG(AK11))/LOG(2)))) -> -0.375 | AN11: =N11 -> 211 | AO11: =COUNTIF(L103:L126,AN11) -> 5 | AP11: =AO11/(AQ4-AO7) -> 0.2083333333 | AQ11: =IF(AP11=0,0,(AP11*((LOG(AP11))/LOG(2)))) -> -0.4714655012 | AS11: =N11 -> 211 | AT11: =COUNTIF(L127:L150,AS11) -> 4 | AU11: =AT11/(AV4-AT7) -> 0.1739130435 | AV11: =IF(AU11=0,0,(AU11*((LOG(AU11))/LOG(2)))) -> -0.4388803402
A12: 22 | B12: 626 | C12: 24 | D12: 652 | E12: 24 | F12: 666 | K12: 0 | L12: 222 | N12: 212 | O12: =COUNTIF($L$7:$L$500,N12) -> 12 | P12: =O12/$Q$4 -> 0.08391608392 | Q12: =IF(P12=0,0,(P12*((LOG(P12))/LOG(2)))) -> -0.2999923499 | T12: =N12 -> 212 | U12: =COUNTIF(L7:L30,T12) -> 0 | V12: =U12/(W4-U7) -> 0 | W12: =IF(V12=0,0,(V12*((LOG(V12))/LOG(2)))) -> 0 | Y12: =N12 -> 212 | Z12: =COUNTIF(L31:L54,Y12) -> 3 | AA12: =Z12/(AB4-Z7) -> 0.1304347826 | AB12: =IF(AA12=0,0,(AA12*((LOG(AA12))/LOG(2)))) -> -0.3832955811 | AD12: =N12 -> 212 | AE12: =COUNTIF(L55:L78,AD12) -> 0 | AF12: =AE12/(AG4-AE7) -> 0 | AG12: =IF(AF12=0,0,(AF12*((LOG(AF12))/LOG(2)))) -> 0 | AI12: =N12 -> 212 | AJ12: =COUNTIF(L79:L102,AI12) -> 2 | AK12: =AJ12/(AL4-AJ7) -> 0.08333333333 | AL12: =IF(AK12=0,0,(AK12*((LOG(AK12))/LOG(2)))) -> -0.2987468751 | AN12: =N12 -> 212 | AO12: =COUNTIF(L103:L126,AN12) -> 1 | AP12: =AO12/(AQ4-AO7) -> 0.04166666667 | AQ12: =IF(AP12=0,0,(AP12*((LOG(AP12))/LOG(2)))) -> -0.1910401042 | AS12: =N12 -> 212 | AT12: =COUNTIF(L127:L150,AS12) -> 6 | AU12: =AT12/(AV4-AT7) -> 0.2608695652 | AV12: =IF(AU12=0,0,(AU12*((LOG(AU12))/LOG(2)))) -> -0.505721597
A13: 22 | B13: 769 | C13: 24 | D13: 773 | E13: 13 | F13: 786 | K13: 0 | L13: 221 | N13: 221 | O13: =COUNTIF($L$7:$L$500,N13) -> 73 | P13: =O13/$Q$4 -> 0.5104895105 | Q13: =IF(P13=0,0,(P13*((LOG(P13))/LOG(2)))) -> -0.4951987048 | T13: =N13 -> 221 | U13: =COUNTIF(L7:L30,T13) -> 13 | V13: =U13/(W4-U7) -> 0.5416666667 | W13: =IF(V13=0,0,(V13*((LOG(V13))/LOG(2)))) -> -0.4791165072 | Y13: =N13 -> 221 | Z13: =COUNTIF(L31:L54,Y13) -> 15 | AA13: =Z13/(AB4-Z7) -> 0.652173913 | AB13: =IF(AA13=0,0,(AA13*((LOG(AA13))/LOG(2)))) -> -0.4021769742 | AD13: =N13 -> 221 | AE13: =COUNTIF(L55:L78,AD13) -> 13 | AF13: =AE13/(AG4-AE7) -> 0.5416666667 | AG13: =IF(AF13=0,0,(AF13*((LOG(AF13))/LOG(2)))) -> -0.4791165072 | AI13: =N13 -> 221 | AJ13: =COUNTIF(L79:L102,AI13) -> 16 | AK13: =AJ13/(AL4-AJ7) -> 0.6666666667 | AL13: =IF(AK13=0,0,(AK13*((LOG(AK13))/LOG(2)))) -> -0.3899750005 | AN13: =N13 -> 221 | AO13: =COUNTIF(L103:L126,AN13) -> 9 | AP13: =AO13/(AQ4-AO7) -> 0.375 | AQ13: =IF(AP13=0,0,(AP13*((LOG(AP13))/LOG(2)))) -> -0.5306390622 | AS13: =N13 -> 221 | AT13: =COUNTIF(L127:L150,AS13) -> 7 | AU13: =AT13/(AV4-AT7) -> 0.3043478261 | AV13: =IF(AU13=0,0,(AU13*((LOG(AU13))/LOG(2)))) -> -0.5223238799
A14: 22 | B14: 887 | C14: 24 | D14: 890 | E14: 13 | F14: 907 | K14: 0 | L14: 221 | N14: 222 | O14: =COUNTIF($L$7:$L$500,N14) -> 24 | P14: =O14/$Q$4 -> 0.1678321678 | Q14: =IF(P14=0,0,(P14*((LOG(P14))/LOG(2)))) -> -0.4321525319 | T14: =N14 -> 222 | U14: =COUNTIF(L7:L30,T14) -> 6 | V14: =U14/(W4-U7) -> 0.25 | W14: =IF(V14=0,0,(V14*((LOG(V14))/LOG(2)))) -> -0.5 | Y14: =N14 -> 222 | Z14: =COUNTIF(L31:L54,Y14) -> 0 | AA14: =Z14/(AB4-Z7) -> 0 | AB14: =IF(AA14=0,0,(AA14*((LOG(AA14))/LOG(2)))) -> 0 | AD14: =N14 -> 222 | AE14: =COUNTIF(L55:L78,AD14) -> 7 | AF14: =AE14/(AG4-AE7) -> 0.2916666667 | AG14: =IF(AF14=0,0,(AF14*((LOG(AF14))/LOG(2)))) -> -0.5184688771 | AI14: =N14 -> 222 | AJ14: =COUNTIF(L79:L102,AI14) -> 2 | AK14: =AJ14/(AL4-AJ7) -> 0.08333333333 | AL14: =IF(AK14=0,0,(AK14*((LOG(AK14))/LOG(2)))) -> -0.2987468751 | AN14: =N14 -> 222 | AO14: =COUNTIF(L103:L126,AN14) -> 7 | AP14: =AO14/(AQ4-AO7) -> 0.2916666667 | AQ14: =IF(AP14=0,0,(AP14*((LOG(AP14))/LOG(2)))) -> -0.5184688771 | AS14: =N14 -> 222 | AT14: =COUNTIF(L127:L150,AS14) -> 2 | AU14: =AT14/(AV4-AT7) -> 0.08695652174 | AV14: =IF(AU14=0,0,(AU14*((LOG(AU14))/LOG(2)))) -> -0.3063966918
A15: 22 | B15: 1038 | C15: 24 | D15: 1060 | E15: 24 | F15: 1069 | K15: 0 | L15: 222 | P15: =SUM(P7:P14) -> 1 | Q15: =-SUM(Q7:Q14) -> 2.074113889 | V15: =SUM(V7:V14) -> 1 | W15: =-SUM(W7:W14) -> 1.652863382 | AA15: =SUM(AA7:AA14) -> 1 | AB15: =-SUM(AB7:AB14) -> 1.475164828 | AF15: =SUM(AF7:AF14) -> 1 | AG15: =-SUM(AG7:AG14) -> 1.678412468 | AK15: =SUM(AK7:AK14) -> 1 | AL15: =-SUM(AL7:AL14) -> 1.553508855 | AP15: =SUM(AP7:AP14) -> 1 | AQ15: =-SUM(AQ7:AQ14) -> 2.01036042 | AU15: =SUM(AU7:AU14) -> 1 | AV15: =-SUM(AV7:AV14) -> 2.386115893
A16: 22 | B16: 1175 | C16: 24 | D16: 1179 | E16: 13 | F16: 1192 | K16: 0 | L16: 221 | P16: U= | Q16: =Q15/(LOG(Q4)/LOG(2)) -> 0.2896859164 | V16: U1= | W16: =W15/(LOG(W4)/LOG(2)) -> 0.3604965977 | AA16: U2= | AB16: =AB15/(LOG(AB4)/LOG(2)) -> 0.3217397804 | AF16: U3= | AG16: =AG15/(LOG(AG4)/LOG(2)) -> 0.3660689629 | AK16: U4= | AL16: =AL15/(LOG(AL4)/LOG(2)) -> 0.3388269489 | AP16: U5= | AQ16: =AQ15/(LOG(AQ4)/LOG(2)) -> 0.438468236 | AU16: U6= | AV16: =AV15/(LOG(AV4)/LOG(2)) -> 0.5274860643
A17: 22 | B17: 1296 | C17: 24 | D17: 1298 | E17: 13 | F17: 1310 | K17: 0 | L17: 221
A18: 22 | B18: 1415 | C18: 24 | D18: 1435 | E18: 13 | F18: 1455 | K18: 0 | L18: 221
A19: 22 | B19: 1556 | C19: 24 | D19: 1558 | E19: 24 | F19: 1563 | K19: 0 | L19: 222 | N19: Total Target Seq
A20: 22 | B20: 1666 | C20: 24 | D20: 1668 | E20: 13 | F20: 1683 | K20: 0 | L20: 221 | N20: =COUNTIF(L7:L150,G3) -> 1 | P20: 24 | Q20: 24 | R20: 24 | S20: 24 | T20: 24 | U20: 24
A21: 22 | B21: 1782 | C21: 13 | D21: 1799 | E21: 13 | F21: 1806 | K21: 0 | L21: 211 | P21: % of reinforcement given in 6 equal intervals based on number of trials
A22: 22 | B22: 1907 | C22: 24 | D22: 1912 | E22: 13 | F22: 1924 | K22: 0 | L22: 221 | P22: %_1 | Q22: %_2 | R22: %_3 | S22: %_4 | T22: %_5 | U22: %_6
A23: 22 | B23: 2029 | C23: 13 | D23: 2050 | E23: 13 | F23: 2055 | K23: 0 | L23: 211 | O23: target sequence | P23: =$G$3 -> 111 | Q23: =$G$3 -> 111 | R23: =$G$3 -> 111 | S23: =$G$3 -> 111 | T23: =$G$3 -> 111 | U23: =$G$3 -> 111
A24: 22 | B24: 2156 | C24: 24 | D24: 2158 | E24: 13 | F24: 2169 | K24: 0 | L24: 221 | O24: total reinforcement | P24: =U7 -> 0 | Q24: =Z7 -> 1 | R24: =AE7 -> 0 | S24: =AJ7 -> 0 | T24: =AO7 -> 0 | U24: =AT7 -> 0
A25: 22 | B25: 2324 | C25: 24 | D25: 2332 | E25: 13 | F25: 2345 | K25: 0 | L25: 221 | O25: % target
A26: 11 | B26: 2437 | C26: 22 | D26: 2445 | E26: 24 | F26: 2448 | K26: 0 | L26: 122 | O26: CCRF
A27: 22 | B27: 2546 | C27: 24 | D27: 2548 | E27: 24 | F27: 2551 | K27: 0 | L27: 222 | O27: % CCRf
A28: 22 | B28: 2685 | C28: 24 | D28: 2709 | E28: 13 | F28: 2722 | K28: 0 | L28: 221 | O28: average response rate | P28: =F30/P20 -> 123.125 | Q28: =(F54-F30)/Q20 -> 123.75 | R28: =(F78-F54)/R20 -> 147.3333333 | S28: =(F102-F78)/S20 -> 186.5833333 | T28: =(F126-F102)/T20 -> 135.625 | U28: =(F150-F126)/U20 -> -716.4166667
A29: 22 | B29: 2833 | C29: 24 | D29: 2838 | E29: 13 | F29: 2851 | K29: 0 | L29: 221
A30: 11 | B30: 2945 | C30: 22 | D30: 2952 | E30: 24 | F30: 2955 | K30: 0 | L30: 122
A31: 22 | B31: 3054 | C31: 24 | D31: 3059 | E31: 13 | F31: 3069 | K31: 0 | L31: 221
A32: 22 | B32: 3168 | C32: 24 | D32: 3176 | E32: 13 | F32: 3195 | K32: 0 | L32: 221
A33: 22 | B33: 3291 | C33: 24 | D33: 3299 | E33: 13 | F33: 3316 | K33: 0 | L33: 221
A34: 22 | B34: 3420 | C34: 13 | D34: 3436 | E34: 24 | F34: 3448 | K34: 0 | L34: 212
A35: 11 | B35: 3546 | C35: 11 | D35: 3548 | E35: 11 | F35: 3560 | K35: 0 | L35: 111
A36: 22 | B36: 3694 | C36: 24 | D36: 3701 | E36: 13 | F36: 3713 | K36: 0 | L36: 221
A37: 22 | B37: 3813 | C37: 24 | D37: 3815 | E37: 13 | F37: 3830 | K37: 0 | L37: 221
A38: 22 | B38: 3931 | C38: 24 | D38: 3936 | E38: 13 | F38: 3951 | K38: 0 | L38: 221
A39: 22 | B39: 4055 | C39: 24 | D39: 4058 | E39: 13 | F39: 4069 | K39: 0 | L39: 221
A40: 22 | B40: 4170 | C40: 24 | D40: 4178 | E40: 13 | F40: 4188 | K40: 0 | L40: 221
A41: 22 | B41: 4295 | C41: 24 | D41: 4319 | E41: 13 | F41: 4333 | K41: 0 | L41: 221
A42: 11 | B42: 4426 | C42: 22 | D42: 4433 | E42: 24 | F42: 4438 | K42: 0 | L42: 122
A43: 22 | B43: 4535 | C43: 24 | D43: 4540 | E43: 13 | F43: 4559 | K43: 0 | L43: 221
A44: 22 | B44: 4658 | C44: 24 | D44: 4665 | E44: 13 | F44: 4674 | K44: 0 | L44: 221
A45: 11 | B45: 4794 | C45: 22 | D45: 4801 | E45: 24 | F45: 4809 | K45: 0 | L45: 122
A46: 22 | B46: 4906 | C46: 13 | D46: 4921 | E46: 13 | F46: 4927 | K46: 0 | L46: 211
A47: 22 | B47: 5027 | C47: 24 | D47: 5030 | E47: 13 | F47: 5048 | K47: 0 | L47: 221
A48: 22 | B48: 5152 | C48: 13 | D48: 5163 | E48: 24 | F48: 5174 | K48: 0 | L48: 212
A49: 11 | B49: 5275 | C49: 22 | D49: 5282 | E49: 24 | F49: 5289 | K49: 0 | L49: 122
A50: 22 | B50: 5390 | C50: 24 | D50: 5394 | E50: 13 | F50: 5409 | K50: 0 | L50: 221
A51: 22 | B51: 5532 | C51: 13 | D51: 5542 | E51: 24 | F51: 5557 | K51: 0 | L51: 212
A52: 22 | B52: 5662 | C52: 24 | D52: 5669 | E52: 13 | F52: 5680 | K52: 0 | L52: 221
A53: 22 | B53: 5781 | C53: 24 | D53: 5787 | E53: 13 | F53: 5802 | K53: 0 | L53: 221
A54: 22 | B54: 5912 | C54: 13 | D54: 5921 | E54: 13 | F54: 5925 | K54: 0 | L54: 211
A55: 22 | B55: 6021 | C55: 24 | D55: 6024 | E55: 13 | F55: 6037 | K55: 0 | L55: 221
A56: 22 | B56: 6198 | C56: 24 | D56: 6206 | E56: 13 | F56: 6218 | K56: 0 | L56: 221
A57: 22 | B57: 6321 | C57: 24 | D57: 6327 | E57: 13 | F57: 6338 | K57: 0 | L57: 221
A58: 22 | B58: 6443 | C58: 24 | D58: 6448 | E58: 24 | F58: 6457 | K58: 0 | L58: 222
A59: 22 | B59: 6554 | C59: 24 | D59: 6561 | E59: 24 | F59: 6565 | K59: 0 | L59: 222
A60: 22 | B60: 6664 | C60: 24 | D60: 6670 | E60: 24 | F60: 6694 | K60: 0 | L60: 222
A61: 22 | B61: 6793 | C61: 24 | D61: 6796 | E61: 13 | F61: 6812 | K61: 0 | L61: 221
A62: 11 | B62: 6904 | C62: 22 | D62: 6914 | E62: 24 | F62: 6919 | K62: 0 | L62: 122
A63: 22 | B63: 7040 | C63: 13 | D63: 7049 | E63: 13 | F63: 7053 | K63: 0 | L63: 211
A64: 22 | B64: 7150 | C64: 24 | D64: 7155 | E64: 13 | F64: 7165 | K64: 0 | L64: 221
A65: 22 | B65: 7288 | C65: 24 | D65: 7290 | E65: 13 | F65: 7308 | K65: 0 | L65: 221
A66: 22 | B66: 7407 | C66: 24 | D66: 7410 | E66: 24 | F66: 7416 | K66: 0 | L66: 222
A67: 22 | B67: 7516 | C67: 24 | D67: 7523 | E67: 13 | F67: 7534 | K67: 0 | L67: 221
A68: 22 | B68: 7637 | C68: 24 | D68: 7642 | E68: 13 | F68: 7653 | K68: 0 | L68: 221
A69: 22 | B69: 7754 | C69: 24 | D69: 7774 | E69: 13 | F69: 7790 | K69: 0 | L69: 221
A70: 22 | B70: 7889 | C70: 24 | D70: 7893 | E70: 13 | F70: 7903 | K70: 0 | L70: 221
A71: 22 | B71: 8030 | C71: 24 | D71: 8033 | E71: 13 | F71: 8050 | K71: 0 | L71: 221
A72: 22 | B72: 8147 | C72: 24 | D72: 8150 | E72: 24 | F72: 8151 | K72: 0 | L72: 222
A73: 22 | B73: 8252 | C73: 24 | D73: 8259 | E73: 24 | F73: 8270 | K73: 0 | L73: 222
A74: 11 | B74: 8978 | C74: 22 | D74: 9011 | E74: 13 | F74: 9021 | K74: 0 | L74: 121
A75: 22 | B75: 9121 | C75: 24 | D75: 9125 | E75: 13 | F75: 9136 | K75: 0 | L75: 221
A76: 22 | B76: 9236 | C76: 24 | D76: 9237 | E76: 13 | F76: 9250 | K76: 0 | L76: 221
A77: 22 | B77: 9348 | C77: 24 | D77: 9352 | E77: 24 | F77: 9357 | K77: 0 | L77: 222
A78: 11 | B78: 9451 | C78: 22 | D78: 9457 | E78: 24 | F78: 9461 | K78: 0 | L78: 122
A79: 22 | B79: 9562 | C79: 24 | D79: 9574 | E79: 13 | F79: 9588 | K79: 0 | L79: 221
A80: 22 | B80: 9688 | C80: 24 | D80: 9699 | E80: 13 | F80: 9711 | K80: 0 | L80: 221
A81: 22 | B81: 9828 | C81: 24 | D81: 9835 | E81: 13 | F81: 9852 | K81: 0 | L81: 221
A82: 22 | B82: 9952 | C82: 24 | D82: 9961 | E82: 13 | F82: 9972 | K82: 0 | L82: 221
A83: 22 | B83: 10071 | C83: 24 | D83: 10079 | E83: 13 | F83: 10097 | K83: 0 | L83: 221
A84: 22 | B84: 10197 | C84: 24 | D84: 10207 | E84: 13 | F84: 10224 | K84: 0 | L84: 221
A85: 22 | B85: 10327 | C85: 24 | D85: 10340 | E85: 13 | F85: 10350 | K85: 0 | L85: 221
A86: 22 | B86: 10453 | C86: 24 | D86: 10463 | E86: 13 | F86: 10475 | K86: 0 | L86: 221
A87: 22 | B87: 10576 | C87: 24 | D87: 10582 | E87: 24 | F87: 10589 | K87: 0 | L87: 222
A88: 22 | B88: 10690 | C88: 24 | D88: 10697 | E88: 13 | F88: 10715 | K88: 0 | L88: 221
A89: 22 | B89: 12049 | C89: 24 | D89: 12088 | E89: 13 | F89: 12096 | K89: 0 | L89: 221
A90: 22 | B90: 12188 | C90: 24 | D90: 12191 | E90: 24 | F90: 12194 | K90: 0 | L90: 222
A91: 22 | B91: 12296 | C91: 13 | D91: 12312 | E91: 13 | F91: 12318 | K91: 0 | L91: 211
A92: 22 | B92: 12432 | C92: 24 | D92: 12443 | E92: 13 | F92: 12461 | K92: 0 | L92: 221
A93: 22 | B93: 12557 | C93: 13 | D93: 12574 | E93: 24 | F93: 12587 | K93: 0 | L93: 212
A94: 22 | B94: 12725 | C94: 24 | D94: 12769 | E94: 13 | F94: 12780 | K94: 0 | L94: 221
A95: 22 | B95: 12881 | C95: 13 | D95: 12899 | E95: 13 | F95: 12903 | K95: 0 | L95: 211
A96: 22 | B96: 13013 | C96: 13 | D96: 13031 | E96: 24 | F96: 13040 | K96: 0 | L96: 212
A97: 22 | B97: 13212 | C97: 24 | D97: 13217 | E97: 13 | F97: 13227 | K97: 0 | L97: 221
A98: 22 | B98: 13330 | C98: 24 | D98: 13341 | E98: 13 | F98: 13352 | K98: 0 | L98: 221
A99: 22 | B99: 13457 | C99: 24 | D99: 13466 | E99: 13 | F99: 13477 | K99: 0 | L99: 221
A100: 22 | B100: 13659 | C100: 24 | D100: 13676 | E100: 13 | F100: 13690 | K100: 0 | L100: 221
A101: 22 | B101: 13793 | C101: 13 | D101: 13816 | E101: 13 | F101: 13821 | K101: 0 | L101: 211
A102: 11 | B102: 13927 | C102: 22 | D102: 13934 | E102: 24 | F102: 13939 | K102: 0 | L102: 122
A103: 22 | B103: 14038 | C103: 24 | D103: 14043 | E103: 24 | F103: 14051 | K103: 0 | L103: 222
A104: 22 | B104: 14158 | C104: 24 | D104: 14162 | E104: 13 | F104: 14176 | K104: 0 | L104: 221
A105: 11 | B105: 14274 | C105: 22 | D105: 14277 | E105: 24 | F105: 14283 | K105: 0 | L105: 122
A106: 22 | B106: 14387 | C106: 24 | D106: 14393 | E106: 24 | F106: 14400 | K106: 0 | L106: 222
A107: 22 | B107: 14562 | C107: 24 | D107: 14574 | E107: 13 | F107: 14590 | K107: 0 | L107: 221
A108: 22 | B108: 14688 | C108: 24 | D108: 14707 | E108: 24 | F108: 14718 | K108: 0 | L108: 222
A109: 22 | B109: 14816 | C109: 24 | D109: 14829 | E109: 13 | F109: 14838 | K109: 0 | L109: 221
A110: 22 | B110: 14956 | C110: 24 | D110: 15000 | E110: 13 | F110: 15019 | K110: 0 | L110: 221
A111: 22 | B111: 15115 | C111: 24 | D111: 15119 | E111: 13 | F111: 15130 | K111: 0 | L111: 221
A112: 22 | B112: 15232 | C112: 13 | D112: 15249 | E112: 13 | F112: 15254 | K112: 0 | L112: 211
A113: 22 | B113: 15356 | C113: 13 | D113: 15374 | E113: 13 | F113: 15407 | K113: 0 | L113: 211
A114: 22 | B114: 15507 | C114: 24 | D114: 15512 | E114: 24 | F114: 15529 | K114: 0 | L114: 222
A115: 22 | B115: 15634 | C115: 24 | D115: 15641 | E115: 24 | F115: 15649 | K115: 0 | L115: 222
A116: 22 | B116: 15848 | C116: 13 | D116: 15889 | E116: 24 | F116: 15901 | K116: 0 | L116: 212
A117: 22 | B117: 16001 | C117: 24 | D117: 16006 | E117: 13 | F117: 16016 | K117: 0 | L117: 221
A118: 22 | B118: 16201 | C118: 13 | D118: 16209 | E118: 13 | F118: 16215 | K118: 0 | L118: 211
A119: 22 | B119: 16318 | C119: 24 | D119: 16324 | E119: 13 | F119: 16335 | K119: 0 | L119: 221
A120: 22 | B120: 16439 | C120: 13 | D120: 16450 | E120: 13 | F120: 16455 | K120: 0 | L120: 211
A121: 22 | B121: 16555 | C121: 24 | D121: 16557 | E121: 24 | F121: 16564 | K121: 0 | L121: 222
A122: 22 | B122: 16664 | C122: 24 | D122: 16669 | E122: 13 | F122: 16679 | K122: 0 | L122: 221
A123: 22 | B123: 16779 | C123: 24 | D123: 16786 | E123: 13 | F123: 16798 | K123: 0 | L123: 221
A124: 22 | B124: 16896 | C124: 24 | D124: 16900 | E124: 24 | F124: 16908 | K124: 0 | L124: 222
A125: 22 | B125: 17054 | C125: 13 | D125: 17064 | E125: 13 | F125: 17085 | K125: 0 | L125: 211
A126: 11 | B126: 17182 | C126: 22 | D126: 17188 | E126: 24 | F126: 17194 | K126: 0 | L126: 122
A127: 22 | B127: 17295 | C127: 24 | D127: 17316 | E127: 24 | F127: 17325 | K127: 0 | L127: 222
A128: 22 | B128: 17429 | C128: 13 | D128: 17443 | E128: 13 | F128: 17449 | K128: 0 | L128: 211
A129: 22 | B129: 17550 | C129: 24 | D129: 17558 | E129: 13 | F129: 17575 | K129: 0 | L129: 221
A130: 22 | B130: 17674 | C130: 24 | D130: 17679 | E130: 13 | F130: 17690 | K130: 0 | L130: 221
A131: 11 | B131: 17914 | C131: 22 | D131: 17921 | E131: 24 | F131: 17929 | K131: 0 | L131: 122
A132: 22 | B132: 18026 | C132: 24 | D132: 18030 | E132: 13 | F132: 18040 | K132: 0 | L132: 221
A133: 22 | B133: 18199 | C133: 13 | D133: 18207 | E133: 13 | F133: 18212 | K133: 0 | L133: 211
A134: 22 | B134: 18323 | C134: 13 | D134: 18331 | E134: 24 | F134: 18339 | K134: 0 | L134: 212
A135: 11 | B135: 18500 | C135: 22 | D135: 18525 | E135: 13 | F135: 18533 | K135: 0 | L135: 121
A136: 22 | B136: 18666 | C136: 24 | D136: 18686 | E136: 13 | F136: 18702 | K136: 0 | L136: 221
A137: 22 | B137: 19354 | C137: 24 | D137: 19402 | E137: 13 | F137: 19422 | K137: 0 | L137: 221
A138: 22 | B138: 19523 | C138: 24 | D138: 19529 | E138: 13 | F138: 19538 | K138: 0 | L138: 221
A139: 22 | B139: 19741 | C139: 13 | D139: 19755 | E139: 13 | F139: 19761 | K139: 0 | L139: 211
A140: 22 | B140: 19906 | C140: 13 | D140: 19919 | E140: 13 | F140: 19925 | K140: 0 | L140: 211
A141: 22 | B141: 20118 | C141: 13 | D141: 20129 | E141: 24 | F141: 20140 | K141: 0 | L141: 212
A142: 11 | B142: 20248 | C142: 22 | D142: 20257 | E142: 13 | F142: 20270 | K142: 0 | L142: 121
A143: 22 | B143: 20397 | C143: 13 | D143: 20410 | E143: 24 | F143: 20421 | K143: 0 | L143: 212
A144: 11 | B144: 20705 | C144: 22 | D144: 20739 | E144: 24 | F144: 20748 | K144: 0 | L144: 122
A145: 22 | B145: 20843 | C145: 24 | D145: 20862 | E145: 24 | F145: 20870 | K145: 0 | L145: 222
A146: 22 | B146: 20972 | C146: 13 | D146: 20981 | E146: 24 | F146: 20989 | K146: 0 | L146: 212
A147: 22 | B147: 21087 | C147: 13 | D147: 21099 | E147: 24 | F147: 21111 | K147: 0 | L147: 212
A148: 22 | B148: 21211 | C148: 13 | D148: 21224 | E148: 24 | F148: 21231 | K148: 0 | L148: 212
A149: 22 | B149: 21332 | C149: 24 | D149: 21349 | E149: 13 | F149: 21370 | K149: 0 | L149: 221
A150: 22 | B150: 23982 | C150: 24 | D150: 23990 | L150: 22

Sheet !M824B0I.sha
A1: Report for:!M824B0I.sha
A2: Date: | B2: <date>
A3: Hen: | B3: <hen> | F3: Correct Sequence | G3: =Start!J2 -> 111 | P3: Total Sequences in Data | Q3: =4994-COUNTBLANK(L7:L5000) -> 141 | V3: Total Sequences in Block Data | W3: =COUNTA(L7:L30) -> 24 | AA3: Total Sequences in Block Data | AB3: =COUNTA(L31:L53) -> 23 | AF3: Total Sequences in Block Data | AG3: =COUNTA(L54:L77) -> 24 | AK3: Total Sequences in Block Data | AL3: =COUNTA(L78:L100) -> 23 | AP3: Total Sequences in Block Data | AQ3: =COUNTA(L101:L124) -> 24 | AU3: Total Sequences in Block Data | AV3: =COUNTA(L125:L147) -> 23
P4: Total Sequences in Summary | Q4: =SUM(O7:O14) -> 141 | V4: Total Sequences in Block Summary | W4: =SUM(U7:U14) -> 24 | AA4: Total Sequences in Block Summary | AB4: =SUM(Z7:Z14) -> 23 | AF4: Total Sequences in Block Summary | AG4: =SUM(AE7:AE14) -> 24 | AK4: Total Sequences in Block Summary | AL4: =SUM(AJ7:AJ14) -> 23 | AP4: Total Sequences in Block Summary | AQ4: =SUM(AO7:AO14) -> 24 | AU4: Total Sequences in Block Summary | AV4: =SUM(AT7:AT14) -> 23
T5: Block 1 | Y5: Block 2 | AD5: Block 3 | AI5: Block 4 | AN5: Block 5 | AS5: Block 6
A6: Sequence Component 1 | B6: Time 1 | C6: Sequence Component 2 | D6: Time 2 | E6: Sequence Component 3 | F6: Time 3 | G6: Sequence Component 4 | H6: Time 4 | I6: Sequence Component 5 | J6: Time 5 | K6: Correct? 0=No 1=Yes | L6: Sequence | N6: Frequency | P6: Relative Frequency | Q6: Variability | T6: Frequency | V6: Relative Frequency | W6: Variability | Y6: Frequency | AA6: Relative Frequency | AB6: Variability | AD6: Frequency | AF6: Relative Frequency | AG6: Variability | AI6: Frequency | AK6: Relative Frequency | AL6: Variability | AN6: Frequency | AP6: Relative Frequency | AQ6: Variability | AS6: Frequency | AU6: Relative Frequency | AV6: Variability
A7: 22 | B7: 8 | C7: 24 | D7: 23 | E7: 24 | F7: 31 | K7: 0 | L7: 222 | N7: 111 | O7: =COUNTIF($L$7:$L$500,N7) -> 3 | P7: =O7/$Q$4 -> 0.02127659574 | Q7: =IF(P7=0,0,(P7*((LOG(P7))/LOG(2)))) -> -0.1181827415 | T7: =N7 -> 111 | U7: =COUNTIF(L7:L30,T7) -> 0 | Y7: =N7 -> 111 | Z7: =COUNTIF(L31:L53,Y7) -> 0 | AD7: =N7 -> 111 | AE7: =COUNTIF(L54:L77,AD7) -> 0 | AI7: =N7 -> 111 | AJ7: =COUNTIF(L78:L100,AI7) -> 1 | AN7: =N7 -> 111 | AO7: =COUNTIF(L101:L124,AN7) -> 2 | AS7: =N7 -> 111 | AT7: =COUNTIF(L125:L147,AS7) -> 0
A8: 22 | B8: 130 | C8: 13 | D8: 143 | E8: 13 | F8: 147 | K8: 0 | L8: 211 | N8: 112 | O8: =COUNTIF($L$7:$L$500,N8) -> 6 | P8: =O8/$Q$4 -> 0.04255319149 | Q8: =IF(P8=0,0,(P8*((LOG(P8))/LOG(2)))) -> -0.1938122916 | T8: =N8 -> 112 | U8: =COUNTIF(L7:L30,T8) -> 0 | V8: =U8/(W4-U7) -> 0 | W8: =IF(V8=0,0,(V8*((LOG(V8))/LOG(2)))) -> 0 | Y8: =N8 -> 112 | Z8: =COUNTIF(L31:L53,Y8) -> 1 | AA8: =Z8/(AB4-Z7) -> 0.04347826087 | AB8: =IF(AA8=0,0,(AA8*((LOG(AA8))/LOG(2)))) -> -0.1966766068 | AD8: =N8 -> 112 | AE8: =COUNTIF(L54:L77,AD8) -> 2 | AF8: =AE8/(AG4-AE7) -> 0.08333333333 | AG8: =IF(AF8=0,0,(AF8*((LOG(AF8))/LOG(2)))) -> -0.2987468751 | AI8: =N8 -> 112 | AJ8: =COUNTIF(L78:L100,AI8) -> 0 | AK8: =AJ8/(AL4-AJ7) -> 0 | AL8: =IF(AK8=0,0,(AK8*((LOG(AK8))/LOG(2)))) -> 0 | AN8: =N8 -> 112 | AO8: =COUNTIF(L101:L124,AN8) -> 0 | AP8: =AO8/(AQ4-AO7) -> 0 | AQ8: =IF(AP8=0,0,(AP8*((LOG(AP8))/LOG(2)))) -> 0 | AS8: =N8 -> 112 | AT8: =COUNTIF(L125:L147,AS8) -> 3 | AU8: =AT8/(AV4-AT7) -> 0.1304347826 | AV8: =IF(AU8=0,0,(AU8*((LOG(AU8))/LOG(2)))) -> -0.3832955811
A9: 22 | B9: 244 | C9: 24 | D9: 258 | E9: 24 | F9: 274 | K9: 0 | L9: 222 | N9: 121 | O9: =COUNTIF($L$7:$L$500,N9) -> 5 | P9: =O9/$Q$4 -> 0.03546099291 | Q9: =IF(P9=0,0,(P9*((LOG(P9))/LOG(2)))) -> -0.1708377042 | T9: =N9 -> 121 | U9: =COUNTIF(L7:L30,T9) -> 0 | V9: =U9/(W4-U7) -> 0 | W9: =IF(V9=0,0,(V9*((LOG(V9))/LOG(2)))) -> 0 | Y9: =N9 -> 121 | Z9: =COUNTIF(L31:L53,Y9) -> 2 | AA9: =Z9/(AB4-Z7) -> 0.08695652174 | AB9: =IF(AA9=0,0,(AA9*((LOG(AA9))/LOG(2)))) -> -0.3063966918 | AD9: =N9 -> 121 | AE9: =COUNTIF(L54:L77,AD9) -> 2 | AF9: =AE9/(AG4-AE7) -> 0.08333333333 | AG9: =IF(AF9=0,0,(AF9*((LOG(AF9))/LOG(2)))) -> -0.2987468751 | AI9: =N9 -> 121 | AJ9: =COUNTIF(L78:L100,AI9) -> 0 | AK9: =AJ9/(AL4-AJ7) -> 0 | AL9: =IF(AK9=0,0,(AK9*((LOG(AK9))/LOG(2)))) -> 0 | AN9: =N9 -> 121 | AO9: =COUNTIF(L101:L124,AN9) -> 0 | AP9: =AO9/(AQ4-AO7) -> 0 | AQ9: =IF(AP9=0,0,(AP9*((LOG(AP9))/LOG(2)))) -> 0 | AS9: =N9 -> 121 | AT9: =COUNTIF(L125:L147,AS9) -> 1 | AU9: =AT9/(AV4-AT7) -> 0.04347826087 | AV9: =IF(AU9=0,0,(AU9*((LOG(AU9))/LOG(2)))) -> -0.1966766068
A10: 22 | B10: 373 | C10: 24 | D10: 384 | E10: 13 | F10: 402 | K10: 0 | L10: 221 | N10: 122 | O10: =COUNTIF($L$7:$L$500,N10) -> 10 | P10: =O10/$Q$4 -> 0.07092198582 | Q10: =IF(P10=0,0,(P10*((LOG(P10))/LOG(2)))) -> -0.2707534225 | T10: =N10 -> 122 | U10: =COUNTIF(L7:L30,T10) -> 1 | V10: =U10/(W4-U7) -> 0.04166666667 | W10: =IF(V10=0,0,(V10*((LOG(V10))/LOG(2)))) -> -0.1910401042 | Y10: =N10 -> 122 | Z10: =COUNTIF(L31:L53,Y10) -> 1 | AA10: =Z10/(AB4-Z7) -> 0.04347826087 | AB10: =IF(AA10=0,0,(AA10*((LOG(AA10))/LOG(2)))) -> -0.1966766068 | AD10: =N10 -> 122 | AE10: =COUNTIF(L54:L77,AD10) -> 1 | AF10: =AE10/(AG4-AE7) -> 0.04166666667 | AG10: =IF(AF10=0,0,(AF10*((LOG(AF10))/LOG(2)))) -> -0.1910401042 | AI10: =N10 -> 122 | AJ10: =COUNTIF(L78:L100,AI10) -> 3 | AK10: =AJ10/(AL4-AJ7) -> 0.1363636364 | AL10: =IF(AK10=0,0,(AK10*((LOG(AK10))/LOG(2)))) -> -0.3919730615 | AN10: =N10 -> 122 | AO10: =COUNTIF(L101:L124,AN10) -> 1 | AP10: =AO10/(AQ4-AO7) -> 0.04545454545 | AQ10: =IF(AP10=0,0,(AP10*((LOG(AP10))/LOG(2)))) -> -0.2027014372 | AS10: =N10 -> 122 | AT10: =COUNTIF(L125:L147,AS10) -> 3 | AU10: =AT10/(AV4-AT7) -> 0.1304347826 | AV10: =IF(AU10=0,0,(AU10*((LOG(AU10))/LOG(2)))) -> -0.3832955811
A11: 22 | B11: 500 | C11: 24 | D11: 504 | E11: 13 | F11: 516 | K11: 0 | L11: 221 | N11: 211 | O11: =COUNTIF($L$7:$L$500,N11) -> 20 | P11: =O11/$Q$4 -> 0.1418439716 | Q11: =IF(P11=0,0,(P11*((LOG(P11))/LOG(2)))) -> -0.3996628734 | T11: =N11 -> 211 | U11: =COUNTIF(L7:L30,T11) -> 3 | V11: =U11/(W4-U7) -> 0.125 | W11: =IF(V11=0,0,(V11*((LOG(V11))/LOG(2)))) -> -0.375 | Y11: =N11 -> 211 | Z11: =COUNTIF(L31:L53,Y11) -> 5 | AA11: =Z11/(AB4-Z7) -> 0.2173913043 | AB11: =IF(AA11=0,0,(AA11*((LOG(AA11))/LOG(2)))) -> -0.4786160568 | AD11: =N11 -> 211 | AE11: =COUNTIF(L54:L77,AD11) -> 2 | AF11: =AE11/(AG4-AE7) -> 0.08333333333 | AG11: =IF(AF11=0,0,(AF11*((LOG(AF11))/LOG(2)))) -> -0.2987468751 | AI11: =N11 -> 211 | AJ11: =COUNTIF(L78:L100,AI11) -> 2 | AK11: =AJ11/(AL4-AJ7) -> 0.09090909091 | AL11: =IF(AK11=0,0,(AK11*((LOG(AK11))/LOG(2)))) -> -0.3144937835 | AN11: =N11 -> 211 | AO11: =COUNTIF(L101:L124,AN11) -> 1 | AP11: =AO11/(AQ4-AO7) -> 0.04545454545 | AQ11: =IF(AP11=0,0,(AP11*((LOG(AP11))/LOG(2)))) -> -0.2027014372 | AS11: =N11 -> 211 | AT11: =COUNTIF(L125:L147,AS11) -> 7 | AU11: =AT11/(AV4-AT7) -> 0.3043478261 | AV11: =IF(AU11=0,0,(AU11*((LOG(AU11))/LOG(2)))) -> -0.5223238799
A12: 22 | B12: 614 | C12: 24 | D12: 635 | E12: 24 | F12: 643 | K12: 0 | L12: 222 | N12: 212 | O12: =COUNTIF($L$7:$L$500,N12) -> 21 | P12: =O12/$Q$4 -> 0.1489361702 | Q12: =IF(P12=0,0,(P12*((LOG(P12))/LOG(2)))) -> -0.4091625002 | T12: =N12 -> 212 | U12: =COUNTIF(L7:L30,T12) -> 1 | V12: =U12/(W4-U7) -> 0.04166666667 | W12: =IF(V12=0,0,(V12*((LOG(V12))/LOG(2)))) -> -0.1910401042 | Y12: =N12 -> 212 | Z12: =COUNTIF(L31:L53,Y12) -> 8 | AA12: =Z12/(AB4-Z7) -> 0.347826087 | AB12: =IF(AA12=0,0,(AA12*((LOG(AA12))/LOG(2)))) -> -0.5299345934 | AD12: =N12 -> 212 | AE12: =COUNTIF(L54:L77,AD12) -> 7 | AF12: =AE12/(AG4-AE7) -> 0.2916666667 | AG12: =IF(AF12=0,0,(AF12*((LOG(AF12))/LOG(2)))) -> -0.5184688771 | AI12: =N12 -> 212 | AJ12: =COUNTIF(L78:L100,AI12) -> 4 | AK12: =AJ12/(AL4-AJ7) -> 0.1818181818 | AL12: =IF(AK12=0,0,(AK12*((LOG(AK12))/LOG(2)))) -> -0.4471693852 | AN12: =N12 -> 212 | AO12: =COUNTIF(L101:L124,AN12) -> 0 | AP12: =AO12/(AQ4-AO7) -> 0 | AQ12: =IF(AP12=0,0,(AP12*((LOG(AP12))/LOG(2)))) -> 0 | AS12: =N12 -> 212 | AT12: =COUNTIF(L125:L147,AS12) -> 1 | AU12: =AT12/(AV4-AT7) -> 0.04347826087 | AV12: =IF(AU12=0,0,(AU12*((LOG(AU12))/LOG(2)))) -> -0.1966766068
A13: 22 | B13: 754 | C13: 24 | D13: 758 | E13: 24 | F13: 774 | K13: 0 | L13: 222 | N13: 221 | O13: =COUNTIF($L$7:$L$500,N13) -> 48 | P13: =O13/$Q$4 -> 0.3404255319 | Q13: =IF(P13=0,0,(P13*((LOG(P13))/LOG(2)))) -> -0.5292217367 | T13: =N13 -> 221 | U13: =COUNTIF(L7:L30,T13) -> 5 | V13: =U13/(W4-U7) -> 0.2083333333 | W13: =IF(V13=0,0,(V13*((LOG(V13))/LOG(2)))) -> -0.4714655012 | Y13: =N13 -> 221 | Z13: =COUNTIF(L31:L53,Y13) -> 5 | AA13: =Z13/(AB4-Z7) -> 0.2173913043 | AB13: =IF(AA13=0,0,(AA13*((LOG(AA13))/LOG(2)))) -> -0.4786160568 | AD13: =N13 -> 221 | AE13: =COUNTIF(L54:L77,AD13) -> 8 | AF13: =AE13/(AG4-AE7) -> 0.3333333333 | AG13: =IF(AF13=0,0,(AF13*((LOG(AF13))/LOG(2)))) -> -0.5283208336 | AI13: =N13 -> 221 | AJ13: =COUNTIF(L78:L100,AI13) -> 11 | AK13: =AJ13/(AL4-AJ7) -> 0.5 | AL13: =IF(AK13=0,0,(AK13*((LOG(AK13))/LOG(2)))) -> -0.5 | AN13: =N13 -> 221 | AO13: =COUNTIF(L101:L124,AN13) -> 11 | AP13: =AO13/(AQ4-AO7) -> 0.5 | AQ13: =IF(AP13=0,0,(AP13*((LOG(AP13))/LOG(2)))) -> -0.5 | AS13: =N13 -> 221 | AT13: =COUNTIF(L125:L147,AS13) -> 8 | AU13: =AT13/(AV4-AT7) -> 0.347826087 | AV13: =IF(AU13=0,0,(AU13*((LOG(AU13))/LOG(2)))) -> -0.5299345934
A14: 22 | B14: 877 | C14: 24 | D14: 881 | E14: 13 | F14: 895 | K14: 0 | L14: 221 | N14: 222 | O14: =COUNTIF($L$7:$L$500,N14) -> 28 | P14: =O14/$Q$4 -> 0.1985815603 | Q14: =IF(P14=0,0,(P14*((LOG(P14))/LOG(2)))) -> -0.463131206 | T14: =N14 -> 222 | U14: =COUNTIF(L7:L30,T14) -> 14 | V14: =U14/(W4-U7) -> 0.5833333333 | W14: =IF(V14=0,0,(V14*((LOG(V14))/LOG(2)))) -> -0.4536044209 | Y14: =N14 -> 222 | Z14: =COUNTIF(L31:L53,Y14) -> 1 | AA14: =Z14/(AB4-Z7) -> 0.04347826087 | AB14: =IF(AA14=0,0,(AA14*((LOG(AA14))/LOG(2)))) -> -0.1966766068 | AD14: =N14 -> 222 | AE14: =COUNTIF(L54:L77,AD14) -> 2 | AF14: =AE14/(AG4-AE7) -> 0.08333333333 | AG14: =IF(AF14=0,0,(AF14*((LOG(AF14))/LOG(2)))) -> -0.2987468751 | AI14: =N14 -> 222 | AJ14: =COUNTIF(L78:L100,AI14) -> 2 | AK14: =AJ14/(AL4-AJ7) -> 0.09090909091 | AL14: =IF(AK14=0,0,(AK14*((LOG(AK14))/LOG(2)))) -> -0.3144937835 | AN14: =N14 -> 222 | AO14: =COUNTIF(L101:L124,AN14) -> 9 | AP14: =AO14/(AQ4-AO7) -> 0.4090909091 | AQ14: =IF(AP14=0,0,(AP14*((LOG(AP14))/LOG(2)))) -> -0.5275254343 | AS14: =N14 -> 222 | AT14: =COUNTIF(L125:L147,AS14) -> 0 | AU14: =AT14/(AV4-AT7) -> 0 | AV14: =IF(AU14=0,0,(AU14*((LOG(AU14))/LOG(2)))) -> 0
A15: 22 | B15: 997 | C15: 24 | D15: 1000 | E15: 24 | F15: 1015 | K15: 0 | L15: 222 | P15: =SUM(P7:P14) -> 1 | Q15: =-SUM(Q7:Q14) -> 2.554764476 | V15: =SUM(V7:V14) -> 1 | W15: =-SUM(W7:W14) -> 1.68215013 | AA15: =SUM(AA7:AA14) -> 1 | AB15: =-SUM(AB7:AB14) -> 2.383593219 | AF15: =SUM(AF7:AF14) -> 1 | AG15: =-SUM(AG7:AG14) -> 2.432817315 | AK15: =SUM(AK7:AK14) -> 1 | AL15: =-SUM(AL7:AL14) -> 1.968130014 | AP15: =SUM(AP7:AP14) -> 1 | AQ15: =-SUM(AQ7:AQ14) -> 1.432928309 | AU15: =SUM(AU7:AU14) -> 1 | AV15: =-SUM(AV7:AV14) -> 2.212202849
A16: 22 | B16: 1134 | C16: 13 | D16: 1153 | E16: 13 | F16: 1158 | K16: 0 | L16: 211 | P16: U= | Q16: =Q15/(LOG(Q4)/LOG(2)) -> 0.3578326354 | V16: U1= | W16: =W15/(LOG(W4)/LOG(2)) -> 0.3668841632 | AA16: U2= | AB16: =AB15/(LOG(AB4)/LOG(2)) -> 0.5269283901 | AF16: U3= | AG16: =AG15/(LOG(AG4)/LOG(2)) -> 0.530607898 | AK16: U4= | AL16: =AL15/(LOG(AL4)/LOG(2)) -> 0.435084129 | AP16: U5= | AQ16: =AQ15/(LOG(AQ4)/LOG(2)) -> 0.3125278142 | AU16: U6= | AV16: =AV15/(LOG(AV4)/LOG(2)) -> 0.4890400244
A17: 22 | B17: 1282 | C17: 24 | D17: 1302 | E17: 24 | F17: 1318 | K17: 0 | L17: 222
A18: 22 | B18: 1445 | C18: 24 | D18: 1454 | E18: 13 | F18: 1471 | K18: 0 | L18: 221
A19: 22 | B19: 1575 | C19: 24 | D19: 1578 | E19: 24 | F19: 1591 | K19: 0 | L19: 222 | N19: Total Target Seq
A20: 22 | B20: 1722 | C20: 24 | D20: 1729 | E20: 24 | F20: 1739 | K20: 0 | L20: 222 | N20: =COUNTIF(L7:L147,G3) -> 3 | P20: 24 | Q20: 23 | R20: 24 | S20: 23 | T20: 24 | U20: 23
A21: 22 | B21: 1846 | C21: 24 | D21: 1850 | E21: 24 | F21: 1858 | K21: 0 | L21: 222 | P21: % of reinforcement given in 6 equal intervals based on number of trials
A22: 22 | B22: 1972 | C22: 24 | D22: 1989 | E22: 24 | F22: 1998 | K22: 0 | L22: 222 | P22: %_1 | Q22: %_2 | R22: %_3 | S22: %_4 | T22: %_5 | U22: %_6
A23: 22 | B23: 2106 | C23: 24 | D23: 2114 | E23: 24 | F23: 2124 | K23: 0 | L23: 222 | O23: target sequence | P23: =$G$3 -> 111 | Q23: =$G$3 -> 111 | R23: =$G$3 -> 111 | S23: =$G$3 -> 111 | T23: =$G$3 -> 111 | U23: =$G$3 -> 111
A24: 22 | B24: 2228 | C24: 24 | D24: 2231 | E24: 24 | F24: 2239 | K24: 0 | L24: 222 | O24: total reinforcement | P24: =U7 -> 0 | Q24: =Z7 -> 0 | R24: =AE7 -> 0 | S24: =AJ7 -> 1 | T24: =AO7 -> 2 | U24: =AT7 -> 0
A25: 22 | B25: 2345 | C25: 13 | D25: 2361 | E25: 24 | F25: 2372 | K25: 0 | L25: 212 | O25: % target
A26: 22 | B26: 2480 | C26: 24 | D26: 2487 | E26: 24 | F26: 2491 | K26: 0 | L26: 222 | O26: CCRF
A27: 22 | B27: 2646 | C27: 13 | D27: 2658 | E27: 13 | F27: 2665 | K27: 0 | L27: 211 | O27: % CCRf
A28: 22 | B28: 2766 | C28: 24 | D28: 2775 | E28: 24 | F28: 2798 | K28: 0 | L28: 222 | O28: average response rate | P28: =F30/P20 -> 127.9583333 | Q28: =(F53-F30)/Q20 -> 139.1304348 | R28: =(F77-F53)/R20 -> 201.6666667 | S28: =(F100-F77)/S20 -> 286.3478261 | T28: =(F124-F100)/T20 -> 123.875 | U28: =(F147-F124)/U20 -> 136.5217391
A29: 11 | B29: 2894 | C29: 22 | D29: 2901 | E29: 24 | F29: 2919 | K29: 0 | L29: 122
A30: 22 | B30: 3044 | C30: 24 | D30: 3053 | E30: 13 | F30: 3071 | K30: 0 | L30: 221
A31: 22 | B31: 3175 | C31: 13 | D31: 3189 | E31: 24 | F31: 3200 | K31: 0 | L31: 212
A32: 22 | B32: 3301 | C32: 24 | D32: 3305 | E32: 13 | F32: 3319 | K32: 0 | L32: 221
A33: 22 | B33: 3422 | C33: 24 | D33: 3426 | E33: 13 | F33: 3440 | K33: 0 | L33: 221
A34: 22 | B34: 3538 | C34: 13 | D34: 3552 | E34: 13 | F34: 3556 | K34: 0 | L34: 211
A35: 11 | B35: 3817 | C35: 11 | D35: 3821 | E35: 22 | F35: 3830 | K35: 0 | L35: 112
A36: 22 | B36: 3929 | C36: 24 | D36: 3935 | E36: 24 | F36: 3946 | K36: 0 | L36: 222
A37: 22 | B37: 4045 | C37: 13 | D37: 4060 | E37: 24 | F37: 4069 | K37: 0 | L37: 212
A38: 22 | B38: 4168 | C38: 24 | D38: 4184 | E38: 13 | F38: 4196 | K38: 0 | L38: 221
A39: 22 | B39: 4292 | C39: 13 | D39: 4301 | E39: 24 | F39: 4310 | K39: 0 | L39: 212
A40: 11 | B40: 4404 | C40: 22 | D40: 4414 | E40: 24 | F40: 4421 | K40: 0 | L40: 122
A41: 11 | B41: 4514 | C41: 22 | D41: 4522 | E41: 13 | F41: 4536 | K41: 0 | L41: 121
A42: 22 | B42: 4650 | C42: 13 | D42: 4662 | E42: 13 | F42: 4669 | K42: 0 | L42: 211
A43: 22 | B43: 4768 | C43: 13 | D43: 4780 | E43: 24 | F43: 4788 | K43: 0 | L43: 212
A44: 11 | B44: 4889 | C44: 22 | D44: 4894 | E44: 13 | F44: 4904 | K44: 0 | L44: 121
A45: 22 | B45: 5003 | C45: 24 | D45: 5015 | E45: 13 | F45: 5024 | K45: 0 | L45: 221
A46: 22 | B46: 5124 | C46: 24 | D46: 5129 | E46: 13 | F46: 5140 | K46: 0 | L46: 221
A47: 22 | B47: 5341 | C47: 13 | D47: 5353 | E47: 24 | F47: 5371 | K47: 0 | L47: 212
A48: 22 | B48: 5481 | C48: 13 | D48: 5492 | E48: 24 | F48: 5500 | K48: 0 | L48: 212
A49: 22 | B49: 5602 | C49: 13 | D49: 5615 | E49: 13 | F49: 5619 | K49: 0 | L49: 211
A50: 22 | B50: 5719 | C50: 13 | D50: 5731 | E50: 24 | F50: 5743 | K50: 0 | L50: 212
A51: 22 | B51: 5857 | C51: 13 | D51: 5868 | E51: 13 | F51: 5874 | K51: 0 | L51: 211
A52: 22 | B52: 6056 | C52: 13 | D52: 6068 | E52: 24 | F52: 6076 | K52: 0 | L52: 212
A53: 22 | B53: 6256 | C53: 13 | D53: 6265 | E53: 13 | F53: 6271 | K53: 0 | L53: 211
A54: 22 | B54: 6417 | C54: 24 | D54: 6451 | E54: 13 | F54: 6465 | K54: 0 | L54: 221
A55: 22 | B55: 6582 | C55: 24 | D55: 6590 | E55: 13 | F55: 6602 | K55: 0 | L55: 221
A56: 11 | B56: 6721 | C56: 11 | D56: 6726 | E56: 22 | F56: 6736 | K56: 0 | L56: 112
A57: 22 | B57: 6917 | C57: 13 | D57: 6928 | E57: 24 | F57: 6935 | K57: 0 | L57: 212
A58: 22 | B58: 7033 | C58: 13 | D58: 7041 | E58: 24 | F58: 7050 | K58: 0 | L58: 212
A59: 11 | B59: 7190 | C59: 11 | D59: 7226 | E59: 22 | F59: 7234 | K59: 0 | L59: 112
A60: 22 | B60: 7337 | C60: 24 | D60: 7360 | E60: 24 | F60: 7373 | K60: 0 | L60: 222
A61: 22 | B61: 7559 | C61: 13 | D61: 7570 | E61: 24 | F61: 7579 | K61: 0 | L61: 212
A62: 22 | B62: 7675 | C62: 24 | D62: 7718 | E62: 13 | F62: 7735 | K62: 0 | L62: 221
A63: 22 | B63: 7863 | C63: 24 | D63: 7870 | E63: 13 | F63: 7882 | K63: 0 | L63: 221
A64: 22 | B64: 7990 | C64: 13 | D64: 8007 | E64: 24 | F64: 8019 | K64: 0 | L64: 212
A65: 22 | B65: 8210 | C65: 13 | D65: 8220 | E65: 24 | F65: 8227 | K65: 0 | L65: 212
A66: 22 | B66: 8354 | C66: 13 | D66: 8435 | E66: 13 | F66: 8440 | K66: 0 | L66: 211
A67: 11 | B67: 8576 | C67: 22 | D67: 8584 | E67: 13 | F67: 8597 | K67: 0 | L67: 121
A68: 22 | B68: 8823 | C68: 24 | D68: 8831 | E68: 13 | F68: 8842 | K68: 0 | L68: 221
A69: 22 | B69: 9464 | C69: 13 | D69: 9473 | E69: 13 | F69: 9477 | K69: 0 | L69: 211
A70: 22 | B70: 9575 | C70: 24 | D70: 9577 | E70: 13 | F70: 9590 | K70: 0 | L70: 221
A71: 22 | B71: 9690 | C71: 24 | D71: 9693 | E71: 13 | F71: 9702 | K71: 0 | L71: 221
A72: 22 | B72: 10038 | C72: 13 | D72: 10051 | E72: 24 | F72: 10062 | K72: 0 | L72: 212
A73: 11 | B73: 10398 | C73: 22 | D73: 10406 | E73: 24 | F73: 10421 | K73: 0 | L73: 122
A74: 11 | B74: 10526 | C74: 22 | D74: 10538 | E74: 13 | F74: 10548 | K74: 0 | L74: 121
A75: 22 | B75: 10690 | C75: 24 | D75: 10708 | E75: 24 | F75: 10717 | K75: 0 | L75: 222
A76: 22 | B76: 10826 | C76: 13 | D76: 10853 | E76: 24 | F76: 10862 | K76: 0 | L76: 212
A77: 22 | B77: 11081 | C77: 24 | D77: 11095 | E77: 13 | F77: 11111 | K77: 0 | L77: 221
A78: 11 | B78: 11285 | C78: 22 | D78: 11294 | E78: 24 | F78: 11298 | K78: 0 | L78: 122
A79: 22 | B79: 11445 | C79: 13 | D79: 11459 | E79: 24 | F79: 11471 | K79: 0 | L79: 212
A80: 22 | B80: 11643 | C80: 24 | D80: 11658 | E80: 24 | F80: 11681 | K80: 0 | L80: 222
A81: 22 | B81: 11821 | C81: 24 | D81: 11840 | E81: 13 | F81: 11853 | K81: 0 | L81: 221
A82: 22 | B82: 14432 | C82: 24 | D82: 14488 | E82: 13 | F82: 14497 | K82: 0 | L82: 221
A83: 22 | B83: 14644 | C83: 13 | D83: 14657 | E83: 24 | F83: 14669 | K83: 0 | L83: 212
A84: 22 | B84: 15678 | C84: 13 | D84: 15689 | E84: 24 | F84: 15697 | K84: 0 | L84: 212
A85: 11 | B85: 15806 | C85: 22 | D85: 15815 | E85: 24 | F85: 15822 | K85: 0 | L85: 122
A86: 11 | B86: 15922 | C86: 11 | D86: 15924 | E86: 11 | F86: 15933 | K86: 0 | L86: 111
A87: 22 | B87: 16087 | C87: 24 | D87: 16092 | E87: 13 | F87: 16101 | K87: 0 | L87: 221
A88: 22 | B88: 16197 | C88: 24 | D88: 16203 | E88: 13 | F88: 16212 | K88: 0 | L88: 221
A89: 22 | B89: 16315 | C89: 24 | D89: 16322 | E89: 13 | F89: 16337 | K89: 0 | L89: 221
A90: 22 | B90: 16433 | C90: 24 | D90: 16439 | E90: 13 | F90: 16451 | K90: 0 | L90: 221
A91: 22 | B91: 16548 | C91: 13 | D91: 16570 | E91: 13 | F91: 16573 | K91: 0 | L91: 211
A92: 22 | B92: 16680 | C92: 24 | D92: 16693 | E92: 13 | F92: 16713 | K92: 0 | L92: 221
A93: 22 | B93: 16812 | C93: 24 | D93: 16831 | E93: 13 | F93: 16848 | K93: 0 | L93: 221
A94: 22 | B94: 16947 | C94: 24 | D94: 16954 | E94: 24 | F94: 16962 | K94: 0 | L94: 222
A95: 22 | B95: 17068 | C95: 24 | D95: 17075 | E95: 13 | F95: 17087 | K95: 0 | L95: 221
A96: 11 | B96: 17191 | C96: 22 | D96: 17193 | E96: 24 | F96: 17204 | K96: 0 | L96: 122
A97: 22 | B97: 17303 | C97: 13 | D97: 17320 | E97: 13 | F97: 17325 | K97: 0 | L97: 211
A98: 22 | B98: 17426 | C98: 24 | D98: 17429 | E98: 13 | F98: 17441 | K98: 0 | L98: 221
A99: 22 | B99: 17539 | C99: 13 | D99: 17552 | E99: 24 | F99: 17560 | K99: 0 | L99: 212
A100: 22 | B100: 17681 | C100: 24 | D100: 17688 | E100: 13 | F100: 17697 | K100: 0 | L100: 221
A101: 11 | B101: 17848 | C101: 22 | D101: 17855 | E101: 24 | F101: 17862 | K101: 0 | L101: 122
A102: 22 | B102: 17961 | C102: 24 | D102: 17963 | E102: 13 | F102: 17977 | K102: 0 | L102: 221
A103: 11 | B103: 18074 | C103: 11 | D103: 18087 | E103: 11 | F103: 18091 | K103: 0 | L103: 111
A104: 22 | B104: 18216 | C104: 24 | D104: 18220 | E104: 24 | F104: 18224 | K104: 0 | L104: 222
A105: 22 | B105: 18321 | C105: 24 | D105: 18326 | E105: 24 | F105: 18328 | K105: 0 | L105: 222
A106: 22 | B106: 18432 | C106: 24 | D106: 18435 | E106: 24 | F106: 18439 | K106: 0 | L106: 222
A107: 22 | B107: 18546 | C107: 24 | D107: 18554 | E107: 13 | F107: 18569 | K107: 0 | L107: 221
A108: 22 | B108: 18667 | C108: 24 | D108: 18669 | E108: 24 | F108: 18675 | K108: 0 | L108: 222
A109: 22 | B109: 18780 | C109: 24 | D109: 18783 | E109: 24 | F109: 18794 | K109: 0 | L109: 222
A110: 22 | B110: 18893 | C110: 24 | D110: 18910 | E110: 13 | F110: 18928 | K110: 0 | L110: 221
A111: 11 | B111: 19026 | C111: 11 | D111: 19040 | E111: 11 | F111: 19045 | K111: 0 | L111: 111
A112: 22 | B112: 19226 | C112: 24 | D112: 19230 | E112: 24 | F112: 19238 | K112: 0 | L112: 222
A113: 22 | B113: 19336 | C113: 24 | D113: 19340 | E113: 24 | F113: 19344 | K113: 0 | L113: 222
A114: 22 | B114: 19444 | C114: 24 | D114: 19450 | E114: 24 | F114: 19456 | K114: 0 | L114: 222
A115: 22 | B115: 19558 | C115: 24 | D115: 19563 | E115: 13 | F115: 19579 | K115: 0 | L115: 221
A116: 22 | B116: 19737 | C116: 13 | D116: 19750 | E116: 13 | F116: 19754 | K116: 0 | L116: 211
A117: 22 | B117: 19853 | C117: 24 | D117: 19856 | E117: 13 | F117: 19869 | K117: 0 | L117: 221
A118: 22 | B118: 19967 | C118: 24 | D118: 19974 | E118: 24 | F118: 19978 | K118: 0 | L118: 222
A119: 22 | B119: 20077 | C119: 24 | D119: 20080 | E119: 13 | F119: 20092 | K119: 0 | L119: 221
A120: 22 | B120: 20189 | C120: 24 | D120: 20194 | E120: 13 | F120: 20205 | K120: 0 | L120: 221
A121: 22 | B121: 20301 | C121: 24 | D121: 20304 | E121: 13 | F121: 20317 | K121: 0 | L121: 221
A122: 22 | B122: 20418 | C122: 24 | D122: 20419 | E122: 13 | F122: 20438 | K122: 0 | L122: 221
A123: 22 | B123: 20537 | C123: 24 | D123: 20542 | E123: 13 | F123: 20554 | K123: 0 | L123: 221
A124: 22 | B124: 20654 | C124: 24 | D124: 20661 | E124: 13 | F124: 20670 | K124: 0 | L124: 221
A125: 22 | B125: 20769 | C125: 24 | D125: 20773 | E125: 13 | F125: 20786 | K125: 0 | L125: 221
A126: 11 | B126: 20878 | C126: 22 | D126: 20886 | E126: 24 | F126: 20893 | K126: 0 | L126: 122
A127: 22 | B127: 20992 | C127: 24 | D127: 20996 | E127: 13 | F127: 21010 | K127: 0 | L127: 221
A128: 22 | B128: 21107 | C128: 24 | D128: 21115 | E128: 13 | F128: 21126 | K128: 0 | L128: 221
A129: 22 | B129: 21228 | C129: 24 | D129: 21232 | E129: 13 | F129: 21246 | K129: 0 | L129: 221
A130: 11 | B130: 21356 | C130: 11 | D130: 21359 | E130: 22 | F130: 21375 | K130: 0 | L130: 112
A131: 22 | B131: 21531 | C131: 24 | D131: 21546 | E131: 13 | F131: 21559 | K131: 0 | L131: 221
A132: 11 | B132: 21652 | C132: 11 | D132: 21676 | E132: 22 | F132: 21725 | K132: 0 | L132: 112
A133: 22 | B133: 21822 | C133: 24 | D133: 21824 | E133: 13 | F133: 21835 | K133: 0 | L133: 221
A134: 22 | B134: 21969 | C134: 13 | D134: 21982 | E134: 13 | F134: 21989 | K134: 0 | L134: 211
A135: 22 | B135: 22090 | C135: 13 | D135: 22102 | E135: 13 | F135: 22107 | K135: 0 | L135: 211
A136: 22 | B136: 22213 | C136: 13 | D136: 22225 | E136: 24 | F136: 22236 | K136: 0 | L136: 212
A137: 11 | B137: 22333 | C137: 22 | D137: 22337 | E137: 13 | F137: 22348 | K137: 0 | L137: 121
A138: 22 | B138: 22457 | C138: 24 | D138: 22474 | E138: 13 | F138: 22488 | K138: 0 | L138: 221
A139: 22 | B139: 22591 | C139: 13 | D139: 22608 | E139: 13 | F139: 22612 | K139: 0 | L139: 211
A140: 11 | B140: 22720 | C140: 22 | D140: 22755 | E140: 24 | F140: 22765 | K140: 0 | L140: 122
A141: 11 | B141: 22916 | C141: 22 | D141: 22926 | E141: 24 | F141: 22935 | K141: 0 | L141: 122
A142: 22 | B142: 23095 | C142: 13 | D142: 23106 | E142: 13 | F142: 23112 | K142: 0 | L142: 211
A143: 22 | B143: 23301 | C143: 13 | D143: 23311 | E143: 13 | F143: 23319 | K143: 0 | L143: 211
A144: 11 | B144: 23419 | C144: 11 | D144: 23422 | E144: 22 | F144: 23432 | K144: 0 | L144: 112
A145: 22 | B145: 23525 | C145: 13 | D145: 23540 | E145: 13 | F145: 23545 | K145: 0 | L145: 211
A146: 22 | B146: 23671 | C146: 13 | D146: 23687 | E146: 13 | F146: 23694 | K146: 0 | L146: 211
A147: 22 | B147: 23792 | C147: 24 | D147: 23798 | E147: 13 | F147: 23810 | K147: 0 | L147: 221

Sheet !M825A2I.sha
A1: Report for:!M825A2I.sha
A2: Date: | B2: <date>
A3: Hen: | B3: <hen> | F3: Correct Sequence | G3: =Start!J2 -> 111 | P3: Total Sequences in Data | Q3: =4994-COUNTBLANK(L7:L5000) -> 147 | V3: Total Sequences in Block Data | W3: =COUNTA(L7:L31) -> 25 | AA3: Total Sequences in Block Data | AB3: =COUNTA(L32:L55) -> 24 | AF3: Total Sequences in Block Data | AG3: =COUNTA(L56:L80) -> 25 | AK3: Total Sequences in Block Data | AL3: =COUNTA(L81:L104) -> 24 | AP3: Total Sequences in Block Data | AQ3: =COUNTA(L105:L129) -> 25 | AU3: Total Sequences in Block Data | AV3: =COUNTA(L130:L153) -> 24
P4: Total Sequences in Summary | Q4: =SUM(O7:O14) -> 147 | V4: Total Sequences in Block Summary | W4: =SUM(U7:U14) -> 25 | AA4: Total Sequences in Block Summary | AB4: =SUM(Z7:Z14) -> 24 | AF4: Total Sequences in Block Summary | AG4: =SUM(AE7:AE14) -> 25 | AK4: Total Sequences in Block Summary | AL4: =SUM(AJ7:AJ14) -> 24 | AP4: Total Sequences in Block Summary | AQ4: =SUM(AO7:AO14) -> 25 | AU4: Total Sequences in Block Summary | AV4: =SUM(AT7:AT14) -> 24
T5: Block 1 | Y5: Block 2 | AD5: Block 3 | AI5: Block 4 | AN5: Block 5 | AS5: Block 6
A6: Sequence Component 1 | B6: Time 1 | C6: Sequence Component 2 | D6: Time 2 | E6: Sequence Component 3 | F6: Time 3 | G6: Sequence Component 4 | H6: Time 4 | I6: Sequence Component 5 | J6: Time 5 | K6: Correct? 0=No 1=Yes | L6: Sequence | N6: Frequency | P6: Relative Frequency | Q6: Variability | T6: Frequency | V6: Relative Frequency | W6: Variability | Y6: Frequency | AA6: Relative Frequency | AB6: Variability | AD6: Frequency | AF6: Relative Frequency | AG6: Variability | AI6: Frequency | AK6: Relative Frequency | AL6: Variability | AN6: Frequency | AP6: Relative Frequency | AQ6: Variability | AS6: Frequency | AU6: Relative Frequency | AV6: Variability
A7: 22 | B7: 6 | C7: 13 | D7: 17 | E7: 24 | F7: 26 | K7: 0 | L7: 212 | N7: 111 | O7: =COUNTIF($L$7:$L$500,N7) -> 5 | P7: =O7/$Q$4 -> 0.03401360544 | Q7: =IF(P7=0,0,(P7*((LOG(P7))/LOG(2)))) -> -0.1659096684 | T7: =N7 -> 111 | U7: =COUNTIF(L7:L31,T7) -> 0 | Y7: =N7 -> 111 | Z7: =COUNTIF(L32:L55,Y7) -> 0 | AD7: =N7 -> 111 | AE7: =COUNTIF(L56:L80,AD7) -> 1 | AI7: =N7 -> 111 | AJ7: =COUNTIF(L81:L104,AI7) -> 0 | AN7: =N7 -> 111 | AO7: =COUNTIF(L105:L129,AN7) -> 2 | AS7: =N7 -> 111 | AT7: =COUNTIF(L130:L153,AS7) -> 2
A8: 22 | B8: 143 | C8: 13 | D8: 157 | E8: 24 | F8: 168 | K8: 0 | L8: 212 | N8: 112 | O8: =COUNTIF($L$7:$L$500,N8) -> 9 | P8: =O8/$Q$4 -> 0.0612244898 | Q8: =IF(P8=0,0,(P8*((LOG(P8))/LOG(2)))) -> -0.2467192251 | T8: =N8 -> 112 | U8: =COUNTIF(L7:L31,T8) -> 0 | V8: =U8/(W4-U7) -> 0 | W8: =IF(V8=0,0,(V8*((LOG(V8))/LOG(2)))) -> 0 | Y8: =N8 -> 112 | Z8: =COUNTIF(L32:L55,Y8) -> 2 | AA8: =Z8/(AB4-Z7) -> 0.08333333333 | AB8: =IF(AA8=0,0,(AA8*((LOG(AA8))/LOG(2)))) -> -0.2987468751 | AD8: =N8 -> 112 | AE8: =COUNTIF(L56:L80,AD8) -> 0 | AF8: =AE8/(AG4-AE7) -> 0 | AG8: =IF(AF8=0,0,(AF8*((LOG(AF8))/LOG(2)))) -> 0 | AI8: =N8 -> 112 | AJ8: =COUNTIF(L81:L104,AI8) -> 3 | AK8: =AJ8/(AL4-AJ7) -> 0.125 | AL8: =IF(AK8=0,0,(AK8*((LOG(AK8))/LOG(2)))) -> -0.375 | AN8: =N8 -> 112 | AO8: =COUNTIF(L105:L129,AN8) -> 3 | AP8: =AO8/(AQ4-AO7) -> 0.1304347826 | AQ8: =IF(AP8=0,0,(AP8*((LOG(AP8))/LOG(2)))) -> -0.3832955811 | AS8: =N8 -> 112 | AT8: =COUNTIF(L130:L153,AS8) -> 1 | AU8: =AT8/(AV4-AT7) -> 0.04545454545 | AV8: =IF(AU8=0,0,(AU8*((LOG(AU8))/LOG(2)))) -> -0.2027014372
A9: 22 | B9: 267 | C9: 13 | D9: 281 | E9: 13 | F9: 286 | K9: 0 | L9: 211 | N9: 121 | O9: =COUNTIF($L$7:$L$500,N9) -> 22 | P9: =O9/$Q$4 -> 0.1496598639 | Q9: =IF(P9=0,0,(P9*((LOG(P9))/LOG(2)))) -> -0.4101040543 | T9: =N9 -> 121 | U9: =COUNTIF(L7:L31,T9) -> 1 | V9: =U9/(W4-U7) -> 0.04 | W9: =IF(V9=0,0,(V9*((LOG(V9))/LOG(2)))) -> -0.1857542476 | Y9: =N9 -> 121 | Z9: =COUNTIF(L32:L55,Y9) -> 3 | AA9: =Z9/(AB4-Z7) -> 0.125 | AB9: =IF(AA9=0,0,(AA9*((LOG(AA9))/LOG(2)))) -> -0.375 | AD9: =N9 -> 121 | AE9: =COUNTIF(L56:L80,AD9) -> 4 | AF9: =AE9/(AG4-AE7) -> 0.1666666667 | AG9: =IF(AF9=0,0,(AF9*((LOG(AF9))/LOG(2)))) -> -0.4308270835 | AI9: =N9 -> 121 | AJ9: =COUNTIF(L81:L104,AI9) -> 5 | AK9: =AJ9/(AL4-AJ7) -> 0.2083333333 | AL9: =IF(AK9=0,0,(AK9*((LOG(AK9))/LOG(2)))) -> -0.4714655012 | AN9: =N9 -> 121 | AO9: =COUNTIF(L105:L129,AN9) -> 7 | AP9: =AO9/(AQ4-AO7) -> 0.3043478261 | AQ9: =IF(AP9=0,0,(AP9*((LOG(AP9))/LOG(2)))) -> -0.5223238799 | AS9: =N9 -> 121 | AT9: =COUNTIF(L130:L153,AS9) -> 2 | AU9: =AT9/(AV4-AT7) -> 0.09090909091 | AV9: =IF(AU9=0,0,(AU9*((LOG(AU9))/LOG(2)))) -> -0.3144937835
A10: 22 | B10: 403 | C10: 13 | D10: 420 | E10: 13 | F10: 425 | K10: 0 | L10: 211 | N10: 122 | O10: =COUNTIF($L$7:$L$500,N10) -> 9 | P10: =O10/$Q$4 -> 0.0612244898 | Q10: =IF(P10=0,0,(P10*((LOG(P10))/LOG(2)))) -> -0.2467192251 | T10: =N10 -> 122 | U10: =COUNTIF(L7:L31,T10) -> 0 | V10: =U10/(W4-U7) -> 0 | W10: =IF(V10=0,0,(V10*((LOG(V10))/LOG(2)))) -> 0 | Y10: =N10 -> 122 | Z10: =COUNTIF(L32:L55,Y10) -> 0 | AA10: =Z10/(AB4-Z7) -> 0 | AB10: =IF(AA10=0,0,(AA10*((LOG(AA10))/LOG(2)))) -> 0 | AD10: =N10 -> 122 | AE10: =COUNTIF(L56:L80,AD10) -> 2 | AF10: =AE10/(AG4-AE7) -> 0.08333333333 | AG10: =IF(AF10=0,0,(AF10*((LOG(AF10))/LOG(2)))) -> -0.2987468751 | AI10: =N10 -> 122 | AJ10: =COUNTIF(L81:L104,AI10) -> 3 | AK10: =AJ10/(AL4-AJ7) -> 0.125 | AL10: =IF(AK10=0,0,(AK10*((LOG(AK10))/LOG(2)))) -> -0.375 | AN10: =N10 -> 122 | AO10: =COUNTIF(L105:L129,AN10) -> 2 | AP10: =AO10/(AQ4-AO7) -> 0.08695652174 | AQ10: =IF(AP10=0,0,(AP10*((LOG(AP10))/LOG(2)))) -> -0.3063966918 | AS10: =N10 -> 122 | AT10: =COUNTIF(L130:L153,AS10) -> 2 | AU10: =AT10/(AV4-AT7) -> 0.09090909091 | AV10: =IF(AU10=0,0,(AU10*((LOG(AU10))/LOG(2)))) -> -0.3144937835
A11: 22 | B11: 528 | C11: 13 | D11: 543 | E11: 13 | F11: 546 | K11: 0 | L11: 211 | N11: 211 | O11: =COUNTIF($L$7:$L$500,N11) -> 18 | P11: =O11/$Q$4 -> 0.1224489796 | Q11: =IF(P11=0,0,(P11*((LOG(P11))/LOG(2)))) -> -0.3709894706 | T11: =N11 -> 211 | U11: =COUNTIF(L7:L31,T11) -> 7 | V11: =U11/(W4-U7) -> 0.28 | W11: =IF(V11=0,0,(V11*((LOG(V11))/LOG(2)))) -> -0.514220355 | Y11: =N11 -> 211 | Z11: =COUNTIF(L32:L55,Y11) -> 1 | AA11: =Z11/(AB4-Z7) -> 0.04166666667 | AB11: =IF(AA11=0,0,(AA11*((LOG(AA11))/LOG(2)))) -> -0.1910401042 | AD11: =N11 -> 211 | AE11: =COUNTIF(L56:L80,AD11) -> 4 | AF11: =AE11/(AG4-AE7) -> 0.1666666667 | AG11: =IF(AF11=0,0,(AF11*((LOG(AF11))/LOG(2)))) -> -0.4308270835 | AI11: =N11 -> 211 | AJ11: =COUNTIF(L81:L104,AI11) -> 4 | AK11: =AJ11/(AL4-AJ7) -> 0.1666666667 | AL11: =IF(AK11=0,0,(AK11*((LOG(AK11))/LOG(2)))) -> -0.4308270835 | AN11: =N11 -> 211 | AO11: =COUNTIF(L105:L129,AN11) -> 1 | AP11: =AO11/(AQ4-AO7) -> 0.04347826087 | AQ11: =IF(AP11=0,0,(AP11*((LOG(AP11))/LOG(2)))) -> -0.1966766068 | AS11: =N11 -> 211 | AT11: =COUNTIF(L130:L153,AS11) -> 1 | AU11: =AT11/(AV4-AT7) -> 0.04545454545 | AV11: =IF(AU11=0,0,(AU11*((LOG(AU11))/LOG(2)))) -> -0.2027014372
A12: 22 | B12: 649 | C12: 24 | D12: 653 | E12: 24 | F12: 663 | K12: 0 | L12: 222 | N12: 212 | O12: =COUNTIF($L$7:$L$500,N12) -> 18 | P12: =O12/$Q$4 -> 0.1224489796 | Q12: =IF(P12=0,0,(P12*((LOG(P12))/LOG(2)))) -> -0.3709894706 | T12: =N12 -> 212 | U12: =COUNTIF(L7:L31,T12) -> 5 | V12: =U12/(W4-U7) -> 0.2 | W12: =IF(V12=0,0,(V12*((LOG(V12))/LOG(2)))) -> -0.464385619 | Y12: =N12 -> 212 | Z12: =COUNTIF(L32:L55,Y12) -> 4 | AA12: =Z12/(AB4-Z7) -> 0.1666666667 | AB12: =IF(AA12=0,0,(AA12*((LOG(AA12))/LOG(2)))) -> -0.4308270835 | AD12: =N12 -> 212 | AE12: =COUNTIF(L56:L80,AD12) -> 1 | AF12: =AE12/(AG4-AE7) -> 0.04166666667 | AG12: =IF(AF12=0,0,(AF12*((LOG(AF12))/LOG(2)))) -> -0.1910401042 | AI12: =N12 -> 212 | AJ12: =COUNTIF(L81:L104,AI12) -> 4 | AK12: =AJ12/(AL4-AJ7) -> 0.1666666667 | AL12: =IF(AK12=0,0,(AK12*((LOG(AK12))/LOG(2)))) -> -0.4308270835 | AN12: =N12 -> 212 | AO12: =COUNTIF(L105:L129,AN12) -> 3 | AP12: =AO12/(AQ4-AO7) -> 0.1304347826 | AQ12: =IF(AP12=0,0,(AP12*((LOG(AP12))/LOG(2)))) -> -0.3832955811 | AS12: =N12 -> 212 | AT12: =COUNTIF(L130:L153,AS12) -> 1 | AU12: =AT12/(AV4-AT7) -> 0.04545454545 | AV12: =IF(AU12=0,0,(AU12*((LOG(AU12))/LOG(2)))) -> -0.2027014372
A13: 22 | B13: 761 | C13: 24 | D13: 769 | E13: 13 | F13: 778 | K13: 0 | L13: 221 | N13: 221 | O13: =COUNTIF($L$7:$L$500,N13) -> 45 | P13: =O13/$Q$4 -> 0.306122449 | Q13: =IF(P13=0,0,(P13*((LOG(P13))/LOG(2)))) -> -0.5228018108 | T13: =N13 -> 221 | U13: =COUNTIF(L7:L31,T13) -> 6 | V13: =U13/(W4-U7) -> 0.24 | W13: =IF(V13=0,0,(V13*((LOG(V13))/LOG(2)))) -> -0.4941344854 | Y13: =N13 -> 221 | Z13: =COUNTIF(L32:L55,Y13) -> 8 | AA13: =Z13/(AB4-Z7) -> 0.3333333333 | AB13: =IF(AA13=0,0,(AA13*((LOG(AA13))/LOG(2)))) -> -0.5283208336 | AD13: =N13 -> 221 | AE13: =COUNTIF(L56:L80,AD13) -> 8 | AF13: =AE13/(AG4-AE7) -> 0.3333333333 | AG13: =IF(AF13=0,0,(AF13*((LOG(AF13))/LOG(2)))) -> -0.5283208336 | AI13: =N13 -> 221 | AJ13: =COUNTIF(L81:L104,AI13) -> 4 | AK13: =AJ13/(AL4-AJ7) -> 0.1666666667 | AL13: =IF(AK13=0,0,(AK13*((LOG(AK13))/LOG(2)))) -> -0.4308270835 | AN13: =N13 -> 221 | AO13: =COUNTIF(L105:L129,AN13) -> 6 | AP13: =AO13/(AQ4-AO7) -> 0.2608695652 | AQ13: =IF(AP13=0,0,(AP13*((LOG(AP13))/LOG(2)))) -> -0.505721597 | AS13: =N13 -> 221 | AT13: =COUNTIF(L130:L153,AS13) -> 13 | AU13: =AT13/(AV4-AT7) -> 0.5909090909 | AV13: =IF(AU13=0,0,(AU13*((LOG(AU13))/LOG(2)))) -> -0.4484952139
A14: 22 | B14: 880 | C14: 13 | D14: 893 | E14: 13 | F14: 898 | K14: 0 | L14: 211 | N14: 222 | O14: =COUNTIF($L$7:$L$500,N14) -> 21 | P14: =O14/$Q$4 -> 0.1428571429 | Q14: =IF(P14=0,0,(P14*((LOG(P14))/LOG(2)))) -> -0.4010507032 | T14: =N14 -> 222 | U14: =COUNTIF(L7:L31,T14) -> 6 | V14: =U14/(W4-U7) -> 0.24 | W14: =IF(V14=0,0,(V14*((LOG(V14))/LOG(2)))) -> -0.4941344854 | Y14: =N14 -> 222 | Z14: =COUNTIF(L32:L55,Y14) -> 6 | AA14: =Z14/(AB4-Z7) -> 0.25 | AB14: =IF(AA14=0,0,(AA14*((LOG(AA14))/LOG(2)))) -> -0.5 | AD14: =N14 -> 222 | AE14: =COUNTIF(L56:L80,AD14) -> 5 | AF14: =AE14/(AG4-AE7) -> 0.2083333333 | AG14: =IF(AF14=0,0,(AF14*((LOG(AF14))/LOG(2)))) -> -0.4714655012 | AI14: =N14 -> 222 | AJ14: =COUNTIF(L81:L104,AI14) -> 1 | AK14: =AJ14/(AL4-AJ7) -> 0.04166666667 | AL14: =IF(AK14=0,0,(AK14*((LOG(AK14))/LOG(2)))) -> -0.1910401042 | AN14: =N14 -> 222 | AO14: =COUNTIF(L105:L129,AN14) -> 1 | AP14: =AO14/(AQ4-AO7) -> 0.04347826087 | AQ14: =IF(AP14=0,0,(AP14*((LOG(AP14))/LOG(2)))) -> -0.1966766068 | AS14: =N14 -> 222 | AT14: =COUNTIF(L130:L153,AS14) -> 2 | AU14: =AT14/(AV4-AT7) -> 0.09090909091 | AV14: =IF(AU14=0,0,(AU14*((LOG(AU14))/LOG(2)))) -> -0.3144937835
A15: 22 | B15: 1001 | C15: 13 | D15: 1013 | E15: 13 | F15: 1016 | K15: 0 | L15: 211 | P15: =SUM(P7:P14) -> 1 | Q15: =-SUM(Q7:Q14) -> 2.735283628 | V15: =SUM(V7:V14) -> 1 | W15: =-SUM(W7:W14) -> 2.152629192 | AA15: =SUM(AA7:AA14) -> 1 | AB15: =-SUM(AB7:AB14) -> 2.323934896 | AF15: =SUM(AF7:AF14) -> 1 | AG15: =-SUM(AG7:AG14) -> 2.351227481 | AK15: =SUM(AK7:AK14) -> 1 | AL15: =-SUM(AL7:AL14) -> 2.704986856 | AP15: =SUM(AP7:AP14) -> 1 | AQ15: =-SUM(AQ7:AQ14) -> 2.494386545 | AU15: =SUM(AU7:AU14) -> 1 | AV15: =-SUM(AV7:AV14) -> 2.000080876
A16: 22 | B16: 1119 | C16: 24 | D16: 1122 | E16: 13 | F16: 1134 | K16: 0 | L16: 221 | P16: U= | Q16: =Q15/(LOG(Q4)/LOG(2)) -> 0.3799177931 | V16: U1= | W16: =W15/(LOG(W4)/LOG(2)) -> 0.4635434657 | AA16: U2= | AB16: =AB15/(LOG(AB4)/LOG(2)) -> 0.5068601752 | AF16: U3= | AG16: =AG15/(LOG(AG4)/LOG(2)) -> 0.5063092794 | AK16: U4= | AL16: =AL15/(LOG(AL4)/LOG(2)) -> 0.589969243 | AP16: U5= | AQ16: =AQ15/(LOG(AQ4)/LOG(2)) -> 0.5371369058 | AU16: U6= | AV16: =AV15/(LOG(AV4)/LOG(2)) -> 0.4362262234
A17: 22 | B17: 1231 | C17: 13 | D17: 1244 | E17: 24 | F17: 1258 | K17: 0 | L17: 212
A18: 22 | B18: 1364 | C18: 24 | D18: 1379 | E18: 24 | F18: 1384 | K18: 0 | L18: 222
A19: 22 | B19: 1485 | C19: 13 | D19: 1498 | E19: 13 | F19: 1502 | K19: 0 | L19: 211 | N19: Total Target Seq
A20: 22 | B20: 1640 | C20: 24 | D20: 1649 | E20: 24 | F20: 1659 | K20: 0 | L20: 222 | N20: =COUNTIF(L7:L153,G3) -> 5 | P20: 25 | Q20: 24 | R20: 25 | S20: 24 | T20: 25 | U20: 24
A21: 22 | B21: 1766 | C21: 13 | D21: 1776 | E21: 24 | F21: 1788 | K21: 0 | L21: 212 | P21: % of reinforcement given in 6 equal intervals based on number of trials
A22: 22 | B22: 1893 | C22: 24 | D22: 1897 | E22: 13 | F22: 1909 | K22: 0 | L22: 221 | P22: %_1 | Q22: %_2 | R22: %_3 | S22: %_4 | T22: %_5 | U22: %_6
A23: 22 | B23: 2015 | C23: 13 | D23: 2026 | E23: 24 | F23: 2040 | K23: 0 | L23: 212 | O23: target sequence | P23: =$G$3 -> 111 | Q23: =$G$3 -> 111 | R23: =$G$3 -> 111 | S23: =$G$3 -> 111 | T23: =$G$3 -> 111 | U23: =$G$3 -> 111
A24: 11 | B24: 2135 | C24: 22 | D24: 2142 | E24: 13 | F24: 2158 | K24: 0 | L24: 121 | O24: total reinforcement | P24: =U7 -> 0 | Q24: =Z7 -> 0 | R24: =AE7 -> 1 | S24: =AJ7 -> 0 | T24: =AO7 -> 2 | U24: =AT7 -> 2
A25: 22 | B25: 2258 | C25: 24 | D25: 2261 | E25: 13 | F25: 2274 | K25: 0 | L25: 221 | O25: % target
A26: 22 | B26: 2379 | C26: 24 | D26: 2382 | E26: 24 | F26: 2388 | K26: 0 | L26: 222 | O26: CCRF
A27: 22 | B27: 2490 | C27: 13 | D27: 2502 | E27: 13 | F27: 2508 | K27: 0 | L27: 211 | O27: % CCRf
A28: 22 | B28: 2606 | C28: 24 | D28: 2613 | E28: 13 | F28: 2625 | K28: 0 | L28: 221 | O28: average response rate | P28: =F31/P20 -> 122.16 | Q28: =(F55-F31)/Q20 -> 209.875 | R28: =(F80-F55)/R20 -> 129.28 | S28: =(F104-F80)/S20 -> 257.625 | T28: =(F129-F104)/T20 -> 140.2 | U28: =(F153-F129)/U20 -> 123.375
A29: 22 | B29: 2794 | C29: 24 | D29: 2801 | E29: 24 | F29: 2808 | K29: 0 | L29: 222
A30: 22 | B30: 2907 | C30: 24 | D30: 2914 | E30: 13 | F30: 2923 | K30: 0 | L30: 221
A31: 22 | B31: 3030 | C31: 24 | D31: 3046 | E31: 24 | F31: 3054 | K31: 0 | L31: 222
A32: 22 | B32: 3161 | C32: 13 | D32: 3175 | E32: 24 | F32: 3185 | K32: 0 | L32: 212
A33: 22 | B33: 3290 | C33: 24 | D33: 3295 | E33: 24 | F33: 3316 | K33: 0 | L33: 222
A34: 11 | B34: 3429 | C34: 22 | D34: 3438 | E34: 13 | F34: 3455 | K34: 0 | L34: 121
A35: 22 | B35: 3557 | C35: 24 | D35: 3564 | E35: 13 | F35: 3573 | K35: 0 | L35: 221
A36: 22 | B36: 3731 | C36: 13 | D36: 3751 | E36: 13 | F36: 3781 | K36: 0 | L36: 211
A37: 22 | B37: 4829 | C37: 24 | D37: 4839 | E37: 13 | F37: 4854 | K37: 0 | L37: 221
A38: 11 | B38: 4957 | C38: 22 | D38: 4965 | E38: 13 | F38: 4982 | K38: 0 | L38: 121
A39: 11 | B39: 5100 | C39: 11 | D39: 5104 | E39: 22 | F39: 5115 | K39: 0 | L39: 112
A40: 22 | B40: 5240 | C40: 13 | D40: 5259 | E40: 24 | F40: 5280 | K40: 0 | L40: 212
A41: 22 | B41: 5381 | C41: 24 | D41: 5386 | E41: 13 | F41: 5397 | K41: 0 | L41: 221
A42: 22 | B42: 5550 | C42: 24 | D42: 5572 | E42: 24 | F42: 5582 | K42: 0 | L42: 222
A43: 22 | B43: 5702 | C43: 24 | D43: 5709 | E43: 13 | F43: 5726 | K43: 0 | L43: 221
A44: 22 | B44: 5831 | C44: 13 | D44: 5841 | E44: 24 | F44: 5851 | K44: 0 | L44: 212
A45: 22 | B45: 5951 | C45: 24 | D45: 5969 | E45: 13 | F45: 5988 | K45: 0 | L45: 221
A46: 22 | B46: 6086 | C46: 24 | D46: 6089 | E46: 13 | F46: 6100 | K46: 0 | L46: 221
A47: 22 | B47: 6909 | C47: 24 | D47: 6918 | E47: 13 | F47: 6928 | K47: 0 | L47: 221
A48: 22 | B48: 7029 | C48: 24 | D48: 7040 | E48: 24 | F48: 7049 | K48: 0 | L48: 222
A49: 22 | B49: 7204 | C49: 24 | D49: 7235 | E49: 24 | F49: 7243 | K49: 0 | L49: 222
A50: 11 | B50: 7344 | C50: 11 | D50: 7350 | E50: 22 | F50: 7359 | K50: 0 | L50: 112
A51: 22 | B51: 7458 | C51: 24 | D51: 7460 | E51: 13 | F51: 7470 | K51: 0 | L51: 221
A52: 22 | B52: 7586 | C52: 24 | D52: 7593 | E52: 24 | F52: 7605 | K52: 0 | L52: 222
A53: 22 | B53: 7785 | C53: 24 | D53: 7800 | E53: 24 | F53: 7803 | K53: 0 | L53: 222
A54: 11 | B54: 7931 | C54: 22 | D54: 7941 | E54: 13 | F54: 7952 | K54: 0 | L54: 121
A55: 22 | B55: 8069 | C55: 13 | D55: 8081 | E55: 24 | F55: 8091 | K55: 0 | L55: 212
A56: 11 | B56: 8186 | C56: 22 | D56: 8194 | E56: 13 | F56: 8206 | K56: 0 | L56: 121
A57: 11 | B57: 8416 | C57: 22 | D57: 8428 | E57: 13 | F57: 8441 | K57: 0 | L57: 121
A58: 22 | B58: 8545 | C58: 13 | D58: 8557 | E58: 13 | F58: 8561 | K58: 0 | L58: 211
A59: 11 | B59: 8659 | C59: 11 | D59: 8665 | E59: 11 | F59: 8669 | K59: 0 | L59: 111
A60: 22 | B60: 8904 | C60: 13 | D60: 8912 | E60: 13 | F60: 8919 | K60: 0 | L60: 211
A61: 22 | B61: 9019 | C61: 24 | D61: 9021 | E61: 13 | F61: 9031 | K61: 0 | L61: 221
A62: 22 | B62: 9128 | C62: 24 | D62: 9133 | E62: 13 | F62: 9142 | K62: 0 | L62: 221
A63: 22 | B63: 9239 | C63: 24 | D63: 9250 | E63: 13 | F63: 9262 | K63: 0 | L63: 221
A64: 11 | B64: 9359 | C64: 22 | D64: 9370 | E64: 24 | F64: 9374 | K64: 0 | L64: 122
A65: 22 | B65: 9472 | C65: 24 | D65: 9477 | E65: 13 | F65: 9487 | K65: 0 | L65: 221
A66: 22 | B66: 9593 | C66: 13 | D66: 9605 | E66: 13 | F66: 9608 | K66: 0 | L66: 211
A67: 22 | B67: 9709 | C67: 13 | D67: 9721 | E67: 13 | F67: 9725 | K67: 0 | L67: 211
A68: 22 | B68: 9871 | C68: 24 | D68: 9875 | E68: 24 | F68: 9885 | K68: 0 | L68: 222
A69: 11 | B69: 9981 | C69: 22 | D69: 9990 | E69: 24 | F69: 9997 | K69: 0 | L69: 122
A70: 22 | B70: 10095 | C70: 24 | D70: 10100 | E70: 24 | F70: 10106 | K70: 0 | L70: 222
A71: 22 | B71: 10205 | C71: 24 | D71: 10208 | E71: 24 | F71: 10215 | K71: 0 | L71: 222
A72: 22 | B72: 10320 | C72: 24 | D72: 10325 | E72: 13 | F72: 10334 | K72: 0 | L72: 221
A73: 22 | B73: 10438 | C73: 13 | D73: 10453 | E73: 24 | F73: 10462 | K73: 0 | L73: 212
A74: 22 | B74: 10560 | C74: 24 | D74: 10589 | E74: 24 | F74: 10597 | K74: 0 | L74: 222
A75: 22 | B75: 10693 | C75: 24 | D75: 10697 | E75: 13 | F75: 10709 | K75: 0 | L75: 221
A76: 22 | B76: 10807 | C76: 24 | D76: 10809 | E76: 24 | F76: 10814 | K76: 0 | L76: 222
A77: 22 | B77: 10925 | C77: 24 | D77: 10935 | E77: 13 | F77: 10948 | K77: 0 | L77: 221
A78: 11 | B78: 11045 | C78: 22 | D78: 11053 | E78: 13 | F78: 11062 | K78: 0 | L78: 121
A79: 22 | B79: 11168 | C79: 24 | D79: 11183 | E79: 13 | F79: 11201 | K79: 0 | L79: 221
A80: 11 | B80: 11297 | C80: 22 | D80: 11307 | E80: 13 | F80: 11323 | K80: 0 | L80: 121
A81: 22 | B81: 11416 | C81: 24 | D81: 11423 | E81: 24 | F81: 11431 | K81: 0 | L81: 222
A82: 11 | B82: 11528 | C82: 22 | D82: 11538 | E82: 24 | F82: 11548 | K82: 0 | L82: 122
A83: 22 | B83: 11653 | C83: 24 | D83: 11662 | E83: 13 | F83: 11673 | K83: 0 | L83: 221
A84: 11 | B84: 11800 | C84: 22 | D84: 11808 | E84: 13 | F84: 11825 | K84: 0 | L84: 121
A85: 22 | B85: 11934 | C85: 13 | D85: 11963 | E85: 13 | F85: 11986 | K85: 0 | L85: 211
A86: 22 | B86: 12196 | C86: 13 | D86: 12213 | E86: 24 | F86: 12222 | K86: 0 | L86: 212
A87: 22 | B87: 12323 | C87: 24 | D87: 12331 | E87: 13 | F87: 12343 | K87: 0 | L87: 221
A88: 22 | B88: 12449 | C88: 13 | D88: 12459 | E88: 13 | F88: 12463 | K88: 0 | L88: 211
A89: 22 | B89: 12560 | C89: 13 | D89: 12572 | E89: 24 | F89: 12590 | K89: 0 | L89: 212
A90: 11 | B90: 12685 | C90: 22 | D90: 12695 | E90: 13 | F90: 12706 | K90: 0 | L90: 121
A91: 11 | B91: 12807 | C91: 22 | D91: 12823 | E91: 13 | F91: 12836 | K91: 0 | L91: 121
A92: 22 | B92: 12936 | C92: 24 | D92: 12942 | E92: 13 | F92: 12951 | K92: 0 | L92: 221
A93: 22 | B93: 13049 | C93: 13 | D93: 13061 | E93: 24 | F93: 13071 | K93: 0 | L93: 212
A94: 22 | B94: 13170 | C94: 13 | D94: 13179 | E94: 13 | F94: 13182 | K94: 0 | L94: 211
A95: 22 | B95: 13303 | C95: 13 | D95: 13318 | E95: 13 | F95: 13322 | K95: 0 | L95: 211
A96: 22 | B96: 13426 | C96: 24 | D96: 13434 | E96: 13 | F96: 13445 | K96: 0 | L96: 221
A97: 11 | B97: 13586 | C97: 22 | D97: 13594 | E97: 24 | F97: 13596 | K97: 0 | L97: 122
A98: 11 | B98: 13739 | C98: 22 | D98: 13749 | E98: 13 | F98: 13767 | K98: 0 | L98: 121
A99: 11 | B99: 16833 | C99: 22 | D99: 16841 | E99: 24 | F99: 16853 | K99: 0 | L99: 122
A100: 22 | B100: 16962 | C100: 13 | D100: 16975 | E100: 24 | F100: 16983 | K100: 0 | L100: 212
A101: 11 | B101: 17082 | C101: 11 | D101: 17087 | E101: 22 | F101: 17102 | K101: 0 | L101: 112
A102: 11 | B102: 17208 | C102: 22 | D102: 17217 | E102: 13 | F102: 17235 | K102: 0 | L102: 121
A103: 11 | B103: 17331 | C103: 11 | D103: 17337 | E103: 22 | F103: 17354 | K103: 0 | L103: 112
A104: 11 | B104: 17491 | C104: 11 | D104: 17495 | E104: 22 | F104: 17506 | K104: 0 | L104: 112
A105: 22 | B105: 17623 | C105: 24 | D105: 17640 | E105: 13 | F105: 17658 | K105: 0 | L105: 221
A106: 11 | B106: 17766 | C106: 22 | D106: 17777 | E106: 13 | F106: 17791 | K106: 0 | L106: 121
A107: 11 | B107: 17900 | C107: 22 | D107: 17909 | E107: 13 | F107: 17922 | K107: 0 | L107: 121
A108: 11 | B108: 18029 | C108: 22 | D108: 18038 | E108: 13 | F108: 18054 | K108: 0 | L108: 121
A109: 11 | B109: 18159 | C109: 22 | D109: 18172 | E109: 13 | F109: 18187 | K109: 0 | L109: 121
A110: 11 | B110: 18286 | C110: 22 | D110: 18294 | E110: 24 | F110: 18303 | K110: 0 | L110: 122
A111: 22 | B111: 18430 | C111: 13 | D111: 18442 | E111: 24 | F111: 18449 | K111: 0 | L111: 212
A112: 11 | B112: 18555 | C112: 11 | D112: 18560 | E112: 22 | F112: 18569 | K112: 0 | L112: 112
A113: 22 | B113: 18695 | C113: 13 | D113: 18710 | E113: 24 | F113: 18719 | K113: 0 | L113: 212
A114: 11 | B114: 18852 | C114: 22 | D114: 18861 | E114: 24 | F114: 18870 | K114: 0 | L114: 122
A115: 11 | B115: 18965 | C115: 11 | D115: 18971 | E115: 22 | F115: 18979 | K115: 0 | L115: 112
A116: 11 | B116: 19088 | C116: 22 | D116: 19096 | E116: 13 | F116: 19112 | K116: 0 | L116: 121
A117: 22 | B117: 19235 | C117: 13 | D117: 19245 | E117: 24 | F117: 19256 | K117: 0 | L117: 212
A118: 22 | B118: 19372 | C118: 24 | D118: 19380 | E118: 13 | F118: 19392 | K118: 0 | L118: 221
A119: 11 | B119: 19588 | C119: 22 | D119: 19597 | E119: 13 | F119: 19615 | K119: 0 | L119: 121
A120: 22 | B120: 19712 | C120: 13 | D120: 19724 | E120: 13 | F120: 19728 | K120: 0 | L120: 211
A121: 11 | B121: 19825 | C121: 11 | D121: 19832 | E121: 11 | F121: 19838 | K121: 0 | L121: 111
A122: 22 | B122: 20003 | C122: 24 | D122: 20011 | E122: 13 | F122: 20022 | K122: 0 | L122: 221
A123: 22 | B123: 20121 | C123: 24 | D123: 20126 | E123: 24 | F123: 20138 | K123: 0 | L123: 222
A124: 11 | B124: 20237 | C124: 11 | D124: 20246 | E124: 22 | F124: 20259 | K124: 0 | L124: 112
A125: 11 | B125: 20366 | C125: 11 | D125: 20370 | E125: 11 | F125: 20375 | K125: 0 | L125: 111
A126: 11 | B126: 20549 | C126: 22 | D126: 20617 | E126: 13 | F126: 20654 | K126: 0 | L126: 121
A127: 22 | B127: 20756 | C127: 24 | D127: 20761 | E127: 13 | F127: 20777 | K127: 0 | L127: 221
A128: 22 | B128: 20875 | C128: 24 | D128: 20885 | E128: 13 | F128: 20896 | K128: 0 | L128: 221
A129: 22 | B129: 20996 | C129: 24 | D129: 21002 | E129: 13 | F129: 21011 | K129: 0 | L129: 221
A130: 22 | B130: 21115 | C130: 13 | D130: 21127 | E130: 24 | F130: 21137 | K130: 0 | L130: 212
A131: 22 | B131: 21239 | C131: 24 | D131: 21242 | E131: 13 | F131: 21254 | K131: 0 | L131: 221
A132: 22 | B132: 21407 | C132: 24 | D132: 21414 | E132: 13 | F132: 21431 | K132: 0 | L132: 221
A133: 11 | B133: 21525 | C133: 22 | D133: 21531 | E133: 13 | F133: 21543 | K133: 0 | L133: 121
A134: 11 | B134: 21637 | C134: 11 | D134: 21641 | E134: 22 | F134: 21651 | K134: 0 | L134: 112
A135: 11 | B135: 21766 | C135: 11 | D135: 21769 | E135: 11 | F135: 21774 | K135: 0 | L135: 111
A136: 22 | B136: 21932 | C136: 24 | D136: 21935 | E136: 13 | F136: 21946 | K136: 0 | L136: 221
A137: 22 | B137: 22050 | C137: 24 | D137: 22053 | E137: 24 | F137: 22058 | K137: 0 | L137: 222
A138: 11 | B138: 22154 | C138: 22 | D138: 22160 | E138: 13 | F138: 22174 | K138: 0 | L138: 121
A139: 22 | B139: 22278 | C139: 24 | D139: 22285 | E139: 13 | F139: 22298 | K139: 0 | L139: 221
A140: 11 | B140: 22396 | C140: 22 | D140: 22406 | E140: 24 | F140: 22414 | K140: 0 | L140: 122
A141: 22 | B141: 22514 | C141: 24 | D141: 22523 | E141: 13 | F141: 22538 | K141: 0 | L141: 221
A142: 22 | B142: 22640 | C142: 24 | D142: 22645 | E142: 24 | F142: 22653 | K142: 0 | L142: 222
A143: 11 | B143: 22746 | C143: 11 | D143: 22750 | E143: 11 | F143: 22755 | K143: 0 | L143: 111
A144: 22 | B144: 22879 | C144: 24 | D144: 22883 | E144: 13 | F144: 22903 | K144: 0 | L144: 221
A145: 22 | B145: 23005 | C145: 24 | D145: 23010 | E145: 13 | F145: 23023 | K145: 0 | L145: 221
A146: 22 | B146: 23123 | C146: 24 | D146: 23128 | E146: 13 | F146: 23139 | K146: 0 | L146: 221
A147: 22 | B147: 23236 | C147: 24 | D147: 23243 | E147: 13 | F147: 23253 | K147: 0 | L147: 221
A148: 11 | B148: 23346 | C148: 22 | D148: 23354 | E148: 24 | F148: 23358 | K148: 0 | L148: 122
A149: 22 | B149: 23464 | C149: 24 | D149: 23468 | E149: 13 | F149: 23484 | K149: 0 | L149: 221
A150: 22 | B150: 23582 | C150: 24 | D150: 23590 | E150: 13 | F150: 23604 | K150: 0 | L150: 221
A151: 22 | B151: 23705 | C151: 24 | D151: 23708 | E151: 13 | F151: 23720 | K151: 0 | L151: 221
A152: 22 | B152: 23823 | C152: 13 | D152: 23839 | E152: 13 | F152: 23846 | K152: 0 | L152: 211
A153: 22 | B153: 23948 | C153: 24 | D153: 23961 | E153: 13 | F153: 23972 | L153: 221

Sheet !M826B3I.sha
A1: Report for:!M826B3I.sha
A2: Date: | B2: <date>
A3: Hen: | B3: <hen> | F3: Correct Sequence | G3: =Start!J2 -> 111 | P3: Total Sequences in Data | Q3: =4994-COUNTBLANK(L7:L5000) -> 125 | V3: Total Sequences in Block Data | W3: =COUNTA(L7:L27) -> 21 | AA3: Total Sequences in Block Data | AB3: =COUNTA(L28:L48) -> 21 | AF3: Total Sequences in Block Data | AG3: =COUNTA(L49:L68) -> 20 | AK3: Total Sequences in Block Data | AL3: =COUNTA(L69:L89) -> 21 | AP3: Total Sequences in Block Data | AQ3: =COUNTA(L90:L110) -> 21 | AU3: Total Sequences in Block Data | AV3: =COUNTA(L111:L131) -> 21
P4: Total Sequences in Summary | Q4: =SUM(O7:O14) -> 125 | V4: Total Sequences in Block Summary | W4: =SUM(U7:U14) -> 21 | AA4: Total Sequences in Block Summary | AB4: =SUM(Z7:Z14) -> 21 | AF4: Total Sequences in Block Summary | AG4: =SUM(AE7:AE14) -> 20 | AK4: Total Sequences in Block Summary | AL4: =SUM(AJ7:AJ14) -> 21 | AP4: Total Sequences in Block Summary | AQ4: =SUM(AO7:AO14) -> 21 | AU4: Total Sequences in Block Summary | AV4: =SUM(AT7:AT14) -> 21
T5: Block 1 | Y5: Block 2 | AD5: Block 3 | AI5: Block 4 | AN5: Block 5 | AS5: Block 6
A6: Sequence Component 1 | B6: Time 1 | C6: Sequence Component 2 | D6: Time 2 | E6: Sequence Component 3 | F6: Time 3 | G6: Sequence Component 4 | H6: Time 4 | I6: Sequence Component 5 | J6: Time 5 | K6: Correct? 0=No 1=Yes | L6: Sequence | N6: Frequency | P6: Relative Frequency | Q6: Variability | T6: Frequency | V6: Relative Frequency | W6: Variability | Y6: Frequency | AA6: Relative Frequency | AB6: Variability | AD6: Frequency | AF6: Relative Frequency | AG6: Variability | AI6: Frequency | AK6: Relative Frequency | AL6: Variability | AN6: Frequency | AP6: Relative Frequency | AQ6: Variability | AS6: Frequency | AU6: Relative Frequency | AV6: Variability
A7: 22 | B7: 11 | C7: 13 | D7: 21 | E7: 24 | F7: 37 | K7: 0 | L7: 212 | N7: 111 | O7: =COUNTIF($L$7:$L$500,N7) -> 40 | P7: =O7/$Q$4 -> 0.32 | Q7: =IF(P7=0,0,(P7*((LOG(P7))/LOG(2)))) -> -0.5260339807 | T7: =N7 -> 111 | U7: =COUNTIF(L7:L27,T7) -> 1 | Y7: =N7 -> 111 | Z7: =COUNTIF(L28:L48,Y7) -> 4 | AD7: =N7 -> 111 | AE7: =COUNTIF(L49:L68,AD7) -> 1 | AI7: =N7 -> 111 | AJ7: =COUNTIF(L69:L89,AI7) -> 5 | AN7: =N7 -> 111 | AO7: =COUNTIF(L90:L110,AN7) -> 9 | AS7: =N7 -> 111 | AT7: =COUNTIF(L111:L131,AS7) -> 20
A8: 22 | B8: 148 | C8: 13 | D8: 162 | E8: 13 | F8: 166 | K8: 0 | L8: 211 | N8: 112 | O8: =COUNTIF($L$7:$L$500,N8) -> 2 | P8: =O8/$Q$4 -> 0.016 | Q8: =IF(P8=0,0,(P8*((LOG(P8))/LOG(2)))) -> -0.09545254855 | T8: =N8 -> 112 | U8: =COUNTIF(L7:L27,T8) -> 0 | V8: =U8/(W4-U7) -> 0 | W8: =IF(V8=0,0,(V8*((LOG(V8))/LOG(2)))) -> 0 | Y8: =N8 -> 112 | Z8: =COUNTIF(L28:L48,Y8) -> 0 | AA8: =Z8/(AB4-Z7) -> 0 | AB8: =IF(AA8=0,0,(AA8*((LOG(AA8))/LOG(2)))) -> 0 | AD8: =N8 -> 112 | AE8: =COUNTIF(L49:L68,AD8) -> 0 | AF8: =AE8/(AG4-AE7) -> 0 | AG8: =IF(AF8=0,0,(AF8*((LOG(AF8))/LOG(2)))) -> 0 | AI8: =N8 -> 112 | AJ8: =COUNTIF(L69:L89,AI8) -> 0 | AK8: =AJ8/(AL4-AJ7) -> 0 | AL8: =IF(AK8=0,0,(AK8*((LOG(AK8))/LOG(2)))) -> 0 | AN8: =N8 -> 112 | AO8: =COUNTIF(L90:L110,AN8) -> 2 | AP8: =AO8/(AQ4-AO7) -> 0.1666666667 | AQ8: =IF(AP8=0,0,(AP8*((LOG(AP8))/LOG(2)))) -> -0.4308270835 | AS8: =N8 -> 112 | AT8: =COUNTIF(L111:L131,AS8) -> 0 | AU8: =AT8/(AV4-AT7) -> 0 | AV8: =IF(AU8=0,0,(AU8*((LOG(AU8))/LOG(2)))) -> 0
A9: 22 | B9: 264 | C9: 24 | D9: 278 | E9: 13 | F9: 288 | K9: 0 | L9: 221 | N9: 121 | O9: =COUNTIF($L$7:$L$500,N9) -> 12 | P9: =O9/$Q$4 -> 0.096 | Q9: =IF(P9=0,0,(P9*((LOG(P9))/LOG(2)))) -> -0.3245588913 | T9: =N9 -> 121 | U9: =COUNTIF(L7:L27,T9) -> 6 | V9: =U9/(W4-U7) -> 0.3 | W9: =IF(V9=0,0,(V9*((LOG(V9))/LOG(2)))) -> -0.5210896782 | Y9: =N9 -> 121 | Z9: =COUNTIF(L28:L48,Y9) -> 1 | AA9: =Z9/(AB4-Z7) -> 0.05882352941 | AB9: =IF(AA9=0,0,(AA9*((LOG(AA9))/LOG(2)))) -> -0.2404389907 | AD9: =N9 -> 121 | AE9: =COUNTIF(L49:L68,AD9) -> 3 | AF9: =AE9/(AG4-AE7) -> 0.1578947368 | AG9: =IF(AF9=0,0,(AF9*((LOG(AF9))/LOG(2)))) -> -0.4204681599 | AI9: =N9 -> 121 | AJ9: =COUNTIF(L69:L89,AI9) -> 1 | AK9: =AJ9/(AL4-AJ7) -> 0.0625 | AL9: =IF(AK9=0,0,(AK9*((LOG(AK9))/LOG(2)))) -> -0.25 | AN9: =N9 -> 121 | AO9: =COUNTIF(L90:L110,AN9) -> 1 | AP9: =AO9/(AQ4-AO7) -> 0.08333333333 | AQ9: =IF(AP9=0,0,(AP9*((LOG(AP9))/LOG(2)))) -> -0.2987468751 | AS9: =N9 -> 121 | AT9: =COUNTIF(L111:L131,AS9) -> 0 | AU9: =AT9/(AV4-AT7) -> 0 | AV9: =IF(AU9=0,0,(AU9*((LOG(AU9))/LOG(2)))) -> 0
A10: 22 | B10: 392 | C10: 24 | D10: 396 | E10: 13 | F10: 410 | K10: 0 | L10: 221 | N10: 122 | O10: =COUNTIF($L$7:$L$500,N10) -> 8 | P10: =O10/$Q$4 -> 0.064 | Q10: =IF(P10=0,0,(P10*((LOG(P10))/LOG(2)))) -> -0.2538101942 | T10: =N10 -> 122 | U10: =COUNTIF(L7:L27,T10) -> 3 | V10: =U10/(W4-U7) -> 0.15 | W10: =IF(V10=0,0,(V10*((LOG(V10))/LOG(2)))) -> -0.4105448391 | Y10: =N10 -> 122 | Z10: =COUNTIF(L28:L48,Y10) -> 0 | AA10: =Z10/(AB4-Z7) -> 0 | AB10: =IF(AA10=0,0,(AA10*((LOG(AA10))/LOG(2)))) -> 0 | AD10: =N10 -> 122 | AE10: =COUNTIF(L49:L68,AD10) -> 3 | AF10: =AE10/(AG4-AE7) -> 0.1578947368 | AG10: =IF(AF10=0,0,(AF10*((LOG(AF10))/LOG(2)))) -> -0.4204681599 | AI10: =N10 -> 122 | AJ10: =COUNTIF(L69:L89,AI10) -> 1 | AK10: =AJ10/(AL4-AJ7) -> 0.0625 | AL10: =IF(AK10=0,0,(AK10*((LOG(AK10))/LOG(2)))) -> -0.25 | AN10: =N10 -> 122 | AO10: =COUNTIF(L90:L110,AN10) -> 1 | AP10: =AO10/(AQ4-AO7) -> 0.08333333333 | AQ10: =IF(AP10=0,0,(AP10*((LOG(AP10))/LOG(2)))) -> -0.2987468751 | AS10: =N10 -> 122 | AT10: =COUNTIF(L111:L131,AS10) -> 0 | AU10: =AT10/(AV4-AT7) -> 0 | AV10: =IF(AU10=0,0,(AU10*((LOG(AU10))/LOG(2)))) -> 0
A11: 11 | B11: 507 | C11: 22 | D11: 509 | E11: 13 | F11: 520 | K11: 0 | L11: 121 | N11: 211 | O11: =COUNTIF($L$7:$L$500,N11) -> 18 | P11: =O11/$Q$4 -> 0.144 | Q11: =IF(P11=0,0,(P11*((LOG(P11))/LOG(2)))) -> -0.4026037368 | T11: =N11 -> 211 | U11: =COUNTIF(L7:L27,T11) -> 4 | V11: =U11/(W4-U7) -> 0.2 | W11: =IF(V11=0,0,(V11*((LOG(V11))/LOG(2)))) -> -0.464385619 | Y11: =N11 -> 211 | Z11: =COUNTIF(L28:L48,Y11) -> 2 | AA11: =Z11/(AB4-Z7) -> 0.1176470588 | AB11: =IF(AA11=0,0,(AA11*((LOG(AA11))/LOG(2)))) -> -0.3632309225 | AD11: =N11 -> 211 | AE11: =COUNTIF(L49:L68,AD11) -> 3 | AF11: =AE11/(AG4-AE7) -> 0.1578947368 | AG11: =IF(AF11=0,0,(AF11*((LOG(AF11))/LOG(2)))) -> -0.4204681599 | AI11: =N11 -> 211 | AJ11: =COUNTIF(L69:L89,AI11) -> 4 | AK11: =AJ11/(AL4-AJ7) -> 0.25 | AL11: =IF(AK11=0,0,(AK11*((LOG(AK11))/LOG(2)))) -> -0.5 | AN11: =N11 -> 211 | AO11: =COUNTIF(L90:L110,AN11) -> 5 | AP11: =AO11/(AQ4-AO7) -> 0.4166666667 | AQ11: =IF(AP11=0,0,(AP11*((LOG(AP11))/LOG(2)))) -> -0.5262643358 | AS11: =N11 -> 211 | AT11: =COUNTIF(L111:L131,AS11) -> 0 | AU11: =AT11/(AV4-AT7) -> 0 | AV11: =IF(AU11=0,0,(AU11*((LOG(AU11))/LOG(2)))) -> 0
A12: 22 | B12: 1611 | C12: 24 | D12: 1667 | E12: 24 | F12: 1678 | K12: 0 | L12: 222 | N12: 212 | O12: =COUNTIF($L$7:$L$500,N12) -> 6 | P12: =O12/$Q$4 -> 0.048 | Q12: =IF(P12=0,0,(P12*((LOG(P12))/LOG(2)))) -> -0.2102794456 | T12: =N12 -> 212 | U12: =COUNTIF(L7:L27,T12) -> 2 | V12: =U12/(W4-U7) -> 0.1 | W12: =IF(V12=0,0,(V12*((LOG(V12))/LOG(2)))) -> -0.3321928095 | Y12: =N12 -> 212 | Z12: =COUNTIF(L28:L48,Y12) -> 1 | AA12: =Z12/(AB4-Z7) -> 0.05882352941 | AB12: =IF(AA12=0,0,(AA12*((LOG(AA12))/LOG(2)))) -> -0.2404389907 | AD12: =N12 -> 212 | AE12: =COUNTIF(L49:L68,AD12) -> 2 | AF12: =AE12/(AG4-AE7) -> 0.1052631579 | AG12: =IF(AF12=0,0,(AF12*((LOG(AF12))/LOG(2)))) -> -0.3418871067 | AI12: =N12 -> 212 | AJ12: =COUNTIF(L69:L89,AI12) -> 1 | AK12: =AJ12/(AL4-AJ7) -> 0.0625 | AL12: =IF(AK12=0,0,(AK12*((LOG(AK12))/LOG(2)))) -> -0.25 | AN12: =N12 -> 212 | AO12: =COUNTIF(L90:L110,AN12) -> 0 | AP12: =AO12/(AQ4-AO7) -> 0 | AQ12: =IF(AP12=0,0,(AP12*((LOG(AP12))/LOG(2)))) -> 0 | AS12: =N12 -> 212 | AT12: =COUNTIF(L111:L131,AS12) -> 0 | AU12: =AT12/(AV4-AT7) -> 0 | AV12: =IF(AU12=0,0,(AU12*((LOG(AU12))/LOG(2)))) -> 0
A13: 11 | B13: 1771 | C13: 22 | D13: 1781 | E13: 24 | F13: 1785 | K13: 0 | L13: 122 | N13: 221 | O13: =COUNTIF($L$7:$L$500,N13) -> 26 | P13: =O13/$Q$4 -> 0.208 | Q13: =IF(P13=0,0,(P13*((LOG(P13))/LOG(2)))) -> -0.4711916698 | T13: =N13 -> 221 | U13: =COUNTIF(L7:L27,T13) -> 3 | V13: =U13/(W4-U7) -> 0.15 | W13: =IF(V13=0,0,(V13*((LOG(V13))/LOG(2)))) -> -0.4105448391 | Y13: =N13 -> 221 | Z13: =COUNTIF(L28:L48,Y13) -> 9 | AA13: =Z13/(AB4-Z7) -> 0.5294117647 | AB13: =IF(AA13=0,0,(AA13*((LOG(AA13))/LOG(2)))) -> -0.485755327 | AD13: =N13 -> 221 | AE13: =COUNTIF(L49:L68,AD13) -> 6 | AF13: =AE13/(AG4-AE7) -> 0.3157894737 | AG13: =IF(AF13=0,0,(AF13*((LOG(AF13))/LOG(2)))) -> -0.5251468461 | AI13: =N13 -> 221 | AJ13: =COUNTIF(L69:L89,AI13) -> 7 | AK13: =AJ13/(AL4-AJ7) -> 0.4375 | AL13: =IF(AK13=0,0,(AK13*((LOG(AK13))/LOG(2)))) -> -0.5217822216 | AN13: =N13 -> 221 | AO13: =COUNTIF(L90:L110,AN13) -> 0 | AP13: =AO13/(AQ4-AO7) -> 0 | AQ13: =IF(AP13=0,0,(AP13*((LOG(AP13))/LOG(2)))) -> 0 | AS13: =N13 -> 221 | AT13: =COUNTIF(L111:L131,AS13) -> 1 | AU13: =AT13/(AV4-AT7) -> 1 | AV13: =IF(AU13=0,0,(AU13*((LOG(AU13))/LOG(2)))) -> 0
A14: 22 | B14: 1903 | C14: 13 | D14: 1914 | E14: 24 | F14: 1923 | K14: 0 | L14: 212 | N14: 222 | O14: =COUNTIF($L$7:$L$500,N14) -> 13 | P14: =O14/$Q$4 -> 0.104 | Q14: =IF(P14=0,0,(P14*((LOG(P14))/LOG(2)))) -> -0.3395958349 | T14: =N14 -> 222 | U14: =COUNTIF(L7:L27,T14) -> 2 | V14: =U14/(W4-U7) -> 0.1 | W14: =IF(V14=0,0,(V14*((LOG(V14))/LOG(2)))) -> -0.3321928095 | Y14: =N14 -> 222 | Z14: =COUNTIF(L28:L48,Y14) -> 4 | AA14: =Z14/(AB4-Z7) -> 0.2352941176 | AB14: =IF(AA14=0,0,(AA14*((LOG(AA14))/LOG(2)))) -> -0.4911677274 | AD14: =N14 -> 222 | AE14: =COUNTIF(L49:L68,AD14) -> 2 | AF14: =AE14/(AG4-AE7) -> 0.1052631579 | AG14: =IF(AF14=0,0,(AF14*((LOG(AF14))/LOG(2)))) -> -0.3418871067 | AI14: =N14 -> 222 | AJ14: =COUNTIF(L69:L89,AI14) -> 2 | AK14: =AJ14/(AL4-AJ7) -> 0.125 | AL14: =IF(AK14=0,0,(AK14*((LOG(AK14))/LOG(2)))) -> -0.375 | AN14: =N14 -> 222 | AO14: =COUNTIF(L90:L110,AN14) -> 3 | AP14: =AO14/(AQ4-AO7) -> 0.25 | AQ14: =IF(AP14=0,0,(AP14*((LOG(AP14))/LOG(2)))) -> -0.5 | AS14: =N14 -> 222 | AT14: =COUNTIF(L111:L131,AS14) -> 0 | AU14: =AT14/(AV4-AT7) -> 0 | AV14: =IF(AU14=0,0,(AU14*((LOG(AU14))/LOG(2)))) -> 0
A15: 11 | B15: 2018 | C15: 22 | D15: 2028 | E15: 13 | F15: 2041 | K15: 0 | L15: 121 | P15: =SUM(P7:P14) -> 1 | Q15: =-SUM(Q7:Q14) -> 2.623526302 | V15: =SUM(V7:V14) -> 1 | W15: =-SUM(W7:W14) -> 2.470950594 | AA15: =SUM(AA7:AA14) -> 1 | AB15: =-SUM(AB7:AB14) -> 1.821031958 | AF15: =SUM(AF7:AF14) -> 1 | AG15: =-SUM(AG7:AG14) -> 2.470325539 | AK15: =SUM(AK7:AK14) -> 1 | AL15: =-SUM(AL7:AL14) -> 2.146782222 | AP15: =SUM(AP7:AP14) -> 1 | AQ15: =-SUM(AQ7:AQ14) -> 2.054585169 | AU15: =SUM(AU7:AU14) -> 1 | AV15: =-SUM(AV7:AV14) -> 0
A16: 11 | B16: 2138 | C16: 22 | D16: 2149 | E16: 24 | F16: 2158 | K16: 0 | L16: 122 | P16: U= | Q16: =Q15/(LOG(Q4)/LOG(2)) -> 0.3766304259 | V16: U1= | W16: =W15/(LOG(W4)/LOG(2)) -> 0.5625619364 | AA16: U2= | AB16: =AB15/(LOG(AB4)/LOG(2)) -> 0.4145947988 | AF16: U3= | AG16: =AG15/(LOG(AG4)/LOG(2)) -> 0.5715795092 | AK16: U4= | AL16: =AL15/(LOG(AL4)/LOG(2)) -> 0.4887584423 | AP16: U5= | AQ16: =AQ15/(LOG(AQ4)/LOG(2)) -> 0.4677679165 | AU16: U6= | AV16: =AV15/(LOG(AV4)/LOG(2)) -> 0
A17: 11 | B17: 2275 | C17: 22 | D17: 2286 | E17: 24 | F17: 2294 | K17: 0 | L17: 122
A18: 22 | B18: 2408 | C18: 13 | D18: 2419 | E18: 13 | F18: 2426 | K18: 0 | L18: 211
A19: 22 | B19: 2525 | C19: 13 | D19: 2537 | E19: 13 | F19: 2545 | K19: 0 | L19: 211 | N19: Total Target Seq
A20: 11 | B20: 2644 | C20: 22 | D20: 2647 | E20: 13 | F20: 2658 | K20: 0 | L20: 121 | N20: =COUNTIF(L7:L131,G3) -> 40 | P20: 21 | Q20: 21 | R20: 20 | S20: 21 | T20: 21 | U20: 21
A21: 11 | B21: 2750 | C21: 22 | D21: 2760 | E21: 13 | F21: 2771 | K21: 0 | L21: 121 | P21: % of reinforcement given in 6 equal intervals based on number of trials
A22: 11 | B22: 2912 | C22: 22 | D22: 2926 | E22: 13 | F22: 2938 | K22: 0 | L22: 121 | P22: %_1 | Q22: %_2 | R22: %_3 | S22: %_4 | T22: %_5 | U22: %_6
A23: 11 | B23: 3035 | C23: 22 | D23: 3044 | E23: 13 | F23: 3058 | K23: 0 | L23: 121 | O23: target sequence | P23: =$G$3 -> 111 | Q23: =$G$3 -> 111 | R23: =$G$3 -> 111 | S23: =$G$3 -> 111 | T23: =$G$3 -> 111 | U23: =$G$3 -> 111
A24: 22 | B24: 3168 | C24: 24 | D24: 3175 | E24: 24 | F24: 3185 | K24: 0 | L24: 222 | O24: total reinforcement | P24: =U7 -> 1 | Q24: =Z7 -> 4 | R24: =AE7 -> 1 | S24: =AJ7 -> 5 | T24: =AO7 -> 9 | U24: =AT7 -> 20
A25: 22 | B25: 3283 | C25: 13 | D25: 3294 | E25: 13 | F25: 3296 | K25: 0 | L25: 211 | O25: % target
A26: 11 | B26: 3392 | C26: 11 | D26: 3396 | E26: 11 | F26: 3401 | K26: 0 | L26: 111 | O26: CCRF
A27: 22 | B27: 3691 | C27: 24 | D27: 3699 | E27: 13 | F27: 3710 | K27: 0 | L27: 221 | O27: % CCRf
A28: 22 | B28: 3811 | C28: 24 | D28: 3828 | E28: 13 | F28: 3844 | K28: 0 | L28: 221 | O28: average response rate | P28: =F27/P20 -> 176.6666667 | Q28: =(F48-F27)/Q20 -> 128.047619 | R28: =(F68-F48)/R20 -> 118 | S28: =(F89-F68)/S20 -> 133 | T28: =(F110-F89)/T20 -> 127.1904762 | U28: =(F131-F110)/U20 -> 144.1904762
A29: 22 | B29: 3942 | C29: 24 | D29: 3947 | E29: 24 | F29: 3959 | K29: 0 | L29: 222
A30: 11 | B30: 4056 | C30: 22 | D30: 4069 | E30: 13 | F30: 4080 | K30: 0 | L30: 121
A31: 22 | B31: 4179 | C31: 24 | D31: 4188 | E31: 13 | F31: 4208 | K31: 0 | L31: 221
A32: 22 | B32: 4307 | C32: 24 | D32: 4310 | E32: 24 | F32: 4319 | K32: 0 | L32: 222
A33: 22 | B33: 4440 | C33: 24 | D33: 4444 | E33: 13 | F33: 4460 | K33: 0 | L33: 221
A34: 22 | B34: 4566 | C34: 24 | D34: 4571 | E34: 13 | F34: 4589 | K34: 0 | L34: 221
A35: 22 | B35: 4684 | C35: 13 | D35: 4696 | E35: 13 | F35: 4703 | K35: 0 | L35: 211
A36: 11 | B36: 4805 | C36: 11 | D36: 4808 | E36: 11 | F36: 4812 | K36: 0 | L36: 111
A37: 22 | B37: 5021 | C37: 13 | D37: 5033 | E37: 24 | F37: 5108 | K37: 0 | L37: 212
A38: 22 | B38: 5204 | C38: 13 | D38: 5216 | E38: 13 | F38: 5220 | K38: 0 | L38: 211
A39: 11 | B39: 5316 | C39: 11 | D39: 5319 | E39: 11 | F39: 5328 | K39: 0 | L39: 111
A40: 22 | B40: 5441 | C40: 24 | D40: 5446 | E40: 13 | F40: 5464 | K40: 0 | L40: 221
A41: 22 | B41: 5562 | C41: 24 | D41: 5567 | E41: 24 | F41: 5584 | K41: 0 | L41: 222
A42: 22 | B42: 5685 | C42: 24 | D42: 5688 | E42: 13 | F42: 5700 | K42: 0 | L42: 221
A43: 11 | B43: 5798 | C43: 11 | D43: 5804 | E43: 11 | F43: 5810 | K43: 0 | L43: 111
A44: 22 | B44: 5944 | C44: 24 | D44: 5948 | E44: 13 | F44: 5960 | K44: 0 | L44: 221
A45: 22 | B45: 6058 | C45: 24 | D45: 6063 | E45: 13 | F45: 6074 | K45: 0 | L45: 221
A46: 11 | B46: 6170 | C46: 11 | D46: 6176 | E46: 11 | F46: 6181 | K46: 0 | L46: 111
A47: 22 | B47: 6276 | C47: 24 | D47: 6279 | E47: 24 | F47: 6283 | K47: 0 | L47: 222
A48: 22 | B48: 6381 | C48: 24 | D48: 6383 | E48: 13 | F48: 6399 | K48: 0 | L48: 221
A49: 11 | B49: 6499 | C49: 11 | D49: 6503 | E49: 11 | F49: 6508 | K49: 0 | L49: 111
A50: 22 | B50: 6600 | C50: 24 | D50: 6604 | E50: 24 | F50: 6608 | K50: 0 | L50: 222
A51: 22 | B51: 6710 | C51: 24 | D51: 6712 | E51: 24 | F51: 6716 | K51: 0 | L51: 222
A52: 11 | B52: 6808 | C52: 22 | D52: 6817 | E52: 24 | F52: 6821 | K52: 0 | L52: 122
A53: 22 | B53: 6921 | C53: 24 | D53: 6926 | E53: 13 | F53: 6935 | K53: 0 | L53: 221
A54: 11 | B54: 7030 | C54: 22 | D54: 7042 | E54: 13 | F54: 7054 | K54: 0 | L54: 121
A55: 22 | B55: 7173 | C55: 13 | D55: 7185 | E55: 24 | F55: 7201 | K55: 0 | L55: 212
A56: 11 | B56: 7294 | C56: 22 | D56: 7302 | E56: 24 | F56: 7307 | K56: 0 | L56: 122
A57: 22 | B57: 7406 | C57: 24 | D57: 7409 | E57: 13 | F57: 7422 | K57: 0 | L57: 221
A58: 11 | B58: 7514 | C58: 22 | D58: 7527 | E58: 24 | F58: 7532 | K58: 0 | L58: 122
A59: 22 | B59: 7637 | C59: 24 | D59: 7645 | E59: 13 | F59: 7657 | K59: 0 | L59: 221
A60: 22 | B60: 7759 | C60: 13 | D60: 7772 | E60: 13 | F60: 7777 | K60: 0 | L60: 211
A61: 22 | B61: 7877 | C61: 13 | D61: 7889 | E61: 13 | F61: 7894 | K61: 0 | L61: 211
A62: 11 | B62: 8005 | C62: 22 | D62: 8019 | E62: 13 | F62: 8040 | K62: 0 | L62: 121
A63: 22 | B63: 8140 | C63: 13 | D63: 8151 | E63: 24 | F63: 8163 | K63: 0 | L63: 212
A64: 22 | B64: 8263 | C64: 24 | D64: 8267 | E64: 13 | F64: 8283 | K64: 0 | L64: 221
A65: 22 | B65: 8381 | C65: 24 | D65: 8388 | E65: 13 | F65: 8398 | K65: 0 | L65: 221
A66: 11 | B66: 8496 | C66: 22 | D66: 8511 | E66: 13 | F66: 8522 | K66: 0 | L66: 121
A67: 22 | B67: 8624 | C67: 13 | D67: 8635 | E67: 13 | F67: 8640 | K67: 0 | L67: 211
A68: 22 | B68: 8740 | C68: 24 | D68: 8745 | E68: 13 | F68: 8759 | K68: 0 | L68: 221
A69: 22 | B69: 8858 | C69: 24 | D69: 8862 | E69: 13 | F69: 8874 | K69: 0 | L69: 221
A70: 11 | B70: 8966 | C70: 22 | D70: 8976 | E70: 13 | F70: 8986 | K70: 0 | L70: 121
A71: 11 | B71: 9082 | C71: 11 | D71: 9086 | E71: 11 | F71: 9091 | K71: 0 | L71: 111
A72: 22 | B72: 9250 | C72: 24 | D72: 9255 | E72: 24 | F72: 9263 | K72: 0 | L72: 222
A73: 22 | B73: 9364 | C73: 13 | D73: 9378 | E73: 13 | F73: 9386 | K73: 0 | L73: 211
A74: 22 | B74: 9489 | C74: 13 | D74: 9506 | E74: 13 | F74: 9515 | K74: 0 | L74: 211
A75: 22 | B75: 9619 | C75: 24 | D75: 9623 | E75: 13 | F75: 9633 | K75: 0 | L75: 221
A76: 11 | B76: 9728 | C76: 11 | D76: 9731 | E76: 11 | F76: 9736 | K76: 0 | L76: 111
A77: 22 | B77: 9901 | C77: 24 | D77: 9908 | E77: 24 | F77: 9921 | K77: 0 | L77: 222
A78: 22 | B78: 10021 | C78: 24 | D78: 10023 | E78: 13 | F78: 10037 | K78: 0 | L78: 221
A79: 11 | B79: 10132 | C79: 11 | D79: 10134 | E79: 11 | F79: 10141 | K79: 0 | L79: 111
A80: 22 | B80: 10265 | C80: 13 | D80: 10289 | E80: 13 | F80: 10403 | K80: 0 | L80: 211
A81: 22 | B81: 10504 | C81: 24 | D81: 10508 | E81: 13 | F81: 10522 | K81: 0 | L81: 221
A82: 22 | B82: 10621 | C82: 24 | D82: 10629 | E82: 13 | F82: 10641 | K82: 0 | L82: 221
A83: 11 | B83: 10738 | C83: 11 | D83: 10742 | E83: 11 | F83: 10748 | K83: 0 | L83: 111
A84: 22 | B84: 10863 | C84: 13 | D84: 10886 | E84: 24 | F84: 10962 | K84: 0 | L84: 212
A85: 22 | B85: 11062 | C85: 13 | D85: 11075 | E85: 13 | F85: 11082 | K85: 0 | L85: 211
A86: 11 | B86: 11174 | C86: 22 | D86: 11182 | E86: 24 | F86: 11187 | K86: 0 | L86: 122
A87: 11 | B87: 11293 | C87: 11 | D87: 11300 | E87: 11 | F87: 11310 | K87: 0 | L87: 111
A88: 22 | B88: 11408 | C88: 24 | D88: 11417 | E88: 13 | F88: 11437 | K88: 0 | L88: 221
A89: 22 | B89: 11538 | C89: 24 | D89: 11542 | E89: 13 | F89: 11552 | K89: 0 | L89: 221
A90: 22 | B90: 11649 | C90: 24 | D90: 11654 | E90: 24 | F90: 11659 | K90: 0 | L90: 222
A91: 11 | B91: 11754 | C91: 11 | D91: 11757 | E91: 11 | F91: 11764 | K91: 0 | L91: 111
A92: 11 | B92: 11896 | C92: 11 | D92: 11905 | E92: 11 | F92: 11914 | K92: 0 | L92: 111
A93: 22 | B93: 12073 | C93: 13 | D93: 12087 | E93: 13 | F93: 12098 | K93: 0 | L93: 211
A94: 22 | B94: 12197 | C94: 24 | D94: 12199 | E94: 24 | F94: 12204 | K94: 0 | L94: 222
A95: 22 | B95: 12304 | C95: 13 | D95: 12314 | E95: 13 | F95: 12321 | K95: 0 | L95: 211
A96: 22 | B96: 12417 | C96: 24 | D96: 12420 | E96: 24 | F96: 12427 | K96: 0 | L96: 222
A97: 11 | B97: 12524 | C97: 11 | D97: 12526 | E97: 11 | F97: 12531 | K97: 0 | L97: 111
A98: 11 | B98: 12633 | C98: 11 | D98: 12653 | E98: 11 | F98: 12669 | K98: 0 | L98: 111
A99: 22 | B99: 12781 | C99: 13 | D99: 12799 | E99: 13 | F99: 12812 | K99: 0 | L99: 211
A100: 22 | B100: 12912 | C100: 13 | D100: 12923 | E100: 13 | F100: 12931 | K100: 0 | L100: 211
A101: 11 | B101: 13025 | C101: 22 | D101: 13035 | E101: 24 | F101: 13040 | K101: 0 | L101: 122
A102: 11 | B102: 13137 | C102: 11 | D102: 13139 | E102: 11 | F102: 13145 | K102: 0 | L102: 111
A103: 11 | B103: 13245 | C103: 11 | D103: 13254 | E103: 11 | F103: 13264 | K103: 0 | L103: 111
A104: 11 | B104: 13373 | C104: 11 | D104: 13376 | E104: 22 | F104: 13388 | K104: 0 | L104: 112
A105: 11 | B105: 13483 | C105: 11 | D105: 13489 | E105: 11 | F105: 13495 | K105: 0 | L105: 111
A106: 11 | B106: 13635 | C106: 11 | D106: 13645 | E106: 22 | F106: 13659 | K106: 0 | L106: 112
A107: 11 | B107: 13761 | C107: 11 | D107: 13767 | E107: 11 | F107: 13774 | K107: 0 | L107: 111
A108: 22 | B108: 13873 | C108: 13 | D108: 13907 | E108: 13 | F108: 14000 | K108: 0 | L108: 211
A109: 11 | B109: 14095 | C109: 22 | D109: 14104 | E109: 13 | F109: 14116 | K109: 0 | L109: 121
A110: 11 | B110: 14212 | C110: 11 | D110: 14216 | E110: 11 | F110: 14223 | K110: 0 | L110: 111
A111: 11 | B111: 14316 | C111: 11 | D111: 14334 | E111: 11 | F111: 14343 | K111: 0 | L111: 111
A112: 22 | B112: 14439 | C112: 24 | D112: 14444 | E112: 13 | F112: 14468 | K112: 0 | L112: 221
A113: 11 | B113: 14564 | C113: 11 | D113: 14568 | E113: 11 | F113: 14576 | K113: 0 | L113: 111
A114: 11 | B114: 14677 | C114: 11 | D114: 14685 | E114: 11 | F114: 14699 | K114: 0 | L114: 111
A115: 11 | B115: 14788 | C115: 11 | D115: 14791 | E115: 11 | F115: 14802 | K115: 0 | L115: 111
A116: 11 | B116: 14942 | C116: 11 | D116: 14946 | E116: 11 | F116: 14954 | K116: 0 | L116: 111
A117: 11 | B117: 15076 | C117: 11 | D117: 15088 | E117: 11 | F117: 15104 | K117: 0 | L117: 111
A118: 11 | B118: 15250 | C118: 11 | D118: 15261 | E118: 11 | F118: 15268 | K118: 0 | L118: 111
A119: 11 | B119: 15405 | C119: 11 | D119: 15416 | E119: 11 | F119: 15430 | K119: 0 | L119: 111
A120: 11 | B120: 15523 | C120: 11 | D120: 15530 | E120: 11 | F120: 15536 | K120: 0 | L120: 111
A121: 11 | B121: 15630 | C121: 11 | D121: 15647 | E121: 11 | F121: 15660 | K121: 0 | L121: 111
A122: 11 | B122: 15790 | C122: 11 | D122: 15796 | E122: 11 | F122: 15801 | K122: 0 | L122: 111
A123: 11 | B123: 16021 | C123: 11 | D123: 16026 | E123: 11 | F123: 16033 | K123: 0 | L123: 111
A124: 11 | B124: 16124 | C124: 11 | D124: 16132 | E124: 11 | F124: 16143 | K124: 0 | L124: 111
A125: 11 | B125: 16282 | C125: 11 | D125: 16289 | E125: 11 | F125: 16300 | K125: 0 | L125: 111
A126: 11 | B126: 16459 | C126: 11 | D126: 16468 | E126: 11 | F126: 16478 | K126: 0 | L126: 111
A127: 11 | B127: 16588 | C127: 11 | D127: 16607 | E127: 11 | F127: 16619 | K127: 0 | L127: 111
A128: 11 | B128: 16766 | C128: 11 | D128: 16772 | E128: 11 | F128: 16779 | K128: 0 | L128: 111
A129: 11 | B129: 16917 | C129: 11 | D129: 16927 | E129: 11 | F129: 16934 | K129: 0 | L129: 111
A130: 11 | B130: 17072 | C130: 11 | D130: 17079 | E130: 11 | F130: 17088 | K130: 0 | L130: 111
A131: 11 | B131: 17226 | C131: 11 | D131: 17237 | E131: 11 | F131: 17251 | K131: 1 | L131: 111

Sheet !M827B4I.sha
A1: Report for:!M827B4I.sha
A2: Date: | B2: <date>
A3: Hen: | B3: <hen> | F3: Correct Sequence | G3: =Start!J2 -> 111 | P3: Total Sequences in Data | Q3: =4994-COUNTBLANK(L7:L5000) -> 55 | V3: Total Sequences in Block Data | W3: =COUNTA(L7:L15) -> 9 | AA3: Total Sequences in Block Data | AB3: =COUNTA(L16:L24) -> 9 | AF3: Total Sequences in Block Data | AG3: =COUNTA(L25:L34) -> 10 | AK3: Total Sequences in Block Data | AL3: =COUNTA(L35:L43) -> 9 | AP3: Total Sequences in Block Data | AQ3: =COUNTA(L44:L52) -> 9 | AU3: Total Sequences in Block Data | AV3: =COUNTA(L53:L61) -> 9
P4: Total Sequences in Summary | Q4: =SUM(O7:O14) -> 55 | V4: Total Sequences in Block Summary | W4: =SUM(U7:U14) -> 9 | AA4: Total Sequences in Block Summary | AB4: =SUM(Z7:Z14) -> 9 | AF4: Total Sequences in Block Summary | AG4: =SUM(AE7:AE14) -> 10 | AK4: Total Sequences in Block Summary | AL4: =SUM(AJ7:AJ14) -> 9 | AP4: Total Sequences in Block Summary | AQ4: =SUM(AO7:AO14) -> 9 | AU4: Total Sequences in Block Summary | AV4: =SUM(AT7:AT14) -> 9
T5: Block 1 | Y5: Block 2 | AD5: Block 3 | AI5: Block 4 | AN5: Block 5 | AS5: Block 6
A6: Sequence Component 1 | B6: Time 1 | C6: Sequence Component 2 | D6: Time 2 | E6: Sequence Component 3 | F6: Time 3 | G6: Sequence Component 4 | H6: Time 4 | I6: Sequence Component 5 | J6: Time 5 | K6: Correct? 0=No 1=Yes | L6: Sequence | N6: Frequency | P6: Relative Frequency | Q6: Variability | T6: Frequency | V6: Relative Frequency | W6: Variability | Y6: Frequency | AA6: Relative Frequency | AB6: Variability | AD6: Frequency | AF6: Relative Frequency | AG6: Variability | AI6: Frequency | AK6: Relative Frequency | AL6: Variability | AN6: Frequency | AP6: Relative Frequency | AQ6: Variability | AS6: Frequency | AU6: Relative Frequency | AV6: Variability
A7: 11 | B7: 49 | C7: 22 | D7: 57 | E7: 13 | F7: 76 | K7: 0 | L7: 121 | N7: 111 | O7: =COUNTIF($L$7:$L$500,N7) -> 40 | P7: =O7/$Q$4 -> 0.7272727273 | Q7: =IF(P7=0,0,(P7*((LOG(P7))/LOG(2)))) -> -0.3341320863 | T7: =N7 -> 111 | U7: =COUNTIF(L7:L15,T7) -> 2 | Y7: =N7 -> 111 | Z7: =COUNTIF(L16:L24,Y7) -> 2 | AD7: =N7 -> 111 | AE7: =COUNTIF(L25:L34,AD7) -> 9 | AI7: =N7 -> 111 | AJ7: =COUNTIF(L35:L43,AI7) -> 9 | AN7: =N7 -> 111 | AO7: =COUNTIF(L44:L52,AN7) -> 9 | AS7: =N7 -> 111 | AT7: =COUNTIF(L53:L61,AS7) -> 9
A8: 22 | B8: 178 | C8: 13 | D8: 190 | E8: 13 | F8: 197 | K8: 0 | L8: 211 | N8: 112 | O8: =COUNTIF($L$7:$L$500,N8) -> 2 | P8: =O8/$Q$4 -> 0.03636363636 | Q8: =IF(P8=0,0,(P8*((LOG(P8))/LOG(2)))) -> -0.1738676259 | T8: =N8 -> 112 | U8: =COUNTIF(L7:L15,T8) -> 0 | V8: =U8/(W4-U7) -> 0 | W8: =IF(V8=0,0,(V8*((LOG(V8))/LOG(2)))) -> 0 | Y8: =N8 -> 112 | Z8: =COUNTIF(L16:L24,Y8) -> 2 | AA8: =Z8/(AB4-Z7) -> 0.2857142857 | AB8: =IF(AA8=0,0,(AA8*((LOG(AA8))/LOG(2)))) -> -0.5163871206 | AD8: =N8 -> 112 | AE8: =COUNTIF(L25:L34,AD8) -> 0 | AF8: =AE8/(AG4-AE7) -> 0 | AG8: =IF(AF8=0,0,(AF8*((LOG(AF8))/LOG(2)))) -> 0 | AI8: =N8 -> 112 | AJ8: =COUNTIF(L35:L43,AI8) -> 0 | AK8: =AJ8/(AL4-AJ7) ->  | AL8: =IF(AK8=0,0,(AK8*((LOG(AK8))/LOG(2)))) ->  | AN8: =N8 -> 112 | AO8: =COUNTIF(L44:L52,AN8) -> 0 | AP8: =AO8/(AQ4-AO7) ->  | AQ8: =IF(AP8=0,0,(AP8*((LOG(AP8))/LOG(2)))) ->  | AS8: =N8 -> 112 | AT8: =COUNTIF(L53:L61,AS8) -> 0 | AU8: =AT8/(AV4-AT7) ->  | AV8: =IF(AU8=0,0,(AU8*((LOG(AU8))/LOG(2)))) -> 
A9: 11 | B9: 296 | C9: 11 | D9: 300 | E9: 11 | F9: 305 | K9: 0 | L9: 111 | N9: 121 | O9: =COUNTIF($L$7:$L$500,N9) -> 1 | P9: =O9/$Q$4 -> 0.01818181818 | Q9: =IF(P9=0,0,(P9*((LOG(P9))/LOG(2)))) -> -0.1051156312 | T9: =N9 -> 121 | U9: =COUNTIF(L7:L15,T9) -> 1 | V9: =U9/(W4-U7) -> 0.1428571429 | W9: =IF(V9=0,0,(V9*((LOG(V9))/LOG(2)))) -> -0.4010507032 | Y9: =N9 -> 121 | Z9: =COUNTIF(L16:L24,Y9) -> 0 | AA9: =Z9/(AB4-Z7) -> 0 | AB9: =IF(AA9=0,0,(AA9*((LOG(AA9))/LOG(2)))) -> 0 | AD9: =N9 -> 121 | AE9: =COUNTIF(L25:L34,AD9) -> 0 | AF9: =AE9/(AG4-AE7) -> 0 | AG9: =IF(AF9=0,0,(AF9*((LOG(AF9))/LOG(2)))) -> 0 | AI9: =N9 -> 121 | AJ9: =COUNTIF(L35:L43,AI9) -> 0 | AK9: =AJ9/(AL4-AJ7) ->  | AL9: =IF(AK9=0,0,(AK9*((LOG(AK9))/LOG(2)))) ->  | AN9: =N9 -> 121 | AO9: =COUNTIF(L44:L52,AN9) -> 0 | AP9: =AO9/(AQ4-AO7) ->  | AQ9: =IF(AP9=0,0,(AP9*((LOG(AP9))/LOG(2)))) ->  | AS9: =N9 -> 121 | AT9: =COUNTIF(L53:L61,AS9) -> 0 | AU9: =AT9/(AV4-AT7) ->  | AV9: =IF(AU9=0,0,(AU9*((LOG(AU9))/LOG(2)))) -> 
A10: 22 | B10: 510 | C10: 24 | D10: 519 | E10: 13 | F10: 534 | K10: 0 | L10: 221 | N10: 122 | O10: =COUNTIF($L$7:$L$500,N10) -> 1 | P10: =O10/$Q$4 -> 0.01818181818 | Q10: =IF(P10=0,0,(P10*((LOG(P10))/LOG(2)))) -> -0.1051156312 | T10: =N10 -> 122 | U10: =COUNTIF(L7:L15,T10) -> 1 | V10: =U10/(W4-U7) -> 0.1428571429 | W10: =IF(V10=0,0,(V10*((LOG(V10))/LOG(2)))) -> -0.4010507032 | Y10: =N10 -> 122 | Z10: =COUNTIF(L16:L24,Y10) -> 0 | AA10: =Z10/(AB4-Z7) -> 0 | AB10: =IF(AA10=0,0,(AA10*((LOG(AA10))/LOG(2)))) -> 0 | AD10: =N10 -> 122 | AE10: =COUNTIF(L25:L34,AD10) -> 0 | AF10: =AE10/(AG4-AE7) -> 0 | AG10: =IF(AF10=0,0,(AF10*((LOG(AF10))/LOG(2)))) -> 0 | AI10: =N10 -> 122 | AJ10: =COUNTIF(L35:L43,AI10) -> 0 | AK10: =AJ10/(AL4-AJ7) ->  | AL10: =IF(AK10=0,0,(AK10*((LOG(AK10))/LOG(2)))) ->  | AN10: =N10 -> 122 | AO10: =COUNTIF(L44:L52,AN10) -> 0 | AP10: =AO10/(AQ4-AO7) ->  | AQ10: =IF(AP10=0,0,(AP10*((LOG(AP10))/LOG(2)))) ->  | AS10: =N10 -> 122 | AT10: =COUNTIF(L53:L61,AS10) -> 0 | AU10: =AT10/(AV4-AT7) ->  | AV10: =IF(AU10=0,0,(AU10*((LOG(AU10))/LOG(2)))) -> 
A11: 11 | B11: 633 | C11: 22 | D11: 643 | E11: 24 | F11: 652 | K11: 0 | L11: 122 | N11: 211 | O11: =COUNTIF($L$7:$L$500,N11) -> 5 | P11: =O11/$Q$4 -> 0.09090909091 | Q11: =IF(P11=0,0,(P11*((LOG(P11))/LOG(2)))) -> -0.3144937835 | T11: =N11 -> 211 | U11: =COUNTIF(L7:L15,T11) -> 2 | V11: =U11/(W4-U7) -> 0.2857142857 | W11: =IF(V11=0,0,(V11*((LOG(V11))/LOG(2)))) -> -0.5163871206 | Y11: =N11 -> 211 | Z11: =COUNTIF(L16:L24,Y11) -> 3 | AA11: =Z11/(AB4-Z7) -> 0.4285714286 | AB11: =IF(AA11=0,0,(AA11*((LOG(AA11))/LOG(2)))) -> -0.5238824663 | AD11: =N11 -> 211 | AE11: =COUNTIF(L25:L34,AD11) -> 0 | AF11: =AE11/(AG4-AE7) -> 0 | AG11: =IF(AF11=0,0,(AF11*((LOG(AF11))/LOG(2)))) -> 0 | AI11: =N11 -> 211 | AJ11: =COUNTIF(L35:L43,AI11) -> 0 | AK11: =AJ11/(AL4-AJ7) ->  | AL11: =IF(AK11=0,0,(AK11*((LOG(AK11))/LOG(2)))) ->  | AN11: =N11 -> 211 | AO11: =COUNTIF(L44:L52,AN11) -> 0 | AP11: =AO11/(AQ4-AO7) ->  | AQ11: =IF(AP11=0,0,(AP11*((LOG(AP11))/LOG(2)))) ->  | AS11: =N11 -> 211 | AT11: =COUNTIF(L53:L61,AS11) -> 0 | AU11: =AT11/(AV4-AT7) ->  | AV11: =IF(AU11=0,0,(AU11*((LOG(AU11))/LOG(2)))) -> 
A12: 22 | B12: 770 | C12: 24 | D12: 776 | E12: 24 | F12: 786 | K12: 0 | L12: 222 | N12: 212 | O12: =COUNTIF($L$7:$L$500,N12) -> 4 | P12: =O12/$Q$4 -> 0.07272727273 | Q12: =IF(P12=0,0,(P12*((LOG(P12))/LOG(2)))) -> -0.2750079792 | T12: =N12 -> 212 | U12: =COUNTIF(L7:L15,T12) -> 1 | V12: =U12/(W4-U7) -> 0.1428571429 | W12: =IF(V12=0,0,(V12*((LOG(V12))/LOG(2)))) -> -0.4010507032 | Y12: =N12 -> 212 | Z12: =COUNTIF(L16:L24,Y12) -> 2 | AA12: =Z12/(AB4-Z7) -> 0.2857142857 | AB12: =IF(AA12=0,0,(AA12*((LOG(AA12))/LOG(2)))) -> -0.5163871206 | AD12: =N12 -> 212 | AE12: =COUNTIF(L25:L34,AD12) -> 1 | AF12: =AE12/(AG4-AE7) -> 1 | AG12: =IF(AF12=0,0,(AF12*((LOG(AF12))/LOG(2)))) -> 0 | AI12: =N12 -> 212 | AJ12: =COUNTIF(L35:L43,AI12) -> 0 | AK12: =AJ12/(AL4-AJ7) ->  | AL12: =IF(AK12=0,0,(AK12*((LOG(AK12))/LOG(2)))) ->  | AN12: =N12 -> 212 | AO12: =COUNTIF(L44:L52,AN12) -> 0 | AP12: =AO12/(AQ4-AO7) ->  | AQ12: =IF(AP12=0,0,(AP12*((LOG(AP12))/LOG(2)))) ->  | AS12: =N12 -> 212 | AT12: =COUNTIF(L53:L61,AS12) -> 0 | AU12: =AT12/(AV4-AT7) ->  | AV12: =IF(AU12=0,0,(AU12*((LOG(AU12))/LOG(2)))) -> 
A13: 22 | B13: 886 | C13: 13 | D13: 898 | E13: 13 | F13: 906 | K13: 0 | L13: 211 | N13: 221 | O13: =COUNTIF($L$7:$L$500,N13) -> 1 | P13: =O13/$Q$4 -> 0.01818181818 | Q13: =IF(P13=0,0,(P13*((LOG(P13))/LOG(2)))) -> -0.1051156312 | T13: =N13 -> 221 | U13: =COUNTIF(L7:L15,T13) -> 1 | V13: =U13/(W4-U7) -> 0.1428571429 | W13: =IF(V13=0,0,(V13*((LOG(V13))/LOG(2)))) -> -0.4010507032 | Y13: =N13 -> 221 | Z13: =COUNTIF(L16:L24,Y13) -> 0 | AA13: =Z13/(AB4-Z7) -> 0 | AB13: =IF(AA13=0,0,(AA13*((LOG(AA13))/LOG(2)))) -> 0 | AD13: =N13 -> 221 | AE13: =COUNTIF(L25:L34,AD13) -> 0 | AF13: =AE13/(AG4-AE7) -> 0 | AG13: =IF(AF13=0,0,(AF13*((LOG(AF13))/LOG(2)))) -> 0 | AI13: =N13 -> 221 | AJ13: =COUNTIF(L35:L43,AI13) -> 0 | AK13: =AJ13/(AL4-AJ7) ->  | AL13: =IF(AK13=0,0,(AK13*((LOG(AK13))/LOG(2)))) ->  | AN13: =N13 -> 221 | AO13: =COUNTIF(L44:L52,AN13) -> 0 | AP13: =AO13/(AQ4-AO7) ->  | AQ13: =IF(AP13=0,0,(AP13*((LOG(AP13))/LOG(2)))) ->  | AS13: =N13 -> 221 | AT13: =COUNTIF(L53:L61,AS13) -> 0 | AU13: =AT13/(AV4-AT7) ->  | AV13: =IF(AU13=0,0,(AU13*((LOG(AU13))/LOG(2)))) -> 
A14: 22 | B14: 1004 | C14: 13 | D14: 1014 | E14: 24 | F14: 1030 | K14: 0 | L14: 212 | N14: 222 | O14: =COUNTIF($L$7:$L$500,N14) -> 1 | P14: =O14/$Q$4 -> 0.01818181818 | Q14: =IF(P14=0,0,(P14*((LOG(P14))/LOG(2)))) -> -0.1051156312 | T14: =N14 -> 222 | U14: =COUNTIF(L7:L15,T14) -> 1 | V14: =U14/(W4-U7) -> 0.1428571429 | W14: =IF(V14=0,0,(V14*((LOG(V14))/LOG(2)))) -> -0.4010507032 | Y14: =N14 -> 222 | Z14: =COUNTIF(L16:L24,Y14) -> 0 | AA14: =Z14/(AB4-Z7) -> 0 | AB14: =IF(AA14=0,0,(AA14*((LOG(AA14))/LOG(2)))) -> 0 | AD14: =N14 -> 222 | AE14: =COUNTIF(L25:L34,AD14) -> 0 | AF14: =AE14/(AG4-AE7) -> 0 | AG14: =IF(AF14=0,0,(AF14*((LOG(AF14))/LOG(2)))) -> 0 | AI14: =N14 -> 222 | AJ14: =COUNTIF(L35:L43,AI14) -> 0 | AK14: =AJ14/(AL4-AJ7) ->  | AL14: =IF(AK14=0,0,(AK14*((LOG(AK14))/LOG(2)))) ->  | AN14: =N14 -> 222 | AO14: =COUNTIF(L44:L52,AN14) -> 0 | AP14: =AO14/(AQ4-AO7) ->  | AQ14: =IF(AP14=0,0,(AP14*((LOG(AP14))/LOG(2)))) ->  | AS14: =N14 -> 222 | AT14: =COUNTIF(L53:L61,AS14) -> 0 | AU14: =AT14/(AV4-AT7) ->  | AV14: =IF(AU14=0,0,(AU14*((LOG(AU14))/LOG(2)))) -> 
A15: 11 | B15: 1125 | C15: 11 | D15: 1134 | E15: 11 | F15: 1137 | K15: 0 | L15: 111 | P15: =SUM(P7:P14) -> 1 | Q15: =-SUM(Q7:Q14) -> 1.517964 | V15: =SUM(V7:V14) -> 1 | W15: =-SUM(W7:W14) -> 2.521640636 | AA15: =SUM(AA7:AA14) -> 1 | AB15: =-SUM(AB7:AB14) -> 1.556656707 | AF15: =SUM(AF7:AF14) -> 1 | AG15: =-SUM(AG7:AG14) -> 0 | AK15: =SUM(AK7:AK14) ->  | AL15: =-SUM(AL7:AL14) ->  | AP15: =SUM(AP7:AP14) ->  | AQ15: =-SUM(AQ7:AQ14) ->  | AU15: =SUM(AU7:AU14) ->  | AV15: =-SUM(AV7:AV14) -> 
A16: 22 | B16: 1272 | C16: 13 | D16: 1280 | E16: 13 | F16: 1288 | K16: 0 | L16: 211 | P16: U= | Q16: =Q15/(LOG(Q4)/LOG(2)) -> 0.2625617631 | V16: U1= | W16: =W15/(LOG(W4)/LOG(2)) -> 0.7954890526 | AA16: U2= | AB16: =AB15/(LOG(AB4)/LOG(2)) -> 0.4910705164 | AF16: U3= | AG16: =AG15/(LOG(AG4)/LOG(2)) -> 0 | AK16: U4= | AL16: =AL15/(LOG(AL4)/LOG(2)) ->  | AP16: U5= | AQ16: =AQ15/(LOG(AQ4)/LOG(2)) ->  | AU16: U6= | AV16: =AV15/(LOG(AV4)/LOG(2)) -> 
A17: 11 | B17: 1387 | C17: 11 | D17: 1394 | E17: 11 | F17: 1403 | K17: 0 | L17: 111
A18: 11 | B18: 1566 | C18: 11 | D18: 1572 | E18: 22 | F18: 1584 | K18: 0 | L18: 112
A19: 22 | B19: 1698 | C19: 13 | D19: 1709 | E19: 13 | F19: 1714 | K19: 0 | L19: 211 | N19: Total Target Seq
A20: 22 | B20: 1839 | C20: 13 | D20: 1849 | E20: 24 | F20: 1857 | K20: 0 | L20: 212 | N20: =COUNTIF(L7:L61,G3) -> 40 | P20: 9 | Q20: 9 | R20: 10 | S20: 9 | T20: 9 | U20: 9
A21: 11 | B21: 1951 | C21: 11 | D21: 1955 | E21: 11 | F21: 1961 | K21: 0 | L21: 111 | P21: % of reinforcement given in 6 equal intervals based on number of trials
A22: 22 | B22: 2074 | C22: 13 | D22: 2086 | E22: 24 | F22: 2106 | K22: 0 | L22: 212 | P22: %_1 | Q22: %_2 | R22: %_3 | S22: %_4 | T22: %_5 | U22: %_6
A23: 22 | B23: 2209 | C23: 13 | D23: 2219 | E23: 13 | F23: 2232 | K23: 0 | L23: 211 | O23: target sequence | P23: =$G$3 -> 111 | Q23: =$G$3 -> 111 | R23: =$G$3 -> 111 | S23: =$G$3 -> 111 | T23: =$G$3 -> 111 | U23: =$G$3 -> 111
A24: 11 | B24: 2329 | C24: 11 | D24: 2339 | E24: 22 | F24: 2356 | K24: 0 | L24: 112 | O24: total reinforcement | P24: =U7 -> 2 | Q24: =Z7 -> 2 | R24: =AE7 -> 9 | S24: =AJ7 -> 9 | T24: =AO7 -> 9 | U24: =AT7 -> 9
A25: 11 | B25: 2451 | C25: 11 | D25: 2457 | E25: 11 | F25: 2466 | K25: 0 | L25: 111 | O25: % target
A26: 11 | B26: 2647 | C26: 11 | D26: 2654 | E26: 11 | F26: 2658 | K26: 0 | L26: 111 | O26: CCRF
A27: 11 | B27: 2751 | C27: 11 | D27: 2760 | E27: 11 | F27: 2770 | K27: 0 | L27: 111 | O27: % CCRf
A28: 11 | B28: 2925 | C28: 11 | D28: 2934 | E28: 11 | F28: 2944 | K28: 0 | L28: 111 | O28: average response rate | P28: =F15/P20 -> 126.3333333 | Q28: =(F24-F15)/Q20 -> 135.4444444 | R28: =(F34-F24)/R20 -> 155.8 | S28: =(F43-F34)/S20 -> 128 | T28: =(F52-F43)/T20 -> 122.1111111 | U28: =(F61-F52)/U20 -> 127.8888889
A29: 11 | B29: 3037 | C29: 11 | D29: 3042 | E29: 11 | F29: 3050 | K29: 0 | L29: 111
A30: 22 | B30: 3286 | C30: 13 | D30: 3303 | E30: 24 | F30: 3319 | K30: 0 | L30: 212
A31: 11 | B31: 3418 | C31: 11 | D31: 3424 | E31: 11 | F31: 3434 | K31: 0 | L31: 111
A32: 11 | B32: 3565 | C32: 11 | D32: 3576 | E32: 11 | F32: 3583 | K32: 0 | L32: 111
A33: 11 | B33: 3718 | C33: 11 | D33: 3735 | E33: 11 | F33: 3744 | K33: 0 | L33: 111
A34: 11 | B34: 3897 | C34: 11 | D34: 3908 | E34: 11 | F34: 3914 | K34: 0 | L34: 111
A35: 11 | B35: 4005 | C35: 11 | D35: 4012 | E35: 11 | F35: 4018 | K35: 0 | L35: 111
A36: 11 | B36: 4144 | C36: 11 | D36: 4148 | E36: 11 | F36: 4155 | K36: 0 | L36: 111
A37: 11 | B37: 4253 | C37: 11 | D37: 4259 | E37: 11 | F37: 4264 | K37: 0 | L37: 111
A38: 11 | B38: 4378 | C38: 11 | D38: 4383 | E38: 11 | F38: 4388 | K38: 0 | L38: 111
A39: 11 | B39: 4485 | C39: 11 | D39: 4494 | E39: 11 | F39: 4508 | K39: 0 | L39: 111
A40: 11 | B40: 4603 | C40: 11 | D40: 4618 | E40: 11 | F40: 4629 | K40: 0 | L40: 111
A41: 11 | B41: 4719 | C41: 11 | D41: 4725 | E41: 11 | F41: 4731 | K41: 0 | L41: 111
A42: 11 | B42: 4819 | C42: 11 | D42: 4827 | E42: 11 | F42: 4833 | K42: 0 | L42: 111
A43: 11 | B43: 5051 | C43: 11 | D43: 5060 | E43: 11 | F43: 5066 | K43: 0 | L43: 111
A44: 11 | B44: 5179 | C44: 11 | D44: 5184 | E44: 11 | F44: 5189 | K44: 0 | L44: 111
A45: 11 | B45: 5292 | C45: 11 | D45: 5298 | E45: 11 | F45: 5306 | K45: 0 | L45: 111
A46: 11 | B46: 5444 | C46: 11 | D46: 5453 | E46: 11 | F46: 5467 | K46: 0 | L46: 111
A47: 11 | B47: 5558 | C47: 11 | D47: 5565 | E47: 11 | F47: 5571 | K47: 0 | L47: 111
A48: 11 | B48: 5719 | C48: 11 | D48: 5725 | E48: 11 | F48: 5732 | K48: 0 | L48: 111
A49: 11 | B49: 5820 | C49: 11 | D49: 5830 | E49: 11 | F49: 5837 | K49: 0 | L49: 111
A50: 11 | B50: 5937 | C50: 11 | D50: 5944 | E50: 11 | F50: 5950 | K50: 0 | L50: 111
A51: 11 | B51: 6041 | C51: 11 | D51: 6049 | E51: 11 | F51: 6054 | K51: 0 | L51: 111
A52: 11 | B52: 6149 | C52: 11 | D52: 6157 | E52: 11 | F52: 6165 | K52: 0 | L52: 111
A53: 11 | B53: 6255 | C53: 11 | D53: 6261 | E53: 11 | F53: 6268 | K53: 0 | L53: 111
A54: 11 | B54: 6382 | C54: 11 | D54: 6392 | E54: 11 | F54: 6401 | K54: 0 | L54: 111
A55: 11 | B55: 6508 | C55: 11 | D55: 6513 | E55: 11 | F55: 6518 | K55: 0 | L55: 111
A56: 11 | B56: 6607 | C56: 11 | D56: 6615 | E56: 11 | F56: 6625 | K56: 0 | L56: 111
A57: 11 | B57: 6739 | C57: 11 | D57: 6743 | E57: 11 | F57: 6750 | K57: 0 | L57: 111
A58: 11 | B58: 6856 | C58: 11 | D58: 6863 | E58: 11 | F58: 6869 | K58: 0 | L58: 111
A59: 11 | B59: 6989 | C59: 11 | D59: 6996 | E59: 11 | F59: 7003 | K59: 0 | L59: 111
A60: 11 | B60: 7106 | C60: 11 | D60: 7111 | E60: 11 | F60: 7119 | K60: 0 | L60: 111
A61: 11 | B61: 7301 | C61: 11 | D61: 7309 | E61: 11 | F61: 7316 | K61: 1 | L61: 111

Sheet !M828A4I.sha
A1: Report for:!M828A4I.sha
A2: Date: | B2: <date>
A3: Hen: | B3: <hen> | F3: Correct Sequence | G3: =Start!J2 -> 111 | P3: Total Sequences in Data | Q3: =4994-COUNTBLANK(L7:L5000) -> 42 | V3: Total Sequences in Block Data | W3: =COUNTA(L7:L13) -> 7 | AA3: Total Sequences in Block Data | AB3: =COUNTA(L14:L20) -> 7 | AF3: Total Sequences in Block Data | AG3: =COUNTA(L21:L27) -> 7 | AK3: Total Sequences in Block Data | AL3: =COUNTA(L28:L34) -> 7 | AP3: Total Sequences in Block Data | AQ3: =COUNTA(L35:L41) -> 7 | AU3: Total Sequences in Block Data | AV3: =COUNTA(L42:L48) -> 7
P4: Total Sequences in Summary | Q4: =SUM(O7:O14) -> 42 | V4: Total Sequences in Block Summary | W4: =SUM(U7:U14) -> 7 | AA4: Total Sequences in Block Summary | AB4: =SUM(Z7:Z14) -> 7 | AF4: Total Sequences in Block Summary | AG4: =SUM(AE7:AE14) -> 7 | AK4: Total Sequences in Block Summary | AL4: =SUM(AJ7:AJ14) -> 7 | AP4: Total Sequences in Block Summary | AQ4: =SUM(AO7:AO14) -> 7 | AU4: Total Sequences in Block Summary | AV4: =SUM(AT7:AT14) -> 7
T5: Block 1 | Y5: Block 2 | AD5: Block 3 | AI5: Block 4 | AN5: Block 5 | AS5: Block 6
A6: Sequence Component 1 | B6: Time 1 | C6: Sequence Component 2 | D6: Time 2 | E6: Sequence Component 3 | F6: Time 3 | G6: Sequence Component 4 | H6: Time 4 | I6: Sequence Component 5 | J6: Time 5 | K6: Correct? 0=No 1=Yes | L6: Sequence | N6: Frequency | P6: Relative Frequency | Q6: Variability | T6: Frequency | V6: Relative Frequency | W6: Variability | Y6: Frequency | AA6: Relative Frequency | AB6: Variability | AD6: Frequency | AF6: Relative Frequency | AG6: Variability | AI6: Frequency | AK6: Relative Frequency | AL6: Variability | AN6: Frequency | AP6: Relative Frequency | AQ6: Variability | AS6: Frequency | AU6: Relative Frequency | AV6: Variability
A7: 22 | B7: 23 | C7: 13 | D7: 34 | E7: 13 | F7: 42 | K7: 0 | L7: 211 | N7: 111 | O7: =COUNTIF($L$7:$L$500,N7) -> 40 | P7: =O7/$Q$4 -> 0.9523809524 | Q7: =IF(P7=0,0,(P7*((LOG(P7))/LOG(2)))) -> -0.06703745513 | T7: =N7 -> 111 | U7: =COUNTIF(L7:L13,T7) -> 6 | Y7: =N7 -> 111 | Z7: =COUNTIF(L14:L20,Y7) -> 7 | AD7: =N7 -> 111 | AE7: =COUNTIF(L21:L27,AD7) -> 7 | AI7: =N7 -> 111 | AJ7: =COUNTIF(L28:L34,AI7) -> 6 | AN7: =N7 -> 111 | AO7: =COUNTIF(L35:L41,AN7) -> 7 | AS7: =N7 -> 111 | AT7: =COUNTIF(L42:L48,AS7) -> 7
A8: 11 | B8: 146 | C8: 11 | D8: 149 | E8: 11 | F8: 155 | K8: 0 | L8: 111 | N8: 112 | O8: =COUNTIF($L$7:$L$500,N8) -> 0 | P8: =O8/$Q$4 -> 0 | Q8: =IF(P8=0,0,(P8*((LOG(P8))/LOG(2)))) -> 0 | T8: =N8 -> 112 | U8: =COUNTIF(L7:L13,T8) -> 0 | V8: =U8/(W4-U7) -> 0 | W8: =IF(V8=0,0,(V8*((LOG(V8))/LOG(2)))) -> 0 | Y8: =N8 -> 112 | Z8: =COUNTIF(L14:L20,Y8) -> 0 | AA8: =Z8/(AB4-Z7) ->  | AB8: =IF(AA8=0,0,(AA8*((LOG(AA8))/LOG(2)))) ->  | AD8: =N8 -> 112 | AE8: =COUNTIF(L21:L27,AD8) -> 0 | AF8: =AE8/(AG4-AE7) ->  | AG8: =IF(AF8=0,0,(AF8*((LOG(AF8))/LOG(2)))) ->  | AI8: =N8 -> 112 | AJ8: =COUNTIF(L28:L34,AI8) -> 0 | AK8: =AJ8/(AL4-AJ7) -> 0 | AL8: =IF(AK8=0,0,(AK8*((LOG(AK8))/LOG(2)))) -> 0 | AN8: =N8 -> 112 | AO8: =COUNTIF(L35:L41,AN8) -> 0 | AP8: =AO8/(AQ4-AO7) ->  | AQ8: =IF(AP8=0,0,(AP8*((LOG(AP8))/LOG(2)))) ->  | AS8: =N8 -> 112 | AT8: =COUNTIF(L42:L48,AS8) -> 0 | AU8: =AT8/(AV4-AT7) ->  | AV8: =IF(AU8=0,0,(AU8*((LOG(AU8))/LOG(2)))) -> 
A9: 11 | B9: 290 | C9: 11 | D9: 293 | E9: 11 | F9: 298 | K9: 0 | L9: 111 | N9: 121 | O9: =COUNTIF($L$7:$L$500,N9) -> 0 | P9: =O9/$Q$4 -> 0 | Q9: =IF(P9=0,0,(P9*((LOG(P9))/LOG(2)))) -> 0 | T9: =N9 -> 121 | U9: =COUNTIF(L7:L13,T9) -> 0 | V9: =U9/(W4-U7) -> 0 | W9: =IF(V9=0,0,(V9*((LOG(V9))/LOG(2)))) -> 0 | Y9: =N9 -> 121 | Z9: =COUNTIF(L14:L20,Y9) -> 0 | AA9: =Z9/(AB4-Z7) ->  | AB9: =IF(AA9=0,0,(AA9*((LOG(AA9))/LOG(2)))) ->  | AD9: =N9 -> 121 | AE9: =COUNTIF(L21:L27,AD9) -> 0 | AF9: =AE9/(AG4-AE7) ->  | AG9: =IF(AF9=0,0,(AF9*((LOG(AF9))/LOG(2)))) ->  | AI9: =N9 -> 121 | AJ9: =COUNTIF(L28:L34,AI9) -> 0 | AK9: =AJ9/(AL4-AJ7) -> 0 | AL9: =IF(AK9=0,0,(AK9*((LOG(AK9))/LOG(2)))) -> 0 | AN9: =N9 -> 121 | AO9: =COUNTIF(L35:L41,AN9) -> 0 | AP9: =AO9/(AQ4-AO7) ->  | AQ9: =IF(AP9=0,0,(AP9*((LOG(AP9))/LOG(2)))) ->  | AS9: =N9 -> 121 | AT9: =COUNTIF(L42:L48,AS9) -> 0 | AU9: =AT9/(AV4-AT7) ->  | AV9: =IF(AU9=0,0,(AU9*((LOG(AU9))/LOG(2)))) -> 
A10: 11 | B10: 450 | C10: 11 | D10: 458 | E10: 11 | F10: 466 | K10: 0 | L10: 111 | N10: 122 | O10: =COUNTIF($L$7:$L$500,N10) -> 0 | P10: =O10/$Q$4 -> 0 | Q10: =IF(P10=0,0,(P10*((LOG(P10))/LOG(2)))) -> 0 | T10: =N10 -> 122 | U10: =COUNTIF(L7:L13,T10) -> 0 | V10: =U10/(W4-U7) -> 0 | W10: =IF(V10=0,0,(V10*((LOG(V10))/LOG(2)))) -> 0 | Y10: =N10 -> 122 | Z10: =COUNTIF(L14:L20,Y10) -> 0 | AA10: =Z10/(AB4-Z7) ->  | AB10: =IF(AA10=0,0,(AA10*((LOG(AA10))/LOG(2)))) ->  | AD10: =N10 -> 122 | AE10: =COUNTIF(L21:L27,AD10) -> 0 | AF10: =AE10/(AG4-AE7) ->  | AG10: =IF(AF10=0,0,(AF10*((LOG(AF10))/LOG(2)))) ->  | AI10: =N10 -> 122 | AJ10: =COUNTIF(L28:L34,AI10) -> 0 | AK10: =AJ10/(AL4-AJ7) -> 0 | AL10: =IF(AK10=0,0,(AK10*((LOG(AK10))/LOG(2)))) -> 0 | AN10: =N10 -> 122 | AO10: =COUNTIF(L35:L41,AN10) -> 0 | AP10: =AO10/(AQ4-AO7) ->  | AQ10: =IF(AP10=0,0,(AP10*((LOG(AP10))/LOG(2)))) ->  | AS10: =N10 -> 122 | AT10: =COUNTIF(L42:L48,AS10) -> 0 | AU10: =AT10/(AV4-AT7) ->  | AV10: =IF(AU10=0,0,(AU10*((LOG(AU10))/LOG(2)))) -> 
A11: 11 | B11: 576 | C11: 11 | D11: 582 | E11: 11 | F11: 590 | K11: 0 | L11: 111 | N11: 211 | O11: =COUNTIF($L$7:$L$500,N11) -> 2 | P11: =O11/$Q$4 -> 0.04761904762 | Q11: =IF(P11=0,0,(P11*((LOG(P11))/LOG(2)))) -> -0.2091579725 | T11: =N11 -> 211 | U11: =COUNTIF(L7:L13,T11) -> 1 | V11: =U11/(W4-U7) -> 1 | W11: =IF(V11=0,0,(V11*((LOG(V11))/LOG(2)))) -> 0 | Y11: =N11 -> 211 | Z11: =COUNTIF(L14:L20,Y11) -> 0 | AA11: =Z11/(AB4-Z7) ->  | AB11: =IF(AA11=0,0,(AA11*((LOG(AA11))/LOG(2)))) ->  | AD11: =N11 -> 211 | AE11: =COUNTIF(L21:L27,AD11) -> 0 | AF11: =AE11/(AG4-AE7) ->  | AG11: =IF(AF11=0,0,(AF11*((LOG(AF11))/LOG(2)))) ->  | AI11: =N11 -> 211 | AJ11: =COUNTIF(L28:L34,AI11) -> 1 | AK11: =AJ11/(AL4-AJ7) -> 1 | AL11: =IF(AK11=0,0,(AK11*((LOG(AK11))/LOG(2)))) -> 0 | AN11: =N11 -> 211 | AO11: =COUNTIF(L35:L41,AN11) -> 0 | AP11: =AO11/(AQ4-AO7) ->  | AQ11: =IF(AP11=0,0,(AP11*((LOG(AP11))/LOG(2)))) ->  | AS11: =N11 -> 211 | AT11: =COUNTIF(L42:L48,AS11) -> 0 | AU11: =AT11/(AV4-AT7) ->  | AV11: =IF(AU11=0,0,(AU11*((LOG(AU11))/LOG(2)))) -> 
A12: 11 | B12: 732 | C12: 11 | D12: 739 | E12: 11 | F12: 746 | K12: 0 | L12: 111 | N12: 212 | O12: =COUNTIF($L$7:$L$500,N12) -> 0 | P12: =O12/$Q$4 -> 0 | Q12: =IF(P12=0,0,(P12*((LOG(P12))/LOG(2)))) -> 0 | T12: =N12 -> 212 | U12: =COUNTIF(L7:L13,T12) -> 0 | V12: =U12/(W4-U7) -> 0 | W12: =IF(V12=0,0,(V12*((LOG(V12))/LOG(2)))) -> 0 | Y12: =N12 -> 212 | Z12: =COUNTIF(L14:L20,Y12) -> 0 | AA12: =Z12/(AB4-Z7) ->  | AB12: =IF(AA12=0,0,(AA12*((LOG(AA12))/LOG(2)))) ->  | AD12: =N12 -> 212 | AE12: =COUNTIF(L21:L27,AD12) -> 0 | AF12: =AE12/(AG4-AE7) ->  | AG12: =IF(AF12=0,0,(AF12*((LOG(AF12))/LOG(2)))) ->  | AI12: =N12 -> 212 | AJ12: =COUNTIF(L28:L34,AI12) -> 0 | AK12: =AJ12/(AL4-AJ7) -> 0 | AL12: =IF(AK12=0,0,(AK12*((LOG(AK12))/LOG(2)))) -> 0 | AN12: =N12 -> 212 | AO12: =COUNTIF(L35:L41,AN12) -> 0 | AP12: =AO12/(AQ4-AO7) ->  | AQ12: =IF(AP12=0,0,(AP12*((LOG(AP12))/LOG(2)))) ->  | AS12: =N12 -> 212 | AT12: =COUNTIF(L42:L48,AS12) -> 0 | AU12: =AT12/(AV4-AT7) ->  | AV12: =IF(AU12=0,0,(AU12*((LOG(AU12))/LOG(2)))) -> 
A13: 11 | B13: 862 | C13: 11 | D13: 866 | E13: 11 | F13: 873 | K13: 0 | L13: 111 | N13: 221 | O13: =COUNTIF($L$7:$L$500,N13) -> 0 | P13: =O13/$Q$4 -> 0 | Q13: =IF(P13=0,0,(P13*((LOG(P13))/LOG(2)))) -> 0 | T13: =N13 -> 221 | U13: =COUNTIF(L7:L13,T13) -> 0 | V13: =U13/(W4-U7) -> 0 | W13: =IF(V13=0,0,(V13*((LOG(V13))/LOG(2)))) -> 0 | Y13: =N13 -> 221 | Z13: =COUNTIF(L14:L20,Y13) -> 0 | AA13: =Z13/(AB4-Z7) ->  | AB13: =IF(AA13=0,0,(AA13*((LOG(AA13))/LOG(2)))) ->  | AD13: =N13 -> 221 | AE13: =COUNTIF(L21:L27,AD13) -> 0 | AF13: =AE13/(AG4-AE7) ->  | AG13: =IF(AF13=0,0,(AF13*((LOG(AF13))/LOG(2)))) ->  | AI13: =N13 -> 221 | AJ13: =COUNTIF(L28:L34,AI13) -> 0 | AK13: =AJ13/(AL4-AJ7) -> 0 | AL13: =IF(AK13=0,0,(AK13*((LOG(AK13))/LOG(2)))) -> 0 | AN13: =N13 -> 221 | AO13: =COUNTIF(L35:L41,AN13) -> 0 | AP13: =AO13/(AQ4-AO7) ->  | AQ13: =IF(AP13=0,0,(AP13*((LOG(AP13))/LOG(2)))) ->  | AS13: =N13 -> 221 | AT13: =COUNTIF(L42:L48,AS13) -> 0 | AU13: =AT13/(AV4-AT7) ->  | AV13: =IF(AU13=0,0,(AU13*((LOG(AU13))/LOG(2)))) -> 
A14: 11 | B14: 967 | C14: 11 | D14: 978 | E14: 11 | F14: 985 | K14: 0 | L14: 111 | N14: 222 | O14: =COUNTIF($L$7:$L$500,N14) -> 0 | P14: =O14/$Q$4 -> 0 | Q14: =IF(P14=0,0,(P14*((LOG(P14))/LOG(2)))) -> 0 | T14: =N14 -> 222 | U14: =COUNTIF(L7:L13,T14) -> 0 | V14: =U14/(W4-U7) -> 0 | W14: =IF(V14=0,0,(V14*((LOG(V14))/LOG(2)))) -> 0 | Y14: =N14 -> 222 | Z14: =COUNTIF(L14:L20,Y14) -> 0 | AA14: =Z14/(AB4-Z7) ->  | AB14: =IF(AA14=0,0,(AA14*((LOG(AA14))/LOG(2)))) ->  | AD14: =N14 -> 222 | AE14: =COUNTIF(L21:L27,AD14) -> 0 | AF14: =AE14/(AG4-AE7) ->  | AG14: =IF(AF14=0,0,(AF14*((LOG(AF14))/LOG(2)))) ->  | AI14: =N14 -> 222 | AJ14: =COUNTIF(L28:L34,AI14) -> 0 | AK14: =AJ14/(AL4-AJ7) -> 0 | AL14: =IF(AK14=0,0,(AK14*((LOG(AK14))/LOG(2)))) -> 0 | AN14: =N14 -> 222 | AO14: =COUNTIF(L35:L41,AN14) -> 0 | AP14: =AO14/(AQ4-AO7) ->  | AQ14: =IF(AP14=0,0,(AP14*((LOG(AP14))/LOG(2)))) ->  | AS14: =N14 -> 222 | AT14: =COUNTIF(L42:L48,AS14) -> 0 | AU14: =AT14/(AV4-AT7) ->  | AV14: =IF(AU14=0,0,(AU14*((LOG(AU14))/LOG(2)))) -> 
A15: 11 | B15: 1073 | C15: 11 | D15: 1076 | E15: 11 | F15: 1086 | K15: 0 | L15: 111 | P15: =SUM(P7:P14) -> 1 | Q15: =-SUM(Q7:Q14) -> 0.2761954276 | V15: =SUM(V7:V14) -> 1 | W15: =-SUM(W7:W14) -> 0 | AA15: =SUM(AA7:AA14) ->  | AB15: =-SUM(AB7:AB14) ->  | AF15: =SUM(AF7:AF14) ->  | AG15: =-SUM(AG7:AG14) ->  | AK15: =SUM(AK7:AK14) -> 1 | AL15: =-SUM(AL7:AL14) -> 0 | AP15: =SUM(AP7:AP14) ->  | AQ15: =-SUM(AQ7:AQ14) ->  | AU15: =SUM(AU7:AU14) ->  | AV15: =-SUM(AV7:AV14) -> 
A16: 11 | B16: 1200 | C16: 11 | D16: 1209 | E16: 11 | F16: 1219 | K16: 0 | L16: 111 | P16: U= | Q16: =Q15/(LOG(Q4)/LOG(2)) -> 0.05122017233 | V16: U1= | W16: =W15/(LOG(W4)/LOG(2)) -> 0 | AA16: U2= | AB16: =AB15/(LOG(AB4)/LOG(2)) ->  | AF16: U3= | AG16: =AG15/(LOG(AG4)/LOG(2)) ->  | AK16: U4= | AL16: =AL15/(LOG(AL4)/LOG(2)) -> 0 | AP16: U5= | AQ16: =AQ15/(LOG(AQ4)/LOG(2)) ->  | AU16: U6= | AV16: =AV15/(LOG(AV4)/LOG(2)) -> 
A17: 11 | B17: 1310 | C17: 11 | D17: 1317 | E17: 11 | F17: 1324 | K17: 0 | L17: 111
A18: 11 | B18: 1441 | C18: 11 | D18: 1448 | E18: 11 | F18: 1455 | K18: 0 | L18: 111
A19: 11 | B19: 1554 | C19: 11 | D19: 1561 | E19: 11 | F19: 1566 | K19: 0 | L19: 111 | N19: Total Target Seq
A20: 11 | B20: 1685 | C20: 11 | D20: 1692 | E20: 11 | F20: 1699 | K20: 0 | L20: 111 | N20: =COUNTIF(L7:L48,G3) -> 40 | P20: 7 | Q20: 7 | R20: 7 | S20: 7 | T20: 7 | U20: 7
A21: 11 | B21: 1793 | C21: 11 | D21: 1800 | E21: 11 | F21: 1804 | K21: 0 | L21: 111 | P21: % of reinforcement given in 6 equal intervals based on number of trials
A22: 11 | B22: 1963 | C22: 11 | D22: 1970 | E22: 11 | F22: 1978 | K22: 0 | L22: 111 | P22: %_1 | Q22: %_2 | R22: %_3 | S22: %_4 | T22: %_5 | U22: %_6
A23: 11 | B23: 2094 | C23: 11 | D23: 2101 | E23: 11 | F23: 2109 | K23: 0 | L23: 111 | O23: target sequence | P23: =$G$3 -> 111 | Q23: =$G$3 -> 111 | R23: =$G$3 -> 111 | S23: =$G$3 -> 111 | T23: =$G$3 -> 111 | U23: =$G$3 -> 111
A24: 11 | B24: 2231 | C24: 11 | D24: 2239 | E24: 11 | F24: 2245 | K24: 0 | L24: 111 | O24: total reinforcement | P24: =U7 -> 6 | Q24: =Z7 -> 7 | R24: =AE7 -> 7 | S24: =AJ7 -> 6 | T24: =AO7 -> 7 | U24: =AT7 -> 7
A25: 11 | B25: 2335 | C25: 11 | D25: 2341 | E25: 11 | F25: 2348 | K25: 0 | L25: 111 | O25: % target
A26: 11 | B26: 2449 | C26: 11 | D26: 2455 | E26: 11 | F26: 2464 | K26: 0 | L26: 111 | O26: CCRF
A27: 11 | B27: 2585 | C27: 11 | D27: 2592 | E27: 11 | F27: 2598 | K27: 0 | L27: 111 | O27: % CCRf
A28: 11 | B28: 2700 | C28: 11 | D28: 2707 | E28: 11 | F28: 2713 | K28: 0 | L28: 111 | O28: average response rate | P28: =F13/P20 -> 124.7142857 | Q28: =(F20-F13)/Q20 -> 118 | R28: =(F27-F20)/R20 -> 128.4285714 | S28: =(F34-F27)/S20 -> 124 | T28: =(F41-F34)/T20 -> 153.5714286 | U28: =(F48-F41)/U20 -> 141.8571429
A29: 11 | B29: 2805 | C29: 11 | D29: 2814 | E29: 11 | F29: 2822 | K29: 0 | L29: 111
A30: 11 | B30: 2968 | C30: 11 | D30: 2977 | E30: 11 | F30: 2987 | K30: 0 | L30: 111
A31: 11 | B31: 3109 | C31: 11 | D31: 3116 | E31: 11 | F31: 3123 | K31: 0 | L31: 111
A32: 11 | B32: 3219 | C32: 11 | D32: 3226 | E32: 11 | F32: 3234 | K32: 0 | L32: 111
A33: 22 | B33: 3337 | C33: 13 | D33: 3346 | E33: 13 | F33: 3354 | K33: 0 | L33: 211
A34: 11 | B34: 3456 | C34: 11 | D34: 3461 | E34: 11 | F34: 3466 | K34: 0 | L34: 111
A35: 11 | B35: 3578 | C35: 11 | D35: 3583 | E35: 11 | F35: 3590 | K35: 0 | L35: 111
A36: 11 | B36: 3690 | C36: 11 | D36: 3692 | E36: 11 | F36: 3699 | K36: 0 | L36: 111
A37: 11 | B37: 3888 | C37: 11 | D37: 3893 | E37: 11 | F37: 3898 | K37: 0 | L37: 111
A38: 11 | B38: 4018 | C38: 11 | D38: 4026 | E38: 11 | F38: 4036 | K38: 0 | L38: 111
A39: 11 | B39: 4165 | C39: 11 | D39: 4174 | E39: 11 | F39: 4177 | K39: 0 | L39: 111
A40: 11 | B40: 4365 | C40: 11 | D40: 4371 | E40: 11 | F40: 4375 | K40: 0 | L40: 111
A41: 11 | B41: 4530 | C41: 11 | D41: 4536 | E41: 11 | F41: 4541 | K41: 0 | L41: 111
A42: 11 | B42: 4672 | C42: 11 | D42: 4679 | E42: 11 | F42: 4686 | K42: 0 | L42: 111
A43: 11 | B43: 4810 | C43: 11 | D43: 4815 | E43: 11 | F43: 4821 | K43: 0 | L43: 111
A44: 11 | B44: 4923 | C44: 11 | D44: 4927 | E44: 11 | F44: 4934 | K44: 0 | L44: 111
A45: 11 | B45: 5105 | C45: 11 | D45: 5108 | E45: 11 | F45: 5114 | K45: 0 | L45: 111
A46: 11 | B46: 5209 | C46: 11 | D46: 5215 | E46: 11 | F46: 5221 | K46: 0 | L46: 111
A47: 11 | B47: 5362 | C47: 11 | D47: 5378 | E47: 11 | F47: 5387 | K47: 0 | L47: 111
A48: 11 | B48: 5520 | C48: 11 | D48: 5526 | E48: 11 | F48: 5534 | K48: 1 | L48: 111

Sheet !M829A5I.sha
A1: Report for:!M829A5I.sha
A2: Date: | B2: <date>
A3: Hen: | B3: <hen> | F3: Correct Sequence | G3: =Start!J2 -> 111 | P3: Total Sequences in Data | Q3: =4994-COUNTBLANK(L7:L5000) -> 42 | V3: Total Sequences in Block Data | W3: =COUNTA(L7:L13) -> 7 | AA3: Total Sequences in Block Data | AB3: =COUNTA(L14:L20) -> 7 | AF3: Total Sequences in Block Data | AG3: =COUNTA(L21:L27) -> 7 | AK3: Total Sequences in Block Data | AL3: =COUNTA(L28:L34) -> 7 | AP3: Total Sequences in Block Data | AQ3: =COUNTA(L35:L41) -> 7 | AU3: Total Sequences in Block Data | AV3: =COUNTA(L42:L48) -> 7
P4: Total Sequences in Summary | Q4: =SUM(O7:O14) -> 42 | V4: Total Sequences in Block Summary | W4: =SUM(U7:U14) -> 7 | AA4: Total Sequences in Block Summary | AB4: =SUM(Z7:Z14) -> 7 | AF4: Total Sequences in Block Summary | AG4: =SUM(AE7:AE14) -> 7 | AK4: Total Sequences in Block Summary | AL4: =SUM(AJ7:AJ14) -> 7 | AP4: Total Sequences in Block Summary | AQ4: =SUM(AO7:AO14) -> 7 | AU4: Total Sequences in Block Summary | AV4: =SUM(AT7:AT14) -> 7
T5: Block 1 | Y5: Block 2 | AD5: Block 3 | AI5: Block 4 | AN5: Block 5 | AS5: Block 6
A6: Sequence Component 1 | B6: Time 1 | C6: Sequence Component 2 | D6: Time 2 | E6: Sequence Component 3 | F6: Time 3 | G6: Sequence Component 4 | H6: Time 4 | I6: Sequence Component 5 | J6: Time 5 | K6: Correct? 0=No 1=Yes | L6: Sequence | N6: Frequency | P6: Relative Frequency | Q6: Variability | T6: Frequency | V6: Relative Frequency | W6: Variability | Y6: Frequency | AA6: Relative Frequency | AB6: Variability | AD6: Frequency | AF6: Relative Frequency | AG6: Variability | AI6: Frequency | AK6: Relative Frequency | AL6: Variability | AN6: Frequency | AP6: Relative Frequency | AQ6: Variability | AS6: Frequency | AU6: Relative Frequency | AV6: Variability
A7: 22 | B7: 16 | C7: 13 | D7: 25 | E7: 13 | F7: 50 | K7: 0 | L7: 211 | N7: 111 | O7: =COUNTIF($L$7:$L$500,N7) -> 40 | P7: =O7/$Q$4 -> 0.9523809524 | Q7: =IF(P7=0,0,(P7*((LOG(P7))/LOG(2)))) -> -0.06703745513 | T7: =N7 -> 111 | U7: =COUNTIF(L7:L13,T7) -> 6 | Y7: =N7 -> 111 | Z7: =COUNTIF(L14:L20,Y7) -> 7 | AD7: =N7 -> 111 | AE7: =COUNTIF(L21:L27,AD7) -> 7 | AI7: =N7 -> 111 | AJ7: =COUNTIF(L28:L34,AI7) -> 6 | AN7: =N7 -> 111 | AO7: =COUNTIF(L35:L41,AN7) -> 7 | AS7: =N7 -> 111 | AT7: =COUNTIF(L42:L48,AS7) -> 7
A8: 11 | B8: 145 | C8: 11 | D8: 154 | E8: 11 | F8: 160 | K8: 0 | L8: 111 | N8: 112 | O8: =COUNTIF($L$7:$L$500,N8) -> 0 | P8: =O8/$Q$4 -> 0 | Q8: =IF(P8=0,0,(P8*((LOG(P8))/LOG(2)))) -> 0 | T8: =N8 -> 112 | U8: =COUNTIF(L7:L13,T8) -> 0 | V8: =U8/(W4-U7) -> 0 | W8: =IF(V8=0,0,(V8*((LOG(V8))/LOG(2)))) -> 0 | Y8: =N8 -> 112 | Z8: =COUNTIF(L14:L20,Y8) -> 0 | AA8: =Z8/(AB4-Z7) ->  | AB8: =IF(AA8=0,0,(AA8*((LOG(AA8))/LOG(2)))) ->  | AD8: =N8 -> 112 | AE8: =COUNTIF(L21:L27,AD8) -> 0 | AF8: =AE8/(AG4-AE7) ->  | AG8: =IF(AF8=0,0,(AF8*((LOG(AF8))/LOG(2)))) ->  | AI8: =N8 -> 112 | AJ8: =COUNTIF(L28:L34,AI8) -> 0 | AK8: =AJ8/(AL4-AJ7) -> 0 | AL8: =IF(AK8=0,0,(AK8*((LOG(AK8))/LOG(2)))) -> 0 | AN8: =N8 -> 112 | AO8: =COUNTIF(L35:L41,AN8) -> 0 | AP8: =AO8/(AQ4-AO7) ->  | AQ8: =IF(AP8=0,0,(AP8*((LOG(AP8))/LOG(2)))) ->  | AS8: =N8 -> 112 | AT8: =COUNTIF(L42:L48,AS8) -> 0 | AU8: =AT8/(AV4-AT7) ->  | AV8: =IF(AU8=0,0,(AU8*((LOG(AU8))/LOG(2)))) -> 
A9: 11 | B9: 288 | C9: 11 | D9: 295 | E9: 11 | F9: 304 | K9: 0 | L9: 111 | N9: 121 | O9: =COUNTIF($L$7:$L$500,N9) -> 0 | P9: =O9/$Q$4 -> 0 | Q9: =IF(P9=0,0,(P9*((LOG(P9))/LOG(2)))) -> 0 | T9: =N9 -> 121 | U9: =COUNTIF(L7:L13,T9) -> 0 | V9: =U9/(W4-U7) -> 0 | W9: =IF(V9=0,0,(V9*((LOG(V9))/LOG(2)))) -> 0 | Y9: =N9 -> 121 | Z9: =COUNTIF(L14:L20,Y9) -> 0 | AA9: =Z9/(AB4-Z7) ->  | AB9: =IF(AA9=0,0,(AA9*((LOG(AA9))/LOG(2)))) ->  | AD9: =N9 -> 121 | AE9: =COUNTIF(L21:L27,AD9) -> 0 | AF9: =AE9/(AG4-AE7) ->  | AG9: =IF(AF9=0,0,(AF9*((LOG(AF9))/LOG(2)))) ->  | AI9: =N9 -> 121 | AJ9: =COUNTIF(L28:L34,AI9) -> 0 | AK9: =AJ9/(AL4-AJ7) -> 0 | AL9: =IF(AK9=0,0,(AK9*((LOG(AK9))/LOG(2)))) -> 0 | AN9: =N9 -> 121 | AO9: =COUNTIF(L35:L41,AN9) -> 0 | AP9: =AO9/(AQ4-AO7) ->  | AQ9: =IF(AP9=0,0,(AP9*((LOG(AP9))/LOG(2)))) ->  | AS9: =N9 -> 121 | AT9: =COUNTIF(L42:L48,AS9) -> 0 | AU9: =AT9/(AV4-AT7) ->  | AV9: =IF(AU9=0,0,(AU9*((LOG(AU9))/LOG(2)))) -> 
A10: 11 | B10: 421 | C10: 11 | D10: 425 | E10: 11 | F10: 432 | K10: 0 | L10: 111 | N10: 122 | O10: =COUNTIF($L$7:$L$500,N10) -> 0 | P10: =O10/$Q$4 -> 0 | Q10: =IF(P10=0,0,(P10*((LOG(P10))/LOG(2)))) -> 0 | T10: =N10 -> 122 | U10: =COUNTIF(L7:L13,T10) -> 0 | V10: =U10/(W4-U7) -> 0 | W10: =IF(V10=0,0,(V10*((LOG(V10))/LOG(2)))) -> 0 | Y10: =N10 -> 122 | Z10: =COUNTIF(L14:L20,Y10) -> 0 | AA10: =Z10/(AB4-Z7) ->  | AB10: =IF(AA10=0,0,(AA10*((LOG(AA10))/LOG(2)))) ->  | AD10: =N10 -> 122 | AE10: =COUNTIF(L21:L27,AD10) -> 0 | AF10: =AE10/(AG4-AE7) ->  | AG10: =IF(AF10=0,0,(AF10*((LOG(AF10))/LOG(2)))) ->  | AI10: =N10 -> 122 | AJ10: =COUNTIF(L28:L34,AI10) -> 0 | AK10: =AJ10/(AL4-AJ7) -> 0 | AL10: =IF(AK10=0,0,(AK10*((LOG(AK10))/LOG(2)))) -> 0 | AN10: =N10 -> 122 | AO10: =COUNTIF(L35:L41,AN10) -> 0 | AP10: =AO10/(AQ4-AO7) ->  | AQ10: =IF(AP10=0,0,(AP10*((LOG(AP10))/LOG(2)))) ->  | AS10: =N10 -> 122 | AT10: =COUNTIF(L42:L48,AS10) -> 0 | AU10: =AT10/(AV4-AT7) ->  | AV10: =IF(AU10=0,0,(AU10*((LOG(AU10))/LOG(2)))) -> 
A11: 11 | B11: 536 | C11: 11 | D11: 542 | E11: 11 | F11: 548 | K11: 0 | L11: 111 | N11: 211 | O11: =COUNTIF($L$7:$L$500,N11) -> 2 | P11: =O11/$Q$4 -> 0.04761904762 | Q11: =IF(P11=0,0,(P11*((LOG(P11))/LOG(2)))) -> -0.2091579725 | T11: =N11 -> 211 | U11: =COUNTIF(L7:L13,T11) -> 1 | V11: =U11/(W4-U7) -> 1 | W11: =IF(V11=0,0,(V11*((LOG(V11))/LOG(2)))) -> 0 | Y11: =N11 -> 211 | Z11: =COUNTIF(L14:L20,Y11) -> 0 | AA11: =Z11/(AB4-Z7) ->  | AB11: =IF(AA11=0,0,(AA11*((LOG(AA11))/LOG(2)))) ->  | AD11: =N11 -> 211 | AE11: =COUNTIF(L21:L27,AD11) -> 0 | AF11: =AE11/(AG4-AE7) ->  | AG11: =IF(AF11=0,0,(AF11*((LOG(AF11))/LOG(2)))) ->  | AI11: =N11 -> 211 | AJ11: =COUNTIF(L28:L34,AI11) -> 1 | AK11: =AJ11/(AL4-AJ7) -> 1 | AL11: =IF(AK11=0,0,(AK11*((LOG(AK11))/LOG(2)))) -> 0 | AN11: =N11 -> 211 | AO11: =COUNTIF(L35:L41,AN11) -> 0 | AP11: =AO11/(AQ4-AO7) ->  | AQ11: =IF(AP11=0,0,(AP11*((LOG(AP11))/LOG(2)))) ->  | AS11: =N11 -> 211 | AT11: =COUNTIF(L42:L48,AS11) -> 0 | AU11: =AT11/(AV4-AT7) ->  | AV11: =IF(AU11=0,0,(AU11*((LOG(AU11))/LOG(2)))) -> 
A12: 11 | B12: 643 | C12: 11 | D12: 651 | E12: 11 | F12: 671 | K12: 0 | L12: 111 | N12: 212 | O12: =COUNTIF($L$7:$L$500,N12) -> 0 | P12: =O12/$Q$4 -> 0 | Q12: =IF(P12=0,0,(P12*((LOG(P12))/LOG(2)))) -> 0 | T12: =N12 -> 212 | U12: =COUNTIF(L7:L13,T12) -> 0 | V12: =U12/(W4-U7) -> 0 | W12: =IF(V12=0,0,(V12*((LOG(V12))/LOG(2)))) -> 0 | Y12: =N12 -> 212 | Z12: =COUNTIF(L14:L20,Y12) -> 0 | AA12: =Z12/(AB4-Z7) ->  | AB12: =IF(AA12=0,0,(AA12*((LOG(AA12))/LOG(2)))) ->  | AD12: =N12 -> 212 | AE12: =COUNTIF(L21:L27,AD12) -> 0 | AF12: =AE12/(AG4-AE7) ->  | AG12: =IF(AF12=0,0,(AF12*((LOG(AF12))/LOG(2)))) ->  | AI12: =N12 -> 212 | AJ12: =COUNTIF(L28:L34,AI12) -> 0 | AK12: =AJ12/(AL4-AJ7) -> 0 | AL12: =IF(AK12=0,0,(AK12*((LOG(AK12))/LOG(2)))) -> 0 | AN12: =N12 -> 212 | AO12: =COUNTIF(L35:L41,AN12) -> 0 | AP12: =AO12/(AQ4-AO7) ->  | AQ12: =IF(AP12=0,0,(AP12*((LOG(AP12))/LOG(2)))) ->  | AS12: =N12 -> 212 | AT12: =COUNTIF(L42:L48,AS12) -> 0 | AU12: =AT12/(AV4-AT7) ->  | AV12: =IF(AU12=0,0,(AU12*((LOG(AU12))/LOG(2)))) -> 
A13: 11 | B13: 786 | C13: 11 | D13: 791 | E13: 11 | F13: 800 | K13: 0 | L13: 111 | N13: 221 | O13: =COUNTIF($L$7:$L$500,N13) -> 0 | P13: =O13/$Q$4 -> 0 | Q13: =IF(P13=0,0,(P13*((LOG(P13))/LOG(2)))) -> 0 | T13: =N13 -> 221 | U13: =COUNTIF(L7:L13,T13) -> 0 | V13: =U13/(W4-U7) -> 0 | W13: =IF(V13=0,0,(V13*((LOG(V13))/LOG(2)))) -> 0 | Y13: =N13 -> 221 | Z13: =COUNTIF(L14:L20,Y13) -> 0 | AA13: =Z13/(AB4-Z7) ->  | AB13: =IF(AA13=0,0,(AA13*((LOG(AA13))/LOG(2)))) ->  | AD13: =N13 -> 221 | AE13: =COUNTIF(L21:L27,AD13) -> 0 | AF13: =AE13/(AG4-AE7) ->  | AG13: =IF(AF13=0,0,(AF13*((LOG(AF13))/LOG(2)))) ->  | AI13: =N13 -> 221 | AJ13: =COUNTIF(L28:L34,AI13) -> 0 | AK13: =AJ13/(AL4-AJ7) -> 0 | AL13: =IF(AK13=0,0,(AK13*((LOG(AK13))/LOG(2)))) -> 0 | AN13: =N13 -> 221 | AO13: =COUNTIF(L35:L41,AN13) -> 0 | AP13: =AO13/(AQ4-AO7) ->  | AQ13: =IF(AP13=0,0,(AP13*((LOG(AP13))/LOG(2)))) ->  | AS13: =N13 -> 221 | AT13: =COUNTIF(L42:L48,AS13) -> 0 | AU13: =AT13/(AV4-AT7) ->  | AV13: =IF(AU13=0,0,(AU13*((LOG(AU13))/LOG(2)))) -> 
A14: 11 | B14: 891 | C14: 11 | D14: 900 | E14: 11 | F14: 912 | K14: 0 | L14: 111 | N14: 222 | O14: =COUNTIF($L$7:$L$500,N14) -> 0 | P14: =O14/$Q$4 -> 0 | Q14: =IF(P14=0,0,(P14*((LOG(P14))/LOG(2)))) -> 0 | T14: =N14 -> 222 | U14: =COUNTIF(L7:L13,T14) -> 0 | V14: =U14/(W4-U7) -> 0 | W14: =IF(V14=0,0,(V14*((LOG(V14))/LOG(2)))) -> 0 | Y14: =N14 -> 222 | Z14: =COUNTIF(L14:L20,Y14) -> 0 | AA14: =Z14/(AB4-Z7) ->  | AB14: =IF(AA14=0,0,(AA14*((LOG(AA14))/LOG(2)))) ->  | AD14: =N14 -> 222 | AE14: =COUNTIF(L21:L27,AD14) -> 0 | AF14: =AE14/(AG4-AE7) ->  | AG14: =IF(AF14=0,0,(AF14*((LOG(AF14))/LOG(2)))) ->  | AI14: =N14 -> 222 | AJ14: =COUNTIF(L28:L34,AI14) -> 0 | AK14: =AJ14/(AL4-AJ7) -> 0 | AL14: =IF(AK14=0,0,(AK14*((LOG(AK14))/LOG(2)))) -> 0 | AN14: =N14 -> 222 | AO14: =COUNTIF(L35:L41,AN14) -> 0 | AP14: =AO14/(AQ4-AO7) ->  | AQ14: =IF(AP14=0,0,(AP14*((LOG(AP14))/LOG(2)))) ->  | AS14: =N14 -> 222 | AT14: =COUNTIF(L42:L48,AS14) -> 0 | AU14: =AT14/(AV4-AT7) ->  | AV14: =IF(AU14=0,0,(AU14*((LOG(AU14))/LOG(2)))) -> 
A15: 11 | B15: 1011 | C15: 11 | D15: 1016 | E15: 11 | F15: 1025 | K15: 0 | L15: 111 | P15: =SUM(P7:P14) -> 1 | Q15: =-SUM(Q7:Q14) -> 0.2761954276 | V15: =SUM(V7:V14) -> 1 | W15: =-SUM(W7:W14) -> 0 | AA15: =SUM(AA7:AA14) ->  | AB15: =-SUM(AB7:AB14) ->  | AF15: =SUM(AF7:AF14) ->  | AG15: =-SUM(AG7:AG14) ->  | AK15: =SUM(AK7:AK14) -> 1 | AL15: =-SUM(AL7:AL14) -> 0 | AP15: =SUM(AP7:AP14) ->  | AQ15: =-SUM(AQ7:AQ14) ->  | AU15: =SUM(AU7:AU14) ->  | AV15: =-SUM(AV7:AV14) -> 
A16: 11 | B16: 1116 | C16: 11 | D16: 1124 | E16: 11 | F16: 1131 | K16: 0 | L16: 111 | P16: U= | Q16: =Q15/(LOG(Q4)/LOG(2)) -> 0.05122017233 | V16: U1= | W16: =W15/(LOG(W4)/LOG(2)) -> 0 | AA16: U2= | AB16: =AB15/(LOG(AB4)/LOG(2)) ->  | AF16: U3= | AG16: =AG15/(LOG(AG4)/LOG(2)) ->  | AK16: U4= | AL16: =AL15/(LOG(AL4)/LOG(2)) -> 0 | AP16: U5= | AQ16: =AQ15/(LOG(AQ4)/LOG(2)) ->  | AU16: U6= | AV16: =AV15/(LOG(AV4)/LOG(2)) -> 
A17: 11 | B17: 1256 | C17: 11 | D17: 1263 | E17: 11 | F17: 1270 | K17: 0 | L17: 111
A18: 11 | B18: 1360 | C18: 11 | D18: 1364 | E18: 11 | F18: 1371 | K18: 0 | L18: 111
A19: 11 | B19: 1473 | C19: 11 | D19: 1479 | E19: 11 | F19: 1494 | K19: 0 | L19: 111 | N19: Total Target Seq
A20: 11 | B20: 1599 | C20: 11 | D20: 1604 | E20: 11 | F20: 1611 | K20: 0 | L20: 111 | N20: =COUNTIF(L7:L48,G3) -> 40 | P20: 7 | Q20: 7 | R20: 7 | S20: 7 | T20: 7 | U20: 7
A21: 11 | B21: 1718 | C21: 11 | D21: 1729 | E21: 11 | F21: 1737 | K21: 0 | L21: 111 | P21: % of reinforcement given in 6 equal intervals based on number of trials
A22: 11 | B22: 1891 | C22: 11 | D22: 1906 | E22: 11 | F22: 1916 | K22: 0 | L22: 111 | P22: %_1 | Q22: %_2 | R22: %_3 | S22: %_4 | T22: %_5 | U22: %_6
A23: 11 | B23: 2041 | C23: 11 | D23: 2045 | E23: 11 | F23: 2053 | K23: 0 | L23: 111 | O23: target sequence | P23: =$G$3 -> 111 | Q23: =$G$3 -> 111 | R23: =$G$3 -> 111 | S23: =$G$3 -> 111 | T23: =$G$3 -> 111 | U23: =$G$3 -> 111
A24: 11 | B24: 2156 | C24: 11 | D24: 2162 | E24: 11 | F24: 2170 | K24: 0 | L24: 111 | O24: total reinforcement | P24: =U7 -> 6 | Q24: =Z7 -> 7 | R24: =AE7 -> 7 | S24: =AJ7 -> 6 | T24: =AO7 -> 7 | U24: =AT7 -> 7
A25: 11 | B25: 2281 | C25: 11 | D25: 2285 | E25: 11 | F25: 2290 | K25: 0 | L25: 111 | O25: % target
A26: 11 | B26: 2389 | C26: 11 | D26: 2396 | E26: 11 | F26: 2402 | K26: 0 | L26: 111 | O26: CCRF
A27: 11 | B27: 2494 | C27: 11 | D27: 2500 | E27: 11 | F27: 2507 | K27: 0 | L27: 111 | O27: % CCRf
A28: 11 | B28: 2619 | C28: 11 | D28: 2626 | E28: 11 | F28: 2634 | K28: 0 | L28: 111 | O28: average response rate | P28: =F13/P20 -> 114.2857143 | Q28: =(F20-F13)/Q20 -> 115.8571429 | R28: =(F27-F20)/R20 -> 128 | S28: =(F34-F27)/S20 -> 126.2857143 | T28: =(F41-F34)/T20 -> 133.1428571 | U28: =(F48-F41)/U20 -> 125
A29: 11 | B29: 2744 | C29: 11 | D29: 2759 | E29: 11 | F29: 2767 | K29: 0 | L29: 111
A30: 22 | B30: 2864 | C30: 13 | D30: 2877 | E30: 13 | F30: 2887 | K30: 0 | L30: 211
A31: 11 | B31: 2985 | C31: 11 | D31: 2988 | E31: 11 | F31: 2994 | K31: 0 | L31: 111
A32: 11 | B32: 3116 | C32: 11 | D32: 3126 | E32: 11 | F32: 3134 | K32: 0 | L32: 111
A33: 11 | B33: 3228 | C33: 11 | D33: 3233 | E33: 11 | F33: 3243 | K33: 0 | L33: 111
A34: 11 | B34: 3378 | C34: 11 | D34: 3384 | E34: 11 | F34: 3391 | K34: 0 | L34: 111
A35: 11 | B35: 3530 | C35: 11 | D35: 3533 | E35: 11 | F35: 3538 | K35: 0 | L35: 111
A36: 11 | B36: 3647 | C36: 11 | D36: 3656 | E36: 11 | F36: 3662 | K36: 0 | L36: 111
A37: 11 | B37: 3794 | C37: 11 | D37: 3804 | E37: 11 | F37: 3807 | K37: 0 | L37: 111
A38: 11 | B38: 3898 | C38: 11 | D38: 3904 | E38: 11 | F38: 3919 | K38: 0 | L38: 111
A39: 11 | B39: 4073 | C39: 11 | D39: 4082 | E39: 11 | F39: 4090 | K39: 0 | L39: 111
A40: 11 | B40: 4195 | C40: 11 | D40: 4197 | E40: 11 | F40: 4210 | K40: 0 | L40: 111
A41: 11 | B41: 4302 | C41: 11 | D41: 4315 | E41: 11 | F41: 4323 | K41: 0 | L41: 111
A42: 11 | B42: 4456 | C42: 11 | D42: 4463 | E42: 11 | F42: 4468 | K42: 0 | L42: 111
A43: 11 | B43: 4559 | C43: 11 | D43: 4565 | E43: 11 | F43: 4572 | K43: 0 | L43: 111
A44: 11 | B44: 4735 | C44: 11 | D44: 4738 | E44: 11 | F44: 4743 | K44: 0 | L44: 111
A45: 11 | B45: 4833 | C45: 11 | D45: 4845 | E45: 11 | F45: 4855 | K45: 0 | L45: 111
A46: 11 | B46: 4945 | C46: 11 | D46: 4950 | E46: 11 | F46: 4958 | K46: 0 | L46: 111
A47: 11 | B47: 5059 | C47: 11 | D47: 5064 | E47: 11 | F47: 5071 | K47: 0 | L47: 111
A48: 11 | B48: 5188 | C48: 11 | D48: 5191 | E48: 11 | F48: 5198 | K48: 1 | L48: 111

Sheet !M830B1I.sha
A1: Report for:!M830B1I.sha
A2: Date: | B2: <date>
A3: Hen: | B3: <hen> | F3: Correct Sequence | G3: =Start!J2 -> 111 | P3: Total Sequences in Data | Q3: =4994-COUNTBLANK(L7:L5000) -> 40 | V3: Total Sequences in Block Data | W3: =COUNTA(L7:L13) -> 7 | AA3: Total Sequences in Block Data | AB3: =COUNTA(L14:L19) -> 6 | AF3: Total Sequences in Block Data | AG3: =COUNTA(L20:L26) -> 7 | AK3: Total Sequences in Block Data | AL3: =COUNTA(L27:L33) -> 7 | AP3: Total Sequences in Block Data | AQ3: =COUNTA(L34:L39) -> 6 | AU3: Total Sequences in Block Data | AV3: =COUNTA(L40:L46) -> 7
P4: Total Sequences in Summary | Q4: =SUM(O7:O14) -> 40 | V4: Total Sequences in Block Summary | W4: =SUM(U7:U14) -> 7 | AA4: Total Sequences in Block Summary | AB4: =SUM(Z7:Z14) -> 6 | AF4: Total Sequences in Block Summary | AG4: =SUM(AE7:AE14) -> 7 | AK4: Total Sequences in Block Summary | AL4: =SUM(AJ7:AJ14) -> 7 | AP4: Total Sequences in Block Summary | AQ4: =SUM(AO7:AO14) -> 6 | AU4: Total Sequences in Block Summary | AV4: =SUM(AT7:AT14) -> 7
T5: Block 1 | Y5: Block 2 | AD5: Block 3 | AI5: Block 4 | AN5: Block 5 | AS5: Block 6
A6: Sequence Component 1 | B6: Time 1 | C6: Sequence Component 2 | D6: Time 2 | E6: Sequence Component 3 | F6: Time 3 | G6: Sequence Component 4 | H6: Time 4 | I6: Sequence Component 5 | J6: Time 5 | K6: Correct? 0=No 1=Yes | L6: Sequence | N6: Frequency | P6: Relative Frequency | Q6: Variability | T6: Frequency | V6: Relative Frequency | W6: Variability | Y6: Frequency | AA6: Relative Frequency | AB6: Variability | AD6: Frequency | AF6: Relative Frequency | AG6: Variability | AI6: Frequency | AK6: Relative Frequency | AL6: Variability | AN6: Frequency | AP6: Relative Frequency | AQ6: Variability | AS6: Frequency | AU6: Relative Frequency | AV6: Variability
A7: 11 | B7: 416 | C7: 11 | D7: 420 | E7: 11 | F7: 428 | K7: 0 | L7: 111 | N7: 111 | O7: =COUNTIF($L$7:$L$500,N7) -> 40 | P7: =O7/$Q$4 -> 1 | Q7: =IF(P7=0,0,(P7*((LOG(P7))/LOG(2)))) -> 0 | T7: =N7 -> 111 | U7: =COUNTIF(L7:L13,T7) -> 7 | Y7: =N7 -> 111 | Z7: =COUNTIF(L14:L19,Y7) -> 6 | AD7: =N7 -> 111 | AE7: =COUNTIF(L20:L26,AD7) -> 7 | AI7: =N7 -> 111 | AJ7: =COUNTIF(L27:L33,AI7) -> 7 | AN7: =N7 -> 111 | AO7: =COUNTIF(L34:L39,AN7) -> 6 | AS7: =N7 -> 111 | AT7: =COUNTIF(L40:L46,AS7) -> 7
A8: 11 | B8: 555 | C8: 11 | D8: 560 | E8: 11 | F8: 570 | K8: 0 | L8: 111 | N8: 112 | O8: =COUNTIF($L$7:$L$500,N8) -> 0 | P8: =O8/$Q$4 -> 0 | Q8: =IF(P8=0,0,(P8*((LOG(P8))/LOG(2)))) -> 0 | T8: =N8 -> 112 | U8: =COUNTIF(L7:L13,T8) -> 0 | V8: =U8/(W4-U7) ->  | W8: =IF(V8=0,0,(V8*((LOG(V8))/LOG(2)))) ->  | Y8: =N8 -> 112 | Z8: =COUNTIF(L14:L19,Y8) -> 0 | AA8: =Z8/(AB4-Z7) ->  | AB8: =IF(AA8=0,0,(AA8*((LOG(AA8))/LOG(2)))) ->  | AD8: =N8 -> 112 | AE8: =COUNTIF(L20:L26,AD8) -> 0 | AF8: =AE8/(AG4-AE7) ->  | AG8: =IF(AF8=0,0,(AF8*((LOG(AF8))/LOG(2)))) ->  | AI8: =N8 -> 112 | AJ8: =COUNTIF(L27:L33,AI8) -> 0 | AK8: =AJ8/(AL4-AJ7) ->  | AL8: =IF(AK8=0,0,(AK8*((LOG(AK8))/LOG(2)))) ->  | AN8: =N8 -> 112 | AO8: =COUNTIF(L34:L39,AN8) -> 0 | AP8: =AO8/(AQ4-AO7) ->  | AQ8: =IF(AP8=0,0,(AP8*((LOG(AP8))/LOG(2)))) ->  | AS8: =N8 -> 112 | AT8: =COUNTIF(L40:L46,AS8) -> 0 | AU8: =AT8/(AV4-AT7) ->  | AV8: =IF(AU8=0,0,(AU8*((LOG(AU8))/LOG(2)))) -> 
A9: 11 | B9: 683 | C9: 11 | D9: 698 | E9: 11 | F9: 708 | K9: 0 | L9: 111 | N9: 121 | O9: =COUNTIF($L$7:$L$500,N9) -> 0 | P9: =O9/$Q$4 -> 0 | Q9: =IF(P9=0,0,(P9*((LOG(P9))/LOG(2)))) -> 0 | T9: =N9 -> 121 | U9: =COUNTIF(L7:L13,T9) -> 0 | V9: =U9/(W4-U7) ->  | W9: =IF(V9=0,0,(V9*((LOG(V9))/LOG(2)))) ->  | Y9: =N9 -> 121 | Z9: =COUNTIF(L14:L19,Y9) -> 0 | AA9: =Z9/(AB4-Z7) ->  | AB9: =IF(AA9=0,0,(AA9*((LOG(AA9))/LOG(2)))) ->  | AD9: =N9 -> 121 | AE9: =COUNTIF(L20:L26,AD9) -> 0 | AF9: =AE9/(AG4-AE7) ->  | AG9: =IF(AF9=0,0,(AF9*((LOG(AF9))/LOG(2)))) ->  | AI9: =N9 -> 121 | AJ9: =COUNTIF(L27:L33,AI9) -> 0 | AK9: =AJ9/(AL4-AJ7) ->  | AL9: =IF(AK9=0,0,(AK9*((LOG(AK9))/LOG(2)))) ->  | AN9: =N9 -> 121 | AO9: =COUNTIF(L34:L39,AN9) -> 0 | AP9: =AO9/(AQ4-AO7) ->  | AQ9: =IF(AP9=0,0,(AP9*((LOG(AP9))/LOG(2)))) ->  | AS9: =N9 -> 121 | AT9: =COUNTIF(L40:L46,AS9) -> 0 | AU9: =AT9/(AV4-AT7) ->  | AV9: =IF(AU9=0,0,(AU9*((LOG(AU9))/LOG(2)))) -> 
A10: 11 | B10: 804 | C10: 11 | D10: 826 | E10: 11 | F10: 845 | K10: 0 | L10: 111 | N10: 122 | O10: =COUNTIF($L$7:$L$500,N10) -> 0 | P10: =O10/$Q$4 -> 0 | Q10: =IF(P10=0,0,(P10*((LOG(P10))/LOG(2)))) -> 0 | T10: =N10 -> 122 | U10: =COUNTIF(L7:L13,T10) -> 0 | V10: =U10/(W4-U7) ->  | W10: =IF(V10=0,0,(V10*((LOG(V10))/LOG(2)))) ->  | Y10: =N10 -> 122 | Z10: =COUNTIF(L14:L19,Y10) -> 0 | AA10: =Z10/(AB4-Z7) ->  | AB10: =IF(AA10=0,0,(AA10*((LOG(AA10))/LOG(2)))) ->  | AD10: =N10 -> 122 | AE10: =COUNTIF(L20:L26,AD10) -> 0 | AF10: =AE10/(AG4-AE7) ->  | AG10: =IF(AF10=0,0,(AF10*((LOG(AF10))/LOG(2)))) ->  | AI10: =N10 -> 122 | AJ10: =COUNTIF(L27:L33,AI10) -> 0 | AK10: =AJ10/(AL4-AJ7) ->  | AL10: =IF(AK10=0,0,(AK10*((LOG(AK10))/LOG(2)))) ->  | AN10: =N10 -> 122 | AO10: =COUNTIF(L34:L39,AN10) -> 0 | AP10: =AO10/(AQ4-AO7) ->  | AQ10: =IF(AP10=0,0,(AP10*((LOG(AP10))/LOG(2)))) ->  | AS10: =N10 -> 122 | AT10: =COUNTIF(L40:L46,AS10) -> 0 | AU10: =AT10/(AV4-AT7) ->  | AV10: =IF(AU10=0,0,(AU10*((LOG(AU10))/LOG(2)))) -> 
A11: 11 | B11: 966 | C11: 11 | D11: 973 | E11: 11 | F11: 979 | K11: 0 | L11: 111 | N11: 211 | O11: =COUNTIF($L$7:$L$500,N11) -> 0 | P11: =O11/$Q$4 -> 0 | Q11: =IF(P11=0,0,(P11*((LOG(P11))/LOG(2)))) -> 0 | T11: =N11 -> 211 | U11: =COUNTIF(L7:L13,T11) -> 0 | V11: =U11/(W4-U7) ->  | W11: =IF(V11=0,0,(V11*((LOG(V11))/LOG(2)))) ->  | Y11: =N11 -> 211 | Z11: =COUNTIF(L14:L19,Y11) -> 0 | AA11: =Z11/(AB4-Z7) ->  | AB11: =IF(AA11=0,0,(AA11*((LOG(AA11))/LOG(2)))) ->  | AD11: =N11 -> 211 | AE11: =COUNTIF(L20:L26,AD11) -> 0 | AF11: =AE11/(AG4-AE7) ->  | AG11: =IF(AF11=0,0,(AF11*((LOG(AF11))/LOG(2)))) ->  | AI11: =N11 -> 211 | AJ11: =COUNTIF(L27:L33,AI11) -> 0 | AK11: =AJ11/(AL4-AJ7) ->  | AL11: =IF(AK11=0,0,(AK11*((LOG(AK11))/LOG(2)))) ->  | AN11: =N11 -> 211 | AO11: =COUNTIF(L34:L39,AN11) -> 0 | AP11: =AO11/(AQ4-AO7) ->  | AQ11: =IF(AP11=0,0,(AP11*((LOG(AP11))/LOG(2)))) ->  | AS11: =N11 -> 211 | AT11: =COUNTIF(L40:L46,AS11) -> 0 | AU11: =AT11/(AV4-AT7) ->  | AV11: =IF(AU11=0,0,(AU11*((LOG(AU11))/LOG(2)))) -> 
A12: 11 | B12: 1161 | C12: 11 | D12: 1170 | E12: 11 | F12: 1178 | K12: 0 | L12: 111 | N12: 212 | O12: =COUNTIF($L$7:$L$500,N12) -> 0 | P12: =O12/$Q$4 -> 0 | Q12: =IF(P12=0,0,(P12*((LOG(P12))/LOG(2)))) -> 0 | T12: =N12 -> 212 | U12: =COUNTIF(L7:L13,T12) -> 0 | V12: =U12/(W4-U7) ->  | W12: =IF(V12=0,0,(V12*((LOG(V12))/LOG(2)))) ->  | Y12: =N12 -> 212 | Z12: =COUNTIF(L14:L19,Y12) -> 0 | AA12: =Z12/(AB4-Z7) ->  | AB12: =IF(AA12=0,0,(AA12*((LOG(AA12))/LOG(2)))) ->  | AD12: =N12 -> 212 | AE12: =COUNTIF(L20:L26,AD12) -> 0 | AF12: =AE12/(AG4-AE7) ->  | AG12: =IF(AF12=0,0,(AF12*((LOG(AF12))/LOG(2)))) ->  | AI12: =N12 -> 212 | AJ12: =COUNTIF(L27:L33,AI12) -> 0 | AK12: =AJ12/(AL4-AJ7) ->  | AL12: =IF(AK12=0,0,(AK12*((LOG(AK12))/LOG(2)))) ->  | AN12: =N12 -> 212 | AO12: =COUNTIF(L34:L39,AN12) -> 0 | AP12: =AO12/(AQ4-AO7) ->  | AQ12: =IF(AP12=0,0,(AP12*((LOG(AP12))/LOG(2)))) ->  | AS12: =N12 -> 212 | AT12: =COUNTIF(L40:L46,AS12) -> 0 | AU12: =AT12/(AV4-AT7) ->  | AV12: =IF(AU12=0,0,(AU12*((LOG(AU12))/LOG(2)))) -> 
A13: 11 | B13: 1293 | C13: 11 | D13: 1302 | E13: 11 | F13: 1308 | K13: 0 | L13: 111 | N13: 221 | O13: =COUNTIF($L$7:$L$500,N13) -> 0 | P13: =O13/$Q$4 -> 0 | Q13: =IF(P13=0,0,(P13*((LOG(P13))/LOG(2)))) -> 0 | T13: =N13 -> 221 | U13: =COUNTIF(L7:L13,T13) -> 0 | V13: =U13/(W4-U7) ->  | W13: =IF(V13=0,0,(V13*((LOG(V13))/LOG(2)))) ->  | Y13: =N13 -> 221 | Z13: =COUNTIF(L14:L19,Y13) -> 0 | AA13: =Z13/(AB4-Z7) ->  | AB13: =IF(AA13=0,0,(AA13*((LOG(AA13))/LOG(2)))) ->  | AD13: =N13 -> 221 | AE13: =COUNTIF(L20:L26,AD13) -> 0 | AF13: =AE13/(AG4-AE7) ->  | AG13: =IF(AF13=0,0,(AF13*((LOG(AF13))/LOG(2)))) ->  | AI13: =N13 -> 221 | AJ13: =COUNTIF(L27:L33,AI13) -> 0 | AK13: =AJ13/(AL4-AJ7) ->  | AL13: =IF(AK13=0,0,(AK13*((LOG(AK13))/LOG(2)))) ->  | AN13: =N13 -> 221 | AO13: =COUNTIF(L34:L39,AN13) -> 0 | AP13: =AO13/(AQ4-AO7) ->  | AQ13: =IF(AP13=0,0,(AP13*((LOG(AP13))/LOG(2)))) ->  | AS13: =N13 -> 221 | AT13: =COUNTIF(L40:L46,AS13) -> 0 | AU13: =AT13/(AV4-AT7) ->  | AV13: =IF(AU13=0,0,(AU13*((LOG(AU13))/LOG(2)))) -> 
A14: 11 | B14: 1426 | C14: 11 | D14: 1434 | E14: 11 | F14: 1443 | K14: 0 | L14: 111 | N14: 222 | O14: =COUNTIF($L$7:$L$500,N14) -> 0 | P14: =O14/$Q$4 -> 0 | Q14: =IF(P14=0,0,(P14*((LOG(P14))/LOG(2)))) -> 0 | T14: =N14 -> 222 | U14: =COUNTIF(L7:L13,T14) -> 0 | V14: =U14/(W4-U7) ->  | W14: =IF(V14=0,0,(V14*((LOG(V14))/LOG(2)))) ->  | Y14: =N14 -> 222 | Z14: =COUNTIF(L14:L19,Y14) -> 0 | AA14: =Z14/(AB4-Z7) ->  | AB14: =IF(AA14=0,0,(AA14*((LOG(AA14))/LOG(2)))) ->  | AD14: =N14 -> 222 | AE14: =COUNTIF(L20:L26,AD14) -> 0 | AF14: =AE14/(AG4-AE7) ->  | AG14: =IF(AF14=0,0,(AF14*((LOG(AF14))/LOG(2)))) ->  | AI14: =N14 -> 222 | AJ14: =COUNTIF(L27:L33,AI14) -> 0 | AK14: =AJ14/(AL4-AJ7) ->  | AL14: =IF(AK14=0,0,(AK14*((LOG(AK14))/LOG(2)))) ->  | AN14: =N14 -> 222 | AO14: =COUNTIF(L34:L39,AN14) -> 0 | AP14: =AO14/(AQ4-AO7) ->  | AQ14: =IF(AP14=0,0,(AP14*((LOG(AP14))/LOG(2)))) ->  | AS14: =N14 -> 222 | AT14: =COUNTIF(L40:L46,AS14) -> 0 | AU14: =AT14/(AV4-AT7) ->  | AV14: =IF(AU14=0,0,(AU14*((LOG(AU14))/LOG(2)))) -> 
A15: 11 | B15: 1589 | C15: 11 | D15: 1598 | E15: 11 | F15: 1605 | K15: 0 | L15: 111 | P15: =SUM(P7:P14) -> 1 | Q15: =-SUM(Q7:Q14) -> 0 | V15: =SUM(V7:V14) ->  | W15: =-SUM(W7:W14) ->  | AA15: =SUM(AA7:AA14) ->  | AB15: =-SUM(AB7:AB14) ->  | AF15: =SUM(AF7:AF14) ->  | AG15: =-SUM(AG7:AG14) ->  | AK15: =SUM(AK7:AK14) ->  | AL15: =-SUM(AL7:AL14) ->  | AP15: =SUM(AP7:AP14) ->  | AQ15: =-SUM(AQ7:AQ14) ->  | AU15: =SUM(AU7:AU14) ->  | AV15: =-SUM(AV7:AV14) -> 
A16: 11 | B16: 1747 | C16: 11 | D16: 1751 | E16: 11 | F16: 1760 | K16: 0 | L16: 111 | P16: U= | Q16: =Q15/(LOG(Q4)/LOG(2)) -> 0 | V16: U1= | W16: =W15/(LOG(W4)/LOG(2)) ->  | AA16: U2= | AB16: =AB15/(LOG(AB4)/LOG(2)) ->  | AF16: U3= | AG16: =AG15/(LOG(AG4)/LOG(2)) ->  | AK16: U4= | AL16: =AL15/(LOG(AL4)/LOG(2)) ->  | AP16: U5= | AQ16: =AQ15/(LOG(AQ4)/LOG(2)) ->  | AU16: U6= | AV16: =AV15/(LOG(AV4)/LOG(2)) -> 
A17: 11 | B17: 1855 | C17: 11 | D17: 1861 | E17: 11 | F17: 1871 | K17: 0 | L17: 111
A18: 11 | B18: 1979 | C18: 11 | D18: 1987 | E18: 11 | F18: 1995 | K18: 0 | L18: 111
A19: 11 | B19: 2128 | C19: 11 | D19: 2139 | E19: 11 | F19: 2146 | K19: 0 | L19: 111 | N19: Total Target Seq
A20: 11 | B20: 2312 | C20: 11 | D20: 2314 | E20: 11 | F20: 2327 | K20: 0 | L20: 111 | N20: =COUNTIF(L7:L46,G3) -> 40 | P20: 7 | Q20: 6 | R20: 7 | S20: 7 | T20: 6 | U20: 7
A21: 11 | B21: 2456 | C21: 11 | D21: 2465 | E21: 11 | F21: 2480 | K21: 0 | L21: 111 | P21: % of reinforcement given in 6 equal intervals based on number of trials
A22: 11 | B22: 2592 | C22: 11 | D22: 2602 | E22: 11 | F22: 2610 | K22: 0 | L22: 111 | P22: %_1 | Q22: %_2 | R22: %_3 | S22: %_4 | T22: %_5 | U22: %_6
A23: 11 | B23: 2718 | C23: 11 | D23: 2721 | E23: 11 | F23: 2735 | K23: 0 | L23: 111 | O23: target sequence | P23: =$G$3 -> 111 | Q23: =$G$3 -> 111 | R23: =$G$3 -> 111 | S23: =$G$3 -> 111 | T23: =$G$3 -> 111 | U23: =$G$3 -> 111
A24: 11 | B24: 2832 | C24: 11 | D24: 2843 | E24: 11 | F24: 2850 | K24: 0 | L24: 111 | O24: total reinforcement | P24: =U7 -> 7 | Q24: =Z7 -> 6 | R24: =AE7 -> 7 | S24: =AJ7 -> 7 | T24: =AO7 -> 6 | U24: =AT7 -> 7
A25: 11 | B25: 3033 | C25: 11 | D25: 3036 | E25: 11 | F25: 3051 | K25: 0 | L25: 111 | O25: % target
A26: 11 | B26: 3161 | C26: 11 | D26: 3192 | E26: 11 | F26: 3202 | K26: 0 | L26: 111 | O26: CCRF
A27: 11 | B27: 3308 | C27: 11 | D27: 3316 | E27: 11 | F27: 3322 | K27: 0 | L27: 111 | O27: % CCRf
A28: 11 | B28: 3412 | C28: 11 | D28: 3420 | E28: 11 | F28: 3428 | K28: 0 | L28: 111 | O28: average response rate | P28: =F13/P20 -> 186.8571429 | Q28: =(F19-F13)/Q20 -> 139.6666667 | R28: =(F26-F19)/R20 -> 150.8571429 | S28: =(F33-F26)/S20 -> 116.1428571 | T28: =(F39-F33)/T20 -> 144.6666667 | U28: =(F46-F39)/U20 -> 129.8571429
A29: 11 | B29: 3521 | C29: 11 | D29: 3528 | E29: 11 | F29: 3535 | K29: 0 | L29: 111
A30: 11 | B30: 3646 | C30: 11 | D30: 3655 | E30: 11 | F30: 3663 | K30: 0 | L30: 111
A31: 11 | B31: 3759 | C31: 11 | D31: 3774 | E31: 11 | F31: 3783 | K31: 0 | L31: 111
A32: 11 | B32: 3876 | C32: 11 | D32: 3888 | E32: 11 | F32: 3899 | K32: 0 | L32: 111
A33: 11 | B33: 3986 | C33: 11 | D33: 3989 | E33: 11 | F33: 4015 | K33: 0 | L33: 111
A34: 11 | B34: 4130 | C34: 11 | D34: 4135 | E34: 11 | F34: 4144 | K34: 0 | L34: 111
A35: 11 | B35: 4243 | C35: 11 | D35: 4251 | E35: 11 | F35: 4260 | K35: 0 | L35: 111
A36: 11 | B36: 4396 | C36: 11 | D36: 4410 | E36: 11 | F36: 4420 | K36: 0 | L36: 111
A37: 11 | B37: 4538 | C37: 11 | D37: 4547 | E37: 11 | F37: 4556 | K37: 0 | L37: 111
A38: 11 | B38: 4762 | C38: 11 | D38: 4769 | E38: 11 | F38: 4775 | K38: 0 | L38: 111
A39: 11 | B39: 4862 | C39: 11 | D39: 4869 | E39: 11 | F39: 4883 | K39: 0 | L39: 111
A40: 11 | B40: 4973 | C40: 11 | D40: 4985 | E40: 11 | F40: 5000 | K40: 0 | L40: 111
A41: 11 | B41: 5089 | C41: 11 | D41: 5103 | E41: 11 | F41: 5114 | K41: 0 | L41: 111
A42: 11 | B42: 5205 | C42: 11 | D42: 5211 | E42: 11 | F42: 5218 | K42: 0 | L42: 111
A43: 11 | B43: 5355 | C43: 11 | D43: 5357 | E43: 11 | F43: 5360 | K43: 0 | L43: 111
A44: 11 | B44: 5490 | C44: 11 | D44: 5499 | E44: 11 | F44: 5506 | K44: 0 | L44: 111
A45: 11 | B45: 5646 | C45: 11 | D45: 5652 | E45: 11 | F45: 5661 | K45: 0 | L45: 111
A46: 11 | B46: 5777 | C46: 11 | D46: 5784 | E46: 11 | F46: 5792 | K46: 1 | L46: 111

Sheet !M831B1I.sha
A1: Report for:!M831B1I.sha
A2: Date: | B2: <date>
A3: Hen: | B3: <hen> | F3: Correct Sequence | G3: =Start!J2 -> 111 | P3: Total Sequences in Data | Q3: =4994-COUNTBLANK(L7:L5000) -> 40 | V3: Total Sequences in Block Data | W3: =COUNTA(L7:L13) -> 7 | AA3: Total Sequences in Block Data | AB3: =COUNTA(L14:L19) -> 6 | AF3: Total Sequences in Block Data | AG3: =COUNTA(L20:L26) -> 7 | AK3: Total Sequences in Block Data | AL3: =COUNTA(L27:L33) -> 7 | AP3: Total Sequences in Block Data | AQ3: =COUNTA(L34:L39) -> 6 | AU3: Total Sequences in Block Data | AV3: =COUNTA(L40:L46) -> 7
P4: Total Sequences in Summary | Q4: =SUM(O7:O14) -> 40 | V4: Total Sequences in Block Summary | W4: =SUM(U7:U14) -> 7 | AA4: Total Sequences in Block Summary | AB4: =SUM(Z7:Z14) -> 6 | AF4: Total Sequences in Block Summary | AG4: =SUM(AE7:AE14) -> 7 | AK4: Total Sequences in Block Summary | AL4: =SUM(AJ7:AJ14) -> 7 | AP4: Total Sequences in Block Summary | AQ4: =SUM(AO7:AO14) -> 6 | AU4: Total Sequences in Block Summary | AV4: =SUM(AT7:AT14) -> 7
T5: Block 1 | Y5: Block 2 | AD5: Block 3 | AI5: Block 4 | AN5: Block 5 | AS5: Block 6
A6: Sequence Component 1 | B6: Time 1 | C6: Sequence Component 2 | D6: Time 2 | E6: Sequence Component 3 | F6: Time 3 | G6: Sequence Component 4 | H6: Time 4 | I6: Sequence Component 5 | J6: Time 5 | K6: Correct? 0=No 1=Yes | L6: Sequence | N6: Frequency | P6: Relative Frequency | Q6: Variability | T6: Frequency | V6: Relative Frequency | W6: Variability | Y6: Frequency | AA6: Relative Frequency | AB6: Variability | AD6: Frequency | AF6: Relative Frequency | AG6: Variability | AI6: Frequency | AK6: Relative Frequency | AL6: Variability | AN6: Frequency | AP6: Relative Frequency | AQ6: Variability | AS6: Frequency | AU6: Relative Frequency | AV6: Variability
A7: 11 | B7: 55 | C7: 11 | D7: 60 | E7: 11 | F7: 68 | K7: 0 | L7: 111 | N7: 111 | O7: =COUNTIF($L$7:$L$500,N7) -> 40 | P7: =O7/$Q$4 -> 1 | Q7: =IF(P7=0,0,(P7*((LOG(P7))/LOG(2)))) -> 0 | T7: =N7 -> 111 | U7: =COUNTIF(L7:L13,T7) -> 7 | Y7: =N7 -> 111 | Z7: =COUNTIF(L14:L19,Y7) -> 6 | AD7: =N7 -> 111 | AE7: =COUNTIF(L20:L26,AD7) -> 7 | AI7: =N7 -> 111 | AJ7: =COUNTIF(L27:L33,AI7) -> 7 | AN7: =N7 -> 111 | AO7: =COUNTIF(L34:L39,AN7) -> 6 | AS7: =N7 -> 111 | AT7: =COUNTIF(L40:L46,AS7) -> 7
A8: 11 | B8: 177 | C8: 11 | D8: 186 | E8: 11 | F8: 193 | K8: 0 | L8: 111 | N8: 112 | O8: =COUNTIF($L$7:$L$500,N8) -> 0 | P8: =O8/$Q$4 -> 0 | Q8: =IF(P8=0,0,(P8*((LOG(P8))/LOG(2)))) -> 0 | T8: =N8 -> 112 | U8: =COUNTIF(L7:L13,T8) -> 0 | V8: =U8/(W4-U7) ->  | W8: =IF(V8=0,0,(V8*((LOG(V8))/LOG(2)))) ->  | Y8: =N8 -> 112 | Z8: =COUNTIF(L14:L19,Y8) -> 0 | AA8: =Z8/(AB4-Z7) ->  | AB8: =IF(AA8=0,0,(AA8*((LOG(AA8))/LOG(2)))) ->  | AD8: =N8 -> 112 | AE8: =COUNTIF(L20:L26,AD8) -> 0 | AF8: =AE8/(AG4-AE7) ->  | AG8: =IF(AF8=0,0,(AF8*((LOG(AF8))/LOG(2)))) ->  | AI8: =N8 -> 112 | AJ8: =COUNTIF(L27:L33,AI8) -> 0 | AK8: =AJ8/(AL4-AJ7) ->  | AL8: =IF(AK8=0,0,(AK8*((LOG(AK8))/LOG(2)))) ->  | AN8: =N8 -> 112 | AO8: =COUNTIF(L34:L39,AN8) -> 0 | AP8: =AO8/(AQ4-AO7) ->  | AQ8: =IF(AP8=0,0,(AP8*((LOG(AP8))/LOG(2)))) ->  | AS8: =N8 -> 112 | AT8: =COUNTIF(L40:L46,AS8) -> 0 | AU8: =AT8/(AV4-AT7) ->  | AV8: =IF(AU8=0,0,(AU8*((LOG(AU8))/LOG(2)))) -> 
A9: 11 | B9: 280 | C9: 11 | D9: 285 | E9: 11 | F9: 296 | K9: 0 | L9: 111 | N9: 121 | O9: =COUNTIF($L$7:$L$500,N9) -> 0 | P9: =O9/$Q$4 -> 0 | Q9: =IF(P9=0,0,(P9*((LOG(P9))/LOG(2)))) -> 0 | T9: =N9 -> 121 | U9: =COUNTIF(L7:L13,T9) -> 0 | V9: =U9/(W4-U7) ->  | W9: =IF(V9=0,0,(V9*((LOG(V9))/LOG(2)))) ->  | Y9: =N9 -> 121 | Z9: =COUNTIF(L14:L19,Y9) -> 0 | AA9: =Z9/(AB4-Z7) ->  | AB9: =IF(AA9=0,0,(AA9*((LOG(AA9))/LOG(2)))) ->  | AD9: =N9 -> 121 | AE9: =COUNTIF(L20:L26,AD9) -> 0 | AF9: =AE9/(AG4-AE7) ->  | AG9: =IF(AF9=0,0,(AF9*((LOG(AF9))/LOG(2)))) ->  | AI9: =N9 -> 121 | AJ9: =COUNTIF(L27:L33,AI9) -> 0 | AK9: =AJ9/(AL4-AJ7) ->  | AL9: =IF(AK9=0,0,(AK9*((LOG(AK9))/LOG(2)))) ->  | AN9: =N9 -> 121 | AO9: =COUNTIF(L34:L39,AN9) -> 0 | AP9: =AO9/(AQ4-AO7) ->  | AQ9: =IF(AP9=0,0,(AP9*((LOG(AP9))/LOG(2)))) ->  | AS9: =N9 -> 121 | AT9: =COUNTIF(L40:L46,AS9) -> 0 | AU9: =AT9/(AV4-AT7) ->  | AV9: =IF(AU9=0,0,(AU9*((LOG(AU9))/LOG(2)))) -> 
A10: 11 | B10: 462 | C10: 11 | D10: 474 | E10: 11 | F10: 483 | K10: 0 | L10: 111 | N10: 122 | O10: =COUNTIF($L$7:$L$500,N10) -> 0 | P10: =O10/$Q$4 -> 0 | Q10: =IF(P10=0,0,(P10*((LOG(P10))/LOG(2)))) -> 0 | T10: =N10 -> 122 | U10: =COUNTIF(L7:L13,T10) -> 0 | V10: =U10/(W4-U7) ->  | W10: =IF(V10=0,0,(V10*((LOG(V10))/LOG(2)))) ->  | Y10: =N10 -> 122 | Z10: =COUNTIF(L14:L19,Y10) -> 0 | AA10: =Z10/(AB4-Z7) ->  | AB10: =IF(AA10=0,0,(AA10*((LOG(AA10))/LOG(2)))) ->  | AD10: =N10 -> 122 | AE10: =COUNTIF(L20:L26,AD10) -> 0 | AF10: =AE10/(AG4-AE7) ->  | AG10: =IF(AF10=0,0,(AF10*((LOG(AF10))/LOG(2)))) ->  | AI10: =N10 -> 122 | AJ10: =COUNTIF(L27:L33,AI10) -> 0 | AK10: =AJ10/(AL4-AJ7) ->  | AL10: =IF(AK10=0,0,(AK10*((LOG(AK10))/LOG(2)))) ->  | AN10: =N10 -> 122 | AO10: =COUNTIF(L34:L39,AN10) -> 0 | AP10: =AO10/(AQ4-AO7) ->  | AQ10: =IF(AP10=0,0,(AP10*((LOG(AP10))/LOG(2)))) ->  | AS10: =N10 -> 122 | AT10: =COUNTIF(L40:L46,AS10) -> 0 | AU10: =AT10/(AV4-AT7) ->  | AV10: =IF(AU10=0,0,(AU10*((LOG(AU10))/LOG(2)))) -> 
A11: 11 | B11: 613 | C11: 11 | D11: 618 | E11: 11 | F11: 626 | K11: 0 | L11: 111 | N11: 211 | O11: =COUNTIF($L$7:$L$500,N11) -> 0 | P11: =O11/$Q$4 -> 0 | Q11: =IF(P11=0,0,(P11*((LOG(P11))/LOG(2)))) -> 0 | T11: =N11 -> 211 | U11: =COUNTIF(L7:L13,T11) -> 0 | V11: =U11/(W4-U7) ->  | W11: =IF(V11=0,0,(V11*((LOG(V11))/LOG(2)))) ->  | Y11: =N11 -> 211 | Z11: =COUNTIF(L14:L19,Y11) -> 0 | AA11: =Z11/(AB4-Z7) ->  | AB11: =IF(AA11=0,0,(AA11*((LOG(AA11))/LOG(2)))) ->  | AD11: =N11 -> 211 | AE11: =COUNTIF(L20:L26,AD11) -> 0 | AF11: =AE11/(AG4-AE7) ->  | AG11: =IF(AF11=0,0,(AF11*((LOG(AF11))/LOG(2)))) ->  | AI11: =N11 -> 211 | AJ11: =COUNTIF(L27:L33,AI11) -> 0 | AK11: =AJ11/(AL4-AJ7) ->  | AL11: =IF(AK11=0,0,(AK11*((LOG(AK11))/LOG(2)))) ->  | AN11: =N11 -> 211 | AO11: =COUNTIF(L34:L39,AN11) -> 0 | AP11: =AO11/(AQ4-AO7) ->  | AQ11: =IF(AP11=0,0,(AP11*((LOG(AP11))/LOG(2)))) ->  | AS11: =N11 -> 211 | AT11: =COUNTIF(L40:L46,AS11) -> 0 | AU11: =AT11/(AV4-AT7) ->  | AV11: =IF(AU11=0,0,(AU11*((LOG(AU11))/LOG(2)))) -> 
A12: 11 | B12: 713 | C12: 11 | D12: 720 | E12: 11 | F12: 728 | K12: 0 | L12: 111 | N12: 212 | O12: =COUNTIF($L$7:$L$500,N12) -> 0 | P12: =O12/$Q$4 -> 0 | Q12: =IF(P12=0,0,(P12*((LOG(P12))/LOG(2)))) -> 0 | T12: =N12 -> 212 | U12: =COUNTIF(L7:L13,T12) -> 0 | V12: =U12/(W4-U7) ->  | W12: =IF(V12=0,0,(V12*((LOG(V12))/LOG(2)))) ->  | Y12: =N12 -> 212 | Z12: =COUNTIF(L14:L19,Y12) -> 0 | AA12: =Z12/(AB4-Z7) ->  | AB12: =IF(AA12=0,0,(AA12*((LOG(AA12))/LOG(2)))) ->  | AD12: =N12 -> 212 | AE12: =COUNTIF(L20:L26,AD12) -> 0 | AF12: =AE12/(AG4-AE7) ->  | AG12: =IF(AF12=0,0,(AF12*((LOG(AF12))/LOG(2)))) ->  | AI12: =N12 -> 212 | AJ12: =COUNTIF(L27:L33,AI12) -> 0 | AK12: =AJ12/(AL4-AJ7) ->  | AL12: =IF(AK12=0,0,(AK12*((LOG(AK12))/LOG(2)))) ->  | AN12: =N12 -> 212 | AO12: =COUNTIF(L34:L39,AN12) -> 0 | AP12: =AO12/(AQ4-AO7) ->  | AQ12: =IF(AP12=0,0,(AP12*((LOG(AP12))/LOG(2)))) ->  | AS12: =N12 -> 212 | AT12: =COUNTIF(L40:L46,AS12) -> 0 | AU12: =AT12/(AV4-AT7) ->  | AV12: =IF(AU12=0,0,(AU12*((LOG(AU12))/LOG(2)))) -> 
A13: 11 | B13: 820 | C13: 11 | D13: 832 | E13: 11 | F13: 840 | K13: 0 | L13: 111 | N13: 221 | O13: =COUNTIF($L$7:$L$500,N13) -> 0 | P13: =O13/$Q$4 -> 0 | Q13: =IF(P13=0,0,(P13*((LOG(P13))/LOG(2)))) -> 0 | T13: =N13 -> 221 | U13: =COUNTIF(L7:L13,T13) -> 0 | V13: =U13/(W4-U7) ->  | W13: =IF(V13=0,0,(V13*((LOG(V13))/LOG(2)))) ->  | Y13: =N13 -> 221 | Z13: =COUNTIF(L14:L19,Y13) -> 0 | AA13: =Z13/(AB4-Z7) ->  | AB13: =IF(AA13=0,0,(AA13*((LOG(AA13))/LOG(2)))) ->  | AD13: =N13 -> 221 | AE13: =COUNTIF(L20:L26,AD13) -> 0 | AF13: =AE13/(AG4-AE7) ->  | AG13: =IF(AF13=0,0,(AF13*((LOG(AF13))/LOG(2)))) ->  | AI13: =N13 -> 221 | AJ13: =COUNTIF(L27:L33,AI13) -> 0 | AK13: =AJ13/(AL4-AJ7) ->  | AL13: =IF(AK13=0,0,(AK13*((LOG(AK13))/LOG(2)))) ->  | AN13: =N13 -> 221 | AO13: =COUNTIF(L34:L39,AN13) -> 0 | AP13: =AO13/(AQ4-AO7) ->  | AQ13: =IF(AP13=0,0,(AP13*((LOG(AP13))/LOG(2)))) ->  | AS13: =N13 -> 221 | AT13: =COUNTIF(L40:L46,AS13) -> 0 | AU13: =AT13/(AV4-AT7) ->  | AV13: =IF(AU13=0,0,(AU13*((LOG(AU13))/LOG(2)))) -> 
A14: 11 | B14: 950 | C14: 11 | D14: 961 | E14: 11 | F14: 968 | K14: 0 | L14: 111 | N14: 222 | O14: =COUNTIF($L$7:$L$500,N14) -> 0 | P14: =O14/$Q$4 -> 0 | Q14: =IF(P14=0,0,(P14*((LOG(P14))/LOG(2)))) -> 0 | T14: =N14 -> 222 | U14: =COUNTIF(L7:L13,T14) -> 0 | V14: =U14/(W4-U7) ->  | W14: =IF(V14=0,0,(V14*((LOG(V14))/LOG(2)))) ->  | Y14: =N14 -> 222 | Z14: =COUNTIF(L14:L19,Y14) -> 0 | AA14: =Z14/(AB4-Z7) ->  | AB14: =IF(AA14=0,0,(AA14*((LOG(AA14))/LOG(2)))) ->  | AD14: =N14 -> 222 | AE14: =COUNTIF(L20:L26,AD14) -> 0 | AF14: =AE14/(AG4-AE7) ->  | AG14: =IF(AF14=0,0,(AF14*((LOG(AF14))/LOG(2)))) ->  | AI14: =N14 -> 222 | AJ14: =COUNTIF(L27:L33,AI14) -> 0 | AK14: =AJ14/(AL4-AJ7) ->  | AL14: =IF(AK14=0,0,(AK14*((LOG(AK14))/LOG(2)))) ->  | AN14: =N14 -> 222 | AO14: =COUNTIF(L34:L39,AN14) -> 0 | AP14: =AO14/(AQ4-AO7) ->  | AQ14: =IF(AP14=0,0,(AP14*((LOG(AP14))/LOG(2)))) ->  | AS14: =N14 -> 222 | AT14: =COUNTIF(L40:L46,AS14) -> 0 | AU14: =AT14/(AV4-AT7) ->  | AV14: =IF(AU14=0,0,(AU14*((LOG(AU14))/LOG(2)))) -> 
A15: 11 | B15: 1062 | C15: 11 | D15: 1095 | E15: 11 | F15: 1105 | K15: 0 | L15: 111 | P15: =SUM(P7:P14) -> 1 | Q15: =-SUM(Q7:Q14) -> 0 | V15: =SUM(V7:V14) ->  | W15: =-SUM(W7:W14) ->  | AA15: =SUM(AA7:AA14) ->  | AB15: =-SUM(AB7:AB14) ->  | AF15: =SUM(AF7:AF14) ->  | AG15: =-SUM(AG7:AG14) ->  | AK15: =SUM(AK7:AK14) ->  | AL15: =-SUM(AL7:AL14) ->  | AP15: =SUM(AP7:AP14) ->  | AQ15: =-SUM(AQ7:AQ14) ->  | AU15: =SUM(AU7:AU14) ->  | AV15: =-SUM(AV7:AV14) -> 
A16: 11 | B16: 1204 | C16: 11 | D16: 1208 | E16: 11 | F16: 1214 | K16: 0 | L16: 111 | P16: U= | Q16: =Q15/(LOG(Q4)/LOG(2)) -> 0 | V16: U1= | W16: =W15/(LOG(W4)/LOG(2)) ->  | AA16: U2= | AB16: =AB15/(LOG(AB4)/LOG(2)) ->  | AF16: U3= | AG16: =AG15/(LOG(AG4)/LOG(2)) ->  | AK16: U4= | AL16: =AL15/(LOG(AL4)/LOG(2)) ->  | AP16: U5= | AQ16: =AQ15/(LOG(AQ4)/LOG(2)) ->  | AU16: U6= | AV16: =AV15/(LOG(AV4)/LOG(2)) -> 
A17: 11 | B17: 1305 | C17: 11 | D17: 1310 | E17: 11 | F17: 1319 | K17: 0 | L17: 111
A18: 11 | B18: 1433 | C18: 11 | D18: 1464 | E18: 11 | F18: 1483 | K18: 0 | L18: 111
A19: 11 | B19: 1589 | C19: 11 | D19: 1595 | E19: 11 | F19: 1617 | K19: 0 | L19: 111 | N19: Total Target Seq
A20: 11 | B20: 1721 | C20: 11 | D20: 1727 | E20: 11 | F20: 1770 | K20: 0 | L20: 111 | N20: =COUNTIF(L7:L46,G3) -> 40 | P20: 7 | Q20: 6 | R20: 7 | S20: 7 | T20: 6 | U20: 7
A21: 11 | B21: 1889 | C21: 11 | D21: 1894 | E21: 11 | F21: 1903 | K21: 0 | L21: 111 | P21: % of reinforcement given in 6 equal intervals based on number of trials
A22: 11 | B22: 2049 | C22: 11 | D22: 2057 | E22: 11 | F22: 2067 | K22: 0 | L22: 111 | P22: %_1 | Q22: %_2 | R22: %_3 | S22: %_4 | T22: %_5 | U22: %_6
A23: 11 | B23: 2160 | C23: 11 | D23: 2182 | E23: 11 | F23: 2191 | K23: 0 | L23: 111 | O23: target sequence | P23: =$G$3 -> 111 | Q23: =$G$3 -> 111 | R23: =$G$3 -> 111 | S23: =$G$3 -> 111 | T23: =$G$3 -> 111 | U23: =$G$3 -> 111
A24: 11 | B24: 2280 | C24: 11 | D24: 2290 | E24: 11 | F24: 2296 | K24: 0 | L24: 111 | O24: total reinforcement | P24: =U7 -> 7 | Q24: =Z7 -> 6 | R24: =AE7 -> 7 | S24: =AJ7 -> 7 | T24: =AO7 -> 6 | U24: =AT7 -> 7
A25: 11 | B25: 2400 | C25: 11 | D25: 2407 | E25: 11 | F25: 2413 | K25: 0 | L25: 111 | O25: % target
A26: 11 | B26: 2510 | C26: 11 | D26: 2518 | E26: 11 | F26: 2523 | K26: 0 | L26: 111 | O26: CCRF
A27: 11 | B27: 2631 | C27: 11 | D27: 2634 | E27: 11 | F27: 2643 | K27: 0 | L27: 111 | O27: % CCRf
A28: 11 | B28: 2745 | C28: 11 | D28: 2765 | E28: 11 | F28: 2779 | K28: 0 | L28: 111 | O28: average response rate | P28: =F13/P20 -> 120 | Q28: =(F19-F13)/Q20 -> 129.5 | R28: =(F26-F19)/R20 -> 129.4285714 | S28: =(F33-F26)/S20 -> 120.8571429 | T28: =(F39-F33)/T20 -> 145 | U28: =(F46-F39)/U20 -> 143.4285714
A29: 11 | B29: 2871 | C29: 11 | D29: 2882 | E29: 11 | F29: 2890 | K29: 0 | L29: 111
A30: 11 | B30: 2986 | C30: 11 | D30: 2999 | E30: 11 | F30: 3008 | K30: 0 | L30: 111
A31: 11 | B31: 3110 | C31: 11 | D31: 3127 | E31: 11 | F31: 3136 | K31: 0 | L31: 111
A32: 11 | B32: 3245 | C32: 11 | D32: 3251 | E32: 11 | F32: 3258 | K32: 0 | L32: 111
A33: 11 | B33: 3349 | C33: 11 | D33: 3363 | E33: 11 | F33: 3369 | K33: 0 | L33: 111
A34: 11 | B34: 3501 | C34: 11 | D34: 3513 | E34: 11 | F34: 3530 | K34: 0 | L34: 111
A35: 11 | B35: 3654 | C35: 11 | D35: 3681 | E35: 11 | F35: 3690 | K35: 0 | L35: 111
A36: 11 | B36: 3796 | C36: 11 | D36: 3806 | E36: 11 | F36: 3813 | K36: 0 | L36: 111
A37: 11 | B37: 3936 | C37: 11 | D37: 3944 | E37: 11 | F37: 3955 | K37: 0 | L37: 111
A38: 11 | B38: 4063 | C38: 11 | D38: 4068 | E38: 11 | F38: 4085 | K38: 0 | L38: 111
A39: 11 | B39: 4224 | C39: 11 | D39: 4231 | E39: 11 | F39: 4239 | K39: 0 | L39: 111
A40: 11 | B40: 4348 | C40: 11 | D40: 4352 | E40: 11 | F40: 4361 | K40: 0 | L40: 111
A41: 11 | B41: 4472 | C41: 11 | D41: 4481 | E41: 11 | F41: 4490 | K41: 0 | L41: 111
A42: 11 | B42: 4603 | C42: 11 | D42: 4610 | E42: 11 | F42: 4618 | K42: 0 | L42: 111
A43: 11 | B43: 4735 | C43: 11 | D43: 4748 | E43: 11 | F43: 4763 | K43: 0 | L43: 111
A44: 11 | B44: 4899 | C44: 11 | D44: 4915 | E44: 11 | F44: 4927 | K44: 0 | L44: 111
A45: 11 | B45: 5048 | C45: 11 | D45: 5077 | E45: 11 | F45: 5087 | K45: 0 | L45: 111
A46: 11 | B46: 5197 | C46: 11 | D46: 5225 | E46: 11 | F46: 5243 | K46: 1 | L46: 111

Sheet !M901A0I.sha
A1: Report for:!M901A0I.sha
A2: Date: | B2: <date>
A3: Hen: | B3: <hen> | F3: Correct Sequence | G3: =Start!J2 -> 111 | P3: Total Sequences in Data | Q3: =4994-COUNTBLANK(L7:L5000) -> 42 | V3: Total Sequences in Block Data | W3: =COUNTA(L7:L13) -> 7 | AA3: Total Sequences in Block Data | AB3: =COUNTA(L14:L20) -> 7 | AF3: Total Sequences in Block Data | AG3: =COUNTA(L21:L27) -> 7 | AK3: Total Sequences in Block Data | AL3: =COUNTA(L28:L34) -> 7 | AP3: Total Sequences in Block Data | AQ3: =COUNTA(L35:L41) -> 7 | AU3: Total Sequences in Block Data | AV3: =COUNTA(L42:L48) -> 7
P4: Total Sequences in Summary | Q4: =SUM(O7:O14) -> 42 | V4: Total Sequences in Block Summary | W4: =SUM(U7:U14) -> 7 | AA4: Total Sequences in Block Summary | AB4: =SUM(Z7:Z14) -> 7 | AF4: Total Sequences in Block Summary | AG4: =SUM(AE7:AE14) -> 7 | AK4: Total Sequences in Block Summary | AL4: =SUM(AJ7:AJ14) -> 7 | AP4: Total Sequences in Block Summary | AQ4: =SUM(AO7:AO14) -> 7 | AU4: Total Sequences in Block Summary | AV4: =SUM(AT7:AT14) -> 7
T5: Block 1 | Y5: Block 2 | AD5: Block 3 | AI5: Block 4 | AN5: Block 5 | AS5: Block 6
A6: Sequence Component 1 | B6: Time 1 | C6: Sequence Component 2 | D6: Time 2 | E6: Sequence Component 3 | F6: Time 3 | G6: Sequence Component 4 | H6: Time 4 | I6: Sequence Component 5 | J6: Time 5 | K6: Correct? 0=No 1=Yes | L6: Sequence | N6: Frequency | P6: Relative Frequency | Q6: Variability | T6: Frequency | V6: Relative Frequency | W6: Variability | Y6: Frequency | AA6: Relative Frequency | AB6: Variability | AD6: Frequency | AF6: Relative Frequency | AG6: Variability | AI6: Frequency | AK6: Relative Frequency | AL6: Variability | AN6: Frequency | AP6: Relative Frequency | AQ6: Variability | AS6: Frequency | AU6: Relative Frequency | AV6: Variability
A7: 22 | B7: 5 | C7: 24 | D7: 12 | E7: 13 | F7: 24 | K7: 0 | L7: 221 | N7: 111 | O7: =COUNTIF($L$7:$L$500,N7) -> 40 | P7: =O7/$Q$4 -> 0.9523809524 | Q7: =IF(P7=0,0,(P7*((LOG(P7))/LOG(2)))) -> -0.06703745513 | T7: =N7 -> 111 | U7: =COUNTIF(L7:L13,T7) -> 5 | Y7: =N7 -> 111 | Z7: =COUNTIF(L14:L20,Y7) -> 7 | AD7: =N7 -> 111 | AE7: =COUNTIF(L21:L27,AD7) -> 7 | AI7: =N7 -> 111 | AJ7: =COUNTIF(L28:L34,AI7) -> 7 | AN7: =N7 -> 111 | AO7: =COUNTIF(L35:L41,AN7) -> 7 | AS7: =N7 -> 111 | AT7: =COUNTIF(L42:L48,AS7) -> 7
A8: 22 | B8: 131 | C8: 13 | D8: 144 | E8: 13 | F8: 153 | K8: 0 | L8: 211 | N8: 112 | O8: =COUNTIF($L$7:$L$500,N8) -> 0 | P8: =O8/$Q$4 -> 0 | Q8: =IF(P8=0,0,(P8*((LOG(P8))/LOG(2)))) -> 0 | T8: =N8 -> 112 | U8: =COUNTIF(L7:L13,T8) -> 0 | V8: =U8/(W4-U7) -> 0 | W8: =IF(V8=0,0,(V8*((LOG(V8))/LOG(2)))) -> 0 | Y8: =N8 -> 112 | Z8: =COUNTIF(L14:L20,Y8) -> 0 | AA8: =Z8/(AB4-Z7) ->  | AB8: =IF(AA8=0,0,(AA8*((LOG(AA8))/LOG(2)))) ->  | AD8: =N8 -> 112 | AE8: =COUNTIF(L21:L27,AD8) -> 0 | AF8: =AE8/(AG4-AE7) ->  | AG8: =IF(AF8=0,0,(AF8*((LOG(AF8))/LOG(2)))) ->  | AI8: =N8 -> 112 | AJ8: =COUNTIF(L28:L34,AI8) -> 0 | AK8: =AJ8/(AL4-AJ7) ->  | AL8: =IF(AK8=0,0,(AK8*((LOG(AK8))/LOG(2)))) ->  | AN8: =N8 -> 112 | AO8: =COUNTIF(L35:L41,AN8) -> 0 | AP8: =AO8/(AQ4-AO7) ->  | AQ8: =IF(AP8=0,0,(AP8*((LOG(AP8))/LOG(2)))) ->  | AS8: =N8 -> 112 | AT8: =COUNTIF(L42:L48,AS8) -> 0 | AU8: =AT8/(AV4-AT7) ->  | AV8: =IF(AU8=0,0,(AU8*((LOG(AU8))/LOG(2)))) -> 
A9: 11 | B9: 250 | C9: 11 | D9: 254 | E9: 11 | F9: 259 | K9: 0 | L9: 111 | N9: 121 | O9: =COUNTIF($L$7:$L$500,N9) -> 0 | P9: =O9/$Q$4 -> 0 | Q9: =IF(P9=0,0,(P9*((LOG(P9))/LOG(2)))) -> 0 | T9: =N9 -> 121 | U9: =COUNTIF(L7:L13,T9) -> 0 | V9: =U9/(W4-U7) -> 0 | W9: =IF(V9=0,0,(V9*((LOG(V9))/LOG(2)))) -> 0 | Y9: =N9 -> 121 | Z9: =COUNTIF(L14:L20,Y9) -> 0 | AA9: =Z9/(AB4-Z7) ->  | AB9: =IF(AA9=0,0,(AA9*((LOG(AA9))/LOG(2)))) ->  | AD9: =N9 -> 121 | AE9: =COUNTIF(L21:L27,AD9) -> 0 | AF9: =AE9/(AG4-AE7) ->  | AG9: =IF(AF9=0,0,(AF9*((LOG(AF9))/LOG(2)))) ->  | AI9: =N9 -> 121 | AJ9: =COUNTIF(L28:L34,AI9) -> 0 | AK9: =AJ9/(AL4-AJ7) ->  | AL9: =IF(AK9=0,0,(AK9*((LOG(AK9))/LOG(2)))) ->  | AN9: =N9 -> 121 | AO9: =COUNTIF(L35:L41,AN9) -> 0 | AP9: =AO9/(AQ4-AO7) ->  | AQ9: =IF(AP9=0,0,(AP9*((LOG(AP9))/LOG(2)))) ->  | AS9: =N9 -> 121 | AT9: =COUNTIF(L42:L48,AS9) -> 0 | AU9: =AT9/(AV4-AT7) ->  | AV9: =IF(AU9=0,0,(AU9*((LOG(AU9))/LOG(2)))) -> 
A10: 11 | B10: 373 | C10: 11 | D10: 378 | E10: 11 | F10: 385 | K10: 0 | L10: 111 | N10: 122 | O10: =COUNTIF($L$7:$L$500,N10) -> 0 | P10: =O10/$Q$4 -> 0 | Q10: =IF(P10=0,0,(P10*((LOG(P10))/LOG(2)))) -> 0 | T10: =N10 -> 122 | U10: =COUNTIF(L7:L13,T10) -> 0 | V10: =U10/(W4-U7) -> 0 | W10: =IF(V10=0,0,(V10*((LOG(V10))/LOG(2)))) -> 0 | Y10: =N10 -> 122 | Z10: =COUNTIF(L14:L20,Y10) -> 0 | AA10: =Z10/(AB4-Z7) ->  | AB10: =IF(AA10=0,0,(AA10*((LOG(AA10))/LOG(2)))) ->  | AD10: =N10 -> 122 | AE10: =COUNTIF(L21:L27,AD10) -> 0 | AF10: =AE10/(AG4-AE7) ->  | AG10: =IF(AF10=0,0,(AF10*((LOG(AF10))/LOG(2)))) ->  | AI10: =N10 -> 122 | AJ10: =COUNTIF(L28:L34,AI10) -> 0 | AK10: =AJ10/(AL4-AJ7) ->  | AL10: =IF(AK10=0,0,(AK10*((LOG(AK10))/LOG(2)))) ->  | AN10: =N10 -> 122 | AO10: =COUNTIF(L35:L41,AN10) -> 0 | AP10: =AO10/(AQ4-AO7) ->  | AQ10: =IF(AP10=0,0,(AP10*((LOG(AP10))/LOG(2)))) ->  | AS10: =N10 -> 122 | AT10: =COUNTIF(L42:L48,AS10) -> 0 | AU10: =AT10/(AV4-AT7) ->  | AV10: =IF(AU10=0,0,(AU10*((LOG(AU10))/LOG(2)))) -> 
A11: 11 | B11: 475 | C11: 11 | D11: 484 | E11: 11 | F11: 493 | K11: 0 | L11: 111 | N11: 211 | O11: =COUNTIF($L$7:$L$500,N11) -> 1 | P11: =O11/$Q$4 -> 0.02380952381 | Q11: =IF(P11=0,0,(P11*((LOG(P11))/LOG(2)))) -> -0.1283885101 | T11: =N11 -> 211 | U11: =COUNTIF(L7:L13,T11) -> 1 | V11: =U11/(W4-U7) -> 0.5 | W11: =IF(V11=0,0,(V11*((LOG(V11))/LOG(2)))) -> -0.5 | Y11: =N11 -> 211 | Z11: =COUNTIF(L14:L20,Y11) -> 0 | AA11: =Z11/(AB4-Z7) ->  | AB11: =IF(AA11=0,0,(AA11*((LOG(AA11))/LOG(2)))) ->  | AD11: =N11 -> 211 | AE11: =COUNTIF(L21:L27,AD11) -> 0 | AF11: =AE11/(AG4-AE7) ->  | AG11: =IF(AF11=0,0,(AF11*((LOG(AF11))/LOG(2)))) ->  | AI11: =N11 -> 211 | AJ11: =COUNTIF(L28:L34,AI11) -> 0 | AK11: =AJ11/(AL4-AJ7) ->  | AL11: =IF(AK11=0,0,(AK11*((LOG(AK11))/LOG(2)))) ->  | AN11: =N11 -> 211 | AO11: =COUNTIF(L35:L41,AN11) -> 0 | AP11: =AO11/(AQ4-AO7) ->  | AQ11: =IF(AP11=0,0,(AP11*((LOG(AP11))/LOG(2)))) ->  | AS11: =N11 -> 211 | AT11: =COUNTIF(L42:L48,AS11) -> 0 | AU11: =AT11/(AV4-AT7) ->  | AV11: =IF(AU11=0,0,(AU11*((LOG(AU11))/LOG(2)))) -> 
A12: 11 | B12: 579 | C12: 11 | D12: 584 | E12: 11 | F12: 601 | K12: 0 | L12: 111 | N12: 212 | O12: =COUNTIF($L$7:$L$500,N12) -> 0 | P12: =O12/$Q$4 -> 0 | Q12: =IF(P12=0,0,(P12*((LOG(P12))/LOG(2)))) -> 0 | T12: =N12 -> 212 | U12: =COUNTIF(L7:L13,T12) -> 0 | V12: =U12/(W4-U7) -> 0 | W12: =IF(V12=0,0,(V12*((LOG(V12))/LOG(2)))) -> 0 | Y12: =N12 -> 212 | Z12: =COUNTIF(L14:L20,Y12) -> 0 | AA12: =Z12/(AB4-Z7) ->  | AB12: =IF(AA12=0,0,(AA12*((LOG(AA12))/LOG(2)))) ->  | AD12: =N12 -> 212 | AE12: =COUNTIF(L21:L27,AD12) -> 0 | AF12: =AE12/(AG4-AE7) ->  | AG12: =IF(AF12=0,0,(AF12*((LOG(AF12))/LOG(2)))) ->  | AI12: =N12 -> 212 | AJ12: =COUNTIF(L28:L34,AI12) -> 0 | AK12: =AJ12/(AL4-AJ7) ->  | AL12: =IF(AK12=0,0,(AK12*((LOG(AK12))/LOG(2)))) ->  | AN12: =N12 -> 212 | AO12: =COUNTIF(L35:L41,AN12) -> 0 | AP12: =AO12/(AQ4-AO7) ->  | AQ12: =IF(AP12=0,0,(AP12*((LOG(AP12))/LOG(2)))) ->  | AS12: =N12 -> 212 | AT12: =COUNTIF(L42:L48,AS12) -> 0 | AU12: =AT12/(AV4-AT7) ->  | AV12: =IF(AU12=0,0,(AU12*((LOG(AU12))/LOG(2)))) -> 
A13: 11 | B13: 704 | C13: 11 | D13: 747 | E13: 11 | F13: 759 | K13: 0 | L13: 111 | N13: 221 | O13: =COUNTIF($L$7:$L$500,N13) -> 1 | P13: =O13/$Q$4 -> 0.02380952381 | Q13: =IF(P13=0,0,(P13*((LOG(P13))/LOG(2)))) -> -0.1283885101 | T13: =N13 -> 221 | U13: =COUNTIF(L7:L13,T13) -> 1 | V13: =U13/(W4-U7) -> 0.5 | W13: =IF(V13=0,0,(V13*((LOG(V13))/LOG(2)))) -> -0.5 | Y13: =N13 -> 221 | Z13: =COUNTIF(L14:L20,Y13) -> 0 | AA13: =Z13/(AB4-Z7) ->  | AB13: =IF(AA13=0,0,(AA13*((LOG(AA13))/LOG(2)))) ->  | AD13: =N13 -> 221 | AE13: =COUNTIF(L21:L27,AD13) -> 0 | AF13: =AE13/(AG4-AE7) ->  | AG13: =IF(AF13=0,0,(AF13*((LOG(AF13))/LOG(2)))) ->  | AI13: =N13 -> 221 | AJ13: =COUNTIF(L28:L34,AI13) -> 0 | AK13: =AJ13/(AL4-AJ7) ->  | AL13: =IF(AK13=0,0,(AK13*((LOG(AK13))/LOG(2)))) ->  | AN13: =N13 -> 221 | AO13: =COUNTIF(L35:L41,AN13) -> 0 | AP13: =AO13/(AQ4-AO7) ->  | AQ13: =IF(AP13=0,0,(AP13*((LOG(AP13))/LOG(2)))) ->  | AS13: =N13 -> 221 | AT13: =COUNTIF(L42:L48,AS13) -> 0 | AU13: =AT13/(AV4-AT7) ->  | AV13: =IF(AU13=0,0,(AU13*((LOG(AU13))/LOG(2)))) -> 
A14: 11 | B14: 848 | C14: 11 | D14: 856 | E14: 11 | F14: 863 | K14: 0 | L14: 111 | N14: 222 | O14: =COUNTIF($L$7:$L$500,N14) -> 0 | P14: =O14/$Q$4 -> 0 | Q14: =IF(P14=0,0,(P14*((LOG(P14))/LOG(2)))) -> 0 | T14: =N14 -> 222 | U14: =COUNTIF(L7:L13,T14) -> 0 | V14: =U14/(W4-U7) -> 0 | W14: =IF(V14=0,0,(V14*((LOG(V14))/LOG(2)))) -> 0 | Y14: =N14 -> 222 | Z14: =COUNTIF(L14:L20,Y14) -> 0 | AA14: =Z14/(AB4-Z7) ->  | AB14: =IF(AA14=0,0,(AA14*((LOG(AA14))/LOG(2)))) ->  | AD14: =N14 -> 222 | AE14: =COUNTIF(L21:L27,AD14) -> 0 | AF14: =AE14/(AG4-AE7) ->  | AG14: =IF(AF14=0,0,(AF14*((LOG(AF14))/LOG(2)))) ->  | AI14: =N14 -> 222 | AJ14: =COUNTIF(L28:L34,AI14) -> 0 | AK14: =AJ14/(AL4-AJ7) ->  | AL14: =IF(AK14=0,0,(AK14*((LOG(AK14))/LOG(2)))) ->  | AN14: =N14 -> 222 | AO14: =COUNTIF(L35:L41,AN14) -> 0 | AP14: =AO14/(AQ4-AO7) ->  | AQ14: =IF(AP14=0,0,(AP14*((LOG(AP14))/LOG(2)))) ->  | AS14: =N14 -> 222 | AT14: =COUNTIF(L42:L48,AS14) -> 0 | AU14: =AT14/(AV4-AT7) ->  | AV14: =IF(AU14=0,0,(AU14*((LOG(AU14))/LOG(2)))) -> 
A15: 11 | B15: 951 | C15: 11 | D15: 972 | E15: 11 | F15: 1004 | K15: 0 | L15: 111 | P15: =SUM(P7:P14) -> 1 | Q15: =-SUM(Q7:Q14) -> 0.3238144753 | V15: =SUM(V7:V14) -> 1 | W15: =-SUM(W7:W14) -> 1 | AA15: =SUM(AA7:AA14) ->  | AB15: =-SUM(AB7:AB14) ->  | AF15: =SUM(AF7:AF14) ->  | AG15: =-SUM(AG7:AG14) ->  | AK15: =SUM(AK7:AK14) ->  | AL15: =-SUM(AL7:AL14) ->  | AP15: =SUM(AP7:AP14) ->  | AQ15: =-SUM(AQ7:AQ14) ->  | AU15: =SUM(AU7:AU14) ->  | AV15: =-SUM(AV7:AV14) -> 
A16: 11 | B16: 1114 | C16: 11 | D16: 1117 | E16: 11 | F16: 1129 | K16: 0 | L16: 111 | P16: U= | Q16: =Q15/(LOG(Q4)/LOG(2)) -> 0.06005107821 | V16: U1= | W16: =W15/(LOG(W4)/LOG(2)) -> 0.3562071871 | AA16: U2= | AB16: =AB15/(LOG(AB4)/LOG(2)) ->  | AF16: U3= | AG16: =AG15/(LOG(AG4)/LOG(2)) ->  | AK16: U4= | AL16: =AL15/(LOG(AL4)/LOG(2)) ->  | AP16: U5= | AQ16: =AQ15/(LOG(AQ4)/LOG(2)) ->  | AU16: U6= | AV16: =AV15/(LOG(AV4)/LOG(2)) -> 
A17: 11 | B17: 1244 | C17: 11 | D17: 1250 | E17: 11 | F17: 1259 | K17: 0 | L17: 111
A18: 11 | B18: 1350 | C18: 11 | D18: 1353 | E18: 11 | F18: 1357 | K18: 0 | L18: 111
A19: 11 | B19: 1448 | C19: 11 | D19: 1453 | E19: 11 | F19: 1465 | K19: 0 | L19: 111 | N19: Total Target Seq
A20: 11 | B20: 1568 | C20: 11 | D20: 1570 | E20: 11 | F20: 1577 | K20: 0 | L20: 111 | N20: =COUNTIF(L7:L48,G3) -> 40 | P20: 7 | Q20: 7 | R20: 7 | S20: 7 | T20: 7 | U20: 7
A21: 11 | B21: 1690 | C21: 11 | D21: 1701 | E21: 11 | F21: 1709 | K21: 0 | L21: 111 | P21: % of reinforcement given in 6 equal intervals based on number of trials
A22: 11 | B22: 1799 | C22: 11 | D22: 1818 | E22: 11 | F22: 1834 | K22: 0 | L22: 111 | P22: %_1 | Q22: %_2 | R22: %_3 | S22: %_4 | T22: %_5 | U22: %_6
A23: 11 | B23: 1926 | C23: 11 | D23: 1932 | E23: 11 | F23: 1941 | K23: 0 | L23: 111 | O23: target sequence | P23: =$G$3 -> 111 | Q23: =$G$3 -> 111 | R23: =$G$3 -> 111 | S23: =$G$3 -> 111 | T23: =$G$3 -> 111 | U23: =$G$3 -> 111
A24: 11 | B24: 2031 | C24: 11 | D24: 2037 | E24: 11 | F24: 2045 | K24: 0 | L24: 111 | O24: total reinforcement | P24: =U7 -> 5 | Q24: =Z7 -> 7 | R24: =AE7 -> 7 | S24: =AJ7 -> 7 | T24: =AO7 -> 7 | U24: =AT7 -> 7
A25: 11 | B25: 2189 | C25: 11 | D25: 2196 | E25: 11 | F25: 2205 | K25: 0 | L25: 111 | O25: % target
A26: 11 | B26: 2292 | C26: 11 | D26: 2310 | E26: 11 | F26: 2319 | K26: 0 | L26: 111 | O26: CCRF
A27: 11 | B27: 2416 | C27: 11 | D27: 2427 | E27: 11 | F27: 2436 | K27: 0 | L27: 111 | O27: % CCRf
A28: 11 | B28: 2523 | C28: 11 | D28: 2535 | E28: 11 | F28: 2542 | K28: 0 | L28: 111 | O28: average response rate | P28: =F13/P20 -> 108.4285714 | Q28: =(F20-F13)/Q20 -> 116.8571429 | R28: =(F27-F20)/R20 -> 122.7142857 | S28: =(F34-F27)/S20 -> 132.4285714 | T28: =(F41-F34)/T20 -> 112.4285714 | U28: =(F48-F41)/U20 -> 130.8571429
A29: 11 | B29: 2644 | C29: 11 | D29: 2648 | E29: 11 | F29: 2656 | K29: 0 | L29: 111
A30: 11 | B30: 2744 | C30: 11 | D30: 2749 | E30: 11 | F30: 2755 | K30: 0 | L30: 111
A31: 11 | B31: 2976 | C31: 11 | D31: 2981 | E31: 11 | F31: 2987 | K31: 0 | L31: 111
A32: 11 | B32: 3076 | C32: 11 | D32: 3082 | E32: 11 | F32: 3087 | K32: 0 | L32: 111
A33: 11 | B33: 3190 | C33: 11 | D33: 3196 | E33: 11 | F33: 3204 | K33: 0 | L33: 111
A34: 11 | B34: 3342 | C34: 11 | D34: 3354 | E34: 11 | F34: 3363 | K34: 0 | L34: 111
A35: 11 | B35: 3467 | C35: 11 | D35: 3477 | E35: 11 | F35: 3484 | K35: 0 | L35: 111
A36: 11 | B36: 3589 | C36: 11 | D36: 3602 | E36: 11 | F36: 3611 | K36: 0 | L36: 111
A37: 11 | B37: 3712 | C37: 11 | D37: 3716 | E37: 11 | F37: 3724 | K37: 0 | L37: 111
A38: 11 | B38: 3811 | C38: 11 | D38: 3816 | E38: 11 | F38: 3822 | K38: 0 | L38: 111
A39: 11 | B39: 3913 | C39: 11 | D39: 3928 | E39: 11 | F39: 3935 | K39: 0 | L39: 111
A40: 11 | B40: 4040 | C40: 11 | D40: 4045 | E40: 11 | F40: 4050 | K40: 0 | L40: 111
A41: 11 | B41: 4140 | C41: 11 | D41: 4144 | E41: 11 | F41: 4150 | K41: 0 | L41: 111
A42: 11 | B42: 4238 | C42: 11 | D42: 4250 | E42: 11 | F42: 4258 | K42: 0 | L42: 111
A43: 11 | B43: 4379 | C43: 11 | D43: 4386 | E43: 11 | F43: 4392 | K43: 0 | L43: 111
A44: 11 | B44: 4520 | C44: 11 | D44: 4535 | E44: 11 | F44: 4542 | K44: 0 | L44: 111
A45: 11 | B45: 4630 | C45: 11 | D45: 4645 | E45: 11 | F45: 4653 | K45: 0 | L45: 111
A46: 11 | B46: 4742 | C46: 11 | D46: 4757 | E46: 11 | F46: 4767 | K46: 0 | L46: 111
A47: 11 | B47: 4881 | C47: 11 | D47: 4888 | E47: 11 | F47: 4894 | K47: 0 | L47: 111
A48: 11 | B48: 5051 | C48: 11 | D48: 5061 | E48: 11 | F48: 5066 | K48: 1 | L48: 111

Sheet !M902A1I.sha
A1: Report for:!M902A1I.sha
A2: Date: | B2: <date>
A3: Hen: | B3: <hen> | F3: Correct Sequence | G3: =Start!J2 -> 111 | P3: Total Sequences in Data | Q3: =4994-COUNTBLANK(L7:L5000) -> 45 | V3: Total Sequences in Block Data | W3: =COUNTA(L7:L14) -> 8 | AA3: Total Sequences in Block Data | AB3: =COUNTA(L15:L21) -> 7 | AF3: Total Sequences in Block Data | AG3: =COUNTA(L22:L29) -> 8 | AK3: Total Sequences in Block Data | AL3: =COUNTA(L30:L36) -> 7 | AP3: Total Sequences in Block Data | AQ3: =COUNTA(L37:L44) -> 8 | AU3: Total Sequences in Block Data | AV3: =COUNTA(L45:L51) -> 7
P4: Total Sequences in Summary | Q4: =SUM(O7:O14) -> 45 | V4: Total Sequences in Block Summary | W4: =SUM(U7:U14) -> 8 | AA4: Total Sequences in Block Summary | AB4: =SUM(Z7:Z14) -> 7 | AF4: Total Sequences in Block Summary | AG4: =SUM(AE7:AE14) -> 8 | AK4: Total Sequences in Block Summary | AL4: =SUM(AJ7:AJ14) -> 7 | AP4: Total Sequences in Block Summary | AQ4: =SUM(AO7:AO14) -> 8 | AU4: Total Sequences in Block Summary | AV4: =SUM(AT7:AT14) -> 7
T5: Block 1 | Y5: Block 2 | AD5: Block 3 | AI5: Block 4 | AN5: Block 5 | AS5: Block 6
A6: Sequence Component 1 | B6: Time 1 | C6: Sequence Component 2 | D6: Time 2 | E6: Sequence Component 3 | F6: Time 3 | G6: Sequence Component 4 | H6: Time 4 | I6: Sequence Component 5 | J6: Time 5 | K6: Correct? 0=No 1=Yes | L6: Sequence | N6: Frequency | P6: Relative Frequency | Q6: Variability | T6: Frequency | V6: Relative Frequency | W6: Variability | Y6: Frequency | AA6: Relative Frequency | AB6: Variability | AD6: Frequency | AF6: Relative Frequency | AG6: Variability | AI6: Frequency | AK6: Relative Frequency | AL6: Variability | AN6: Frequency | AP6: Relative Frequency | AQ6: Variability | AS6: Frequency | AU6: Relative Frequency | AV6: Variability
A7: 22 | B7: 8 | C7: 13 | D7: 17 | E7: 13 | F7: 22 | K7: 0 | L7: 211 | N7: 111 | O7: =COUNTIF($L$7:$L$500,N7) -> 40 | P7: =O7/$Q$4 -> 0.8888888889 | Q7: =IF(P7=0,0,(P7*((LOG(P7))/LOG(2)))) -> -0.1510444457 | T7: =N7 -> 111 | U7: =COUNTIF(L7:L14,T7) -> 6 | Y7: =N7 -> 111 | Z7: =COUNTIF(L15:L21,Y7) -> 7 | AD7: =N7 -> 111 | AE7: =COUNTIF(L22:L29,AD7) -> 8 | AI7: =N7 -> 111 | AJ7: =COUNTIF(L30:L36,AI7) -> 5 | AN7: =N7 -> 111 | AO7: =COUNTIF(L37:L44,AN7) -> 7 | AS7: =N7 -> 111 | AT7: =COUNTIF(L45:L51,AS7) -> 7
A8: 22 | B8: 128 | C8: 13 | D8: 138 | E8: 13 | F8: 146 | K8: 0 | L8: 211 | N8: 112 | O8: =COUNTIF($L$7:$L$500,N8) -> 0 | P8: =O8/$Q$4 -> 0 | Q8: =IF(P8=0,0,(P8*((LOG(P8))/LOG(2)))) -> 0 | T8: =N8 -> 112 | U8: =COUNTIF(L7:L14,T8) -> 0 | V8: =U8/(W4-U7) -> 0 | W8: =IF(V8=0,0,(V8*((LOG(V8))/LOG(2)))) -> 0 | Y8: =N8 -> 112 | Z8: =COUNTIF(L15:L21,Y8) -> 0 | AA8: =Z8/(AB4-Z7) ->  | AB8: =IF(AA8=0,0,(AA8*((LOG(AA8))/LOG(2)))) ->  | AD8: =N8 -> 112 | AE8: =COUNTIF(L22:L29,AD8) -> 0 | AF8: =AE8/(AG4-AE7) ->  | AG8: =IF(AF8=0,0,(AF8*((LOG(AF8))/LOG(2)))) ->  | AI8: =N8 -> 112 | AJ8: =COUNTIF(L30:L36,AI8) -> 0 | AK8: =AJ8/(AL4-AJ7) -> 0 | AL8: =IF(AK8=0,0,(AK8*((LOG(AK8))/LOG(2)))) -> 0 | AN8: =N8 -> 112 | AO8: =COUNTIF(L37:L44,AN8) -> 0 | AP8: =AO8/(AQ4-AO7) -> 0 | AQ8: =IF(AP8=0,0,(AP8*((LOG(AP8))/LOG(2)))) -> 0 | AS8: =N8 -> 112 | AT8: =COUNTIF(L45:L51,AS8) -> 0 | AU8: =AT8/(AV4-AT7) ->  | AV8: =IF(AU8=0,0,(AU8*((LOG(AU8))/LOG(2)))) -> 
A9: 11 | B9: 244 | C9: 11 | D9: 249 | E9: 11 | F9: 257 | K9: 0 | L9: 111 | N9: 121 | O9: =COUNTIF($L$7:$L$500,N9) -> 0 | P9: =O9/$Q$4 -> 0 | Q9: =IF(P9=0,0,(P9*((LOG(P9))/LOG(2)))) -> 0 | T9: =N9 -> 121 | U9: =COUNTIF(L7:L14,T9) -> 0 | V9: =U9/(W4-U7) -> 0 | W9: =IF(V9=0,0,(V9*((LOG(V9))/LOG(2)))) -> 0 | Y9: =N9 -> 121 | Z9: =COUNTIF(L15:L21,Y9) -> 0 | AA9: =Z9/(AB4-Z7) ->  | AB9: =IF(AA9=0,0,(AA9*((LOG(AA9))/LOG(2)))) ->  | AD9: =N9 -> 121 | AE9: =COUNTIF(L22:L29,AD9) -> 0 | AF9: =AE9/(AG4-AE7) ->  | AG9: =IF(AF9=0,0,(AF9*((LOG(AF9))/LOG(2)))) ->  | AI9: =N9 -> 121 | AJ9: =COUNTIF(L30:L36,AI9) -> 0 | AK9: =AJ9/(AL4-AJ7) -> 0 | AL9: =IF(AK9=0,0,(AK9*((LOG(AK9))/LOG(2)))) -> 0 | AN9: =N9 -> 121 | AO9: =COUNTIF(L37:L44,AN9) -> 0 | AP9: =AO9/(AQ4-AO7) -> 0 | AQ9: =IF(AP9=0,0,(AP9*((LOG(AP9))/LOG(2)))) -> 0 | AS9: =N9 -> 121 | AT9: =COUNTIF(L45:L51,AS9) -> 0 | AU9: =AT9/(AV4-AT7) ->  | AV9: =IF(AU9=0,0,(AU9*((LOG(AU9))/LOG(2)))) -> 
A10: 11 | B10: 371 | C10: 11 | D10: 387 | E10: 11 | F10: 395 | K10: 0 | L10: 111 | N10: 122 | O10: =COUNTIF($L$7:$L$500,N10) -> 0 | P10: =O10/$Q$4 -> 0 | Q10: =IF(P10=0,0,(P10*((LOG(P10))/LOG(2)))) -> 0 | T10: =N10 -> 122 | U10: =COUNTIF(L7:L14,T10) -> 0 | V10: =U10/(W4-U7) -> 0 | W10: =IF(V10=0,0,(V10*((LOG(V10))/LOG(2)))) -> 0 | Y10: =N10 -> 122 | Z10: =COUNTIF(L15:L21,Y10) -> 0 | AA10: =Z10/(AB4-Z7) ->  | AB10: =IF(AA10=0,0,(AA10*((LOG(AA10))/LOG(2)))) ->  | AD10: =N10 -> 122 | AE10: =COUNTIF(L22:L29,AD10) -> 0 | AF10: =AE10/(AG4-AE7) ->  | AG10: =IF(AF10=0,0,(AF10*((LOG(AF10))/LOG(2)))) ->  | AI10: =N10 -> 122 | AJ10: =COUNTIF(L30:L36,AI10) -> 0 | AK10: =AJ10/(AL4-AJ7) -> 0 | AL10: =IF(AK10=0,0,(AK10*((LOG(AK10))/LOG(2)))) -> 0 | AN10: =N10 -> 122 | AO10: =COUNTIF(L37:L44,AN10) -> 0 | AP10: =AO10/(AQ4-AO7) -> 0 | AQ10: =IF(AP10=0,0,(AP10*((LOG(AP10))/LOG(2)))) -> 0 | AS10: =N10 -> 122 | AT10: =COUNTIF(L45:L51,AS10) -> 0 | AU10: =AT10/(AV4-AT7) ->  | AV10: =IF(AU10=0,0,(AU10*((LOG(AU10))/LOG(2)))) -> 
A11: 11 | B11: 492 | C11: 11 | D11: 495 | E11: 11 | F11: 501 | K11: 0 | L11: 111 | N11: 211 | O11: =COUNTIF($L$7:$L$500,N11) -> 3 | P11: =O11/$Q$4 -> 0.06666666667 | Q11: =IF(P11=0,0,(P11*((LOG(P11))/LOG(2)))) -> -0.260459373 | T11: =N11 -> 211 | U11: =COUNTIF(L7:L14,T11) -> 2 | V11: =U11/(W4-U7) -> 1 | W11: =IF(V11=0,0,(V11*((LOG(V11))/LOG(2)))) -> 0 | Y11: =N11 -> 211 | Z11: =COUNTIF(L15:L21,Y11) -> 0 | AA11: =Z11/(AB4-Z7) ->  | AB11: =IF(AA11=0,0,(AA11*((LOG(AA11))/LOG(2)))) ->  | AD11: =N11 -> 211 | AE11: =COUNTIF(L22:L29,AD11) -> 0 | AF11: =AE11/(AG4-AE7) ->  | AG11: =IF(AF11=0,0,(AF11*((LOG(AF11))/LOG(2)))) ->  | AI11: =N11 -> 211 | AJ11: =COUNTIF(L30:L36,AI11) -> 1 | AK11: =AJ11/(AL4-AJ7) -> 0.5 | AL11: =IF(AK11=0,0,(AK11*((LOG(AK11))/LOG(2)))) -> -0.5 | AN11: =N11 -> 211 | AO11: =COUNTIF(L37:L44,AN11) -> 0 | AP11: =AO11/(AQ4-AO7) -> 0 | AQ11: =IF(AP11=0,0,(AP11*((LOG(AP11))/LOG(2)))) -> 0 | AS11: =N11 -> 211 | AT11: =COUNTIF(L45:L51,AS11) -> 0 | AU11: =AT11/(AV4-AT7) ->  | AV11: =IF(AU11=0,0,(AU11*((LOG(AU11))/LOG(2)))) -> 
A12: 11 | B12: 611 | C12: 11 | D12: 623 | E12: 11 | F12: 632 | K12: 0 | L12: 111 | N12: 212 | O12: =COUNTIF($L$7:$L$500,N12) -> 0 | P12: =O12/$Q$4 -> 0 | Q12: =IF(P12=0,0,(P12*((LOG(P12))/LOG(2)))) -> 0 | T12: =N12 -> 212 | U12: =COUNTIF(L7:L14,T12) -> 0 | V12: =U12/(W4-U7) -> 0 | W12: =IF(V12=0,0,(V12*((LOG(V12))/LOG(2)))) -> 0 | Y12: =N12 -> 212 | Z12: =COUNTIF(L15:L21,Y12) -> 0 | AA12: =Z12/(AB4-Z7) ->  | AB12: =IF(AA12=0,0,(AA12*((LOG(AA12))/LOG(2)))) ->  | AD12: =N12 -> 212 | AE12: =COUNTIF(L22:L29,AD12) -> 0 | AF12: =AE12/(AG4-AE7) ->  | AG12: =IF(AF12=0,0,(AF12*((LOG(AF12))/LOG(2)))) ->  | AI12: =N12 -> 212 | AJ12: =COUNTIF(L30:L36,AI12) -> 0 | AK12: =AJ12/(AL4-AJ7) -> 0 | AL12: =IF(AK12=0,0,(AK12*((LOG(AK12))/LOG(2)))) -> 0 | AN12: =N12 -> 212 | AO12: =COUNTIF(L37:L44,AN12) -> 0 | AP12: =AO12/(AQ4-AO7) -> 0 | AQ12: =IF(AP12=0,0,(AP12*((LOG(AP12))/LOG(2)))) -> 0 | AS12: =N12 -> 212 | AT12: =COUNTIF(L45:L51,AS12) -> 0 | AU12: =AT12/(AV4-AT7) ->  | AV12: =IF(AU12=0,0,(AU12*((LOG(AU12))/LOG(2)))) -> 
A13: 11 | B13: 757 | C13: 11 | D13: 768 | E13: 11 | F13: 784 | K13: 0 | L13: 111 | N13: 221 | O13: =COUNTIF($L$7:$L$500,N13) -> 2 | P13: =O13/$Q$4 -> 0.04444444444 | Q13: =IF(P13=0,0,(P13*((LOG(P13))/LOG(2)))) -> -0.1996379154 | T13: =N13 -> 221 | U13: =COUNTIF(L7:L14,T13) -> 0 | V13: =U13/(W4-U7) -> 0 | W13: =IF(V13=0,0,(V13*((LOG(V13))/LOG(2)))) -> 0 | Y13: =N13 -> 221 | Z13: =COUNTIF(L15:L21,Y13) -> 0 | AA13: =Z13/(AB4-Z7) ->  | AB13: =IF(AA13=0,0,(AA13*((LOG(AA13))/LOG(2)))) ->  | AD13: =N13 -> 221 | AE13: =COUNTIF(L22:L29,AD13) -> 0 | AF13: =AE13/(AG4-AE7) ->  | AG13: =IF(AF13=0,0,(AF13*((LOG(AF13))/LOG(2)))) ->  | AI13: =N13 -> 221 | AJ13: =COUNTIF(L30:L36,AI13) -> 1 | AK13: =AJ13/(AL4-AJ7) -> 0.5 | AL13: =IF(AK13=0,0,(AK13*((LOG(AK13))/LOG(2)))) -> -0.5 | AN13: =N13 -> 221 | AO13: =COUNTIF(L37:L44,AN13) -> 1 | AP13: =AO13/(AQ4-AO7) -> 1 | AQ13: =IF(AP13=0,0,(AP13*((LOG(AP13))/LOG(2)))) -> 0 | AS13: =N13 -> 221 | AT13: =COUNTIF(L45:L51,AS13) -> 0 | AU13: =AT13/(AV4-AT7) ->  | AV13: =IF(AU13=0,0,(AU13*((LOG(AU13))/LOG(2)))) -> 
A14: 11 | B14: 874 | C14: 11 | D14: 880 | E14: 11 | F14: 886 | K14: 0 | L14: 111 | N14: 222 | O14: =COUNTIF($L$7:$L$500,N14) -> 0 | P14: =O14/$Q$4 -> 0 | Q14: =IF(P14=0,0,(P14*((LOG(P14))/LOG(2)))) -> 0 | T14: =N14 -> 222 | U14: =COUNTIF(L7:L14,T14) -> 0 | V14: =U14/(W4-U7) -> 0 | W14: =IF(V14=0,0,(V14*((LOG(V14))/LOG(2)))) -> 0 | Y14: =N14 -> 222 | Z14: =COUNTIF(L15:L21,Y14) -> 0 | AA14: =Z14/(AB4-Z7) ->  | AB14: =IF(AA14=0,0,(AA14*((LOG(AA14))/LOG(2)))) ->  | AD14: =N14 -> 222 | AE14: =COUNTIF(L22:L29,AD14) -> 0 | AF14: =AE14/(AG4-AE7) ->  | AG14: =IF(AF14=0,0,(AF14*((LOG(AF14))/LOG(2)))) ->  | AI14: =N14 -> 222 | AJ14: =COUNTIF(L30:L36,AI14) -> 0 | AK14: =AJ14/(AL4-AJ7) -> 0 | AL14: =IF(AK14=0,0,(AK14*((LOG(AK14))/LOG(2)))) -> 0 | AN14: =N14 -> 222 | AO14: =COUNTIF(L37:L44,AN14) -> 0 | AP14: =AO14/(AQ4-AO7) -> 0 | AQ14: =IF(AP14=0,0,(AP14*((LOG(AP14))/LOG(2)))) -> 0 | AS14: =N14 -> 222 | AT14: =COUNTIF(L45:L51,AS14) -> 0 | AU14: =AT14/(AV4-AT7) ->  | AV14: =IF(AU14=0,0,(AU14*((LOG(AU14))/LOG(2)))) -> 
A15: 11 | B15: 1005 | C15: 11 | D15: 1024 | E15: 11 | F15: 1030 | K15: 0 | L15: 111 | P15: =SUM(P7:P14) -> 1 | Q15: =-SUM(Q7:Q14) -> 0.6111417342 | V15: =SUM(V7:V14) -> 1 | W15: =-SUM(W7:W14) -> 0 | AA15: =SUM(AA7:AA14) ->  | AB15: =-SUM(AB7:AB14) ->  | AF15: =SUM(AF7:AF14) ->  | AG15: =-SUM(AG7:AG14) ->  | AK15: =SUM(AK7:AK14) -> 1 | AL15: =-SUM(AL7:AL14) -> 1 | AP15: =SUM(AP7:AP14) -> 1 | AQ15: =-SUM(AQ7:AQ14) -> 0 | AU15: =SUM(AU7:AU14) ->  | AV15: =-SUM(AV7:AV14) -> 
A16: 11 | B16: 1163 | C16: 11 | D16: 1166 | E16: 11 | F16: 1179 | K16: 0 | L16: 111 | P16: U= | Q16: =Q15/(LOG(Q4)/LOG(2)) -> 0.1112815153 | V16: U1= | W16: =W15/(LOG(W4)/LOG(2)) -> 0 | AA16: U2= | AB16: =AB15/(LOG(AB4)/LOG(2)) ->  | AF16: U3= | AG16: =AG15/(LOG(AG4)/LOG(2)) ->  | AK16: U4= | AL16: =AL15/(LOG(AL4)/LOG(2)) -> 0.3562071871 | AP16: U5= | AQ16: =AQ15/(LOG(AQ4)/LOG(2)) -> 0 | AU16: U6= | AV16: =AV15/(LOG(AV4)/LOG(2)) -> 
A17: 11 | B17: 1269 | C17: 11 | D17: 1284 | E17: 11 | F17: 1293 | K17: 0 | L17: 111
A18: 11 | B18: 1389 | C18: 11 | D18: 1403 | E18: 11 | F18: 1411 | K18: 0 | L18: 111
A19: 11 | B19: 1558 | C19: 11 | D19: 1561 | E19: 11 | F19: 1580 | K19: 0 | L19: 111 | N19: Total Target Seq
A20: 11 | B20: 1688 | C20: 11 | D20: 1704 | E20: 11 | F20: 1714 | K20: 0 | L20: 111 | N20: =COUNTIF(L7:L51,G3) -> 40 | P20: 8 | Q20: 7 | R20: 8 | S20: 7 | T20: 8 | U20: 7
A21: 11 | B21: 1808 | C21: 11 | D21: 1818 | E21: 11 | F21: 1823 | K21: 0 | L21: 111 | P21: % of reinforcement given in 6 equal intervals based on number of trials
A22: 11 | B22: 1913 | C22: 11 | D22: 1927 | E22: 11 | F22: 1936 | K22: 0 | L22: 111 | P22: %_1 | Q22: %_2 | R22: %_3 | S22: %_4 | T22: %_5 | U22: %_6
A23: 11 | B23: 2051 | C23: 11 | D23: 2067 | E23: 11 | F23: 2076 | K23: 0 | L23: 111 | O23: target sequence | P23: =$G$3 -> 111 | Q23: =$G$3 -> 111 | R23: =$G$3 -> 111 | S23: =$G$3 -> 111 | T23: =$G$3 -> 111 | U23: =$G$3 -> 111
A24: 11 | B24: 2170 | C24: 11 | D24: 2186 | E24: 11 | F24: 2194 | K24: 0 | L24: 111 | O24: total reinforcement | P24: =U7 -> 6 | Q24: =Z7 -> 7 | R24: =AE7 -> 8 | S24: =AJ7 -> 5 | T24: =AO7 -> 7 | U24: =AT7 -> 7
A25: 11 | B25: 2338 | C25: 11 | D25: 2342 | E25: 11 | F25: 2347 | K25: 0 | L25: 111 | O25: % target
A26: 11 | B26: 2437 | C26: 11 | D26: 2453 | E26: 11 | F26: 2463 | K26: 0 | L26: 111 | O26: CCRF
A27: 11 | B27: 2577 | C27: 11 | D27: 2591 | E27: 11 | F27: 2600 | K27: 0 | L27: 111 | O27: % CCRf
A28: 11 | B28: 2706 | C28: 11 | D28: 2725 | E28: 11 | F28: 2734 | K28: 0 | L28: 111 | O28: average response rate | P28: =F14/P20 -> 110.75 | Q28: =(F21-F14)/Q20 -> 133.8571429 | R28: =(F29-F21)/R20 -> 128.75 | S28: =(F36-F29)/S20 -> 121.4285714 | T28: =(F44-F36)/T20 -> 123 | U28: =(F51-F44)/U20 -> 117.8571429
A29: 11 | B29: 2836 | C29: 11 | D29: 2844 | E29: 11 | F29: 2853 | K29: 0 | L29: 111
A30: 11 | B30: 2979 | C30: 11 | D30: 2990 | E30: 11 | F30: 2999 | K30: 0 | L30: 111
A31: 11 | B31: 3098 | C31: 11 | D31: 3118 | E31: 11 | F31: 3126 | K31: 0 | L31: 111
A32: 11 | B32: 3216 | C32: 11 | D32: 3219 | E32: 11 | F32: 3225 | K32: 0 | L32: 111
A33: 22 | B33: 3320 | C33: 24 | D33: 3324 | E33: 13 | F33: 3333 | K33: 0 | L33: 221
A34: 22 | B34: 3433 | C34: 13 | D34: 3444 | E34: 13 | F34: 3454 | K34: 0 | L34: 211
A35: 11 | B35: 3555 | C35: 11 | D35: 3558 | E35: 11 | F35: 3563 | K35: 0 | L35: 111
A36: 11 | B36: 3684 | C36: 11 | D36: 3699 | E36: 11 | F36: 3703 | K36: 0 | L36: 111
A37: 11 | B37: 3809 | C37: 11 | D37: 3815 | E37: 11 | F37: 3822 | K37: 0 | L37: 111
A38: 11 | B38: 3917 | C38: 11 | D38: 3935 | E38: 11 | F38: 3944 | K38: 0 | L38: 111
A39: 11 | B39: 4036 | C39: 11 | D39: 4041 | E39: 11 | F39: 4047 | K39: 0 | L39: 111
A40: 11 | B40: 4137 | C40: 11 | D40: 4145 | E40: 11 | F40: 4152 | K40: 0 | L40: 111
A41: 11 | B41: 4327 | C41: 11 | D41: 4333 | E41: 11 | F41: 4347 | K41: 0 | L41: 111
A42: 22 | B42: 4441 | C42: 24 | D42: 4446 | E42: 13 | F42: 4454 | K42: 0 | L42: 221
A43: 11 | B43: 4552 | C43: 11 | D43: 4567 | E43: 11 | F43: 4575 | K43: 0 | L43: 111
A44: 11 | B44: 4673 | C44: 11 | D44: 4681 | E44: 11 | F44: 4687 | K44: 0 | L44: 111
A45: 11 | B45: 4800 | C45: 11 | D45: 4806 | E45: 11 | F45: 4822 | K45: 0 | L45: 111
A46: 11 | B46: 4936 | C46: 11 | D46: 4948 | E46: 11 | F46: 4956 | K46: 0 | L46: 111
A47: 11 | B47: 5058 | C47: 11 | D47: 5064 | E47: 11 | F47: 5089 | K47: 0 | L47: 111
A48: 11 | B48: 5182 | C48: 11 | D48: 5187 | E48: 11 | F48: 5195 | K48: 0 | L48: 111
A49: 11 | B49: 5287 | C49: 11 | D49: 5290 | E49: 11 | F49: 5301 | K49: 0 | L49: 111
A50: 11 | B50: 5396 | C50: 11 | D50: 5401 | E50: 11 | F50: 5413 | K50: 0 | L50: 111
A51: 11 | B51: 5504 | C51: 11 | D51: 5507 | E51: 11 | F51: 5512 | K51: 1 | L51: 111

Sheet !M903C3I.sha
A1: Report for:!M903C3I.sha
A2: Date: | B2: <date>
A3: Hen: | B3: <hen> | F3: Correct Sequence | G3: =Start!J2 -> 111 | P3: Total Sequences in Data | Q3: =4994-COUNTBLANK(L7:L5000) -> 40 | V3: Total Sequences in Block Data | W3: =COUNTA(L7:L13) -> 7 | AA3: Total Sequences in Block Data | AB3: =COUNTA(L14:L19) -> 6 | AF3: Total Sequences in Block Data | AG3: =COUNTA(L20:L26) -> 7 | AK3: Total Sequences in Block Data | AL3: =COUNTA(L27:L33) -> 7 | AP3: Total Sequences in Block Data | AQ3: =COUNTA(L34:L39) -> 6 | AU3: Total Sequences in Block Data | AV3: =COUNTA(L40:L46) -> 7
P4: Total Sequences in Summary | Q4: =SUM(O7:O14) -> 40 | V4: Total Sequences in Block Summary | W4: =SUM(U7:U14) -> 7 | AA4: Total Sequences in Block Summary | AB4: =SUM(Z7:Z14) -> 6 | AF4: Total Sequences in Block Summary | AG4: =SUM(AE7:AE14) -> 7 | AK4: Total Sequences in Block Summary | AL4: =SUM(AJ7:AJ14) -> 7 | AP4: Total Sequences in Block Summary | AQ4: =SUM(AO7:AO14) -> 6 | AU4: Total Sequences in Block Summary | AV4: =SUM(AT7:AT14) -> 7
T5: Block 1 | Y5: Block 2 | AD5: Block 3 | AI5: Block 4 | AN5: Block 5 | AS5: Block 6
A6: Sequence Component 1 | B6: Time 1 | C6: Sequence Component 2 | D6: Time 2 | E6: Sequence Component 3 | F6: Time 3 | G6: Sequence Component 4 | H6: Time 4 | I6: Sequence Component 5 | J6: Time 5 | K6: Correct? 0=No 1=Yes | L6: Sequence | N6: Frequency | P6: Relative Frequency | Q6: Variability | T6: Frequency | V6: Relative Frequency | W6: Variability | Y6: Frequency | AA6: Relative Frequency | AB6: Variability | AD6: Frequency | AF6: Relative Frequency | AG6: Variability | AI6: Frequency | AK6: Relative Frequency | AL6: Variability | AN6: Frequency | AP6: Relative Frequency | AQ6: Variability | AS6: Frequency | AU6: Relative Frequency | AV6: Variability
A7: 11 | B7: 35 | C7: 11 | D7: 40 | E7: 11 | F7: 45 | K7: 0 | L7: 111 | N7: 111 | O7: =COUNTIF($L$7:$L$500,N7) -> 40 | P7: =O7/$Q$4 -> 1 | Q7: =IF(P7=0,0,(P7*((LOG(P7))/LOG(2)))) -> 0 | T7: =N7 -> 111 | U7: =COUNTIF(L7:L13,T7) -> 7 | Y7: =N7 -> 111 | Z7: =COUNTIF(L14:L19,Y7) -> 6 | AD7: =N7 -> 111 | AE7: =COUNTIF(L20:L26,AD7) -> 7 | AI7: =N7 -> 111 | AJ7: =COUNTIF(L27:L33,AI7) -> 7 | AN7: =N7 -> 111 | AO7: =COUNTIF(L34:L39,AN7) -> 6 | AS7: =N7 -> 111 | AT7: =COUNTIF(L40:L46,AS7) -> 7
A8: 11 | B8: 140 | C8: 11 | D8: 145 | E8: 11 | F8: 151 | K8: 0 | L8: 111 | N8: 112 | O8: =COUNTIF($L$7:$L$500,N8) -> 0 | P8: =O8/$Q$4 -> 0 | Q8: =IF(P8=0,0,(P8*((LOG(P8))/LOG(2)))) -> 0 | T8: =N8 -> 112 | U8: =COUNTIF(L7:L13,T8) -> 0 | V8: =U8/(W4-U7) ->  | W8: =IF(V8=0,0,(V8*((LOG(V8))/LOG(2)))) ->  | Y8: =N8 -> 112 | Z8: =COUNTIF(L14:L19,Y8) -> 0 | AA8: =Z8/(AB4-Z7) ->  | AB8: =IF(AA8=0,0,(AA8*((LOG(AA8))/LOG(2)))) ->  | AD8: =N8 -> 112 | AE8: =COUNTIF(L20:L26,AD8) -> 0 | AF8: =AE8/(AG4-AE7) ->  | AG8: =IF(AF8=0,0,(AF8*((LOG(AF8))/LOG(2)))) ->  | AI8: =N8 -> 112 | AJ8: =COUNTIF(L27:L33,AI8) -> 0 | AK8: =AJ8/(AL4-AJ7) ->  | AL8: =IF(AK8=0,0,(AK8*((LOG(AK8))/LOG(2)))) ->  | AN8: =N8 -> 112 | AO8: =COUNTIF(L34:L39,AN8) -> 0 | AP8: =AO8/(AQ4-AO7) ->  | AQ8: =IF(AP8=0,0,(AP8*((LOG(AP8))/LOG(2)))) ->  | AS8: =N8 -> 112 | AT8: =COUNTIF(L40:L46,AS8) -> 0 | AU8: =AT8/(AV4-AT7) ->  | AV8: =IF(AU8=0,0,(AU8*((LOG(AU8))/LOG(2)))) -> 
A9: 11 | B9: 273 | C9: 11 | D9: 284 | E9: 11 | F9: 294 | K9: 0 | L9: 111 | N9: 121 | O9: =COUNTIF($L$7:$L$500,N9) -> 0 | P9: =O9/$Q$4 -> 0 | Q9: =IF(P9=0,0,(P9*((LOG(P9))/LOG(2)))) -> 0 | T9: =N9 -> 121 | U9: =COUNTIF(L7:L13,T9) -> 0 | V9: =U9/(W4-U7) ->  | W9: =IF(V9=0,0,(V9*((LOG(V9))/LOG(2)))) ->  | Y9: =N9 -> 121 | Z9: =COUNTIF(L14:L19,Y9) -> 0 | AA9: =Z9/(AB4-Z7) ->  | AB9: =IF(AA9=0,0,(AA9*((LOG(AA9))/LOG(2)))) ->  | AD9: =N9 -> 121 | AE9: =COUNTIF(L20:L26,AD9) -> 0 | AF9: =AE9/(AG4-AE7) ->  | AG9: =IF(AF9=0,0,(AF9*((LOG(AF9))/LOG(2)))) ->  | AI9: =N9 -> 121 | AJ9: =COUNTIF(L27:L33,AI9) -> 0 | AK9: =AJ9/(AL4-AJ7) ->  | AL9: =IF(AK9=0,0,(AK9*((LOG(AK9))/LOG(2)))) ->  | AN9: =N9 -> 121 | AO9: =COUNTIF(L34:L39,AN9) -> 0 | AP9: =AO9/(AQ4-AO7) ->  | AQ9: =IF(AP9=0,0,(AP9*((LOG(AP9))/LOG(2)))) ->  | AS9: =N9 -> 121 | AT9: =COUNTIF(L40:L46,AS9) -> 0 | AU9: =AT9/(AV4-AT7) ->  | AV9: =IF(AU9=0,0,(AU9*((LOG(AU9))/LOG(2)))) -> 
A10: 11 | B10: 391 | C10: 11 | D10: 396 | E10: 11 | F10: 404 | K10: 0 | L10: 111 | N10: 122 | O10: =COUNTIF($L$7:$L$500,N10) -> 0 | P10: =O10/$Q$4 -> 0 | Q10: =IF(P10=0,0,(P10*((LOG(P10))/LOG(2)))) -> 0 | T10: =N10 -> 122 | U10: =COUNTIF(L7:L13,T10) -> 0 | V10: =U10/(W4-U7) ->  | W10: =IF(V10=0,0,(V10*((LOG(V10))/LOG(2)))) ->  | Y10: =N10 -> 122 | Z10: =COUNTIF(L14:L19,Y10) -> 0 | AA10: =Z10/(AB4-Z7) ->  | AB10: =IF(AA10=0,0,(AA10*((LOG(AA10))/LOG(2)))) ->  | AD10: =N10 -> 122 | AE10: =COUNTIF(L20:L26,AD10) -> 0 | AF10: =AE10/(AG4-AE7) ->  | AG10: =IF(AF10=0,0,(AF10*((LOG(AF10))/LOG(2)))) ->  | AI10: =N10 -> 122 | AJ10: =COUNTIF(L27:L33,AI10) -> 0 | AK10: =AJ10/(AL4-AJ7) ->  | AL10: =IF(AK10=0,0,(AK10*((LOG(AK10))/LOG(2)))) ->  | AN10: =N10 -> 122 | AO10: =COUNTIF(L34:L39,AN10) -> 0 | AP10: =AO10/(AQ4-AO7) ->  | AQ10: =IF(AP10=0,0,(AP10*((LOG(AP10))/LOG(2)))) ->  | AS10: =N10 -> 122 | AT10: =COUNTIF(L40:L46,AS10) -> 0 | AU10: =AT10/(AV4-AT7) ->  | AV10: =IF(AU10=0,0,(AU10*((LOG(AU10))/LOG(2)))) -> 
A11: 11 | B11: 510 | C11: 11 | D11: 514 | E11: 11 | F11: 528 | K11: 0 | L11: 111 | N11: 211 | O11: =COUNTIF($L$7:$L$500,N11) -> 0 | P11: =O11/$Q$4 -> 0 | Q11: =IF(P11=0,0,(P11*((LOG(P11))/LOG(2)))) -> 0 | T11: =N11 -> 211 | U11: =COUNTIF(L7:L13,T11) -> 0 | V11: =U11/(W4-U7) ->  | W11: =IF(V11=0,0,(V11*((LOG(V11))/LOG(2)))) ->  | Y11: =N11 -> 211 | Z11: =COUNTIF(L14:L19,Y11) -> 0 | AA11: =Z11/(AB4-Z7) ->  | AB11: =IF(AA11=0,0,(AA11*((LOG(AA11))/LOG(2)))) ->  | AD11: =N11 -> 211 | AE11: =COUNTIF(L20:L26,AD11) -> 0 | AF11: =AE11/(AG4-AE7) ->  | AG11: =IF(AF11=0,0,(AF11*((LOG(AF11))/LOG(2)))) ->  | AI11: =N11 -> 211 | AJ11: =COUNTIF(L27:L33,AI11) -> 0 | AK11: =AJ11/(AL4-AJ7) ->  | AL11: =IF(AK11=0,0,(AK11*((LOG(AK11))/LOG(2)))) ->  | AN11: =N11 -> 211 | AO11: =COUNTIF(L34:L39,AN11) -> 0 | AP11: =AO11/(AQ4-AO7) ->  | AQ11: =IF(AP11=0,0,(AP11*((LOG(AP11))/LOG(2)))) ->  | AS11: =N11 -> 211 | AT11: =COUNTIF(L40:L46,AS11) -> 0 | AU11: =AT11/(AV4-AT7) ->  | AV11: =IF(AU11=0,0,(AU11*((LOG(AU11))/LOG(2)))) -> 
A12: 11 | B12: 635 | C12: 11 | D12: 646 | E12: 11 | F12: 653 | K12: 0 | L12: 111 | N12: 212 | O12: =COUNTIF($L$7:$L$500,N12) -> 0 | P12: =O12/$Q$4 -> 0 | Q12: =IF(P12=0,0,(P12*((LOG(P12))/LOG(2)))) -> 0 | T12: =N12 -> 212 | U12: =COUNTIF(L7:L13,T12) -> 0 | V12: =U12/(W4-U7) ->  | W12: =IF(V12=0,0,(V12*((LOG(V12))/LOG(2)))) ->  | Y12: =N12 -> 212 | Z12: =COUNTIF(L14:L19,Y12) -> 0 | AA12: =Z12/(AB4-Z7) ->  | AB12: =IF(AA12=0,0,(AA12*((LOG(AA12))/LOG(2)))) ->  | AD12: =N12 -> 212 | AE12: =COUNTIF(L20:L26,AD12) -> 0 | AF12: =AE12/(AG4-AE7) ->  | AG12: =IF(AF12=0,0,(AF12*((LOG(AF12))/LOG(2)))) ->  | AI12: =N12 -> 212 | AJ12: =COUNTIF(L27:L33,AI12) -> 0 | AK12: =AJ12/(AL4-AJ7) ->  | AL12: =IF(AK12=0,0,(AK12*((LOG(AK12))/LOG(2)))) ->  | AN12: =N12 -> 212 | AO12: =COUNTIF(L34:L39,AN12) -> 0 | AP12: =AO12/(AQ4-AO7) ->  | AQ12: =IF(AP12=0,0,(AP12*((LOG(AP12))/LOG(2)))) ->  | AS12: =N12 -> 212 | AT12: =COUNTIF(L40:L46,AS12) -> 0 | AU12: =AT12/(AV4-AT7) ->  | AV12: =IF(AU12=0,0,(AU12*((LOG(AU12))/LOG(2)))) -> 
A13: 11 | B13: 740 | C13: 11 | D13: 751 | E13: 11 | F13: 762 | K13: 0 | L13: 111 | N13: 221 | O13: =COUNTIF($L$7:$L$500,N13) -> 0 | P13: =O13/$Q$4 -> 0 | Q13: =IF(P13=0,0,(P13*((LOG(P13))/LOG(2)))) -> 0 | T13: =N13 -> 221 | U13: =COUNTIF(L7:L13,T13) -> 0 | V13: =U13/(W4-U7) ->  | W13: =IF(V13=0,0,(V13*((LOG(V13))/LOG(2)))) ->  | Y13: =N13 -> 221 | Z13: =COUNTIF(L14:L19,Y13) -> 0 | AA13: =Z13/(AB4-Z7) ->  | AB13: =IF(AA13=0,0,(AA13*((LOG(AA13))/LOG(2)))) ->  | AD13: =N13 -> 221 | AE13: =COUNTIF(L20:L26,AD13) -> 0 | AF13: =AE13/(AG4-AE7) ->  | AG13: =IF(AF13=0,0,(AF13*((LOG(AF13))/LOG(2)))) ->  | AI13: =N13 -> 221 | AJ13: =COUNTIF(L27:L33,AI13) -> 0 | AK13: =AJ13/(AL4-AJ7) ->  | AL13: =IF(AK13=0,0,(AK13*((LOG(AK13))/LOG(2)))) ->  | AN13: =N13 -> 221 | AO13: =COUNTIF(L34:L39,AN13) -> 0 | AP13: =AO13/(AQ4-AO7) ->  | AQ13: =IF(AP13=0,0,(AP13*((LOG(AP13))/LOG(2)))) ->  | AS13: =N13 -> 221 | AT13: =COUNTIF(L40:L46,AS13) -> 0 | AU13: =AT13/(AV4-AT7) ->  | AV13: =IF(AU13=0,0,(AU13*((LOG(AU13))/LOG(2)))) -> 
A14: 11 | B14: 870 | C14: 11 | D14: 874 | E14: 11 | F14: 883 | K14: 0 | L14: 111 | N14: 222 | O14: =COUNTIF($L$7:$L$500,N14) -> 0 | P14: =O14/$Q$4 -> 0 | Q14: =IF(P14=0,0,(P14*((LOG(P14))/LOG(2)))) -> 0 | T14: =N14 -> 222 | U14: =COUNTIF(L7:L13,T14) -> 0 | V14: =U14/(W4-U7) ->  | W14: =IF(V14=0,0,(V14*((LOG(V14))/LOG(2)))) ->  | Y14: =N14 -> 222 | Z14: =COUNTIF(L14:L19,Y14) -> 0 | AA14: =Z14/(AB4-Z7) ->  | AB14: =IF(AA14=0,0,(AA14*((LOG(AA14))/LOG(2)))) ->  | AD14: =N14 -> 222 | AE14: =COUNTIF(L20:L26,AD14) -> 0 | AF14: =AE14/(AG4-AE7) ->  | AG14: =IF(AF14=0,0,(AF14*((LOG(AF14))/LOG(2)))) ->  | AI14: =N14 -> 222 | AJ14: =COUNTIF(L27:L33,AI14) -> 0 | AK14: =AJ14/(AL4-AJ7) ->  | AL14: =IF(AK14=0,0,(AK14*((LOG(AK14))/LOG(2)))) ->  | AN14: =N14 -> 222 | AO14: =COUNTIF(L34:L39,AN14) -> 0 | AP14: =AO14/(AQ4-AO7) ->  | AQ14: =IF(AP14=0,0,(AP14*((LOG(AP14))/LOG(2)))) ->  | AS14: =N14 -> 222 | AT14: =COUNTIF(L40:L46,AS14) -> 0 | AU14: =AT14/(AV4-AT7) ->  | AV14: =IF(AU14=0,0,(AU14*((LOG(AU14))/LOG(2)))) -> 
A15: 11 | B15: 1072 | C15: 11 | D15: 1085 | E15: 11 | F15: 1094 | K15: 0 | L15: 111 | P15: =SUM(P7:P14) -> 1 | Q15: =-SUM(Q7:Q14) -> 0 | V15: =SUM(V7:V14) ->  | W15: =-SUM(W7:W14) ->  | AA15: =SUM(AA7:AA14) ->  | AB15: =-SUM(AB7:AB14) ->  | AF15: =SUM(AF7:AF14) ->  | AG15: =-SUM(AG7:AG14) ->  | AK15: =SUM(AK7:AK14) ->  | AL15: =-SUM(AL7:AL14) ->  | AP15: =SUM(AP7:AP14) ->  | AQ15: =-SUM(AQ7:AQ14) ->  | AU15: =SUM(AU7:AU14) ->  | AV15: =-SUM(AV7:AV14) -> 
A16: 11 | B16: 1211 | C16: 11 | D16: 1214 | E16: 11 | F16: 1222 | K16: 0 | L16: 111 | P16: U= | Q16: =Q15/(LOG(Q4)/LOG(2)) -> 0 | V16: U1= | W16: =W15/(LOG(W4)/LOG(2)) ->  | AA16: U2= | AB16: =AB15/(LOG(AB4)/LOG(2)) ->  | AF16: U3= | AG16: =AG15/(LOG(AG4)/LOG(2)) ->  | AK16: U4= | AL16: =AL15/(LOG(AL4)/LOG(2)) ->  | AP16: U5= | AQ16: =AQ15/(LOG(AQ4)/LOG(2)) ->  | AU16: U6= | AV16: =AV15/(LOG(AV4)/LOG(2)) -> 
A17: 11 | B17: 1347 | C17: 11 | D17: 1354 | E17: 11 | F17: 1359 | K17: 0 | L17: 111
A18: 11 | B18: 1454 | C18: 11 | D18: 1458 | E18: 11 | F18: 1466 | K18: 0 | L18: 111
A19: 11 | B19: 1566 | C19: 11 | D19: 1570 | E19: 11 | F19: 1578 | K19: 0 | L19: 111 | N19: Total Target Seq
A20: 11 | B20: 1670 | C20: 11 | D20: 1682 | E20: 11 | F20: 1691 | K20: 0 | L20: 111 | N20: =COUNTIF(L7:L46,G3) -> 40 | P20: 7 | Q20: 6 | R20: 7 | S20: 7 | T20: 6 | U20: 7
A21: 11 | B21: 1808 | C21: 11 | D21: 1818 | E21: 11 | F21: 1826 | K21: 0 | L21: 111 | P21: % of reinforcement given in 6 equal intervals based on number of trials
A22: 11 | B22: 1916 | C22: 11 | D22: 1929 | E22: 11 | F22: 1937 | K22: 0 | L22: 111 | P22: %_1 | Q22: %_2 | R22: %_3 | S22: %_4 | T22: %_5 | U22: %_6
A23: 11 | B23: 2079 | C23: 11 | D23: 2091 | E23: 11 | F23: 2097 | K23: 0 | L23: 111 | O23: target sequence | P23: =$G$3 -> 111 | Q23: =$G$3 -> 111 | R23: =$G$3 -> 111 | S23: =$G$3 -> 111 | T23: =$G$3 -> 111 | U23: =$G$3 -> 111
A24: 11 | B24: 2208 | C24: 11 | D24: 2221 | E24: 11 | F24: 2229 | K24: 0 | L24: 111 | O24: total reinforcement | P24: =U7 -> 7 | Q24: =Z7 -> 6 | R24: =AE7 -> 7 | S24: =AJ7 -> 7 | T24: =AO7 -> 6 | U24: =AT7 -> 7
A25: 11 | B25: 2324 | C25: 11 | D25: 2333 | E25: 11 | F25: 2340 | K25: 0 | L25: 111 | O25: % target
A26: 11 | B26: 2446 | C26: 11 | D26: 2455 | E26: 11 | F26: 2464 | K26: 0 | L26: 111 | O26: CCRF
A27: 11 | B27: 2576 | C27: 11 | D27: 2588 | E27: 11 | F27: 2596 | K27: 0 | L27: 111 | O27: % CCRf
A28: 11 | B28: 2790 | C28: 11 | D28: 2800 | E28: 11 | F28: 2809 | K28: 0 | L28: 111 | O28: average response rate | P28: =F13/P20 -> 108.8571429 | Q28: =(F19-F13)/Q20 -> 136 | R28: =(F26-F19)/R20 -> 126.5714286 | S28: =(F33-F26)/S20 -> 143.4285714 | T28: =(F39-F33)/T20 -> 130.1666667 | U28: =(F46-F39)/U20 -> 129.7142857
A29: 11 | B29: 2920 | C29: 11 | D29: 2937 | E29: 11 | F29: 2946 | K29: 0 | L29: 111
A30: 11 | B30: 3046 | C30: 11 | D30: 3062 | E30: 11 | F30: 3069 | K30: 0 | L30: 111
A31: 11 | B31: 3220 | C31: 11 | D31: 3237 | E31: 11 | F31: 3245 | K31: 0 | L31: 111
A32: 11 | B32: 3337 | C32: 11 | D32: 3344 | E32: 11 | F32: 3350 | K32: 0 | L32: 111
A33: 11 | B33: 3455 | C33: 11 | D33: 3461 | E33: 11 | F33: 3468 | K33: 0 | L33: 111
A34: 11 | B34: 3561 | C34: 11 | D34: 3564 | E34: 11 | F34: 3574 | K34: 0 | L34: 111
A35: 11 | B35: 3669 | C35: 11 | D35: 3690 | E35: 11 | F35: 3699 | K35: 0 | L35: 111
A36: 11 | B36: 3805 | C36: 11 | D36: 3832 | E36: 11 | F36: 3842 | K36: 0 | L36: 111
A37: 11 | B37: 3980 | C37: 11 | D37: 4004 | E37: 11 | F37: 4012 | K37: 0 | L37: 111
A38: 11 | B38: 4106 | C38: 11 | D38: 4120 | E38: 11 | F38: 4126 | K38: 0 | L38: 111
A39: 11 | B39: 4217 | C39: 11 | D39: 4240 | E39: 11 | F39: 4249 | K39: 0 | L39: 111
A40: 11 | B40: 4365 | C40: 11 | D40: 4392 | E40: 11 | F40: 4398 | K40: 0 | L40: 111
A41: 11 | B41: 4507 | C41: 11 | D41: 4521 | E41: 11 | F41: 4529 | K41: 0 | L41: 111
A42: 11 | B42: 4642 | C42: 11 | D42: 4652 | E42: 11 | F42: 4658 | K42: 0 | L42: 111
A43: 11 | B43: 4748 | C43: 11 | D43: 4753 | E43: 11 | F43: 4758 | K43: 0 | L43: 111
A44: 11 | B44: 4870 | C44: 11 | D44: 4876 | E44: 11 | F44: 4884 | K44: 0 | L44: 111
A45: 11 | B45: 4989 | C45: 11 | D45: 5000 | E45: 11 | F45: 5025 | K45: 0 | L45: 111
A46: 11 | B46: 5129 | C46: 11 | D46: 5148 | E46: 11 | F46: 5157 | K46: 1 | L46: 111

Sheet !M904A4I.sha
A1: Report for:!M904A4I.sha
A2: Date: | B2: <date>
A3: Hen: | B3: <hen> | F3: Correct Sequence | G3: =Start!J2 -> 111 | P3: Total Sequences in Data | Q3: =4994-COUNTBLANK(L7:L5000) -> 42 | V3: Total Sequences in Block Data | W3: =COUNTA(L7:L13) -> 7 | AA3: Total Sequences in Block Data | AB3: =COUNTA(L14:L20) -> 7 | AF3: Total Sequences in Block Data | AG3: =COUNTA(L21:L27) -> 7 | AK3: Total Sequences in Block Data | AL3: =COUNTA(L28:L34) -> 7 | AP3: Total Sequences in Block Data | AQ3: =COUNTA(L35:L41) -> 7 | AU3: Total Sequences in Block Data | AV3: =COUNTA(L42:L48) -> 7
P4: Total Sequences in Summary | Q4: =SUM(O7:O14) -> 42 | V4: Total Sequences in Block Summary | W4: =SUM(U7:U14) -> 7 | AA4: Total Sequences in Block Summary | AB4: =SUM(Z7:Z14) -> 7 | AF4: Total Sequences in Block Summary | AG4: =SUM(AE7:AE14) -> 7 | AK4: Total Sequences in Block Summary | AL4: =SUM(AJ7:AJ14) -> 7 | AP4: Total Sequences in Block Summary | AQ4: =SUM(AO7:AO14) -> 7 | AU4: Total Sequences in Block Summary | AV4: =SUM(AT7:AT14) -> 7
T5: Block 1 | Y5: Block 2 | AD5: Block 3 | AI5: Block 4 | AN5: Block 5 | AS5: Block 6
A6: Sequence Component 1 | B6: Time 1 | C6: Sequence Component 2 | D6: Time 2 | E6: Sequence Component 3 | F6: Time 3 | G6: Sequence Component 4 | H6: Time 4 | I6: Sequence Component 5 | J6: Time 5 | K6: Correct? 0=No 1=Yes | L6: Sequence | N6: Frequency | P6: Relative Frequency | Q6: Variability | T6: Frequency | V6: Relative Frequency | W6: Variability | Y6: Frequency | AA6: Relative Frequency | AB6: Variability | AD6: Frequency | AF6: Relative Frequency | AG6: Variability | AI6: Frequency | AK6: Relative Frequency | AL6: Variability | AN6: Frequency | AP6: Relative Frequency | AQ6: Variability | AS6: Frequency | AU6: Relative Frequency | AV6: Variability
A7: 11 | B7: 35 | C7: 11 | D7: 40 | E7: 11 | F7: 49 | K7: 0 | L7: 111 | N7: 111 | O7: =COUNTIF($L$7:$L$500,N7) -> 40 | P7: =O7/$Q$4 -> 0.9523809524 | Q7: =IF(P7=0,0,(P7*((LOG(P7))/LOG(2)))) -> -0.06703745513 | T7: =N7 -> 111 | U7: =COUNTIF(L7:L13,T7) -> 7 | Y7: =N7 -> 111 | Z7: =COUNTIF(L14:L20,Y7) -> 7 | AD7: =N7 -> 111 | AE7: =COUNTIF(L21:L27,AD7) -> 5 | AI7: =N7 -> 111 | AJ7: =COUNTIF(L28:L34,AI7) -> 7 | AN7: =N7 -> 111 | AO7: =COUNTIF(L35:L41,AN7) -> 7 | AS7: =N7 -> 111 | AT7: =COUNTIF(L42:L48,AS7) -> 7
A8: 11 | B8: 157 | C8: 11 | D8: 162 | E8: 11 | F8: 170 | K8: 0 | L8: 111 | N8: 112 | O8: =COUNTIF($L$7:$L$500,N8) -> 1 | P8: =O8/$Q$4 -> 0.02380952381 | Q8: =IF(P8=0,0,(P8*((LOG(P8))/LOG(2)))) -> -0.1283885101 | T8: =N8 -> 112 | U8: =COUNTIF(L7:L13,T8) -> 0 | V8: =U8/(W4-U7) ->  | W8: =IF(V8=0,0,(V8*((LOG(V8))/LOG(2)))) ->  | Y8: =N8 -> 112 | Z8: =COUNTIF(L14:L20,Y8) -> 0 | AA8: =Z8/(AB4-Z7) ->  | AB8: =IF(AA8=0,0,(AA8*((LOG(AA8))/LOG(2)))) ->  | AD8: =N8 -> 112 | AE8: =COUNTIF(L21:L27,AD8) -> 1 | AF8: =AE8/(AG4-AE7) -> 0.5 | AG8: =IF(AF8=0,0,(AF8*((LOG(AF8))/LOG(2)))) -> -0.5 | AI8: =N8 -> 112 | AJ8: =COUNTIF(L28:L34,AI8) -> 0 | AK8: =AJ8/(AL4-AJ7) ->  | AL8: =IF(AK8=0,0,(AK8*((LOG(AK8))/LOG(2)))) ->  | AN8: =N8 -> 112 | AO8: =COUNTIF(L35:L41,AN8) -> 0 | AP8: =AO8/(AQ4-AO7) ->  | AQ8: =IF(AP8=0,0,(AP8*((LOG(AP8))/LOG(2)))) ->  | AS8: =N8 -> 112 | AT8: =COUNTIF(L42:L48,AS8) -> 0 | AU8: =AT8/(AV4-AT7) ->  | AV8: =IF(AU8=0,0,(AU8*((LOG(AU8))/LOG(2)))) -> 
A9: 11 | B9: 278 | C9: 11 | D9: 284 | E9: 11 | F9: 291 | K9: 0 | L9: 111 | N9: 121 | O9: =COUNTIF($L$7:$L$500,N9) -> 0 | P9: =O9/$Q$4 -> 0 | Q9: =IF(P9=0,0,(P9*((LOG(P9))/LOG(2)))) -> 0 | T9: =N9 -> 121 | U9: =COUNTIF(L7:L13,T9) -> 0 | V9: =U9/(W4-U7) ->  | W9: =IF(V9=0,0,(V9*((LOG(V9))/LOG(2)))) ->  | Y9: =N9 -> 121 | Z9: =COUNTIF(L14:L20,Y9) -> 0 | AA9: =Z9/(AB4-Z7) ->  | AB9: =IF(AA9=0,0,(AA9*((LOG(AA9))/LOG(2)))) ->  | AD9: =N9 -> 121 | AE9: =COUNTIF(L21:L27,AD9) -> 0 | AF9: =AE9/(AG4-AE7) -> 0 | AG9: =IF(AF9=0,0,(AF9*((LOG(AF9))/LOG(2)))) -> 0 | AI9: =N9 -> 121 | AJ9: =COUNTIF(L28:L34,AI9) -> 0 | AK9: =AJ9/(AL4-AJ7) ->  | AL9: =IF(AK9=0,0,(AK9*((LOG(AK9))/LOG(2)))) ->  | AN9: =N9 -> 121 | AO9: =COUNTIF(L35:L41,AN9) -> 0 | AP9: =AO9/(AQ4-AO7) ->  | AQ9: =IF(AP9=0,0,(AP9*((LOG(AP9))/LOG(2)))) ->  | AS9: =N9 -> 121 | AT9: =COUNTIF(L42:L48,AS9) -> 0 | AU9: =AT9/(AV4-AT7) ->  | AV9: =IF(AU9=0,0,(AU9*((LOG(AU9))/LOG(2)))) -> 
A10: 11 | B10: 389 | C10: 11 | D10: 405 | E10: 11 | F10: 412 | K10: 0 | L10: 111 | N10: 122 | O10: =COUNTIF($L$7:$L$500,N10) -> 0 | P10: =O10/$Q$4 -> 0 | Q10: =IF(P10=0,0,(P10*((LOG(P10))/LOG(2)))) -> 0 | T10: =N10 -> 122 | U10: =COUNTIF(L7:L13,T10) -> 0 | V10: =U10/(W4-U7) ->  | W10: =IF(V10=0,0,(V10*((LOG(V10))/LOG(2)))) ->  | Y10: =N10 -> 122 | Z10: =COUNTIF(L14:L20,Y10) -> 0 | AA10: =Z10/(AB4-Z7) ->  | AB10: =IF(AA10=0,0,(AA10*((LOG(AA10))/LOG(2)))) ->  | AD10: =N10 -> 122 | AE10: =COUNTIF(L21:L27,AD10) -> 0 | AF10: =AE10/(AG4-AE7) -> 0 | AG10: =IF(AF10=0,0,(AF10*((LOG(AF10))/LOG(2)))) -> 0 | AI10: =N10 -> 122 | AJ10: =COUNTIF(L28:L34,AI10) -> 0 | AK10: =AJ10/(AL4-AJ7) ->  | AL10: =IF(AK10=0,0,(AK10*((LOG(AK10))/LOG(2)))) ->  | AN10: =N10 -> 122 | AO10: =COUNTIF(L35:L41,AN10) -> 0 | AP10: =AO10/(AQ4-AO7) ->  | AQ10: =IF(AP10=0,0,(AP10*((LOG(AP10))/LOG(2)))) ->  | AS10: =N10 -> 122 | AT10: =COUNTIF(L42:L48,AS10) -> 0 | AU10: =AT10/(AV4-AT7) ->  | AV10: =IF(AU10=0,0,(AU10*((LOG(AU10))/LOG(2)))) -> 
A11: 11 | B11: 514 | C11: 11 | D11: 529 | E11: 11 | F11: 536 | K11: 0 | L11: 111 | N11: 211 | O11: =COUNTIF($L$7:$L$500,N11) -> 1 | P11: =O11/$Q$4 -> 0.02380952381 | Q11: =IF(P11=0,0,(P11*((LOG(P11))/LOG(2)))) -> -0.1283885101 | T11: =N11 -> 211 | U11: =COUNTIF(L7:L13,T11) -> 0 | V11: =U11/(W4-U7) ->  | W11: =IF(V11=0,0,(V11*((LOG(V11))/LOG(2)))) ->  | Y11: =N11 -> 211 | Z11: =COUNTIF(L14:L20,Y11) -> 0 | AA11: =Z11/(AB4-Z7) ->  | AB11: =IF(AA11=0,0,(AA11*((LOG(AA11))/LOG(2)))) ->  | AD11: =N11 -> 211 | AE11: =COUNTIF(L21:L27,AD11) -> 1 | AF11: =AE11/(AG4-AE7) -> 0.5 | AG11: =IF(AF11=0,0,(AF11*((LOG(AF11))/LOG(2)))) -> -0.5 | AI11: =N11 -> 211 | AJ11: =COUNTIF(L28:L34,AI11) -> 0 | AK11: =AJ11/(AL4-AJ7) ->  | AL11: =IF(AK11=0,0,(AK11*((LOG(AK11))/LOG(2)))) ->  | AN11: =N11 -> 211 | AO11: =COUNTIF(L35:L41,AN11) -> 0 | AP11: =AO11/(AQ4-AO7) ->  | AQ11: =IF(AP11=0,0,(AP11*((LOG(AP11))/LOG(2)))) ->  | AS11: =N11 -> 211 | AT11: =COUNTIF(L42:L48,AS11) -> 0 | AU11: =AT11/(AV4-AT7) ->  | AV11: =IF(AU11=0,0,(AU11*((LOG(AU11))/LOG(2)))) -> 
A12: 11 | B12: 643 | C12: 11 | D12: 658 | E12: 11 | F12: 666 | K12: 0 | L12: 111 | N12: 212 | O12: =COUNTIF($L$7:$L$500,N12) -> 0 | P12: =O12/$Q$4 -> 0 | Q12: =IF(P12=0,0,(P12*((LOG(P12))/LOG(2)))) -> 0 | T12: =N12 -> 212 | U12: =COUNTIF(L7:L13,T12) -> 0 | V12: =U12/(W4-U7) ->  | W12: =IF(V12=0,0,(V12*((LOG(V12))/LOG(2)))) ->  | Y12: =N12 -> 212 | Z12: =COUNTIF(L14:L20,Y12) -> 0 | AA12: =Z12/(AB4-Z7) ->  | AB12: =IF(AA12=0,0,(AA12*((LOG(AA12))/LOG(2)))) ->  | AD12: =N12 -> 212 | AE12: =COUNTIF(L21:L27,AD12) -> 0 | AF12: =AE12/(AG4-AE7) -> 0 | AG12: =IF(AF12=0,0,(AF12*((LOG(AF12))/LOG(2)))) -> 0 | AI12: =N12 -> 212 | AJ12: =COUNTIF(L28:L34,AI12) -> 0 | AK12: =AJ12/(AL4-AJ7) ->  | AL12: =IF(AK12=0,0,(AK12*((LOG(AK12))/LOG(2)))) ->  | AN12: =N12 -> 212 | AO12: =COUNTIF(L35:L41,AN12) -> 0 | AP12: =AO12/(AQ4-AO7) ->  | AQ12: =IF(AP12=0,0,(AP12*((LOG(AP12))/LOG(2)))) ->  | AS12: =N12 -> 212 | AT12: =COUNTIF(L42:L48,AS12) -> 0 | AU12: =AT12/(AV4-AT7) ->  | AV12: =IF(AU12=0,0,(AU12*((LOG(AU12))/LOG(2)))) -> 
A13: 11 | B13: 767 | C13: 11 | D13: 773 | E13: 11 | F13: 778 | K13: 0 | L13: 111 | N13: 221 | O13: =COUNTIF($L$7:$L$500,N13) -> 0 | P13: =O13/$Q$4 -> 0 | Q13: =IF(P13=0,0,(P13*((LOG(P13))/LOG(2)))) -> 0 | T13: =N13 -> 221 | U13: =COUNTIF(L7:L13,T13) -> 0 | V13: =U13/(W4-U7) ->  | W13: =IF(V13=0,0,(V13*((LOG(V13))/LOG(2)))) ->  | Y13: =N13 -> 221 | Z13: =COUNTIF(L14:L20,Y13) -> 0 | AA13: =Z13/(AB4-Z7) ->  | AB13: =IF(AA13=0,0,(AA13*((LOG(AA13))/LOG(2)))) ->  | AD13: =N13 -> 221 | AE13: =COUNTIF(L21:L27,AD13) -> 0 | AF13: =AE13/(AG4-AE7) -> 0 | AG13: =IF(AF13=0,0,(AF13*((LOG(AF13))/LOG(2)))) -> 0 | AI13: =N13 -> 221 | AJ13: =COUNTIF(L28:L34,AI13) -> 0 | AK13: =AJ13/(AL4-AJ7) ->  | AL13: =IF(AK13=0,0,(AK13*((LOG(AK13))/LOG(2)))) ->  | AN13: =N13 -> 221 | AO13: =COUNTIF(L35:L41,AN13) -> 0 | AP13: =AO13/(AQ4-AO7) ->  | AQ13: =IF(AP13=0,0,(AP13*((LOG(AP13))/LOG(2)))) ->  | AS13: =N13 -> 221 | AT13: =COUNTIF(L42:L48,AS13) -> 0 | AU13: =AT13/(AV4-AT7) ->  | AV13: =IF(AU13=0,0,(AU13*((LOG(AU13))/LOG(2)))) -> 
A14: 11 | B14: 881 | C14: 11 | D14: 893 | E14: 11 | F14: 901 | K14: 0 | L14: 111 | N14: 222 | O14: =COUNTIF($L$7:$L$500,N14) -> 0 | P14: =O14/$Q$4 -> 0 | Q14: =IF(P14=0,0,(P14*((LOG(P14))/LOG(2)))) -> 0 | T14: =N14 -> 222 | U14: =COUNTIF(L7:L13,T14) -> 0 | V14: =U14/(W4-U7) ->  | W14: =IF(V14=0,0,(V14*((LOG(V14))/LOG(2)))) ->  | Y14: =N14 -> 222 | Z14: =COUNTIF(L14:L20,Y14) -> 0 | AA14: =Z14/(AB4-Z7) ->  | AB14: =IF(AA14=0,0,(AA14*((LOG(AA14))/LOG(2)))) ->  | AD14: =N14 -> 222 | AE14: =COUNTIF(L21:L27,AD14) -> 0 | AF14: =AE14/(AG4-AE7) -> 0 | AG14: =IF(AF14=0,0,(AF14*((LOG(AF14))/LOG(2)))) -> 0 | AI14: =N14 -> 222 | AJ14: =COUNTIF(L28:L34,AI14) -> 0 | AK14: =AJ14/(AL4-AJ7) ->  | AL14: =IF(AK14=0,0,(AK14*((LOG(AK14))/LOG(2)))) ->  | AN14: =N14 -> 222 | AO14: =COUNTIF(L35:L41,AN14) -> 0 | AP14: =AO14/(AQ4-AO7) ->  | AQ14: =IF(AP14=0,0,(AP14*((LOG(AP14))/LOG(2)))) ->  | AS14: =N14 -> 222 | AT14: =COUNTIF(L42:L48,AS14) -> 0 | AU14: =AT14/(AV4-AT7) ->  | AV14: =IF(AU14=0,0,(AU14*((LOG(AU14))/LOG(2)))) -> 
A15: 11 | B15: 995 | C15: 11 | D15: 1011 | E15: 11 | F15: 1019 | K15: 0 | L15: 111 | P15: =SUM(P7:P14) -> 1 | Q15: =-SUM(Q7:Q14) -> 0.3238144753 | V15: =SUM(V7:V14) ->  | W15: =-SUM(W7:W14) ->  | AA15: =SUM(AA7:AA14) ->  | AB15: =-SUM(AB7:AB14) ->  | AF15: =SUM(AF7:AF14) -> 1 | AG15: =-SUM(AG7:AG14) -> 1 | AK15: =SUM(AK7:AK14) ->  | AL15: =-SUM(AL7:AL14) ->  | AP15: =SUM(AP7:AP14) ->  | AQ15: =-SUM(AQ7:AQ14) ->  | AU15: =SUM(AU7:AU14) ->  | AV15: =-SUM(AV7:AV14) -> 
A16: 11 | B16: 1127 | C16: 11 | D16: 1132 | E16: 11 | F16: 1146 | K16: 0 | L16: 111 | P16: U= | Q16: =Q15/(LOG(Q4)/LOG(2)) -> 0.06005107821 | V16: U1= | W16: =W15/(LOG(W4)/LOG(2)) ->  | AA16: U2= | AB16: =AB15/(LOG(AB4)/LOG(2)) ->  | AF16: U3= | AG16: =AG15/(LOG(AG4)/LOG(2)) -> 0.3562071871 | AK16: U4= | AL16: =AL15/(LOG(AL4)/LOG(2)) ->  | AP16: U5= | AQ16: =AQ15/(LOG(AQ4)/LOG(2)) ->  | AU16: U6= | AV16: =AV15/(LOG(AV4)/LOG(2)) -> 
A17: 11 | B17: 1269 | C17: 11 | D17: 1290 | E17: 11 | F17: 1298 | K17: 0 | L17: 111
A18: 11 | B18: 1444 | C18: 11 | D18: 1450 | E18: 11 | F18: 1464 | K18: 0 | L18: 111
A19: 11 | B19: 1562 | C19: 11 | D19: 1581 | E19: 11 | F19: 1588 | K19: 0 | L19: 111 | N19: Total Target Seq
A20: 11 | B20: 1681 | C20: 11 | D20: 1687 | E20: 11 | F20: 1692 | K20: 0 | L20: 111 | N20: =COUNTIF(L7:L48,G3) -> 40 | P20: 7 | Q20: 7 | R20: 7 | S20: 7 | T20: 7 | U20: 7
A21: 22 | B21: 1784 | C21: 13 | D21: 1796 | E21: 13 | F21: 1808 | K21: 0 | L21: 211 | P21: % of reinforcement given in 6 equal intervals based on number of trials
A22: 11 | B22: 1941 | C22: 11 | D22: 1944 | E22: 22 | F22: 1956 | K22: 0 | L22: 112 | P22: %_1 | Q22: %_2 | R22: %_3 | S22: %_4 | T22: %_5 | U22: %_6
A23: 11 | B23: 2059 | C23: 11 | D23: 2064 | E23: 11 | F23: 2068 | K23: 0 | L23: 111 | O23: target sequence | P23: =$G$3 -> 111 | Q23: =$G$3 -> 111 | R23: =$G$3 -> 111 | S23: =$G$3 -> 111 | T23: =$G$3 -> 111 | U23: =$G$3 -> 111
A24: 11 | B24: 2188 | C24: 11 | D24: 2195 | E24: 11 | F24: 2200 | K24: 0 | L24: 111 | O24: total reinforcement | P24: =U7 -> 7 | Q24: =Z7 -> 7 | R24: =AE7 -> 5 | S24: =AJ7 -> 7 | T24: =AO7 -> 7 | U24: =AT7 -> 7
A25: 11 | B25: 2291 | C25: 11 | D25: 2309 | E25: 11 | F25: 2317 | K25: 0 | L25: 111 | O25: % target
A26: 11 | B26: 2432 | C26: 11 | D26: 2437 | E26: 11 | F26: 2442 | K26: 0 | L26: 111 | O26: CCRF
A27: 11 | B27: 2653 | C27: 11 | D27: 2664 | E27: 11 | F27: 2672 | K27: 0 | L27: 111 | O27: % CCRf
A28: 11 | B28: 2778 | C28: 11 | D28: 2792 | E28: 11 | F28: 2799 | K28: 0 | L28: 111 | O28: average response rate | P28: =F13/P20 -> 111.1428571 | Q28: =(F20-F13)/Q20 -> 130.5714286 | R28: =(F27-F20)/R20 -> 140 | S28: =(F34-F27)/S20 -> 129 | T28: =(F41-F34)/T20 -> 150.4285714 | U28: =(F48-F41)/U20 -> 160.4285714
A29: 11 | B29: 2895 | C29: 11 | D29: 2904 | E29: 11 | F29: 2911 | K29: 0 | L29: 111
A30: 11 | B30: 3006 | C30: 11 | D30: 3025 | E30: 11 | F30: 3031 | K30: 0 | L30: 111
A31: 11 | B31: 3167 | C31: 11 | D31: 3172 | E31: 11 | F31: 3188 | K31: 0 | L31: 111
A32: 11 | B32: 3316 | C32: 11 | D32: 3320 | E32: 11 | F32: 3333 | K32: 0 | L32: 111
A33: 11 | B33: 3449 | C33: 11 | D33: 3461 | E33: 11 | F33: 3469 | K33: 0 | L33: 111
A34: 11 | B34: 3563 | C34: 11 | D34: 3568 | E34: 11 | F34: 3575 | K34: 0 | L34: 111
A35: 11 | B35: 3708 | C35: 11 | D35: 3726 | E35: 11 | F35: 3733 | K35: 0 | L35: 111
A36: 11 | B36: 3827 | C36: 11 | D36: 3850 | E36: 11 | F36: 3859 | K36: 0 | L36: 111
A37: 11 | B37: 4001 | C37: 11 | D37: 4032 | E37: 11 | F37: 4041 | K37: 0 | L37: 111
A38: 11 | B38: 4135 | C38: 11 | D38: 4141 | E38: 11 | F38: 4147 | K38: 0 | L38: 111
A39: 11 | B39: 4336 | C39: 11 | D39: 4357 | E39: 11 | F39: 4364 | K39: 0 | L39: 111
A40: 11 | B40: 4463 | C40: 11 | D40: 4467 | E40: 11 | F40: 4479 | K40: 0 | L40: 111
A41: 11 | B41: 4609 | C41: 11 | D41: 4619 | E41: 11 | F41: 4628 | K41: 0 | L41: 111
A42: 11 | B42: 4806 | C42: 11 | D42: 4817 | E42: 11 | F42: 4824 | K42: 0 | L42: 111
A43: 11 | B43: 4937 | C43: 11 | D43: 4954 | E43: 11 | F43: 4962 | K43: 0 | L43: 111
A44: 11 | B44: 5066 | C44: 11 | D44: 5079 | E44: 11 | F44: 5085 | K44: 0 | L44: 111
A45: 11 | B45: 5330 | C45: 11 | D45: 5334 | E45: 11 | F45: 5343 | K45: 0 | L45: 111
A46: 11 | B46: 5476 | C46: 11 | D46: 5486 | E46: 11 | F46: 5494 | K46: 0 | L46: 111
A47: 11 | B47: 5623 | C47: 11 | D47: 5629 | E47: 11 | F47: 5643 | K47: 0 | L47: 111
A48: 11 | B48: 5735 | C48: 11 | D48: 5744 | E48: 11 | F48: 5751 | K48: 1 | L48: 111

Sheet !M905A4I.sha
A1: Report for:!M905A4I.sha
A2: Date: | B2: <date>
A3: Hen: | B3: <hen> | F3: Correct Sequence | G3: =Start!J2 -> 111 | P3: Total Sequences in Data | Q3: =4994-COUNTBLANK(L7:L5000) -> 41 | V3: Total Sequences in Block Data | W3: =COUNTA(L7:L13) -> 7 | AA3: Total Sequences in Block Data | AB3: =COUNTA(L14:L20) -> 7 | AF3: Total Sequences in Block Data | AG3: =COUNTA(L21:L26) -> 6 | AK3: Total Sequences in Block Data | AL3: =COUNTA(L27:L33) -> 7 | AP3: Total Sequences in Block Data | AQ3: =COUNTA(L34:L40) -> 7 | AU3: Total Sequences in Block Data | AV3: =COUNTA(L41:L47) -> 7
P4: Total Sequences in Summary | Q4: =SUM(O7:O14) -> 41 | V4: Total Sequences in Block Summary | W4: =SUM(U7:U14) -> 7 | AA4: Total Sequences in Block Summary | AB4: =SUM(Z7:Z14) -> 7 | AF4: Total Sequences in Block Summary | AG4: =SUM(AE7:AE14) -> 6 | AK4: Total Sequences in Block Summary | AL4: =SUM(AJ7:AJ14) -> 7 | AP4: Total Sequences in Block Summary | AQ4: =SUM(AO7:AO14) -> 7 | AU4: Total Sequences in Block Summary | AV4: =SUM(AT7:AT14) -> 7
T5: Block 1 | Y5: Block 2 | AD5: Block 3 | AI5: Block 4 | AN5: Block 5 | AS5: Block 6
A6: Sequence Component 1 | B6: Time 1 | C6: Sequence Component 2 | D6: Time 2 | E6: Sequence Component 3 | F6: Time 3 | G6: Sequence Component 4 | H6: Time 4 | I6: Sequence Component 5 | J6: Time 5 | K6: Correct? 0=No 1=Yes | L6: Sequence | N6: Frequency | P6: Relative Frequency | Q6: Variability | T6: Frequency | V6: Relative Frequency | W6: Variability | Y6: Frequency | AA6: Relative Frequency | AB6: Variability | AD6: Frequency | AF6: Relative Frequency | AG6: Variability | AI6: Frequency | AK6: Relative Frequency | AL6: Variability | AN6: Frequency | AP6: Relative Frequency | AQ6: Variability | AS6: Frequency | AU6: Relative Frequency | AV6: Variability
A7: 11 | B7: 8 | C7: 11 | D7: 12 | E7: 11 | F7: 17 | K7: 0 | L7: 111 | N7: 111 | O7: =COUNTIF($L$7:$L$500,N7) -> 40 | P7: =O7/$Q$4 -> 0.9756097561 | Q7: =IF(P7=0,0,(P7*((LOG(P7))/LOG(2)))) -> -0.03475503388 | T7: =N7 -> 111 | U7: =COUNTIF(L7:L13,T7) -> 6 | Y7: =N7 -> 111 | Z7: =COUNTIF(L14:L20,Y7) -> 7 | AD7: =N7 -> 111 | AE7: =COUNTIF(L21:L26,AD7) -> 6 | AI7: =N7 -> 111 | AJ7: =COUNTIF(L27:L33,AI7) -> 7 | AN7: =N7 -> 111 | AO7: =COUNTIF(L34:L40,AN7) -> 7 | AS7: =N7 -> 111 | AT7: =COUNTIF(L41:L47,AS7) -> 7
A8: 11 | B8: 147 | C8: 11 | D8: 160 | E8: 11 | F8: 171 | K8: 0 | L8: 111 | N8: 112 | O8: =COUNTIF($L$7:$L$500,N8) -> 0 | P8: =O8/$Q$4 -> 0 | Q8: =IF(P8=0,0,(P8*((LOG(P8))/LOG(2)))) -> 0 | T8: =N8 -> 112 | U8: =COUNTIF(L7:L13,T8) -> 0 | V8: =U8/(W4-U7) -> 0 | W8: =IF(V8=0,0,(V8*((LOG(V8))/LOG(2)))) -> 0 | Y8: =N8 -> 112 | Z8: =COUNTIF(L14:L20,Y8) -> 0 | AA8: =Z8/(AB4-Z7) ->  | AB8: =IF(AA8=0,0,(AA8*((LOG(AA8))/LOG(2)))) ->  | AD8: =N8 -> 112 | AE8: =COUNTIF(L21:L26,AD8) -> 0 | AF8: =AE8/(AG4-AE7) ->  | AG8: =IF(AF8=0,0,(AF8*((LOG(AF8))/LOG(2)))) ->  | AI8: =N8 -> 112 | AJ8: =COUNTIF(L27:L33,AI8) -> 0 | AK8: =AJ8/(AL4-AJ7) ->  | AL8: =IF(AK8=0,0,(AK8*((LOG(AK8))/LOG(2)))) ->  | AN8: =N8 -> 112 | AO8: =COUNTIF(L34:L40,AN8) -> 0 | AP8: =AO8/(AQ4-AO7) ->  | AQ8: =IF(AP8=0,0,(AP8*((LOG(AP8))/LOG(2)))) ->  | AS8: =N8 -> 112 | AT8: =COUNTIF(L41:L47,AS8) -> 0 | AU8: =AT8/(AV4-AT7) ->  | AV8: =IF(AU8=0,0,(AU8*((LOG(AU8))/LOG(2)))) -> 
A9: 11 | B9: 292 | C9: 11 | D9: 308 | E9: 11 | F9: 315 | K9: 0 | L9: 111 | N9: 121 | O9: =COUNTIF($L$7:$L$500,N9) -> 0 | P9: =O9/$Q$4 -> 0 | Q9: =IF(P9=0,0,(P9*((LOG(P9))/LOG(2)))) -> 0 | T9: =N9 -> 121 | U9: =COUNTIF(L7:L13,T9) -> 0 | V9: =U9/(W4-U7) -> 0 | W9: =IF(V9=0,0,(V9*((LOG(V9))/LOG(2)))) -> 0 | Y9: =N9 -> 121 | Z9: =COUNTIF(L14:L20,Y9) -> 0 | AA9: =Z9/(AB4-Z7) ->  | AB9: =IF(AA9=0,0,(AA9*((LOG(AA9))/LOG(2)))) ->  | AD9: =N9 -> 121 | AE9: =COUNTIF(L21:L26,AD9) -> 0 | AF9: =AE9/(AG4-AE7) ->  | AG9: =IF(AF9=0,0,(AF9*((LOG(AF9))/LOG(2)))) ->  | AI9: =N9 -> 121 | AJ9: =COUNTIF(L27:L33,AI9) -> 0 | AK9: =AJ9/(AL4-AJ7) ->  | AL9: =IF(AK9=0,0,(AK9*((LOG(AK9))/LOG(2)))) ->  | AN9: =N9 -> 121 | AO9: =COUNTIF(L34:L40,AN9) -> 0 | AP9: =AO9/(AQ4-AO7) ->  | AQ9: =IF(AP9=0,0,(AP9*((LOG(AP9))/LOG(2)))) ->  | AS9: =N9 -> 121 | AT9: =COUNTIF(L41:L47,AS9) -> 0 | AU9: =AT9/(AV4-AT7) ->  | AV9: =IF(AU9=0,0,(AU9*((LOG(AU9))/LOG(2)))) -> 
A10: 11 | B10: 429 | C10: 11 | D10: 441 | E10: 11 | F10: 449 | K10: 0 | L10: 111 | N10: 122 | O10: =COUNTIF($L$7:$L$500,N10) -> 0 | P10: =O10/$Q$4 -> 0 | Q10: =IF(P10=0,0,(P10*((LOG(P10))/LOG(2)))) -> 0 | T10: =N10 -> 122 | U10: =COUNTIF(L7:L13,T10) -> 0 | V10: =U10/(W4-U7) -> 0 | W10: =IF(V10=0,0,(V10*((LOG(V10))/LOG(2)))) -> 0 | Y10: =N10 -> 122 | Z10: =COUNTIF(L14:L20,Y10) -> 0 | AA10: =Z10/(AB4-Z7) ->  | AB10: =IF(AA10=0,0,(AA10*((LOG(AA10))/LOG(2)))) ->  | AD10: =N10 -> 122 | AE10: =COUNTIF(L21:L26,AD10) -> 0 | AF10: =AE10/(AG4-AE7) ->  | AG10: =IF(AF10=0,0,(AF10*((LOG(AF10))/LOG(2)))) ->  | AI10: =N10 -> 122 | AJ10: =COUNTIF(L27:L33,AI10) -> 0 | AK10: =AJ10/(AL4-AJ7) ->  | AL10: =IF(AK10=0,0,(AK10*((LOG(AK10))/LOG(2)))) ->  | AN10: =N10 -> 122 | AO10: =COUNTIF(L34:L40,AN10) -> 0 | AP10: =AO10/(AQ4-AO7) ->  | AQ10: =IF(AP10=0,0,(AP10*((LOG(AP10))/LOG(2)))) ->  | AS10: =N10 -> 122 | AT10: =COUNTIF(L41:L47,AS10) -> 0 | AU10: =AT10/(AV4-AT7) ->  | AV10: =IF(AU10=0,0,(AU10*((LOG(AU10))/LOG(2)))) -> 
A11: 22 | B11: 546 | C11: 13 | D11: 554 | E11: 13 | F11: 559 | K11: 0 | L11: 211 | N11: 211 | O11: =COUNTIF($L$7:$L$500,N11) -> 1 | P11: =O11/$Q$4 -> 0.0243902439 | Q11: =IF(P11=0,0,(P11*((LOG(P11))/LOG(2)))) -> -0.1306720001 | T11: =N11 -> 211 | U11: =COUNTIF(L7:L13,T11) -> 1 | V11: =U11/(W4-U7) -> 1 | W11: =IF(V11=0,0,(V11*((LOG(V11))/LOG(2)))) -> 0 | Y11: =N11 -> 211 | Z11: =COUNTIF(L14:L20,Y11) -> 0 | AA11: =Z11/(AB4-Z7) ->  | AB11: =IF(AA11=0,0,(AA11*((LOG(AA11))/LOG(2)))) ->  | AD11: =N11 -> 211 | AE11: =COUNTIF(L21:L26,AD11) -> 0 | AF11: =AE11/(AG4-AE7) ->  | AG11: =IF(AF11=0,0,(AF11*((LOG(AF11))/LOG(2)))) ->  | AI11: =N11 -> 211 | AJ11: =COUNTIF(L27:L33,AI11) -> 0 | AK11: =AJ11/(AL4-AJ7) ->  | AL11: =IF(AK11=0,0,(AK11*((LOG(AK11))/LOG(2)))) ->  | AN11: =N11 -> 211 | AO11: =COUNTIF(L34:L40,AN11) -> 0 | AP11: =AO11/(AQ4-AO7) ->  | AQ11: =IF(AP11=0,0,(AP11*((LOG(AP11))/LOG(2)))) ->  | AS11: =N11 -> 211 | AT11: =COUNTIF(L41:L47,AS11) -> 0 | AU11: =AT11/(AV4-AT7) ->  | AV11: =IF(AU11=0,0,(AU11*((LOG(AU11))/LOG(2)))) -> 
A12: 11 | B12: 655 | C12: 11 | D12: 659 | E12: 11 | F12: 665 | K12: 0 | L12: 111 | N12: 212 | O12: =COUNTIF($L$7:$L$500,N12) -> 0 | P12: =O12/$Q$4 -> 0 | Q12: =IF(P12=0,0,(P12*((LOG(P12))/LOG(2)))) -> 0 | T12: =N12 -> 212 | U12: =COUNTIF(L7:L13,T12) -> 0 | V12: =U12/(W4-U7) -> 0 | W12: =IF(V12=0,0,(V12*((LOG(V12))/LOG(2)))) -> 0 | Y12: =N12 -> 212 | Z12: =COUNTIF(L14:L20,Y12) -> 0 | AA12: =Z12/(AB4-Z7) ->  | AB12: =IF(AA12=0,0,(AA12*((LOG(AA12))/LOG(2)))) ->  | AD12: =N12 -> 212 | AE12: =COUNTIF(L21:L26,AD12) -> 0 | AF12: =AE12/(AG4-AE7) ->  | AG12: =IF(AF12=0,0,(AF12*((LOG(AF12))/LOG(2)))) ->  | AI12: =N12 -> 212 | AJ12: =COUNTIF(L27:L33,AI12) -> 0 | AK12: =AJ12/(AL4-AJ7) ->  | AL12: =IF(AK12=0,0,(AK12*((LOG(AK12))/LOG(2)))) ->  | AN12: =N12 -> 212 | AO12: =COUNTIF(L34:L40,AN12) -> 0 | AP12: =AO12/(AQ4-AO7) ->  | AQ12: =IF(AP12=0,0,(AP12*((LOG(AP12))/LOG(2)))) ->  | AS12: =N12 -> 212 | AT12: =COUNTIF(L41:L47,AS12) -> 0 | AU12: =AT12/(AV4-AT7) ->  | AV12: =IF(AU12=0,0,(AU12*((LOG(AU12))/LOG(2)))) -> 
A13: 11 | B13: 762 | C13: 11 | D13: 767 | E13: 11 | F13: 772 | K13: 0 | L13: 111 | N13: 221 | O13: =COUNTIF($L$7:$L$500,N13) -> 0 | P13: =O13/$Q$4 -> 0 | Q13: =IF(P13=0,0,(P13*((LOG(P13))/LOG(2)))) -> 0 | T13: =N13 -> 221 | U13: =COUNTIF(L7:L13,T13) -> 0 | V13: =U13/(W4-U7) -> 0 | W13: =IF(V13=0,0,(V13*((LOG(V13))/LOG(2)))) -> 0 | Y13: =N13 -> 221 | Z13: =COUNTIF(L14:L20,Y13) -> 0 | AA13: =Z13/(AB4-Z7) ->  | AB13: =IF(AA13=0,0,(AA13*((LOG(AA13))/LOG(2)))) ->  | AD13: =N13 -> 221 | AE13: =COUNTIF(L21:L26,AD13) -> 0 | AF13: =AE13/(AG4-AE7) ->  | AG13: =IF(AF13=0,0,(AF13*((LOG(AF13))/LOG(2)))) ->  | AI13: =N13 -> 221 | AJ13: =COUNTIF(L27:L33,AI13) -> 0 | AK13: =AJ13/(AL4-AJ7) ->  | AL13: =IF(AK13=0,0,(AK13*((LOG(AK13))/LOG(2)))) ->  | AN13: =N13 -> 221 | AO13: =COUNTIF(L34:L40,AN13) -> 0 | AP13: =AO13/(AQ4-AO7) ->  | AQ13: =IF(AP13=0,0,(AP13*((LOG(AP13))/LOG(2)))) ->  | AS13: =N13 -> 221 | AT13: =COUNTIF(L41:L47,AS13) -> 0 | AU13: =AT13/(AV4-AT7) ->  | AV13: =IF(AU13=0,0,(AU13*((LOG(AU13))/LOG(2)))) -> 
A14: 11 | B14: 863 | C14: 11 | D14: 874 | E14: 11 | F14: 881 | K14: 0 | L14: 111 | N14: 222 | O14: =COUNTIF($L$7:$L$500,N14) -> 0 | P14: =O14/$Q$4 -> 0 | Q14: =IF(P14=0,0,(P14*((LOG(P14))/LOG(2)))) -> 0 | T14: =N14 -> 222 | U14: =COUNTIF(L7:L13,T14) -> 0 | V14: =U14/(W4-U7) -> 0 | W14: =IF(V14=0,0,(V14*((LOG(V14))/LOG(2)))) -> 0 | Y14: =N14 -> 222 | Z14: =COUNTIF(L14:L20,Y14) -> 0 | AA14: =Z14/(AB4-Z7) ->  | AB14: =IF(AA14=0,0,(AA14*((LOG(AA14))/LOG(2)))) ->  | AD14: =N14 -> 222 | AE14: =COUNTIF(L21:L26,AD14) -> 0 | AF14: =AE14/(AG4-AE7) ->  | AG14: =IF(AF14=0,0,(AF14*((LOG(AF14))/LOG(2)))) ->  | AI14: =N14 -> 222 | AJ14: =COUNTIF(L27:L33,AI14) -> 0 | AK14: =AJ14/(AL4-AJ7) ->  | AL14: =IF(AK14=0,0,(AK14*((LOG(AK14))/LOG(2)))) ->  | AN14: =N14 -> 222 | AO14: =COUNTIF(L34:L40,AN14) -> 0 | AP14: =AO14/(AQ4-AO7) ->  | AQ14: =IF(AP14=0,0,(AP14*((LOG(AP14))/LOG(2)))) ->  | AS14: =N14 -> 222 | AT14: =COUNTIF(L41:L47,AS14) -> 0 | AU14: =AT14/(AV4-AT7) ->  | AV14: =IF(AU14=0,0,(AU14*((LOG(AU14))/LOG(2)))) -> 
A15: 11 | B15: 1045 | C15: 11 | D15: 1057 | E15: 11 | F15: 1065 | K15: 0 | L15: 111 | P15: =SUM(P7:P14) -> 1 | Q15: =-SUM(Q7:Q14) -> 0.165427034 | V15: =SUM(V7:V14) -> 1 | W15: =-SUM(W7:W14) -> 0 | AA15: =SUM(AA7:AA14) ->  | AB15: =-SUM(AB7:AB14) ->  | AF15: =SUM(AF7:AF14) ->  | AG15: =-SUM(AG7:AG14) ->  | AK15: =SUM(AK7:AK14) ->  | AL15: =-SUM(AL7:AL14) ->  | AP15: =SUM(AP7:AP14) ->  | AQ15: =-SUM(AQ7:AQ14) ->  | AU15: =SUM(AU7:AU14) ->  | AV15: =-SUM(AV7:AV14) -> 
A16: 11 | B16: 1219 | C16: 11 | D16: 1236 | E16: 11 | F16: 1242 | K16: 0 | L16: 111 | P16: U= | Q16: =Q15/(LOG(Q4)/LOG(2)) -> 0.03087735478 | V16: U1= | W16: =W15/(LOG(W4)/LOG(2)) -> 0 | AA16: U2= | AB16: =AB15/(LOG(AB4)/LOG(2)) ->  | AF16: U3= | AG16: =AG15/(LOG(AG4)/LOG(2)) ->  | AK16: U4= | AL16: =AL15/(LOG(AL4)/LOG(2)) ->  | AP16: U5= | AQ16: =AQ15/(LOG(AQ4)/LOG(2)) ->  | AU16: U6= | AV16: =AV15/(LOG(AV4)/LOG(2)) -> 
A17: 11 | B17: 1332 | C17: 11 | D17: 1337 | E17: 11 | F17: 1343 | K17: 0 | L17: 111
A18: 11 | B18: 1469 | C18: 11 | D18: 1487 | E18: 11 | F18: 1494 | K18: 0 | L18: 111
A19: 11 | B19: 1586 | C19: 11 | D19: 1593 | E19: 11 | F19: 1604 | K19: 0 | L19: 111 | N19: Total Target Seq
A20: 11 | B20: 1774 | C20: 11 | D20: 1779 | E20: 11 | F20: 1787 | K20: 0 | L20: 111 | N20: =COUNTIF(L7:L47,G3) -> 40 | P20: 7 | Q20: 7 | R20: 6 | S20: 7 | T20: 7 | U20: 7
A21: 11 | B21: 1919 | C21: 11 | D21: 1924 | E21: 11 | F21: 1928 | K21: 0 | L21: 111 | P21: % of reinforcement given in 6 equal intervals based on number of trials
A22: 11 | B22: 2034 | C22: 11 | D22: 2039 | E22: 11 | F22: 2043 | K22: 0 | L22: 111 | P22: %_1 | Q22: %_2 | R22: %_3 | S22: %_4 | T22: %_5 | U22: %_6
A23: 11 | B23: 2188 | C23: 11 | D23: 2192 | E23: 11 | F23: 2204 | K23: 0 | L23: 111 | O23: target sequence | P23: =$G$3 -> 111 | Q23: =$G$3 -> 111 | R23: =$G$3 -> 111 | S23: =$G$3 -> 111 | T23: =$G$3 -> 111 | U23: =$G$3 -> 111
A24: 11 | B24: 2358 | C24: 11 | D24: 2371 | E24: 11 | F24: 2379 | K24: 0 | L24: 111 | O24: total reinforcement | P24: =U7 -> 6 | Q24: =Z7 -> 7 | R24: =AE7 -> 6 | S24: =AJ7 -> 7 | T24: =AO7 -> 7 | U24: =AT7 -> 7
A25: 11 | B25: 2621 | C25: 11 | D25: 2628 | E25: 11 | F25: 2634 | K25: 0 | L25: 111 | O25: % target
A26: 11 | B26: 2754 | C26: 11 | D26: 2764 | E26: 11 | F26: 2772 | K26: 0 | L26: 111 | O26: CCRF
A27: 11 | B27: 2862 | C27: 11 | D27: 2879 | E27: 11 | F27: 2885 | K27: 0 | L27: 111 | O27: % CCRf
A28: 11 | B28: 2987 | C28: 11 | D28: 2992 | E28: 11 | F28: 2996 | K28: 0 | L28: 111 | O28: average response rate | P28: =F13/P20 -> 110.2857143 | Q28: =(F20-F13)/Q20 -> 145 | R28: =(F26-F20)/R20 -> 164.1666667 | S28: =(F33-F26)/S20 -> 129 | T28: =(F40-F33)/T20 -> 152.8571429 | U28: =(F47-F40)/U20 -> 141.8571429
A29: 11 | B29: 3087 | C29: 11 | D29: 3113 | E29: 11 | F29: 3121 | K29: 0 | L29: 111
A30: 11 | B30: 3220 | C30: 11 | D30: 3235 | E30: 11 | F30: 3243 | K30: 0 | L30: 111
A31: 11 | B31: 3395 | C31: 11 | D31: 3409 | E31: 11 | F31: 3416 | K31: 0 | L31: 111
A32: 11 | B32: 3516 | C32: 11 | D32: 3542 | E32: 11 | F32: 3547 | K32: 0 | L32: 111
A33: 11 | B33: 3659 | C33: 11 | D33: 3667 | E33: 11 | F33: 3675 | K33: 0 | L33: 111
A34: 11 | B34: 3767 | C34: 11 | D34: 3794 | E34: 11 | F34: 3802 | K34: 0 | L34: 111
A35: 11 | B35: 3932 | C35: 11 | D35: 3937 | E35: 11 | F35: 3955 | K35: 0 | L35: 111
A36: 11 | B36: 4064 | C36: 11 | D36: 4068 | E36: 11 | F36: 4080 | K36: 0 | L36: 111
A37: 11 | B37: 4233 | C37: 11 | D37: 4236 | E37: 11 | F37: 4251 | K37: 0 | L37: 111
A38: 11 | B38: 4422 | C38: 11 | D38: 4429 | E38: 11 | F38: 4445 | K38: 0 | L38: 111
A39: 11 | B39: 4547 | C39: 11 | D39: 4557 | E39: 11 | F39: 4564 | K39: 0 | L39: 111
A40: 11 | B40: 4727 | C40: 11 | D40: 4730 | E40: 11 | F40: 4745 | K40: 0 | L40: 111
A41: 11 | B41: 4871 | C41: 11 | D41: 4896 | E41: 11 | F41: 4904 | K41: 0 | L41: 111
A42: 11 | B42: 5001 | C42: 11 | D42: 5006 | E42: 11 | F42: 5028 | K42: 0 | L42: 111
A43: 11 | B43: 5129 | C43: 11 | D43: 5137 | E43: 11 | F43: 5143 | K43: 0 | L43: 111
A44: 11 | B44: 5280 | C44: 11 | D44: 5285 | E44: 11 | F44: 5291 | K44: 0 | L44: 111
A45: 11 | B45: 5394 | C45: 11 | D45: 5417 | E45: 11 | F45: 5425 | K45: 0 | L45: 111
A46: 11 | B46: 5546 | C46: 11 | D46: 5551 | E46: 11 | F46: 5572 | K46: 0 | L46: 111
A47: 11 | B47: 5721 | C47: 11 | D47: 5725 | E47: 11 | F47: 5738 | K47: 1 | L47: 111

Sheet !M906B1I.sha
A1: Report for:!M906B1I.sha
A2: Date: | B2: <date>
A3: Hen: | B3: <hen> | F3: Correct Sequence | G3: =Start!J2 -> 111 | P3: Total Sequences in Data | Q3: =4994-COUNTBLANK(L7:L5000) -> 42 | V3: Total Sequences in Block Data | W3: =COUNTA(L7:L13) -> 7 | AA3: Total Sequences in Block Data | AB3: =COUNTA(L14:L20) -> 7 | AF3: Total Sequences in Block Data | AG3: =COUNTA(L21:L27) -> 7 | AK3: Total Sequences in Block Data | AL3: =COUNTA(L28:L34) -> 7 | AP3: Total Sequences in Block Data | AQ3: =COUNTA(L35:L41) -> 7 | AU3: Total Sequences in Block Data | AV3: =COUNTA(L42:L48) -> 7
P4: Total Sequences in Summary | Q4: =SUM(O7:O14) -> 42 | V4: Total Sequences in Block Summary | W4: =SUM(U7:U14) -> 7 | AA4: Total Sequences in Block Summary | AB4: =SUM(Z7:Z14) -> 7 | AF4: Total Sequences in Block Summary | AG4: =SUM(AE7:AE14) -> 7 | AK4: Total Sequences in Block Summary | AL4: =SUM(AJ7:AJ14) -> 7 | AP4: Total Sequences in Block Summary | AQ4: =SUM(AO7:AO14) -> 7 | AU4: Total Sequences in Block Summary | AV4: =SUM(AT7:AT14) -> 7
T5: Block 1 | Y5: Block 2 | AD5: Block 3 | AI5: Block 4 | AN5: Block 5 | AS5: Block 6
A6: Sequence Component 1 | B6: Time 1 | C6: Sequence Component 2 | D6: Time 2 | E6: Sequence Component 3 | F6: Time 3 | G6: Sequence Component 4 | H6: Time 4 | I6: Sequence Component 5 | J6: Time 5 | K6: Correct? 0=No 1=Yes | L6: Sequence | N6: Frequency | P6: Relative Frequency | Q6: Variability | T6: Frequency | V6: Relative Frequency | W6: Variability | Y6: Frequency | AA6: Relative Frequency | AB6: Variability | AD6: Frequency | AF6: Relative Frequency | AG6: Variability | AI6: Frequency | AK6: Relative Frequency | AL6: Variability | AN6: Frequency | AP6: Relative Frequency | AQ6: Variability | AS6: Frequency | AU6: Relative Frequency | AV6: Variability
A7: 11 | B7: 79 | C7: 11 | D7: 84 | E7: 11 | F7: 91 | K7: 0 | L7: 111 | N7: 111 | O7: =COUNTIF($L$7:$L$500,N7) -> 40 | P7: =O7/$Q$4 -> 0.9523809524 | Q7: =IF(P7=0,0,(P7*((LOG(P7))/LOG(2)))) -> -0.06703745513 | T7: =N7 -> 111 | U7: =COUNTIF(L7:L13,T7) -> 7 | Y7: =N7 -> 111 | Z7: =COUNTIF(L14:L20,Y7) -> 5 | AD7: =N7 -> 111 | AE7: =COUNTIF(L21:L27,AD7) -> 7 | AI7: =N7 -> 111 | AJ7: =COUNTIF(L28:L34,AI7) -> 7 | AN7: =N7 -> 111 | AO7: =COUNTIF(L35:L41,AN7) -> 7 | AS7: =N7 -> 111 | AT7: =COUNTIF(L42:L48,AS7) -> 7
A8: 11 | B8: 237 | C8: 11 | D8: 245 | E8: 11 | F8: 252 | K8: 0 | L8: 111 | N8: 112 | O8: =COUNTIF($L$7:$L$500,N8) -> 0 | P8: =O8/$Q$4 -> 0 | Q8: =IF(P8=0,0,(P8*((LOG(P8))/LOG(2)))) -> 0 | T8: =N8 -> 112 | U8: =COUNTIF(L7:L13,T8) -> 0 | V8: =U8/(W4-U7) ->  | W8: =IF(V8=0,0,(V8*((LOG(V8))/LOG(2)))) ->  | Y8: =N8 -> 112 | Z8: =COUNTIF(L14:L20,Y8) -> 0 | AA8: =Z8/(AB4-Z7) -> 0 | AB8: =IF(AA8=0,0,(AA8*((LOG(AA8))/LOG(2)))) -> 0 | AD8: =N8 -> 112 | AE8: =COUNTIF(L21:L27,AD8) -> 0 | AF8: =AE8/(AG4-AE7) ->  | AG8: =IF(AF8=0,0,(AF8*((LOG(AF8))/LOG(2)))) ->  | AI8: =N8 -> 112 | AJ8: =COUNTIF(L28:L34,AI8) -> 0 | AK8: =AJ8/(AL4-AJ7) ->  | AL8: =IF(AK8=0,0,(AK8*((LOG(AK8))/LOG(2)))) ->  | AN8: =N8 -> 112 | AO8: =COUNTIF(L35:L41,AN8) -> 0 | AP8: =AO8/(AQ4-AO7) ->  | AQ8: =IF(AP8=0,0,(AP8*((LOG(AP8))/LOG(2)))) ->  | AS8: =N8 -> 112 | AT8: =COUNTIF(L42:L48,AS8) -> 0 | AU8: =AT8/(AV4-AT7) ->  | AV8: =IF(AU8=0,0,(AU8*((LOG(AU8))/LOG(2)))) -> 
A9: 11 | B9: 346 | C9: 11 | D9: 352 | E9: 11 | F9: 358 | K9: 0 | L9: 111 | N9: 121 | O9: =COUNTIF($L$7:$L$500,N9) -> 0 | P9: =O9/$Q$4 -> 0 | Q9: =IF(P9=0,0,(P9*((LOG(P9))/LOG(2)))) -> 0 | T9: =N9 -> 121 | U9: =COUNTIF(L7:L13,T9) -> 0 | V9: =U9/(W4-U7) ->  | W9: =IF(V9=0,0,(V9*((LOG(V9))/LOG(2)))) ->  | Y9: =N9 -> 121 | Z9: =COUNTIF(L14:L20,Y9) -> 0 | AA9: =Z9/(AB4-Z7) -> 0 | AB9: =IF(AA9=0,0,(AA9*((LOG(AA9))/LOG(2)))) -> 0 | AD9: =N9 -> 121 | AE9: =COUNTIF(L21:L27,AD9) -> 0 | AF9: =AE9/(AG4-AE7) ->  | AG9: =IF(AF9=0,0,(AF9*((LOG(AF9))/LOG(2)))) ->  | AI9: =N9 -> 121 | AJ9: =COUNTIF(L28:L34,AI9) -> 0 | AK9: =AJ9/(AL4-AJ7) ->  | AL9: =IF(AK9=0,0,(AK9*((LOG(AK9))/LOG(2)))) ->  | AN9: =N9 -> 121 | AO9: =COUNTIF(L35:L41,AN9) -> 0 | AP9: =AO9/(AQ4-AO7) ->  | AQ9: =IF(AP9=0,0,(AP9*((LOG(AP9))/LOG(2)))) ->  | AS9: =N9 -> 121 | AT9: =COUNTIF(L42:L48,AS9) -> 0 | AU9: =AT9/(AV4-AT7) ->  | AV9: =IF(AU9=0,0,(AU9*((LOG(AU9))/LOG(2)))) -> 
A10: 11 | B10: 451 | C10: 11 | D10: 456 | E10: 11 | F10: 460 | K10: 0 | L10: 111 | N10: 122 | O10: =COUNTIF($L$7:$L$500,N10) -> 0 | P10: =O10/$Q$4 -> 0 | Q10: =IF(P10=0,0,(P10*((LOG(P10))/LOG(2)))) -> 0 | T10: =N10 -> 122 | U10: =COUNTIF(L7:L13,T10) -> 0 | V10: =U10/(W4-U7) ->  | W10: =IF(V10=0,0,(V10*((LOG(V10))/LOG(2)))) ->  | Y10: =N10 -> 122 | Z10: =COUNTIF(L14:L20,Y10) -> 0 | AA10: =Z10/(AB4-Z7) -> 0 | AB10: =IF(AA10=0,0,(AA10*((LOG(AA10))/LOG(2)))) -> 0 | AD10: =N10 -> 122 | AE10: =COUNTIF(L21:L27,AD10) -> 0 | AF10: =AE10/(AG4-AE7) ->  | AG10: =IF(AF10=0,0,(AF10*((LOG(AF10))/LOG(2)))) ->  | AI10: =N10 -> 122 | AJ10: =COUNTIF(L28:L34,AI10) -> 0 | AK10: =AJ10/(AL4-AJ7) ->  | AL10: =IF(AK10=0,0,(AK10*((LOG(AK10))/LOG(2)))) ->  | AN10: =N10 -> 122 | AO10: =COUNTIF(L35:L41,AN10) -> 0 | AP10: =AO10/(AQ4-AO7) ->  | AQ10: =IF(AP10=0,0,(AP10*((LOG(AP10))/LOG(2)))) ->  | AS10: =N10 -> 122 | AT10: =COUNTIF(L42:L48,AS10) -> 0 | AU10: =AT10/(AV4-AT7) ->  | AV10: =IF(AU10=0,0,(AU10*((LOG(AU10))/LOG(2)))) -> 
A11: 11 | B11: 551 | C11: 11 | D11: 556 | E11: 11 | F11: 562 | K11: 0 | L11: 111 | N11: 211 | O11: =COUNTIF($L$7:$L$500,N11) -> 2 | P11: =O11/$Q$4 -> 0.04761904762 | Q11: =IF(P11=0,0,(P11*((LOG(P11))/LOG(2)))) -> -0.2091579725 | T11: =N11 -> 211 | U11: =COUNTIF(L7:L13,T11) -> 0 | V11: =U11/(W4-U7) ->  | W11: =IF(V11=0,0,(V11*((LOG(V11))/LOG(2)))) ->  | Y11: =N11 -> 211 | Z11: =COUNTIF(L14:L20,Y11) -> 2 | AA11: =Z11/(AB4-Z7) -> 1 | AB11: =IF(AA11=0,0,(AA11*((LOG(AA11))/LOG(2)))) -> 0 | AD11: =N11 -> 211 | AE11: =COUNTIF(L21:L27,AD11) -> 0 | AF11: =AE11/(AG4-AE7) ->  | AG11: =IF(AF11=0,0,(AF11*((LOG(AF11))/LOG(2)))) ->  | AI11: =N11 -> 211 | AJ11: =COUNTIF(L28:L34,AI11) -> 0 | AK11: =AJ11/(AL4-AJ7) ->  | AL11: =IF(AK11=0,0,(AK11*((LOG(AK11))/LOG(2)))) ->  | AN11: =N11 -> 211 | AO11: =COUNTIF(L35:L41,AN11) -> 0 | AP11: =AO11/(AQ4-AO7) ->  | AQ11: =IF(AP11=0,0,(AP11*((LOG(AP11))/LOG(2)))) ->  | AS11: =N11 -> 211 | AT11: =COUNTIF(L42:L48,AS11) -> 0 | AU11: =AT11/(AV4-AT7) ->  | AV11: =IF(AU11=0,0,(AU11*((LOG(AU11))/LOG(2)))) -> 
A12: 11 | B12: 698 | C12: 11 | D12: 705 | E12: 11 | F12: 713 | K12: 0 | L12: 111 | N12: 212 | O12: =COUNTIF($L$7:$L$500,N12) -> 0 | P12: =O12/$Q$4 -> 0 | Q12: =IF(P12=0,0,(P12*((LOG(P12))/LOG(2)))) -> 0 | T12: =N12 -> 212 | U12: =COUNTIF(L7:L13,T12) -> 0 | V12: =U12/(W4-U7) ->  | W12: =IF(V12=0,0,(V12*((LOG(V12))/LOG(2)))) ->  | Y12: =N12 -> 212 | Z12: =COUNTIF(L14:L20,Y12) -> 0 | AA12: =Z12/(AB4-Z7) -> 0 | AB12: =IF(AA12=0,0,(AA12*((LOG(AA12))/LOG(2)))) -> 0 | AD12: =N12 -> 212 | AE12: =COUNTIF(L21:L27,AD12) -> 0 | AF12: =AE12/(AG4-AE7) ->  | AG12: =IF(AF12=0,0,(AF12*((LOG(AF12))/LOG(2)))) ->  | AI12: =N12 -> 212 | AJ12: =COUNTIF(L28:L34,AI12) -> 0 | AK12: =AJ12/(AL4-AJ7) ->  | AL12: =IF(AK12=0,0,(AK12*((LOG(AK12))/LOG(2)))) ->  | AN12: =N12 -> 212 | AO12: =COUNTIF(L35:L41,AN12) -> 0 | AP12: =AO12/(AQ4-AO7) ->  | AQ12: =IF(AP12=0,0,(AP12*((LOG(AP12))/LOG(2)))) ->  | AS12: =N12 -> 212 | AT12: =COUNTIF(L42:L48,AS12) -> 0 | AU12: =AT12/(AV4-AT7) ->  | AV12: =IF(AU12=0,0,(AU12*((LOG(AU12))/LOG(2)))) -> 
A13: 11 | B13: 840 | C13: 11 | D13: 850 | E13: 11 | F13: 856 | K13: 0 | L13: 111 | N13: 221 | O13: =COUNTIF($L$7:$L$500,N13) -> 0 | P13: =O13/$Q$4 -> 0 | Q13: =IF(P13=0,0,(P13*((LOG(P13))/LOG(2)))) -> 0 | T13: =N13 -> 221 | U13: =COUNTIF(L7:L13,T13) -> 0 | V13: =U13/(W4-U7) ->  | W13: =IF(V13=0,0,(V13*((LOG(V13))/LOG(2)))) ->  | Y13: =N13 -> 221 | Z13: =COUNTIF(L14:L20,Y13) -> 0 | AA13: =Z13/(AB4-Z7) -> 0 | AB13: =IF(AA13=0,0,(AA13*((LOG(AA13))/LOG(2)))) -> 0 | AD13: =N13 -> 221 | AE13: =COUNTIF(L21:L27,AD13) -> 0 | AF13: =AE13/(AG4-AE7) ->  | AG13: =IF(AF13=0,0,(AF13*((LOG(AF13))/LOG(2)))) ->  | AI13: =N13 -> 221 | AJ13: =COUNTIF(L28:L34,AI13) -> 0 | AK13: =AJ13/(AL4-AJ7) ->  | AL13: =IF(AK13=0,0,(AK13*((LOG(AK13))/LOG(2)))) ->  | AN13: =N13 -> 221 | AO13: =COUNTIF(L35:L41,AN13) -> 0 | AP13: =AO13/(AQ4-AO7) ->  | AQ13: =IF(AP13=0,0,(AP13*((LOG(AP13))/LOG(2)))) ->  | AS13: =N13 -> 221 | AT13: =COUNTIF(L42:L48,AS13) -> 0 | AU13: =AT13/(AV4-AT7) ->  | AV13: =IF(AU13=0,0,(AU13*((LOG(AU13))/LOG(2)))) -> 
A14: 11 | B14: 948 | C14: 11 | D14: 954 | E14: 11 | F14: 964 | K14: 0 | L14: 111 | N14: 222 | O14: =COUNTIF($L$7:$L$500,N14) -> 0 | P14: =O14/$Q$4 -> 0 | Q14: =IF(P14=0,0,(P14*((LOG(P14))/LOG(2)))) -> 0 | T14: =N14 -> 222 | U14: =COUNTIF(L7:L13,T14) -> 0 | V14: =U14/(W4-U7) ->  | W14: =IF(V14=0,0,(V14*((LOG(V14))/LOG(2)))) ->  | Y14: =N14 -> 222 | Z14: =COUNTIF(L14:L20,Y14) -> 0 | AA14: =Z14/(AB4-Z7) -> 0 | AB14: =IF(AA14=0,0,(AA14*((LOG(AA14))/LOG(2)))) -> 0 | AD14: =N14 -> 222 | AE14: =COUNTIF(L21:L27,AD14) -> 0 | AF14: =AE14/(AG4-AE7) ->  | AG14: =IF(AF14=0,0,(AF14*((LOG(AF14))/LOG(2)))) ->  | AI14: =N14 -> 222 | AJ14: =COUNTIF(L28:L34,AI14) -> 0 | AK14: =AJ14/(AL4-AJ7) ->  | AL14: =IF(AK14=0,0,(AK14*((LOG(AK14))/LOG(2)))) ->  | AN14: =N14 -> 222 | AO14: =COUNTIF(L35:L41,AN14) -> 0 | AP14: =AO14/(AQ4-AO7) ->  | AQ14: =IF(AP14=0,0,(AP14*((LOG(AP14))/LOG(2)))) ->  | AS14: =N14 -> 222 | AT14: =COUNTIF(L42:L48,AS14) -> 0 | AU14: =AT14/(AV4-AT7) ->  | AV14: =IF(AU14=0,0,(AU14*((LOG(AU14))/LOG(2)))) -> 
A15: 11 | B15: 1076 | C15: 11 | D15: 1085 | E15: 11 | F15: 1091 | K15: 0 | L15: 111 | P15: =SUM(P7:P14) -> 1 | Q15: =-SUM(Q7:Q14) -> 0.2761954276 | V15: =SUM(V7:V14) ->  | W15: =-SUM(W7:W14) ->  | AA15: =SUM(AA7:AA14) -> 1 | AB15: =-SUM(AB7:AB14) -> 0 | AF15: =SUM(AF7:AF14) ->  | AG15: =-SUM(AG7:AG14) ->  | AK15: =SUM(AK7:AK14) ->  | AL15: =-SUM(AL7:AL14) ->  | AP15: =SUM(AP7:AP14) ->  | AQ15: =-SUM(AQ7:AQ14) ->  | AU15: =SUM(AU7:AU14) ->  | AV15: =-SUM(AV7:AV14) -> 
A16: 11 | B16: 1217 | C16: 11 | D16: 1225 | E16: 11 | F16: 1236 | K16: 0 | L16: 111 | P16: U= | Q16: =Q15/(LOG(Q4)/LOG(2)) -> 0.05122017233 | V16: U1= | W16: =W15/(LOG(W4)/LOG(2)) ->  | AA16: U2= | AB16: =AB15/(LOG(AB4)/LOG(2)) -> 0 | AF16: U3= | AG16: =AG15/(LOG(AG4)/LOG(2)) ->  | AK16: U4= | AL16: =AL15/(LOG(AL4)/LOG(2)) ->  | AP16: U5= | AQ16: =AQ15/(LOG(AQ4)/LOG(2)) ->  | AU16: U6= | AV16: =AV15/(LOG(AV4)/LOG(2)) -> 
A17: 11 | B17: 1363 | C17: 11 | D17: 1368 | E17: 11 | F17: 1374 | K17: 0 | L17: 111
A18: 22 | B18: 1473 | C18: 13 | D18: 1481 | E18: 13 | F18: 1499 | K18: 0 | L18: 211
A19: 22 | B19: 1597 | C19: 13 | D19: 1608 | E19: 13 | F19: 1619 | K19: 0 | L19: 211 | N19: Total Target Seq
A20: 11 | B20: 1720 | C20: 11 | D20: 1725 | E20: 11 | F20: 1730 | K20: 0 | L20: 111 | N20: =COUNTIF(L7:L48,G3) -> 40 | P20: 7 | Q20: 7 | R20: 7 | S20: 7 | T20: 7 | U20: 7
A21: 11 | B21: 1873 | C21: 11 | D21: 1876 | E21: 11 | F21: 1880 | K21: 0 | L21: 111 | P21: % of reinforcement given in 6 equal intervals based on number of trials
A22: 11 | B22: 1979 | C22: 11 | D22: 1984 | E22: 11 | F22: 1991 | K22: 0 | L22: 111 | P22: %_1 | Q22: %_2 | R22: %_3 | S22: %_4 | T22: %_5 | U22: %_6
A23: 11 | B23: 2188 | C23: 11 | D23: 2198 | E23: 11 | F23: 2205 | K23: 0 | L23: 111 | O23: target sequence | P23: =$G$3 -> 111 | Q23: =$G$3 -> 111 | R23: =$G$3 -> 111 | S23: =$G$3 -> 111 | T23: =$G$3 -> 111 | U23: =$G$3 -> 111
A24: 11 | B24: 2379 | C24: 11 | D24: 2383 | E24: 11 | F24: 2391 | K24: 0 | L24: 111 | O24: total reinforcement | P24: =U7 -> 7 | Q24: =Z7 -> 5 | R24: =AE7 -> 7 | S24: =AJ7 -> 7 | T24: =AO7 -> 7 | U24: =AT7 -> 7
A25: 11 | B25: 2569 | C25: 11 | D25: 2581 | E25: 11 | F25: 2591 | K25: 0 | L25: 111 | O25: % target
A26: 11 | B26: 2695 | C26: 11 | D26: 2713 | E26: 11 | F26: 2723 | K26: 0 | L26: 111 | O26: CCRF
A27: 11 | B27: 2871 | C27: 11 | D27: 2876 | E27: 11 | F27: 2882 | K27: 0 | L27: 111 | O27: % CCRf
A28: 11 | B28: 3025 | C28: 11 | D28: 3030 | E28: 11 | F28: 3048 | K28: 0 | L28: 111 | O28: average response rate | P28: =F13/P20 -> 122.2857143 | Q28: =(F20-F13)/Q20 -> 124.8571429 | R28: =(F27-F20)/R20 -> 164.5714286 | S28: =(F34-F27)/S20 -> 150.8571429 | T28: =(F41-F34)/T20 -> 178.2857143 | U28: =(F48-F41)/U20 -> 210
A29: 11 | B29: 3287 | C29: 11 | D29: 3293 | E29: 11 | F29: 3298 | K29: 0 | L29: 111
A30: 11 | B30: 3389 | C30: 11 | D30: 3402 | E30: 11 | F30: 3409 | K30: 0 | L30: 111
A31: 11 | B31: 3533 | C31: 11 | D31: 3538 | E31: 11 | F31: 3549 | K31: 0 | L31: 111
A32: 11 | B32: 3659 | C32: 11 | D32: 3663 | E32: 11 | F32: 3672 | K32: 0 | L32: 111
A33: 11 | B33: 3776 | C33: 11 | D33: 3781 | E33: 11 | F33: 3785 | K33: 0 | L33: 111
A34: 11 | B34: 3915 | C34: 11 | D34: 3920 | E34: 11 | F34: 3938 | K34: 0 | L34: 111
A35: 11 | B35: 4059 | C35: 11 | D35: 4071 | E35: 11 | F35: 4080 | K35: 0 | L35: 111
A36: 11 | B36: 4253 | C36: 11 | D36: 4261 | E36: 11 | F36: 4273 | K36: 0 | L36: 111
A37: 11 | B37: 4420 | C37: 11 | D37: 4425 | E37: 11 | F37: 4445 | K37: 0 | L37: 111
A38: 11 | B38: 4709 | C38: 11 | D38: 4716 | E38: 11 | F38: 4721 | K38: 0 | L38: 111
A39: 11 | B39: 4856 | C39: 11 | D39: 4866 | E39: 11 | F39: 4876 | K39: 0 | L39: 111
A40: 11 | B40: 5023 | C40: 11 | D40: 5025 | E40: 11 | F40: 5037 | K40: 0 | L40: 111
A41: 11 | B41: 5172 | C41: 11 | D41: 5177 | E41: 11 | F41: 5186 | K41: 0 | L41: 111
A42: 11 | B42: 5355 | C42: 11 | D42: 5370 | E42: 11 | F42: 5377 | K42: 0 | L42: 111
A43: 11 | B43: 5511 | C43: 11 | D43: 5526 | E43: 11 | F43: 5534 | K43: 0 | L43: 111
A44: 11 | B44: 5695 | C44: 11 | D44: 5705 | E44: 11 | F44: 5713 | K44: 0 | L44: 111
A45: 11 | B45: 5924 | C45: 11 | D45: 5929 | E45: 11 | F45: 5937 | K45: 0 | L45: 111
A46: 11 | B46: 6189 | C46: 11 | D46: 6192 | E46: 11 | F46: 6197 | K46: 0 | L46: 111
A47: 11 | B47: 6437 | C47: 11 | D47: 6450 | E47: 11 | F47: 6455 | K47: 0 | L47: 111
A48: 11 | B48: 6633 | C48: 11 | D48: 6648 | E48: 11 | F48: 6656 | K48: 1 | L48: 111

Sheet !M907A5I.sha
A1: Report for:!M907A5I.sha
A2: Date: | B2: <date>
A3: Hen: | B3: <hen> | F3: Correct Sequence | G3: =Start!J2 -> 111 | P3: Total Sequences in Data | Q3: =4994-COUNTBLANK(L7:L5000) -> 40 | V3: Total Sequences in Block Data | W3: =COUNTA(L7:L13) -> 7 | AA3: Total Sequences in Block Data | AB3: =COUNTA(L14:L19) -> 6 | AF3: Total Sequences in Block Data | AG3: =COUNTA(L20:L26) -> 7 | AK3: Total Sequences in Block Data | AL3: =COUNTA(L27:L33) -> 7 | AP3: Total Sequences in Block Data | AQ3: =COUNTA(L34:L39) -> 6 | AU3: Total Sequences in Block Data | AV3: =COUNTA(L40:L46) -> 7
P4: Total Sequences in Summary | Q4: =SUM(O7:O14) -> 40 | V4: Total Sequences in Block Summary | W4: =SUM(U7:U14) -> 7 | AA4: Total Sequences in Block Summary | AB4: =SUM(Z7:Z14) -> 6 | AF4: Total Sequences in Block Summary | AG4: =SUM(AE7:AE14) -> 7 | AK4: Total Sequences in Block Summary | AL4: =SUM(AJ7:AJ14) -> 7 | AP4: Total Sequences in Block Summary | AQ4: =SUM(AO7:AO14) -> 6 | AU4: Total Sequences in Block Summary | AV4: =SUM(AT7:AT14) -> 7
T5: Block 1 | Y5: Block 2 | AD5: Block 3 | AI5: Block 4 | AN5: Block 5 | AS5: Block 6
A6: Sequence Component 1 | B6: Time 1 | C6: Sequence Component 2 | D6: Time 2 | E6: Sequence Component 3 | F6: Time 3 | G6: Sequence Component 4 | H6: Time 4 | I6: Sequence Component 5 | J6: Time 5 | K6: Correct? 0=No 1=Yes | L6: Sequence | N6: Frequency | P6: Relative Frequency | Q6: Variability | T6: Frequency | V6: Relative Frequency | W6: Variability | Y6: Frequency | AA6: Relative Frequency | AB6: Variability | AD6: Frequency | AF6: Relative Frequency | AG6: Variability | AI6: Frequency | AK6: Relative Frequency | AL6: Variability | AN6: Frequency | AP6: Relative Frequency | AQ6: Variability | AS6: Frequency | AU6: Relative Frequency | AV6: Variability
A7: 11 | B7: 23 | C7: 11 | D7: 29 | E7: 11 | F7: 35 | K7: 0 | L7: 111 | N7: 111 | O7: =COUNTIF($L$7:$L$500,N7) -> 40 | P7: =O7/$Q$4 -> 1 | Q7: =IF(P7=0,0,(P7*((LOG(P7))/LOG(2)))) -> 0 | T7: =N7 -> 111 | U7: =COUNTIF(L7:L13,T7) -> 7 | Y7: =N7 -> 111 | Z7: =COUNTIF(L14:L19,Y7) -> 6 | AD7: =N7 -> 111 | AE7: =COUNTIF(L20:L26,AD7) -> 7 | AI7: =N7 -> 111 | AJ7: =COUNTIF(L27:L33,AI7) -> 7 | AN7: =N7 -> 111 | AO7: =COUNTIF(L34:L39,AN7) -> 6 | AS7: =N7 -> 111 | AT7: =COUNTIF(L40:L46,AS7) -> 7
A8: 11 | B8: 158 | C8: 11 | D8: 163 | E8: 11 | F8: 170 | K8: 0 | L8: 111 | N8: 112 | O8: =COUNTIF($L$7:$L$500,N8) -> 0 | P8: =O8/$Q$4 -> 0 | Q8: =IF(P8=0,0,(P8*((LOG(P8))/LOG(2)))) -> 0 | T8: =N8 -> 112 | U8: =COUNTIF(L7:L13,T8) -> 0 | V8: =U8/(W4-U7) ->  | W8: =IF(V8=0,0,(V8*((LOG(V8))/LOG(2)))) ->  | Y8: =N8 -> 112 | Z8: =COUNTIF(L14:L19,Y8) -> 0 | AA8: =Z8/(AB4-Z7) ->  | AB8: =IF(AA8=0,0,(AA8*((LOG(AA8))/LOG(2)))) ->  | AD8: =N8 -> 112 | AE8: =COUNTIF(L20:L26,AD8) -> 0 | AF8: =AE8/(AG4-AE7) ->  | AG8: =IF(AF8=0,0,(AF8*((LOG(AF8))/LOG(2)))) ->  | AI8: =N8 -> 112 | AJ8: =COUNTIF(L27:L33,AI8) -> 0 | AK8: =AJ8/(AL4-AJ7) ->  | AL8: =IF(AK8=0,0,(AK8*((LOG(AK8))/LOG(2)))) ->  | AN8: =N8 -> 112 | AO8: =COUNTIF(L34:L39,AN8) -> 0 | AP8: =AO8/(AQ4-AO7) ->  | AQ8: =IF(AP8=0,0,(AP8*((LOG(AP8))/LOG(2)))) ->  | AS8: =N8 -> 112 | AT8: =COUNTIF(L40:L46,AS8) -> 0 | AU8: =AT8/(AV4-AT7) ->  | AV8: =IF(AU8=0,0,(AU8*((LOG(AU8))/LOG(2)))) -> 
A9: 11 | B9: 277 | C9: 11 | D9: 297 | E9: 11 | F9: 304 | K9: 0 | L9: 111 | N9: 121 | O9: =COUNTIF($L$7:$L$500,N9) -> 0 | P9: =O9/$Q$4 -> 0 | Q9: =IF(P9=0,0,(P9*((LOG(P9))/LOG(2)))) -> 0 | T9: =N9 -> 121 | U9: =COUNTIF(L7:L13,T9) -> 0 | V9: =U9/(W4-U7) ->  | W9: =IF(V9=0,0,(V9*((LOG(V9))/LOG(2)))) ->  | Y9: =N9 -> 121 | Z9: =COUNTIF(L14:L19,Y9) -> 0 | AA9: =Z9/(AB4-Z7) ->  | AB9: =IF(AA9=0,0,(AA9*((LOG(AA9))/LOG(2)))) ->  | AD9: =N9 -> 121 | AE9: =COUNTIF(L20:L26,AD9) -> 0 | AF9: =AE9/(AG4-AE7) ->  | AG9: =IF(AF9=0,0,(AF9*((LOG(AF9))/LOG(2)))) ->  | AI9: =N9 -> 121 | AJ9: =COUNTIF(L27:L33,AI9) -> 0 | AK9: =AJ9/(AL4-AJ7) ->  | AL9: =IF(AK9=0,0,(AK9*((LOG(AK9))/LOG(2)))) ->  | AN9: =N9 -> 121 | AO9: =COUNTIF(L34:L39,AN9) -> 0 | AP9: =AO9/(AQ4-AO7) ->  | AQ9: =IF(AP9=0,0,(AP9*((LOG(AP9))/LOG(2)))) ->  | AS9: =N9 -> 121 | AT9: =COUNTIF(L40:L46,AS9) -> 0 | AU9: =AT9/(AV4-AT7) ->  | AV9: =IF(AU9=0,0,(AU9*((LOG(AU9))/LOG(2)))) -> 
A10: 11 | B10: 394 | C10: 11 | D10: 400 | E10: 11 | F10: 406 | K10: 0 | L10: 111 | N10: 122 | O10: =COUNTIF($L$7:$L$500,N10) -> 0 | P10: =O10/$Q$4 -> 0 | Q10: =IF(P10=0,0,(P10*((LOG(P10))/LOG(2)))) -> 0 | T10: =N10 -> 122 | U10: =COUNTIF(L7:L13,T10) -> 0 | V10: =U10/(W4-U7) ->  | W10: =IF(V10=0,0,(V10*((LOG(V10))/LOG(2)))) ->  | Y10: =N10 -> 122 | Z10: =COUNTIF(L14:L19,Y10) -> 0 | AA10: =Z10/(AB4-Z7) ->  | AB10: =IF(AA10=0,0,(AA10*((LOG(AA10))/LOG(2)))) ->  | AD10: =N10 -> 122 | AE10: =COUNTIF(L20:L26,AD10) -> 0 | AF10: =AE10/(AG4-AE7) ->  | AG10: =IF(AF10=0,0,(AF10*((LOG(AF10))/LOG(2)))) ->  | AI10: =N10 -> 122 | AJ10: =COUNTIF(L27:L33,AI10) -> 0 | AK10: =AJ10/(AL4-AJ7) ->  | AL10: =IF(AK10=0,0,(AK10*((LOG(AK10))/LOG(2)))) ->  | AN10: =N10 -> 122 | AO10: =COUNTIF(L34:L39,AN10) -> 0 | AP10: =AO10/(AQ4-AO7) ->  | AQ10: =IF(AP10=0,0,(AP10*((LOG(AP10))/LOG(2)))) ->  | AS10: =N10 -> 122 | AT10: =COUNTIF(L40:L46,AS10) -> 0 | AU10: =AT10/(AV4-AT7) ->  | AV10: =IF(AU10=0,0,(AU10*((LOG(AU10))/LOG(2)))) -> 
A11: 11 | B11: 509 | C11: 11 | D11: 514 | E11: 11 | F11: 522 | K11: 0 | L11: 111 | N11: 211 | O11: =COUNTIF($L$7:$L$500,N11) -> 0 | P11: =O11/$Q$4 -> 0 | Q11: =IF(P11=0,0,(P11*((LOG(P11))/LOG(2)))) -> 0 | T11: =N11 -> 211 | U11: =COUNTIF(L7:L13,T11) -> 0 | V11: =U11/(W4-U7) ->  | W11: =IF(V11=0,0,(V11*((LOG(V11))/LOG(2)))) ->  | Y11: =N11 -> 211 | Z11: =COUNTIF(L14:L19,Y11) -> 0 | AA11: =Z11/(AB4-Z7) ->  | AB11: =IF(AA11=0,0,(AA11*((LOG(AA11))/LOG(2)))) ->  | AD11: =N11 -> 211 | AE11: =COUNTIF(L20:L26,AD11) -> 0 | AF11: =AE11/(AG4-AE7) ->  | AG11: =IF(AF11=0,0,(AF11*((LOG(AF11))/LOG(2)))) ->  | AI11: =N11 -> 211 | AJ11: =COUNTIF(L27:L33,AI11) -> 0 | AK11: =AJ11/(AL4-AJ7) ->  | AL11: =IF(AK11=0,0,(AK11*((LOG(AK11))/LOG(2)))) ->  | AN11: =N11 -> 211 | AO11: =COUNTIF(L34:L39,AN11) -> 0 | AP11: =AO11/(AQ4-AO7) ->  | AQ11: =IF(AP11=0,0,(AP11*((LOG(AP11))/LOG(2)))) ->  | AS11: =N11 -> 211 | AT11: =COUNTIF(L40:L46,AS11) -> 0 | AU11: =AT11/(AV4-AT7) ->  | AV11: =IF(AU11=0,0,(AU11*((LOG(AU11))/LOG(2)))) -> 
A12: 11 | B12: 615 | C12: 11 | D12: 619 | E12: 11 | F12: 624 | K12: 0 | L12: 111 | N12: 212 | O12: =COUNTIF($L$7:$L$500,N12) -> 0 | P12: =O12/$Q$4 -> 0 | Q12: =IF(P12=0,0,(P12*((LOG(P12))/LOG(2)))) -> 0 | T12: =N12 -> 212 | U12: =COUNTIF(L7:L13,T12) -> 0 | V12: =U12/(W4-U7) ->  | W12: =IF(V12=0,0,(V12*((LOG(V12))/LOG(2)))) ->  | Y12: =N12 -> 212 | Z12: =COUNTIF(L14:L19,Y12) -> 0 | AA12: =Z12/(AB4-Z7) ->  | AB12: =IF(AA12=0,0,(AA12*((LOG(AA12))/LOG(2)))) ->  | AD12: =N12 -> 212 | AE12: =COUNTIF(L20:L26,AD12) -> 0 | AF12: =AE12/(AG4-AE7) ->  | AG12: =IF(AF12=0,0,(AF12*((LOG(AF12))/LOG(2)))) ->  | AI12: =N12 -> 212 | AJ12: =COUNTIF(L27:L33,AI12) -> 0 | AK12: =AJ12/(AL4-AJ7) ->  | AL12: =IF(AK12=0,0,(AK12*((LOG(AK12))/LOG(2)))) ->  | AN12: =N12 -> 212 | AO12: =COUNTIF(L34:L39,AN12) -> 0 | AP12: =AO12/(AQ4-AO7) ->  | AQ12: =IF(AP12=0,0,(AP12*((LOG(AP12))/LOG(2)))) ->  | AS12: =N12 -> 212 | AT12: =COUNTIF(L40:L46,AS12) -> 0 | AU12: =AT12/(AV4-AT7) ->  | AV12: =IF(AU12=0,0,(AU12*((LOG(AU12))/LOG(2)))) -> 
A13: 11 | B13: 714 | C13: 11 | D13: 721 | E13: 11 | F13: 727 | K13: 0 | L13: 111 | N13: 221 | O13: =COUNTIF($L$7:$L$500,N13) -> 0 | P13: =O13/$Q$4 -> 0 | Q13: =IF(P13=0,0,(P13*((LOG(P13))/LOG(2)))) -> 0 | T13: =N13 -> 221 | U13: =COUNTIF(L7:L13,T13) -> 0 | V13: =U13/(W4-U7) ->  | W13: =IF(V13=0,0,(V13*((LOG(V13))/LOG(2)))) ->  | Y13: =N13 -> 221 | Z13: =COUNTIF(L14:L19,Y13) -> 0 | AA13: =Z13/(AB4-Z7) ->  | AB13: =IF(AA13=0,0,(AA13*((LOG(AA13))/LOG(2)))) ->  | AD13: =N13 -> 221 | AE13: =COUNTIF(L20:L26,AD13) -> 0 | AF13: =AE13/(AG4-AE7) ->  | AG13: =IF(AF13=0,0,(AF13*((LOG(AF13))/LOG(2)))) ->  | AI13: =N13 -> 221 | AJ13: =COUNTIF(L27:L33,AI13) -> 0 | AK13: =AJ13/(AL4-AJ7) ->  | AL13: =IF(AK13=0,0,(AK13*((LOG(AK13))/LOG(2)))) ->  | AN13: =N13 -> 221 | AO13: =COUNTIF(L34:L39,AN13) -> 0 | AP13: =AO13/(AQ4-AO7) ->  | AQ13: =IF(AP13=0,0,(AP13*((LOG(AP13))/LOG(2)))) ->  | AS13: =N13 -> 221 | AT13: =COUNTIF(L40:L46,AS13) -> 0 | AU13: =AT13/(AV4-AT7) ->  | AV13: =IF(AU13=0,0,(AU13*((LOG(AU13))/LOG(2)))) -> 
A14: 11 | B14: 818 | C14: 11 | D14: 824 | E14: 11 | F14: 830 | K14: 0 | L14: 111 | N14: 222 | O14: =COUNTIF($L$7:$L$500,N14) -> 0 | P14: =O14/$Q$4 -> 0 | Q14: =IF(P14=0,0,(P14*((LOG(P14))/LOG(2)))) -> 0 | T14: =N14 -> 222 | U14: =COUNTIF(L7:L13,T14) -> 0 | V14: =U14/(W4-U7) ->  | W14: =IF(V14=0,0,(V14*((LOG(V14))/LOG(2)))) ->  | Y14: =N14 -> 222 | Z14: =COUNTIF(L14:L19,Y14) -> 0 | AA14: =Z14/(AB4-Z7) ->  | AB14: =IF(AA14=0,0,(AA14*((LOG(AA14))/LOG(2)))) ->  | AD14: =N14 -> 222 | AE14: =COUNTIF(L20:L26,AD14) -> 0 | AF14: =AE14/(AG4-AE7) ->  | AG14: =IF(AF14=0,0,(AF14*((LOG(AF14))/LOG(2)))) ->  | AI14: =N14 -> 222 | AJ14: =COUNTIF(L27:L33,AI14) -> 0 | AK14: =AJ14/(AL4-AJ7) ->  | AL14: =IF(AK14=0,0,(AK14*((LOG(AK14))/LOG(2)))) ->  | AN14: =N14 -> 222 | AO14: =COUNTIF(L34:L39,AN14) -> 0 | AP14: =AO14/(AQ4-AO7) ->  | AQ14: =IF(AP14=0,0,(AP14*((LOG(AP14))/LOG(2)))) ->  | AS14: =N14 -> 222 | AT14: =COUNTIF(L40:L46,AS14) -> 0 | AU14: =AT14/(AV4-AT7) ->  | AV14: =IF(AU14=0,0,(AU14*((LOG(AU14))/LOG(2)))) -> 
A15: 11 | B15: 917 | C15: 11 | D15: 925 | E15: 11 | F15: 930 | K15: 0 | L15: 111 | P15: =SUM(P7:P14) -> 1 | Q15: =-SUM(Q7:Q14) -> 0 | V15: =SUM(V7:V14) ->  | W15: =-SUM(W7:W14) ->  | AA15: =SUM(AA7:AA14) ->  | AB15: =-SUM(AB7:AB14) ->  | AF15: =SUM(AF7:AF14) ->  | AG15: =-SUM(AG7:AG14) ->  | AK15: =SUM(AK7:AK14) ->  | AL15: =-SUM(AL7:AL14) ->  | AP15: =SUM(AP7:AP14) ->  | AQ15: =-SUM(AQ7:AQ14) ->  | AU15: =SUM(AU7:AU14) ->  | AV15: =-SUM(AV7:AV14) -> 
A16: 11 | B16: 1021 | C16: 11 | D16: 1026 | E16: 11 | F16: 1036 | K16: 0 | L16: 111 | P16: U= | Q16: =Q15/(LOG(Q4)/LOG(2)) -> 0 | V16: U1= | W16: =W15/(LOG(W4)/LOG(2)) ->  | AA16: U2= | AB16: =AB15/(LOG(AB4)/LOG(2)) ->  | AF16: U3= | AG16: =AG15/(LOG(AG4)/LOG(2)) ->  | AK16: U4= | AL16: =AL15/(LOG(AL4)/LOG(2)) ->  | AP16: U5= | AQ16: =AQ15/(LOG(AQ4)/LOG(2)) ->  | AU16: U6= | AV16: =AV15/(LOG(AV4)/LOG(2)) -> 
A17: 11 | B17: 1130 | C17: 11 | D17: 1134 | E17: 11 | F17: 1139 | K17: 0 | L17: 111
A18: 11 | B18: 1240 | C18: 11 | D18: 1242 | E18: 11 | F18: 1257 | K18: 0 | L18: 111
A19: 11 | B19: 1347 | C19: 11 | D19: 1354 | E19: 11 | F19: 1362 | K19: 0 | L19: 111 | N19: Total Target Seq
A20: 11 | B20: 1492 | C20: 11 | D20: 1512 | E20: 11 | F20: 1526 | K20: 0 | L20: 111 | N20: =COUNTIF(L7:L46,G3) -> 40 | P20: 7 | Q20: 6 | R20: 7 | S20: 7 | T20: 6 | U20: 7
A21: 11 | B21: 1626 | C21: 11 | D21: 1644 | E21: 11 | F21: 1652 | K21: 0 | L21: 111 | P21: % of reinforcement given in 6 equal intervals based on number of trials
A22: 11 | B22: 1895 | C22: 11 | D22: 1911 | E22: 11 | F22: 1918 | K22: 0 | L22: 111 | P22: %_1 | Q22: %_2 | R22: %_3 | S22: %_4 | T22: %_5 | U22: %_6
A23: 11 | B23: 2008 | C23: 11 | D23: 2013 | E23: 11 | F23: 2027 | K23: 0 | L23: 111 | O23: target sequence | P23: =$G$3 -> 111 | Q23: =$G$3 -> 111 | R23: =$G$3 -> 111 | S23: =$G$3 -> 111 | T23: =$G$3 -> 111 | U23: =$G$3 -> 111
A24: 11 | B24: 2130 | C24: 11 | D24: 2143 | E24: 11 | F24: 2151 | K24: 0 | L24: 111 | O24: total reinforcement | P24: =U7 -> 7 | Q24: =Z7 -> 6 | R24: =AE7 -> 7 | S24: =AJ7 -> 7 | T24: =AO7 -> 6 | U24: =AT7 -> 7
A25: 11 | B25: 2278 | C25: 11 | D25: 2293 | E25: 11 | F25: 2302 | K25: 0 | L25: 111 | O25: % target
A26: 11 | B26: 2448 | C26: 11 | D26: 2457 | E26: 11 | F26: 2467 | K26: 0 | L26: 111 | O26: CCRF
A27: 11 | B27: 2557 | C27: 11 | D27: 2566 | E27: 11 | F27: 2572 | K27: 0 | L27: 111 | O27: % CCRf
A28: 11 | B28: 2694 | C28: 11 | D28: 2711 | E28: 11 | F28: 2718 | K28: 0 | L28: 111 | O28: average response rate | P28: =F13/P20 -> 103.8571429 | Q28: =(F19-F13)/Q20 -> 105.8333333 | R28: =(F26-F19)/R20 -> 157.8571429 | S28: =(F33-F26)/S20 -> 144.5714286 | T28: =(F39-F33)/T20 -> 135.8333333 | U28: =(F46-F39)/U20 -> 129
A29: 11 | B29: 2810 | C29: 11 | D29: 2846 | E29: 11 | F29: 2853 | K29: 0 | L29: 111
A30: 11 | B30: 3001 | C30: 11 | D30: 3018 | E30: 11 | F30: 3025 | K30: 0 | L30: 111
A31: 11 | B31: 3146 | C31: 11 | D31: 3158 | E31: 11 | F31: 3164 | K31: 0 | L31: 111
A32: 11 | B32: 3286 | C32: 11 | D32: 3309 | E32: 11 | F32: 3315 | K32: 0 | L32: 111
A33: 11 | B33: 3459 | C33: 11 | D33: 3473 | E33: 11 | F33: 3479 | K33: 0 | L33: 111
A34: 11 | B34: 3571 | C34: 11 | D34: 3582 | E34: 11 | F34: 3602 | K34: 0 | L34: 111
A35: 11 | B35: 3700 | C35: 11 | D35: 3712 | E35: 11 | F35: 3719 | K35: 0 | L35: 111
A36: 11 | B36: 3813 | C36: 11 | D36: 3819 | E36: 11 | F36: 3826 | K36: 0 | L36: 111
A37: 11 | B37: 3931 | C37: 11 | D37: 3945 | E37: 11 | F37: 3952 | K37: 0 | L37: 111
A38: 11 | B38: 4107 | C38: 11 | D38: 4115 | E38: 11 | F38: 4133 | K38: 0 | L38: 111
A39: 11 | B39: 4258 | C39: 11 | D39: 4288 | E39: 11 | F39: 4294 | K39: 0 | L39: 111
A40: 11 | B40: 4418 | C40: 11 | D40: 4441 | E40: 11 | F40: 4448 | K40: 0 | L40: 111
A41: 11 | B41: 4552 | C41: 11 | D41: 4563 | E41: 11 | F41: 4574 | K41: 0 | L41: 111
A42: 11 | B42: 4665 | C42: 11 | D42: 4673 | E42: 11 | F42: 4678 | K42: 0 | L42: 111
A43: 11 | B43: 4775 | C43: 11 | D43: 4781 | E43: 11 | F43: 4787 | K43: 0 | L43: 111
A44: 11 | B44: 4909 | C44: 11 | D44: 4919 | E44: 11 | F44: 4926 | K44: 0 | L44: 111
A45: 11 | B45: 5072 | C45: 11 | D45: 5080 | E45: 11 | F45: 5087 | K45: 0 | L45: 111
A46: 11 | B46: 5183 | C46: 11 | D46: 5190 | E46: 11 | F46: 5197 | K46: 1 | L46: 111

Sheet !M908A5I.sha
A1: Report for:!M908A5I.sha
A2: Date: | B2: <date>
A3: Hen: | B3: <hen> | F3: Correct Sequence | G3: =Start!J2 -> 111 | P3: Total Sequences in Data | Q3: =4994-COUNTBLANK(L7:L5000) -> 40 | V3: Total Sequences in Block Data | W3: =COUNTA(L7:L13) -> 7 | AA3: Total Sequences in Block Data | AB3: =COUNTA(L14:L19) -> 6 | AF3: Total Sequences in Block Data | AG3: =COUNTA(L20:L26) -> 7 | AK3: Total Sequences in Block Data | AL3: =COUNTA(L27:L33) -> 7 | AP3: Total Sequences in Block Data | AQ3: =COUNTA(L34:L39) -> 6 | AU3: Total Sequences in Block Data | AV3: =COUNTA(L40:L46) -> 7
P4: Total Sequences in Summary | Q4: =SUM(O7:O14) -> 40 | V4: Total Sequences in Block Summary | W4: =SUM(U7:U14) -> 7 | AA4: Total Sequences in Block Summary | AB4: =SUM(Z7:Z14) -> 6 | AF4: Total Sequences in Block Summary | AG4: =SUM(AE7:AE14) -> 7 | AK4: Total Sequences in Block Summary | AL4: =SUM(AJ7:AJ14) -> 7 | AP4: Total Sequences in Block Summary | AQ4: =SUM(AO7:AO14) -> 6 | AU4: Total Sequences in Block Summary | AV4: =SUM(AT7:AT14) -> 7
T5: Block 1 | Y5: Block 2 | AD5: Block 3 | AI5: Block 4 | AN5: Block 5 | AS5: Block 6
A6: Sequence Component 1 | B6: Time 1 | C6: Sequence Component 2 | D6: Time 2 | E6: Sequence Component 3 | F6: Time 3 | G6: Sequence Component 4 | H6: Time 4 | I6: Sequence Component 5 | J6: Time 5 | K6: Correct? 0=No 1=Yes | L6: Sequence | N6: Frequency | P6: Relative Frequency | Q6: Variability | T6: Frequency | V6: Relative Frequency | W6: Variability | Y6: Frequency | AA6: Relative Frequency | AB6: Variability | AD6: Frequency | AF6: Relative Frequency | AG6: Variability | AI6: Frequency | AK6: Relative Frequency | AL6: Variability | AN6: Frequency | AP6: Relative Frequency | AQ6: Variability | AS6: Frequency | AU6: Relative Frequency | AV6: Variability
A7: 11 | B7: 11 | C7: 11 | D7: 16 | E7: 11 | F7: 23 | K7: 0 | L7: 111 | N7: 111 | O7: =COUNTIF($L$7:$L$500,N7) -> 40 | P7: =O7/$Q$4 -> 1 | Q7: =IF(P7=0,0,(P7*((LOG(P7))/LOG(2)))) -> 0 | T7: =N7 -> 111 | U7: =COUNTIF(L7:L13,T7) -> 7 | Y7: =N7 -> 111 | Z7: =COUNTIF(L14:L19,Y7) -> 6 | AD7: =N7 -> 111 | AE7: =COUNTIF(L20:L26,AD7) -> 7 | AI7: =N7 -> 111 | AJ7: =COUNTIF(L27:L33,AI7) -> 7 | AN7: =N7 -> 111 | AO7: =COUNTIF(L34:L39,AN7) -> 6 | AS7: =N7 -> 111 | AT7: =COUNTIF(L40:L46,AS7) -> 7
A8: 11 | B8: 132 | C8: 11 | D8: 136 | E8: 11 | F8: 143 | K8: 0 | L8: 111 | N8: 112 | O8: =COUNTIF($L$7:$L$500,N8) -> 0 | P8: =O8/$Q$4 -> 0 | Q8: =IF(P8=0,0,(P8*((LOG(P8))/LOG(2)))) -> 0 | T8: =N8 -> 112 | U8: =COUNTIF(L7:L13,T8) -> 0 | V8: =U8/(W4-U7) ->  | W8: =IF(V8=0,0,(V8*((LOG(V8))/LOG(2)))) ->  | Y8: =N8 -> 112 | Z8: =COUNTIF(L14:L19,Y8) -> 0 | AA8: =Z8/(AB4-Z7) ->  | AB8: =IF(AA8=0,0,(AA8*((LOG(AA8))/LOG(2)))) ->  | AD8: =N8 -> 112 | AE8: =COUNTIF(L20:L26,AD8) -> 0 | AF8: =AE8/(AG4-AE7) ->  | AG8: =IF(AF8=0,0,(AF8*((LOG(AF8))/LOG(2)))) ->  | AI8: =N8 -> 112 | AJ8: =COUNTIF(L27:L33,AI8) -> 0 | AK8: =AJ8/(AL4-AJ7) ->  | AL8: =IF(AK8=0,0,(AK8*((LOG(AK8))/LOG(2)))) ->  | AN8: =N8 -> 112 | AO8: =COUNTIF(L34:L39,AN8) -> 0 | AP8: =AO8/(AQ4-AO7) ->  | AQ8: =IF(AP8=0,0,(AP8*((LOG(AP8))/LOG(2)))) ->  | AS8: =N8 -> 112 | AT8: =COUNTIF(L40:L46,AS8) -> 0 | AU8: =AT8/(AV4-AT7) ->  | AV8: =IF(AU8=0,0,(AU8*((LOG(AU8))/LOG(2)))) -> 
A9: 11 | B9: 237 | C9: 11 | D9: 242 | E9: 11 | F9: 248 | K9: 0 | L9: 111 | N9: 121 | O9: =COUNTIF($L$7:$L$500,N9) -> 0 | P9: =O9/$Q$4 -> 0 | Q9: =IF(P9=0,0,(P9*((LOG(P9))/LOG(2)))) -> 0 | T9: =N9 -> 121 | U9: =COUNTIF(L7:L13,T9) -> 0 | V9: =U9/(W4-U7) ->  | W9: =IF(V9=0,0,(V9*((LOG(V9))/LOG(2)))) ->  | Y9: =N9 -> 121 | Z9: =COUNTIF(L14:L19,Y9) -> 0 | AA9: =Z9/(AB4-Z7) ->  | AB9: =IF(AA9=0,0,(AA9*((LOG(AA9))/LOG(2)))) ->  | AD9: =N9 -> 121 | AE9: =COUNTIF(L20:L26,AD9) -> 0 | AF9: =AE9/(AG4-AE7) ->  | AG9: =IF(AF9=0,0,(AF9*((LOG(AF9))/LOG(2)))) ->  | AI9: =N9 -> 121 | AJ9: =COUNTIF(L27:L33,AI9) -> 0 | AK9: =AJ9/(AL4-AJ7) ->  | AL9: =IF(AK9=0,0,(AK9*((LOG(AK9))/LOG(2)))) ->  | AN9: =N9 -> 121 | AO9: =COUNTIF(L34:L39,AN9) -> 0 | AP9: =AO9/(AQ4-AO7) ->  | AQ9: =IF(AP9=0,0,(AP9*((LOG(AP9))/LOG(2)))) ->  | AS9: =N9 -> 121 | AT9: =COUNTIF(L40:L46,AS9) -> 0 | AU9: =AT9/(AV4-AT7) ->  | AV9: =IF(AU9=0,0,(AU9*((LOG(AU9))/LOG(2)))) -> 
A10: 11 | B10: 345 | C10: 11 | D10: 362 | E10: 11 | F10: 369 | K10: 0 | L10: 111 | N10: 122 | O10: =COUNTIF($L$7:$L$500,N10) -> 0 | P10: =O10/$Q$4 -> 0 | Q10: =IF(P10=0,0,(P10*((LOG(P10))/LOG(2)))) -> 0 | T10: =N10 -> 122 | U10: =COUNTIF(L7:L13,T10) -> 0 | V10: =U10/(W4-U7) ->  | W10: =IF(V10=0,0,(V10*((LOG(V10))/LOG(2)))) ->  | Y10: =N10 -> 122 | Z10: =COUNTIF(L14:L19,Y10) -> 0 | AA10: =Z10/(AB4-Z7) ->  | AB10: =IF(AA10=0,0,(AA10*((LOG(AA10))/LOG(2)))) ->  | AD10: =N10 -> 122 | AE10: =COUNTIF(L20:L26,AD10) -> 0 | AF10: =AE10/(AG4-AE7) ->  | AG10: =IF(AF10=0,0,(AF10*((LOG(AF10))/LOG(2)))) ->  | AI10: =N10 -> 122 | AJ10: =COUNTIF(L27:L33,AI10) -> 0 | AK10: =AJ10/(AL4-AJ7) ->  | AL10: =IF(AK10=0,0,(AK10*((LOG(AK10))/LOG(2)))) ->  | AN10: =N10 -> 122 | AO10: =COUNTIF(L34:L39,AN10) -> 0 | AP10: =AO10/(AQ4-AO7) ->  | AQ10: =IF(AP10=0,0,(AP10*((LOG(AP10))/LOG(2)))) ->  | AS10: =N10 -> 122 | AT10: =COUNTIF(L40:L46,AS10) -> 0 | AU10: =AT10/(AV4-AT7) ->  | AV10: =IF(AU10=0,0,(AU10*((LOG(AU10))/LOG(2)))) -> 
A11: 11 | B11: 461 | C11: 11 | D11: 468 | E11: 11 | F11: 475 | K11: 0 | L11: 111 | N11: 211 | O11: =COUNTIF($L$7:$L$500,N11) -> 0 | P11: =O11/$Q$4 -> 0 | Q11: =IF(P11=0,0,(P11*((LOG(P11))/LOG(2)))) -> 0 | T11: =N11 -> 211 | U11: =COUNTIF(L7:L13,T11) -> 0 | V11: =U11/(W4-U7) ->  | W11: =IF(V11=0,0,(V11*((LOG(V11))/LOG(2)))) ->  | Y11: =N11 -> 211 | Z11: =COUNTIF(L14:L19,Y11) -> 0 | AA11: =Z11/(AB4-Z7) ->  | AB11: =IF(AA11=0,0,(AA11*((LOG(AA11))/LOG(2)))) ->  | AD11: =N11 -> 211 | AE11: =COUNTIF(L20:L26,AD11) -> 0 | AF11: =AE11/(AG4-AE7) ->  | AG11: =IF(AF11=0,0,(AF11*((LOG(AF11))/LOG(2)))) ->  | AI11: =N11 -> 211 | AJ11: =COUNTIF(L27:L33,AI11) -> 0 | AK11: =AJ11/(AL4-AJ7) ->  | AL11: =IF(AK11=0,0,(AK11*((LOG(AK11))/LOG(2)))) ->  | AN11: =N11 -> 211 | AO11: =COUNTIF(L34:L39,AN11) -> 0 | AP11: =AO11/(AQ4-AO7) ->  | AQ11: =IF(AP11=0,0,(AP11*((LOG(AP11))/LOG(2)))) ->  | AS11: =N11 -> 211 | AT11: =COUNTIF(L40:L46,AS11) -> 0 | AU11: =AT11/(AV4-AT7) ->  | AV11: =IF(AU11=0,0,(AU11*((LOG(AU11))/LOG(2)))) -> 
A12: 11 | B12: 566 | C12: 11 | D12: 573 | E12: 11 | F12: 579 | K12: 0 | L12: 111 | N12: 212 | O12: =COUNTIF($L$7:$L$500,N12) -> 0 | P12: =O12/$Q$4 -> 0 | Q12: =IF(P12=0,0,(P12*((LOG(P12))/LOG(2)))) -> 0 | T12: =N12 -> 212 | U12: =COUNTIF(L7:L13,T12) -> 0 | V12: =U12/(W4-U7) ->  | W12: =IF(V12=0,0,(V12*((LOG(V12))/LOG(2)))) ->  | Y12: =N12 -> 212 | Z12: =COUNTIF(L14:L19,Y12) -> 0 | AA12: =Z12/(AB4-Z7) ->  | AB12: =IF(AA12=0,0,(AA12*((LOG(AA12))/LOG(2)))) ->  | AD12: =N12 -> 212 | AE12: =COUNTIF(L20:L26,AD12) -> 0 | AF12: =AE12/(AG4-AE7) ->  | AG12: =IF(AF12=0,0,(AF12*((LOG(AF12))/LOG(2)))) ->  | AI12: =N12 -> 212 | AJ12: =COUNTIF(L27:L33,AI12) -> 0 | AK12: =AJ12/(AL4-AJ7) ->  | AL12: =IF(AK12=0,0,(AK12*((LOG(AK12))/LOG(2)))) ->  | AN12: =N12 -> 212 | AO12: =COUNTIF(L34:L39,AN12) -> 0 | AP12: =AO12/(AQ4-AO7) ->  | AQ12: =IF(AP12=0,0,(AP12*((LOG(AP12))/LOG(2)))) ->  | AS12: =N12 -> 212 | AT12: =COUNTIF(L40:L46,AS12) -> 0 | AU12: =AT12/(AV4-AT7) ->  | AV12: =IF(AU12=0,0,(AU12*((LOG(AU12))/LOG(2)))) -> 
A13: 11 | B13: 669 | C13: 11 | D13: 683 | E13: 11 | F13: 689 | K13: 0 | L13: 111 | N13: 221 | O13: =COUNTIF($L$7:$L$500,N13) -> 0 | P13: =O13/$Q$4 -> 0 | Q13: =IF(P13=0,0,(P13*((LOG(P13))/LOG(2)))) -> 0 | T13: =N13 -> 221 | U13: =COUNTIF(L7:L13,T13) -> 0 | V13: =U13/(W4-U7) ->  | W13: =IF(V13=0,0,(V13*((LOG(V13))/LOG(2)))) ->  | Y13: =N13 -> 221 | Z13: =COUNTIF(L14:L19,Y13) -> 0 | AA13: =Z13/(AB4-Z7) ->  | AB13: =IF(AA13=0,0,(AA13*((LOG(AA13))/LOG(2)))) ->  | AD13: =N13 -> 221 | AE13: =COUNTIF(L20:L26,AD13) -> 0 | AF13: =AE13/(AG4-AE7) ->  | AG13: =IF(AF13=0,0,(AF13*((LOG(AF13))/LOG(2)))) ->  | AI13: =N13 -> 221 | AJ13: =COUNTIF(L27:L33,AI13) -> 0 | AK13: =AJ13/(AL4-AJ7) ->  | AL13: =IF(AK13=0,0,(AK13*((LOG(AK13))/LOG(2)))) ->  | AN13: =N13 -> 221 | AO13: =COUNTIF(L34:L39,AN13) -> 0 | AP13: =AO13/(AQ4-AO7) ->  | AQ13: =IF(AP13=0,0,(AP13*((LOG(AP13))/LOG(2)))) ->  | AS13: =N13 -> 221 | AT13: =COUNTIF(L40:L46,AS13) -> 0 | AU13: =AT13/(AV4-AT7) ->  | AV13: =IF(AU13=0,0,(AU13*((LOG(AU13))/LOG(2)))) -> 
A14: 11 | B14: 849 | C14: 11 | D14: 854 | E14: 11 | F14: 861 | K14: 0 | L14: 111 | N14: 222 | O14: =COUNTIF($L$7:$L$500,N14) -> 0 | P14: =O14/$Q$4 -> 0 | Q14: =IF(P14=0,0,(P14*((LOG(P14))/LOG(2)))) -> 0 | T14: =N14 -> 222 | U14: =COUNTIF(L7:L13,T14) -> 0 | V14: =U14/(W4-U7) ->  | W14: =IF(V14=0,0,(V14*((LOG(V14))/LOG(2)))) ->  | Y14: =N14 -> 222 | Z14: =COUNTIF(L14:L19,Y14) -> 0 | AA14: =Z14/(AB4-Z7) ->  | AB14: =IF(AA14=0,0,(AA14*((LOG(AA14))/LOG(2)))) ->  | AD14: =N14 -> 222 | AE14: =COUNTIF(L20:L26,AD14) -> 0 | AF14: =AE14/(AG4-AE7) ->  | AG14: =IF(AF14=0,0,(AF14*((LOG(AF14))/LOG(2)))) ->  | AI14: =N14 -> 222 | AJ14: =COUNTIF(L27:L33,AI14) -> 0 | AK14: =AJ14/(AL4-AJ7) ->  | AL14: =IF(AK14=0,0,(AK14*((LOG(AK14))/LOG(2)))) ->  | AN14: =N14 -> 222 | AO14: =COUNTIF(L34:L39,AN14) -> 0 | AP14: =AO14/(AQ4-AO7) ->  | AQ14: =IF(AP14=0,0,(AP14*((LOG(AP14))/LOG(2)))) ->  | AS14: =N14 -> 222 | AT14: =COUNTIF(L40:L46,AS14) -> 0 | AU14: =AT14/(AV4-AT7) ->  | AV14: =IF(AU14=0,0,(AU14*((LOG(AU14))/LOG(2)))) -> 
A15: 11 | B15: 977 | C15: 11 | D15: 995 | E15: 11 | F15: 1003 | K15: 0 | L15: 111 | P15: =SUM(P7:P14) -> 1 | Q15: =-SUM(Q7:Q14) -> 0 | V15: =SUM(V7:V14) ->  | W15: =-SUM(W7:W14) ->  | AA15: =SUM(AA7:AA14) ->  | AB15: =-SUM(AB7:AB14) ->  | AF15: =SUM(AF7:AF14) ->  | AG15: =-SUM(AG7:AG14) ->  | AK15: =SUM(AK7:AK14) ->  | AL15: =-SUM(AL7:AL14) ->  | AP15: =SUM(AP7:AP14) ->  | AQ15: =-SUM(AQ7:AQ14) ->  | AU15: =SUM(AU7:AU14) ->  | AV15: =-SUM(AV7:AV14) -> 
A16: 11 | B16: 1122 | C16: 11 | D16: 1139 | E16: 11 | F16: 1146 | K16: 0 | L16: 111 | P16: U= | Q16: =Q15/(LOG(Q4)/LOG(2)) -> 0 | V16: U1= | W16: =W15/(LOG(W4)/LOG(2)) ->  | AA16: U2= | AB16: =AB15/(LOG(AB4)/LOG(2)) ->  | AF16: U3= | AG16: =AG15/(LOG(AG4)/LOG(2)) ->  | AK16: U4= | AL16: =AL15/(LOG(AL4)/LOG(2)) ->  | AP16: U5= | AQ16: =AQ15/(LOG(AQ4)/LOG(2)) ->  | AU16: U6= | AV16: =AV15/(LOG(AV4)/LOG(2)) -> 
A17: 11 | B17: 1242 | C17: 11 | D17: 1245 | E17: 11 | F17: 1263 | K17: 0 | L17: 111
A18: 11 | B18: 1393 | C18: 11 | D18: 1415 | E18: 11 | F18: 1423 | K18: 0 | L18: 111
A19: 11 | B19: 1557 | C19: 11 | D19: 1572 | E19: 11 | F19: 1580 | K19: 0 | L19: 111 | N19: Total Target Seq
A20: 11 | B20: 1708 | C20: 11 | D20: 1726 | E20: 11 | F20: 1736 | K20: 0 | L20: 111 | N20: =COUNTIF(L7:L46,G3) -> 40 | P20: 7 | Q20: 6 | R20: 7 | S20: 7 | T20: 6 | U20: 7
A21: 11 | B21: 1830 | C21: 11 | D21: 1849 | E21: 11 | F21: 1857 | K21: 0 | L21: 111 | P21: % of reinforcement given in 6 equal intervals based on number of trials
A22: 11 | B22: 1995 | C22: 11 | D22: 2020 | E22: 11 | F22: 2027 | K22: 0 | L22: 111 | P22: %_1 | Q22: %_2 | R22: %_3 | S22: %_4 | T22: %_5 | U22: %_6
A23: 11 | B23: 2138 | C23: 11 | D23: 2162 | E23: 11 | F23: 2170 | K23: 0 | L23: 111 | O23: target sequence | P23: =$G$3 -> 111 | Q23: =$G$3 -> 111 | R23: =$G$3 -> 111 | S23: =$G$3 -> 111 | T23: =$G$3 -> 111 | U23: =$G$3 -> 111
A24: 11 | B24: 2266 | C24: 11 | D24: 2272 | E24: 11 | F24: 2288 | K24: 0 | L24: 111 | O24: total reinforcement | P24: =U7 -> 7 | Q24: =Z7 -> 6 | R24: =AE7 -> 7 | S24: =AJ7 -> 7 | T24: =AO7 -> 6 | U24: =AT7 -> 7
A25: 11 | B25: 2416 | C25: 11 | D25: 2430 | E25: 11 | F25: 2438 | K25: 0 | L25: 111 | O25: % target
A26: 11 | B26: 2563 | C26: 11 | D26: 2575 | E26: 11 | F26: 2582 | K26: 0 | L26: 111 | O26: CCRF
A27: 11 | B27: 2712 | C27: 11 | D27: 2734 | E27: 11 | F27: 2743 | K27: 0 | L27: 111 | O27: % CCRf
A28: 11 | B28: 2848 | C28: 11 | D28: 2867 | E28: 11 | F28: 2875 | K28: 0 | L28: 111 | O28: average response rate | P28: =F13/P20 -> 98.42857143 | Q28: =(F19-F13)/Q20 -> 148.5 | R28: =(F26-F19)/R20 -> 143.1428571 | S28: =(F33-F26)/S20 -> 153.4285714 | T28: =(F39-F33)/T20 -> 131.3333333 | U28: =(F46-F39)/U20 -> 140.2857143
A29: 11 | B29: 3058 | C29: 11 | D29: 3063 | E29: 11 | F29: 3077 | K29: 0 | L29: 111
A30: 11 | B30: 3190 | C30: 11 | D30: 3206 | E30: 11 | F30: 3214 | K30: 0 | L30: 111
A31: 11 | B31: 3323 | C31: 11 | D31: 3344 | E31: 11 | F31: 3352 | K31: 0 | L31: 111
A32: 11 | B32: 3477 | C32: 11 | D32: 3489 | E32: 11 | F32: 3497 | K32: 0 | L32: 111
A33: 11 | B33: 3629 | C33: 11 | D33: 3648 | E33: 11 | F33: 3656 | K33: 0 | L33: 111
A34: 11 | B34: 3748 | C34: 11 | D34: 3765 | E34: 11 | F34: 3772 | K34: 0 | L34: 111
A35: 11 | B35: 3893 | C35: 11 | D35: 3901 | E35: 11 | F35: 3911 | K35: 0 | L35: 111
A36: 11 | B36: 4043 | C36: 11 | D36: 4059 | E36: 11 | F36: 4067 | K36: 0 | L36: 111
A37: 11 | B37: 4162 | C37: 11 | D37: 4182 | E37: 11 | F37: 4191 | K37: 0 | L37: 111
A38: 11 | B38: 4293 | C38: 11 | D38: 4309 | E38: 11 | F38: 4316 | K38: 0 | L38: 111
A39: 11 | B39: 4426 | C39: 11 | D39: 4437 | E39: 11 | F39: 4444 | K39: 0 | L39: 111
A40: 11 | B40: 4536 | C40: 11 | D40: 4542 | E40: 11 | F40: 4547 | K40: 0 | L40: 111
A41: 11 | B41: 4656 | C41: 11 | D41: 4667 | E41: 11 | F41: 4674 | K41: 0 | L41: 111
A42: 11 | B42: 4876 | C42: 11 | D42: 4885 | E42: 11 | F42: 4892 | K42: 0 | L42: 111
A43: 11 | B43: 5007 | C43: 11 | D43: 5022 | E43: 11 | F43: 5029 | K43: 0 | L43: 111
A44: 11 | B44: 5158 | C44: 11 | D44: 5169 | E44: 11 | F44: 5177 | K44: 0 | L44: 111
A45: 11 | B45: 5290 | C45: 11 | D45: 5296 | E45: 11 | F45: 5300 | K45: 0 | L45: 111
A46: 11 | B46: 5401 | C46: 11 | D46: 5423 | E46: 11 | F46: 5426 | K46: 1 | L46: 111

Sheet !M909A5I.sha
A1: Report for:!M909A5I.sha
A2: Date: | B2: <date>
A3: Hen: | B3: <hen> | F3: Correct Sequence | G3: =Start!J2 -> 111 | P3: Total Sequences in Data | Q3: =4994-COUNTBLANK(L7:L5000) -> 40 | V3: Total Sequences in Block Data | W3: =COUNTA(L7:L13) -> 7 | AA3: Total Sequences in Block Data | AB3: =COUNTA(L14:L19) -> 6 | AF3: Total Sequences in Block Data | AG3: =COUNTA(L20:L26) -> 7 | AK3: Total Sequences in Block Data | AL3: =COUNTA(L27:L33) -> 7 | AP3: Total Sequences in Block Data | AQ3: =COUNTA(L34:L39) -> 6 | AU3: Total Sequences in Block Data | AV3: =COUNTA(L40:L46) -> 7
P4: Total Sequences in Summary | Q4: =SUM(O7:O14) -> 40 | V4: Total Sequences in Block Summary | W4: =SUM(U7:U14) -> 7 | AA4: Total Sequences in Block Summary | AB4: =SUM(Z7:Z14) -> 6 | AF4: Total Sequences in Block Summary | AG4: =SUM(AE7:AE14) -> 7 | AK4: Total Sequences in Block Summary | AL4: =SUM(AJ7:AJ14) -> 7 | AP4: Total Sequences in Block Summary | AQ4: =SUM(AO7:AO14) -> 6 | AU4: Total Sequences in Block Summary | AV4: =SUM(AT7:AT14) -> 7
T5: Block 1 | Y5: Block 2 | AD5: Block 3 | AI5: Block 4 | AN5: Block 5 | AS5: Block 6
A6: Sequence Component 1 | B6: Time 1 | C6: Sequence Component 2 | D6: Time 2 | E6: Sequence Component 3 | F6: Time 3 | G6: Sequence Component 4 | H6: Time 4 | I6: Sequence Component 5 | J6: Time 5 | K6: Correct? 0=No 1=Yes | L6: Sequence | N6: Frequency | P6: Relative Frequency | Q6: Variability | T6: Frequency | V6: Relative Frequency | W6: Variability | Y6: Frequency | AA6: Relative Frequency | AB6: Variability | AD6: Frequency | AF6: Relative Frequency | AG6: Variability | AI6: Frequency | AK6: Relative Frequency | AL6: Variability | AN6: Frequency | AP6: Relative Frequency | AQ6: Variability | AS6: Frequency | AU6: Relative Frequency | AV6: Variability
A7: 11 | B7: 17 | C7: 11 | D7: 22 | E7: 11 | F7: 33 | K7: 0 | L7: 111 | N7: 111 | O7: =COUNTIF($L$7:$L$500,N7) -> 40 | P7: =O7/$Q$4 -> 1 | Q7: =IF(P7=0,0,(P7*((LOG(P7))/LOG(2)))) -> 0 | T7: =N7 -> 111 | U7: =COUNTIF(L7:L13,T7) -> 7 | Y7: =N7 -> 111 | Z7: =COUNTIF(L14:L19,Y7) -> 6 | AD7: =N7 -> 111 | AE7: =COUNTIF(L20:L26,AD7) -> 7 | AI7: =N7 -> 111 | AJ7: =COUNTIF(L27:L33,AI7) -> 7 | AN7: =N7 -> 111 | AO7: =COUNTIF(L34:L39,AN7) -> 6 | AS7: =N7 -> 111 | AT7: =COUNTIF(L40:L46,AS7) -> 7
A8: 11 | B8: 165 | C8: 11 | D8: 171 | E8: 11 | F8: 176 | K8: 0 | L8: 111 | N8: 112 | O8: =COUNTIF($L$7:$L$500,N8) -> 0 | P8: =O8/$Q$4 -> 0 | Q8: =IF(P8=0,0,(P8*((LOG(P8))/LOG(2)))) -> 0 | T8: =N8 -> 112 | U8: =COUNTIF(L7:L13,T8) -> 0 | V8: =U8/(W4-U7) ->  | W8: =IF(V8=0,0,(V8*((LOG(V8))/LOG(2)))) ->  | Y8: =N8 -> 112 | Z8: =COUNTIF(L14:L19,Y8) -> 0 | AA8: =Z8/(AB4-Z7) ->  | AB8: =IF(AA8=0,0,(AA8*((LOG(AA8))/LOG(2)))) ->  | AD8: =N8 -> 112 | AE8: =COUNTIF(L20:L26,AD8) -> 0 | AF8: =AE8/(AG4-AE7) ->  | AG8: =IF(AF8=0,0,(AF8*((LOG(AF8))/LOG(2)))) ->  | AI8: =N8 -> 112 | AJ8: =COUNTIF(L27:L33,AI8) -> 0 | AK8: =AJ8/(AL4-AJ7) ->  | AL8: =IF(AK8=0,0,(AK8*((LOG(AK8))/LOG(2)))) ->  | AN8: =N8 -> 112 | AO8: =COUNTIF(L34:L39,AN8) -> 0 | AP8: =AO8/(AQ4-AO7) ->  | AQ8: =IF(AP8=0,0,(AP8*((LOG(AP8))/LOG(2)))) ->  | AS8: =N8 -> 112 | AT8: =COUNTIF(L40:L46,AS8) -> 0 | AU8: =AT8/(AV4-AT7) ->  | AV8: =IF(AU8=0,0,(AU8*((LOG(AU8))/LOG(2)))) -> 
A9: 11 | B9: 282 | C9: 11 | D9: 299 | E9: 11 | F9: 309 | K9: 0 | L9: 111 | N9: 121 | O9: =COUNTIF($L$7:$L$500,N9) -> 0 | P9: =O9/$Q$4 -> 0 | Q9: =IF(P9=0,0,(P9*((LOG(P9))/LOG(2)))) -> 0 | T9: =N9 -> 121 | U9: =COUNTIF(L7:L13,T9) -> 0 | V9: =U9/(W4-U7) ->  | W9: =IF(V9=0,0,(V9*((LOG(V9))/LOG(2)))) ->  | Y9: =N9 -> 121 | Z9: =COUNTIF(L14:L19,Y9) -> 0 | AA9: =Z9/(AB4-Z7) ->  | AB9: =IF(AA9=0,0,(AA9*((LOG(AA9))/LOG(2)))) ->  | AD9: =N9 -> 121 | AE9: =COUNTIF(L20:L26,AD9) -> 0 | AF9: =AE9/(AG4-AE7) ->  | AG9: =IF(AF9=0,0,(AF9*((LOG(AF9))/LOG(2)))) ->  | AI9: =N9 -> 121 | AJ9: =COUNTIF(L27:L33,AI9) -> 0 | AK9: =AJ9/(AL4-AJ7) ->  | AL9: =IF(AK9=0,0,(AK9*((LOG(AK9))/LOG(2)))) ->  | AN9: =N9 -> 121 | AO9: =COUNTIF(L34:L39,AN9) -> 0 | AP9: =AO9/(AQ4-AO7) ->  | AQ9: =IF(AP9=0,0,(AP9*((LOG(AP9))/LOG(2)))) ->  | AS9: =N9 -> 121 | AT9: =COUNTIF(L40:L46,AS9) -> 0 | AU9: =AT9/(AV4-AT7) ->  | AV9: =IF(AU9=0,0,(AU9*((LOG(AU9))/LOG(2)))) -> 
A10: 11 | B10: 447 | C10: 11 | D10: 458 | E10: 11 | F10: 466 | K10: 0 | L10: 111 | N10: 122 | O10: =COUNTIF($L$7:$L$500,N10) -> 0 | P10: =O10/$Q$4 -> 0 | Q10: =IF(P10=0,0,(P10*((LOG(P10))/LOG(2)))) -> 0 | T10: =N10 -> 122 | U10: =COUNTIF(L7:L13,T10) -> 0 | V10: =U10/(W4-U7) ->  | W10: =IF(V10=0,0,(V10*((LOG(V10))/LOG(2)))) ->  | Y10: =N10 -> 122 | Z10: =COUNTIF(L14:L19,Y10) -> 0 | AA10: =Z10/(AB4-Z7) ->  | AB10: =IF(AA10=0,0,(AA10*((LOG(AA10))/LOG(2)))) ->  | AD10: =N10 -> 122 | AE10: =COUNTIF(L20:L26,AD10) -> 0 | AF10: =AE10/(AG4-AE7) ->  | AG10: =IF(AF10=0,0,(AF10*((LOG(AF10))/LOG(2)))) ->  | AI10: =N10 -> 122 | AJ10: =COUNTIF(L27:L33,AI10) -> 0 | AK10: =AJ10/(AL4-AJ7) ->  | AL10: =IF(AK10=0,0,(AK10*((LOG(AK10))/LOG(2)))) ->  | AN10: =N10 -> 122 | AO10: =COUNTIF(L34:L39,AN10) -> 0 | AP10: =AO10/(AQ4-AO7) ->  | AQ10: =IF(AP10=0,0,(AP10*((LOG(AP10))/LOG(2)))) ->  | AS10: =N10 -> 122 | AT10: =COUNTIF(L40:L46,AS10) -> 0 | AU10: =AT10/(AV4-AT7) ->  | AV10: =IF(AU10=0,0,(AU10*((LOG(AU10))/LOG(2)))) -> 
A11: 11 | B11: 578 | C11: 11 | D11: 590 | E11: 11 | F11: 599 | K11: 0 | L11: 111 | N11: 211 | O11: =COUNTIF($L$7:$L$500,N11) -> 0 | P11: =O11/$Q$4 -> 0 | Q11: =IF(P11=0,0,(P11*((LOG(P11))/LOG(2)))) -> 0 | T11: =N11 -> 211 | U11: =COUNTIF(L7:L13,T11) -> 0 | V11: =U11/(W4-U7) ->  | W11: =IF(V11=0,0,(V11*((LOG(V11))/LOG(2)))) ->  | Y11: =N11 -> 211 | Z11: =COUNTIF(L14:L19,Y11) -> 0 | AA11: =Z11/(AB4-Z7) ->  | AB11: =IF(AA11=0,0,(AA11*((LOG(AA11))/LOG(2)))) ->  | AD11: =N11 -> 211 | AE11: =COUNTIF(L20:L26,AD11) -> 0 | AF11: =AE11/(AG4-AE7) ->  | AG11: =IF(AF11=0,0,(AF11*((LOG(AF11))/LOG(2)))) ->  | AI11: =N11 -> 211 | AJ11: =COUNTIF(L27:L33,AI11) -> 0 | AK11: =AJ11/(AL4-AJ7) ->  | AL11: =IF(AK11=0,0,(AK11*((LOG(AK11))/LOG(2)))) ->  | AN11: =N11 -> 211 | AO11: =COUNTIF(L34:L39,AN11) -> 0 | AP11: =AO11/(AQ4-AO7) ->  | AQ11: =IF(AP11=0,0,(AP11*((LOG(AP11))/LOG(2)))) ->  | AS11: =N11 -> 211 | AT11: =COUNTIF(L40:L46,AS11) -> 0 | AU11: =AT11/(AV4-AT7) ->  | AV11: =IF(AU11=0,0,(AU11*((LOG(AU11))/LOG(2)))) -> 
A12: 11 | B12: 722 | C12: 11 | D12: 736 | E12: 11 | F12: 744 | K12: 0 | L12: 111 | N12: 212 | O12: =COUNTIF($L$7:$L$500,N12) -> 0 | P12: =O12/$Q$4 -> 0 | Q12: =IF(P12=0,0,(P12*((LOG(P12))/LOG(2)))) -> 0 | T12: =N12 -> 212 | U12: =COUNTIF(L7:L13,T12) -> 0 | V12: =U12/(W4-U7) ->  | W12: =IF(V12=0,0,(V12*((LOG(V12))/LOG(2)))) ->  | Y12: =N12 -> 212 | Z12: =COUNTIF(L14:L19,Y12) -> 0 | AA12: =Z12/(AB4-Z7) ->  | AB12: =IF(AA12=0,0,(AA12*((LOG(AA12))/LOG(2)))) ->  | AD12: =N12 -> 212 | AE12: =COUNTIF(L20:L26,AD12) -> 0 | AF12: =AE12/(AG4-AE7) ->  | AG12: =IF(AF12=0,0,(AF12*((LOG(AF12))/LOG(2)))) ->  | AI12: =N12 -> 212 | AJ12: =COUNTIF(L27:L33,AI12) -> 0 | AK12: =AJ12/(AL4-AJ7) ->  | AL12: =IF(AK12=0,0,(AK12*((LOG(AK12))/LOG(2)))) ->  | AN12: =N12 -> 212 | AO12: =COUNTIF(L34:L39,AN12) -> 0 | AP12: =AO12/(AQ4-AO7) ->  | AQ12: =IF(AP12=0,0,(AP12*((LOG(AP12))/LOG(2)))) ->  | AS12: =N12 -> 212 | AT12: =COUNTIF(L40:L46,AS12) -> 0 | AU12: =AT12/(AV4-AT7) ->  | AV12: =IF(AU12=0,0,(AU12*((LOG(AU12))/LOG(2)))) -> 
A13: 11 | B13: 885 | C13: 11 | D13: 907 | E13: 11 | F13: 915 | K13: 0 | L13: 111 | N13: 221 | O13: =COUNTIF($L$7:$L$500,N13) -> 0 | P13: =O13/$Q$4 -> 0 | Q13: =IF(P13=0,0,(P13*((LOG(P13))/LOG(2)))) -> 0 | T13: =N13 -> 221 | U13: =COUNTIF(L7:L13,T13) -> 0 | V13: =U13/(W4-U7) ->  | W13: =IF(V13=0,0,(V13*((LOG(V13))/LOG(2)))) ->  | Y13: =N13 -> 221 | Z13: =COUNTIF(L14:L19,Y13) -> 0 | AA13: =Z13/(AB4-Z7) ->  | AB13: =IF(AA13=0,0,(AA13*((LOG(AA13))/LOG(2)))) ->  | AD13: =N13 -> 221 | AE13: =COUNTIF(L20:L26,AD13) -> 0 | AF13: =AE13/(AG4-AE7) ->  | AG13: =IF(AF13=0,0,(AF13*((LOG(AF13))/LOG(2)))) ->  | AI13: =N13 -> 221 | AJ13: =COUNTIF(L27:L33,AI13) -> 0 | AK13: =AJ13/(AL4-AJ7) ->  | AL13: =IF(AK13=0,0,(AK13*((LOG(AK13))/LOG(2)))) ->  | AN13: =N13 -> 221 | AO13: =COUNTIF(L34:L39,AN13) -> 0 | AP13: =AO13/(AQ4-AO7) ->  | AQ13: =IF(AP13=0,0,(AP13*((LOG(AP13))/LOG(2)))) ->  | AS13: =N13 -> 221 | AT13: =COUNTIF(L40:L46,AS13) -> 0 | AU13: =AT13/(AV4-AT7) ->  | AV13: =IF(AU13=0,0,(AU13*((LOG(AU13))/LOG(2)))) -> 
A14: 11 | B14: 1051 | C14: 11 | D14: 1067 | E14: 11 | F14: 1075 | K14: 0 | L14: 111 | N14: 222 | O14: =COUNTIF($L$7:$L$500,N14) -> 0 | P14: =O14/$Q$4 -> 0 | Q14: =IF(P14=0,0,(P14*((LOG(P14))/LOG(2)))) -> 0 | T14: =N14 -> 222 | U14: =COUNTIF(L7:L13,T14) -> 0 | V14: =U14/(W4-U7) ->  | W14: =IF(V14=0,0,(V14*((LOG(V14))/LOG(2)))) ->  | Y14: =N14 -> 222 | Z14: =COUNTIF(L14:L19,Y14) -> 0 | AA14: =Z14/(AB4-Z7) ->  | AB14: =IF(AA14=0,0,(AA14*((LOG(AA14))/LOG(2)))) ->  | AD14: =N14 -> 222 | AE14: =COUNTIF(L20:L26,AD14) -> 0 | AF14: =AE14/(AG4-AE7) ->  | AG14: =IF(AF14=0,0,(AF14*((LOG(AF14))/LOG(2)))) ->  | AI14: =N14 -> 222 | AJ14: =COUNTIF(L27:L33,AI14) -> 0 | AK14: =AJ14/(AL4-AJ7) ->  | AL14: =IF(AK14=0,0,(AK14*((LOG(AK14))/LOG(2)))) ->  | AN14: =N14 -> 222 | AO14: =COUNTIF(L34:L39,AN14) -> 0 | AP14: =AO14/(AQ4-AO7) ->  | AQ14: =IF(AP14=0,0,(AP14*((LOG(AP14))/LOG(2)))) ->  | AS14: =N14 -> 222 | AT14: =COUNTIF(L40:L46,AS14) -> 0 | AU14: =AT14/(AV4-AT7) ->  | AV14: =IF(AU14=0,0,(AU14*((LOG(AU14))/LOG(2)))) -> 
A15: 11 | B15: 1209 | C15: 11 | D15: 1221 | E15: 11 | F15: 1229 | K15: 0 | L15: 111 | P15: =SUM(P7:P14) -> 1 | Q15: =-SUM(Q7:Q14) -> 0 | V15: =SUM(V7:V14) ->  | W15: =-SUM(W7:W14) ->  | AA15: =SUM(AA7:AA14) ->  | AB15: =-SUM(AB7:AB14) ->  | AF15: =SUM(AF7:AF14) ->  | AG15: =-SUM(AG7:AG14) ->  | AK15: =SUM(AK7:AK14) ->  | AL15: =-SUM(AL7:AL14) ->  | AP15: =SUM(AP7:AP14) ->  | AQ15: =-SUM(AQ7:AQ14) ->  | AU15: =SUM(AU7:AU14) ->  | AV15: =-SUM(AV7:AV14) -> 
A16: 11 | B16: 1324 | C16: 11 | D16: 1343 | E16: 11 | F16: 1351 | K16: 0 | L16: 111 | P16: U= | Q16: =Q15/(LOG(Q4)/LOG(2)) -> 0 | V16: U1= | W16: =W15/(LOG(W4)/LOG(2)) ->  | AA16: U2= | AB16: =AB15/(LOG(AB4)/LOG(2)) ->  | AF16: U3= | AG16: =AG15/(LOG(AG4)/LOG(2)) ->  | AK16: U4= | AL16: =AL15/(LOG(AL4)/LOG(2)) ->  | AP16: U5= | AQ16: =AQ15/(LOG(AQ4)/LOG(2)) ->  | AU16: U6= | AV16: =AV15/(LOG(AV4)/LOG(2)) -> 
A17: 11 | B17: 1506 | C17: 11 | D17: 1521 | E17: 11 | F17: 1529 | K17: 0 | L17: 111
A18: 11 | B18: 1666 | C18: 11 | D18: 1683 | E18: 11 | F18: 1693 | K18: 0 | L18: 111
A19: 11 | B19: 1801 | C19: 11 | D19: 1820 | E19: 11 | F19: 1828 | K19: 0 | L19: 111 | N19: Total Target Seq
A20: 11 | B20: 1920 | C20: 11 | D20: 1929 | E20: 11 | F20: 1938 | K20: 0 | L20: 111 | N20: =COUNTIF(L7:L46,G3) -> 40 | P20: 7 | Q20: 6 | R20: 7 | S20: 7 | T20: 6 | U20: 7
A21: 11 | B21: 2075 | C21: 11 | D21: 2100 | E21: 11 | F21: 2108 | K21: 0 | L21: 111 | P21: % of reinforcement given in 6 equal intervals based on number of trials
A22: 11 | B22: 2254 | C22: 11 | D22: 2265 | E22: 11 | F22: 2279 | K22: 0 | L22: 111 | P22: %_1 | Q22: %_2 | R22: %_3 | S22: %_4 | T22: %_5 | U22: %_6
A23: 11 | B23: 2423 | C23: 11 | D23: 2446 | E23: 11 | F23: 2456 | K23: 0 | L23: 111 | O23: target sequence | P23: =$G$3 -> 111 | Q23: =$G$3 -> 111 | R23: =$G$3 -> 111 | S23: =$G$3 -> 111 | T23: =$G$3 -> 111 | U23: =$G$3 -> 111
A24: 11 | B24: 2593 | C24: 11 | D24: 2606 | E24: 11 | F24: 2613 | K24: 0 | L24: 111 | O24: total reinforcement | P24: =U7 -> 7 | Q24: =Z7 -> 6 | R24: =AE7 -> 7 | S24: =AJ7 -> 7 | T24: =AO7 -> 6 | U24: =AT7 -> 7
A25: 11 | B25: 2816 | C25: 11 | D25: 2833 | E25: 11 | F25: 2841 | K25: 0 | L25: 111 | O25: % target
A26: 11 | B26: 2986 | C26: 11 | D26: 3004 | E26: 11 | F26: 3011 | K26: 0 | L26: 111 | O26: CCRF
A27: 11 | B27: 3104 | C27: 11 | D27: 3124 | E27: 11 | F27: 3131 | K27: 0 | L27: 111 | O27: % CCRf
A28: 11 | B28: 3291 | C28: 11 | D28: 3302 | E28: 11 | F28: 3309 | K28: 0 | L28: 111 | O28: average response rate | P28: =F13/P20 -> 130.7142857 | Q28: =(F19-F13)/Q20 -> 152.1666667 | R28: =(F26-F19)/R20 -> 169 | S28: =(F33-F26)/S20 -> 138.1428571 | T28: =(F39-F33)/T20 -> 135.8333333 | U28: =(F46-F39)/U20 -> 161.4285714
A29: 11 | B29: 3426 | C29: 11 | D29: 3437 | E29: 11 | F29: 3444 | K29: 0 | L29: 111
A30: 11 | B30: 3539 | C30: 11 | D30: 3560 | E30: 11 | F30: 3567 | K30: 0 | L30: 111
A31: 11 | B31: 3682 | C31: 11 | D31: 3688 | E31: 11 | F31: 3701 | K31: 0 | L31: 111
A32: 11 | B32: 3818 | C32: 11 | D32: 3823 | E32: 11 | F32: 3846 | K32: 0 | L32: 111
A33: 11 | B33: 3968 | C33: 11 | D33: 3974 | E33: 11 | F33: 3978 | K33: 0 | L33: 111
A34: 11 | B34: 4084 | C34: 11 | D34: 4103 | E34: 11 | F34: 4112 | K34: 0 | L34: 111
A35: 11 | B35: 4250 | C35: 11 | D35: 4266 | E35: 11 | F35: 4273 | K35: 0 | L35: 111
A36: 11 | B36: 4393 | C36: 11 | D36: 4403 | E36: 11 | F36: 4409 | K36: 0 | L36: 111
A37: 11 | B37: 4508 | C37: 11 | D37: 4525 | E37: 11 | F37: 4533 | K37: 0 | L37: 111
A38: 11 | B38: 4660 | C38: 11 | D38: 4676 | E38: 11 | F38: 4686 | K38: 0 | L38: 111
A39: 11 | B39: 4781 | C39: 11 | D39: 4787 | E39: 11 | F39: 4793 | K39: 0 | L39: 111
A40: 11 | B40: 4938 | C40: 11 | D40: 4948 | E40: 11 | F40: 4957 | K40: 0 | L40: 111
A41: 11 | B41: 5069 | C41: 11 | D41: 5087 | E41: 11 | F41: 5095 | K41: 0 | L41: 111
A42: 11 | B42: 5222 | C42: 11 | D42: 5240 | E42: 11 | F42: 5247 | K42: 0 | L42: 111
A43: 11 | B43: 5379 | C43: 11 | D43: 5383 | E43: 11 | F43: 5402 | K43: 0 | L43: 111
A44: 11 | B44: 5535 | C44: 11 | D44: 5553 | E44: 11 | F44: 5567 | K44: 0 | L44: 111
A45: 11 | B45: 5674 | C45: 11 | D45: 5697 | E45: 11 | F45: 5705 | K45: 0 | L45: 111
A46: 11 | B46: 5903 | C46: 11 | D46: 5915 | E46: 11 | F46: 5923 | K46: 1 | L46: 111

Sheet !M910B5I.sha
A1: Report for:!M910B5I.sha
A2: Date: | B2: <date>
A3: Hen: | B3: <hen> | F3: Correct Sequence | G3: =Start!J2 -> 111 | P3: Total Sequences in Data | Q3: =4994-COUNTBLANK(L7:L5000) -> 41 | V3: Total Sequences in Block Data | W3: =COUNTA(L7:L13) -> 7 | AA3: Total Sequences in Block Data | AB3: =COUNTA(L14:L20) -> 7 | AF3: Total Sequences in Block Data | AG3: =COUNTA(L21:L26) -> 6 | AK3: Total Sequences in Block Data | AL3: =COUNTA(L27:L33) -> 7 | AP3: Total Sequences in Block Data | AQ3: =COUNTA(L34:L40) -> 7 | AU3: Total Sequences in Block Data | AV3: =COUNTA(L41:L47) -> 7
P4: Total Sequences in Summary | Q4: =SUM(O7:O14) -> 41 | V4: Total Sequences in Block Summary | W4: =SUM(U7:U14) -> 7 | AA4: Total Sequences in Block Summary | AB4: =SUM(Z7:Z14) -> 7 | AF4: Total Sequences in Block Summary | AG4: =SUM(AE7:AE14) -> 6 | AK4: Total Sequences in Block Summary | AL4: =SUM(AJ7:AJ14) -> 7 | AP4: Total Sequences in Block Summary | AQ4: =SUM(AO7:AO14) -> 7 | AU4: Total Sequences in Block Summary | AV4: =SUM(AT7:AT14) -> 7
T5: Block 1 | Y5: Block 2 | AD5: Block 3 | AI5: Block 4 | AN5: Block 5 | AS5: Block 6
A6: Sequence Component 1 | B6: Time 1 | C6: Sequence Component 2 | D6: Time 2 | E6: Sequence Component 3 | F6: Time 3 | G6: Sequence Component 4 | H6: Time 4 | I6: Sequence Component 5 | J6: Time 5 | K6: Correct? 0=No 1=Yes | L6: Sequence | N6: Frequency | P6: Relative Frequency | Q6: Variability | T6: Frequency | V6: Relative Frequency | W6: Variability | Y6: Frequency | AA6: Relative Frequency | AB6: Variability | AD6: Frequency | AF6: Relative Frequency | AG6: Variability | AI6: Frequency | AK6: Relative Frequency | AL6: Variability | AN6: Frequency | AP6: Relative Frequency | AQ6: Variability | AS6: Frequency | AU6: Relative Frequency | AV6: Variability
A7: 22 | B7: 6 | C7: 24 | D7: 12 | E7: 13 | F7: 22 | K7: 0 | L7: 221 | N7: 111 | O7: =COUNTIF($L$7:$L$500,N7) -> 40 | P7: =O7/$Q$4 -> 0.9756097561 | Q7: =IF(P7=0,0,(P7*((LOG(P7))/LOG(2)))) -> -0.03475503388 | T7: =N7 -> 111 | U7: =COUNTIF(L7:L13,T7) -> 6 | Y7: =N7 -> 111 | Z7: =COUNTIF(L14:L20,Y7) -> 7 | AD7: =N7 -> 111 | AE7: =COUNTIF(L21:L26,AD7) -> 6 | AI7: =N7 -> 111 | AJ7: =COUNTIF(L27:L33,AI7) -> 7 | AN7: =N7 -> 111 | AO7: =COUNTIF(L34:L40,AN7) -> 7 | AS7: =N7 -> 111 | AT7: =COUNTIF(L41:L47,AS7) -> 7
